Workbook

Sheet Cover
B3: PV Solar Net Economic Impact Estimation Model
B6: Steven R. Miller, Ph.D.
B8: Michigan State University
B9: Center for Economic Analysis
B12: 2024-12-01
B15: Front: All assumptions in the model
C16: Black fonted fields: Entered values
C17: Red fonted fields: Calculated values
C18: Reset to Default Values: Overwrite all assumptions with default values
B20: Outcome: Net impacts along all three phases
C21: Installation Phase
C22: O&M Phase
C23: Decommissioning Phase
B26: Model Documentation
B33: Special Tanks to:
C34: Papa Yaw Owusu-Obeng (University of Michigan)
C35: Sarah Mills (University of Michigan)
C36: Michael Craig (University of Michigan)
C37: Giblbert Michaud (Loyola University Chicago)

Sheet Front
B2: Year of Analysis | E2: =YEAR(TODAY()) -> 2025
B3: Region of Analysis
D4: State | E4: IN
D5: County | E5: Cass County | F5: =VLOOKUP(E5,lookups!$AB$4:$AC$426,2,FALSE) -> Large
D6: Community Size | E6: =_xlfn.XLOOKUP(F5,lookups!$D$4:$D$6,lookups!$E$4:$E$6,NA(),0) -> LT 50k
D7: Multiplyer | E7: TypeII
D8: Relative Soil Productivity | E8: =VLOOKUP(E5,lookups!$AB$4:$AD$426,3,FALSE) -> Average
D9: Owner Residency (Percent local) | E9: 0.75
B10: Facilities
D11: Name Plate Capacity (MWac) | E11: 100
D12: DC-to-AC ratio (inverter load ratio) | E12: 1.25
D13: Expected Capacity Factor | E13: 0.201
D14: Annual Downtime-share | E14: 0.1
D15: Committed Acres | E15: 1000
D16: Acres of solar panels | E16: 600
D17: Agricultural Acres Displaced | E17: 800
D18: Installation Months | E18: 18
D19: Decommission Months | E19: 9
D20: Life of project (Years) | E20: 30
D21: Retail Price of Electricity ($/MWh) | E21: =0.145*1000 -> 145
D22: Wholesale Price (MISO IN Hub $/MWh) | E22: 98.93
D23: Fair Market Value at Installation Completion ($2022/MWac) | E23: =246524*VLOOKUP(Front!E2,Timeseries!$M$10:$O$40,2,FALSE)/VLOOKUP(2023,Timeseries!$M$10:$O$40,2,FALSE) -> 259255.4855
B25: Payments to Leaseholders
D26: Average Annual Lease rate (all acres) | E26: 580
D27: Developer-owned acres | E27: =0.25*E15 -> 250
D28: Total leased acres | E28: =E15-E27 -> 750
B30: Tax and Fees
C31: Installation
D32: Fees, and indirect & direct taxes | E32: =Installation!H31 -> 7089910.328
C33: O&M
D34: Annual Operating Taxes | E34: =_xlfn.XLOOKUP(state,'Property Tax'!C7:K7,'Property Tax'!C41:K41,NA(),0,1) -> 428397.3306
C35: Discount Rate | E35: 0.075
B37: Relevant Installation Costs and Expenditures
B38: Installation costs per Wdc | E38: $/Wdc | F38: Share of Total
B39: Total Installation Costs per Wdc | E39: 1.262
C40: Installation Expenditures by Category
D41: Engineering, Procurement and Construction Margins | E41: =F41*$E$39 -> 0.05671910112 | F41: 0.04494382022
D42: Contingency | E42: 0.0354494382 | F42: 0.02808988764
D43: Developer Overhead | E43: 0.02835955056 | F43: 0.02247191011
D44: Transmission Line | E44: 0.01417977528 | F44: 0.01123595506
D45: Interconnection Fee | E45: 0.0354494382 | F45: 0.02808988764
D46: Permitting Fee | E46: 0.01417977528 | F46: 0.01123595506
D47: Sales Tax | E47: 0.056719328 | F47: 0.044944
D48: Engineering, Procurement and Construction Overhead | E48: 0.0708988764 | F48: 0.05617977528
D49: Install Labor & Equipment | E49: 0.1559775281 | F49: 0.1235955056
D50: Electrical Balance of System | E50: 0.09925842697 | F50: 0.07865168539
D51: Structural Balance of System | E51: 0.1701573034 | F51: 0.1348314607
D52: Inverter | E52: 0.05671910112 | F52: 0.04494382022
D53: PV Modules | E53: 0.4679325843 | F53: 0.3707865169
D54: Total | E54: =SUM(E41:E53) -> 1.262000227 | F54: =SUM(F41:F53) -> 1.00000018
E55: =IF(ROUND(E54,3)<>ROUND(SUM($E$41:$E$53),3),"Error: Total does not equal sum!","") ->  | F55: =IF(ROUND(SUM(F41:F53),3)<>1,"Must sum to 100%","") -> 
B56: Local Capture of Install Expenditures by Expenditure Category | E56: Percent
D57: Engineering, Procurement and Construction | E57: 0.25
D58: Contingency | E58: 0
D59: Transmission/Interconnection | E59: 0.65
D60: State Taxes and Fees | E60: 0.8
D61: Installation (non-residential construction) | E61: 1
D62: Electrical components (less transmission) | E62: 0.15
D63: Structures | E63: 0.25
D64: PV Modules | E64: 0
B67: Annual Operating Expenditures by Category | E67: $/kWDC/year | F67: Share of Total
B68: Total O&M Costs per kWDC/year | E68: 21.69
C69: Annual Operating Expenditures by Category
D70: Administrator | E70: =F70*$E$68 -> 2.253980256 | F70: 0.1039179464
D71: Cleaner | E71: 2.015074775 | F71: 0.09290340136
D72: Inverter specialist | E72: 0.003758147332 | F72: 0.0001732663592
D73: Inspector | E73: 2.442518733 | F73: 0.1126103611
D74: Journeyman electrician | E74: 1.015614485 | F74: 0.04682408874
D75: PV module/array Specialist | E75: 2.584648536 | F75: 0.1191631414
D76: Network/IT | E76: 0.001466756405 | F76: 6.762362402e-05
D77: Master electrician | E77: 0.4747749042 | F77: 0.02188911499
D78: Mechanic | E78: 0.2389347059 | F78: 0.01101589239
D79: Pest control | E79: 0.04351298963 | F79: 0.00200613138
D80: Structural engineer | E80: 0.0003829212933 | F80: 1.765427816e-05
D81: Mower/Trimmer | E81: 1.623112581 | F81: 0.07483229972
D82: Utilities locator | E82: 0.005288473489 | F82: 0.0002438208155
D83: Land Lease | E83: 4.406438187 | F83: 0.2031552875
D84: Taxes | E84: 4.580493549 | F84: 0.21117997
D85: Total | E85: =SUM(E70:E84) -> 21.69 | F85: =SUM(F70:F84) -> 1
E86: =IF(ROUND(E85,3)<>ROUND(SUM($E$70:$E$84),3),"Error: Total does not equal sum!","") ->  | F86: =IF(ROUND(SUM(F70:F84),3)<>1,"Must sum to 100%","") -> 
B87: Local Capture of O&M Expenditures by Expenditure Category | E87: Percent
D88: Administrator | E88: 0
D89: Cleaner | E89: 0.75
D90: Inverter specialist | E90: 0.25
D91: Inspector | E91: 0
D92: Journeyman electrician | E92: 0.5
D93: PV module/array Specialist | E93: 0.2
D94: Network/IT | E94: 0
D95: Master electrician | E95: 0.25
D96: Mechanic | E96: 0.25
D97: Pest control | E97: 1
D98: Structural engineer | E98: 0
D99: Mower/Trimmer | E99: 1
D100: Utilities locator | E100: 0
D101: land lease | E101: =E9 -> 0.75
D102: Taxes | E102: 0.8

Sheet outcome
D4: Name Plate Capacity MWac | E4: =Front!E11 -> 100
D5: State of Installation | E5: =_xlfn.XLOOKUP(state,lookups!$S$4:$S$10,lookups!$T$4:$T$10) -> Indiana
D6: County of Installation | E6: =Front!E5 -> Cass County
D7: Size Category of County | E7: =VLOOKUP(_xlfn.XLOOKUP($E$6,lookups!AB4:AB426,lookups!AC4:AC426),lookups!$D$4:$E$6,2,FALSE) -> LT 50k
B12: Direct Economic Effects | F12: Installation Phase | G12: O&M Phase
C13: Direct Operations
D14: Energy Generation (MWac hours) | G14: ='Install assunptions'!C9 -> 158576.94
D15: Energy Generation (MWdc hours) | G15: ='Install assunptions'!F9 -> 198221.175
D16: Retail Value of Generation | G16: =G15*Front!E21 -> 28742070.38
D17: Wholesale Value of Generation | G17: `
C19: Direct Expenditures
D20: Total Direct | F20: ='Install assunptions'!C21 -> 157750028.4 | G20: ='O&M'!H69 -> 4404991.831
D21: Local Capture | F21: =Installation!H38 -> 43735767.07 | G21: ='O&M'!K69:K69 -> 2682005.533
C23: Displaced Agricultural Production
D24: Agricultural Acres Converted | G24: =Front!E17 -> 800
D25: Value of Agricultural output | G25: ='Ag production'!D16 -> -636800
B30: Installation Phase (phase duration)
E31: Installation Activities | F31: Lost Agricultural Output | G31: Net Economic Effect
D32: Output | E32: =Installation!J38 -> 53131428.71 | F32: ='Ag production'!G14 -> -1776417.28 | G32: =SUM(E32:F32) -> 51355011.43
D33: Earnings | E33: =Installation!K38 -> 8259025.093 | F33: ='Ag production'!H14 -> -310376.32 | G33: =SUM(E33:F33) -> 7948648.773
D34: Employment | E34: =Installation!L38 -> 150.4424346 | F34: ='Ag production'!I14 -> -5.775960609 | G34: =SUM(E34:F34) -> 144.666474
D35: Value-added | E35: =Installation!M38 -> 17096939.16 | F35: ='Ag production'!J14 -> -705701.76 | G35: =SUM(E35:F35) -> 16391237.4
B38: O&M Phase (annual average)
E39: O&M Activities | F39: Lost Agricultural Output | G39: Net Economic Effect
D40: Output | E40: ='O&M'!N69 -> 4503776.325 | F40: ='Ag production'!L14 -> -888208.64 | G40: =SUM(E40:F40) -> 3615567.685
D41: Earnings | E41: ='O&M'!O69 -> 1296905.884 | F41: ='Ag production'!M14 -> -155188.16 | G41: =SUM(E41:F41) -> 1141717.724
D42: Employment | E42: ='O&M'!P69 -> 33.07488693 | F42: ='Ag production'!N14 -> -2.887980305 | G42: =SUM(E42:F42) -> 30.18690663
D43: Value-added | E43: ='O&M'!Q69 -> 2701939.589 | F43: ='Ag production'!O14 -> -352850.88 | G43: =SUM(E43:F43) -> 2349088.709
B46: Decommissioning Phase (phase duration)
E47: Decomission Activities | F47: Lost Agricultural Output | G47: Net Economic Effect
D48: Output | E48: =Decommission!M39 -> 6208147.404 | F48: =ag_om_out -> -888208.64 | G48: =SUM(E48:F48) -> 5319938.764
D49: Earnings | E49: =Decommission!N39 -> 1180120.214 | F49: =ag_om_earn -> -155188.16 | G49: =SUM(E49:F49) -> 1024932.054
D50: Employment | E50: =Decommission!O39 -> 16.94158345 | F50: =ag_om_emp -> -2.887980305 | G50: =SUM(E50:F50) -> 14.05360314
D51: Value-added | E51: =Decommission!P39 -> 2427310.175 | F51: =ag_om_va -> -352850.88 | G51: =SUM(E51:F51) -> 2074459.295
B53: Property Tax Generated
D54: Total (Over project life) | E54: ='Property Tax'!L1 -> 12851919.92
D55: Average Annual | E55: ='Property Tax'!L2 -> 428397.3306
D56: Present Value | E56: ='Property Tax'!L3 -> 5410233.258

Sheet Install assunptions
B2: Installation costs per Wdc | C2: =Front!E54 -> 1.262000227 | E2: Inflation Factor | F2: =_xlfn.XLOOKUP(Front!E2,Timeseries!M10:M40,Timeseries!O10:O40) -> 1.081090032
B3: DC-to-AC ratio (inverter load ratio) | C3: =Front!E12 -> 1.25
B4: Installation Months | C4: =Front!E18 -> 18
C6: MWac | D6: kWac | E6: Wac | F6: MWdc | G6: kWdc | H6: Wdc
B7: System Size (Nameplace Capacity) | C7: =Front!E11 -> 100 | D7: =C7*1000 -> 100000 | E7: =D7*1000 -> 100000000 | F7: =C7*C3 -> 125 | G7: =F7*1000 -> 125000 | H7: =E7*C3 -> 125000000
C8: MWac hours | D8: kWac hours | E8: Wac hours | F8: MWdc hours | G8: kWdc hours | H8: Wdc hours
B9: Expected Annual Generation | C9: =(C7*Installation!$D$3)*Front!$E$13*(1-Front!E14) -> 158576.94 | D9: =(D7*Installation!$D$3)*Front!$E$13*(1-Front!E14) -> 158576940 | E9: =(E7*Installation!$D$3)*Front!$E$13*(1-Front!E14) -> 158576940000 | F9: =(F7*Installation!$D$3)*Front!$E$13*(1-Front!E14) -> 198221.175 | G9: =(G7*Installation!$D$3)*Front!$E$13*(1-Front!E14) -> 198221175 | H9: =(H7*Installation!$D$3)*Front!$E$13*(1-Front!E14) -> 198221175000 | K9: Calcs are varified
B12: Components | C12: Project Total | D12: Local Capture
B13: =Installation!B28 -> Engineering, Procurement and Construction | C13: =$H$7*Installation!D28 -> 19497191.01 | D13: =Installation!G28*$H$7 -> 4874297.753
B14: =Installation!B29 -> Contingency | C14: =$H$7*Installation!D29 -> 4431179.775 | D14: =Installation!G29*$H$7 -> 0
B15: =Installation!B30 -> Transmission/Interconnection | C15: =$H$7*Installation!D30 -> 6203651.685 | D15: =Installation!G30*$H$7 -> 4032373.596
B16: =Installation!B31 -> State Taxes and Fees | C16: =$H$7*Installation!D31 -> 8862387.91 | D16: =Installation!G31*$H$7 -> 7089910.328
B17: =Installation!B32 -> Installation (non-residential construction) | C17: =$H$7*Installation!D32 -> 19497191.01 | D17: =Installation!G32*$H$7 -> 19497191.01
B18: =Installation!B33 -> Electrical components (less transmission) | C18: =$H$7*Installation!D33 -> 19497191.01 | D18: =Installation!G33*$H$7 -> 2924578.652
B19: =Installation!B34 -> Structures | C19: =$H$7*Installation!D34 -> 21269662.92 | D19: =Installation!G34*$H$7 -> 5317415.73
B20: =Installation!B35 -> PV Modules | C20: =$H$7*Installation!D35 -> 58491573.03 | D20: =Installation!G35*$H$7 -> 0
B21: Installation cost | C21: =H7*C2 -> 157750028.4 | D21: =Installation!G38*$H$7 -> 43735767.07
C22: =C21=SUM(C13:C20) -> TRUE | D22: =D21=SUM(D13:D20) -> TRUE

Sheet Installation
B2: Fixed Paremeters
B3: Hours in a year | D3: =24*365.25 -> 8766
B4: Daylight hours per year | D4: =0.5*D3 -> 4383
B5: Capacity Factor | D5: =Front!E13 -> 0.201 | E5: https://www.eia.gov/tools/faqs/faq.php?id=101&t=3#:~:text=Electricity%20generation%20capacity%20is%20the,without%20exceeding%20design%20thermal%20limits & https://www.eia.gov/electricity/monthly/epm_table_grapher.php?t=table_6_07_b
B6: Acres per MWac Capacity | D6: 7.3
B9: Total Installation Costs | C9: Category | D9: $/Wdc | E9: Percent | G9: Total Expend
B10: Engineering, Procurement and Construction Margins | C10: Engineering, Procurement and Construction | D10: =Front!E41 -> 0.05671910112 | E10: =D10/$D$23 -> 0.04494381214 | G10: =D10*'Install assunptions'!$H$7 -> 7089887.64
B11: Contingency | C11: Contingency | D11: =Front!E42 -> 0.0354494382 | E11: =D11/$D$23 -> 0.02808988259 | G11: =D11*'Install assunptions'!$H$7 -> 4431179.775
B12: Developer Overhead | C12: Engineering, Procurement and Construction | D12: =Front!E43 -> 0.02835955056 | E12: 0.02247190607 | G12: =D12*'Install assunptions'!$H$7 -> 3544943.82
B13: Transmission Line | C13: Transmission/Interconnection | D13: =Front!E44 -> 0.01417977528 | E13: 0.01123595304 | G13: =D13*'Install assunptions'!$H$7 -> 1772471.91
B14: Interconnection Fee | C14: Transmission/Interconnection | D14: =Front!E45 -> 0.0354494382 | E14: 0.02808988259 | G14: =D14*'Install assunptions'!$H$7 -> 4431179.775
B15: Permitting Fee | C15: State Taxes and Fees | D15: =Front!E46 -> 0.01417977528 | E15: 0.01123595304 | G15: =D15*'Install assunptions'!$H$7 -> 1772471.91
B16: Sales Tax | C16: State Taxes and Fees | D16: =Front!E47 -> 0.056719328 | E16: 0.04494399192 | G16: =_xlfn.XLOOKUP(state,lookups!$AG$4:$AG$10,lookups!AL4:AL10)*0.75*'Install assunptions'!$H$7 -> 6562500
B17: Engineering, Procurement and Construction Overhead | C17: Engineering, Procurement and Construction | D17: =Front!E48 -> 0.0708988764 | E17: 0.05617976518 | G17: =D17*'Install assunptions'!$H$7 -> 8862359.551
B18: Install Labor & Equipment | C18: Installation (non-residential construction) | D18: =Front!E49 -> 0.1559775281 | E18: 0.1235954834 | G18: =D18*'Install assunptions'!$H$7 -> 19497191.01
B19: Electrical Balance of System | C19: Electrical components (less transmission) | D19: =Front!E50 -> 0.09925842697 | E19: 0.07865167125 | G19: =D19*'Install assunptions'!$H$7 -> 12407303.37
B20: Structural Balance of System | C20: Structures | D20: =Front!E51 -> 0.1701573034 | E20: 0.1348314364 | G20: =D20*'Install assunptions'!$H$7 -> 21269662.92
B21: Inverter | C21: Electrical components (less transmission) | D21: =Front!E52 -> 0.05671910112 | E21: 0.04494381214 | G21: =D21*'Install assunptions'!$H$7 -> 7089887.64
B22: Module | C22: PV Modules | D22: =Front!E53 -> 0.4679325843 | E22: 0.3707864502 | G22: =D22*'Install assunptions'!$H$7 -> 58491573.03
D23: =SUM(D10:D22) -> 1.262000227 | E23: 1 | G23: =SUM(G10:G22) -> 157222612.4
J24: Installation Impacts
B26: Installation costs per Wdc | C26: SEG | D26: $/Wdc | E26: Percent | F26: Local Share | G26: Local Capture | H26: Total Local Expenditure | J26: Final-demand Output | K26: Final-demand Earnings | L26: Final-demand Employment | M26: Final-demand Value-added
B28: =_xlfn.UNIQUE(C10:C22) -> Engineering, Procurement and Construction | C28: =VLOOKUP(B28,lookups!$G$4:$H$11,2,FALSE) -> EPC | D28: =SUMIF($C$10:$C$22,B28,D$10:D$22) -> 0.1559775281 | E28: =SUMIF($C$10:$C$22,B28,E$10:E$22) -> 0.1235954834 | F28: =Front!E57 -> 0.25 | G28: =F28*D28 -> 0.03899438202 | H28: =G28*'Install assunptions'!$H$7 -> 4874297.753 | J28: =IFERROR(AVERAGEIFS(Table1[Final-demand Output],Table1[State],state,Table1[Size_],size,Table1[SEG],Installation!$C28,Table1[Mult],Multiplier),0)*$H28 -> 5904670.139 | K28: =IFERROR(AVERAGEIFS(Table1[Final-demand Earnings],Table1[State],state,Table1[Size_],size,Table1[SEG],Installation!$C28,Table1[Mult],Multiplier),0)*$H28 -> 779995.9582 | L28: =IFERROR(AVERAGEIFS(Table1[Final-demand Employment],Table1[State],state,Table1[Size_],size,Table1[SEG],Installation!$C28,Table1[Mult],Multiplier),0)*$H28/1000000 -> 12.67041206 | M28: =IFERROR(AVERAGEIFS(Table1[Final-demand Value-added],Table1[State],state,Table1[Size_],size,Table1[SEG],Installation!$C28,Table1[Mult],Multiplier),0)*$H28 -> 1634947.784
B29: Contingency | C29: =VLOOKUP(B29,lookups!$G$4:$H$11,2,FALSE) -> NON | D29: =SUMIF($C$10:$C$22,B29,$D$10:$D$22) -> 0.0354494382 | E29: 0.02808988259 | F29: =Front!E58 -> 0 | G29: =F29*D29 -> 0 | H29: =G29*'Install assunptions'!$H$7 -> 0 | J29: =IFERROR(AVERAGEIFS(Table1[Final-demand Output],Table1[State],state,Table1[Size_],size,Table1[SEG],Installation!$C29,Table1[Mult],Multiplier),0)*$H29 -> 0 | K29: =IFERROR(AVERAGEIFS(Table1[Final-demand Earnings],Table1[State],state,Table1[Size_],size,Table1[SEG],Installation!$C29,Table1[Mult],Multiplier),0)*$H29 -> 0 | L29: =IFERROR(AVERAGEIFS(Table1[Final-demand Employment],Table1[State],state,Table1[Size_],size,Table1[SEG],Installation!$C29,Table1[Mult],Multiplier),0)*$H29/1000000 -> 0 | M29: =IFERROR(AVERAGEIFS(Table1[Final-demand Value-added],Table1[State],state,Table1[Size_],size,Table1[SEG],Installation!$C29,Table1[Mult],Multiplier),0)*$H29 -> 0
B30: Transmission/Interconnection | C30: =VLOOKUP(B30,lookups!$G$4:$H$11,2,FALSE) -> ELEC | D30: 0.04962921348 | E30: 0.03932583563 | F30: =Front!E59 -> 0.65 | G30: 0.03225898876 | H30: =G30*'Install assunptions'!$H$7 -> 4032373.596 | J30: =IFERROR(AVERAGEIFS(Table1[Final-demand Output],Table1[State],state,Table1[Size_],size,Table1[SEG],Installation!$C30,Table1[Mult],Multiplier),0)*$H30 -> 4032373.596 | K30: =IFERROR(AVERAGEIFS(Table1[Final-demand Earnings],Table1[State],state,Table1[Size_],size,Table1[SEG],Installation!$C30,Table1[Mult],Multiplier),0)*$H30 -> 0 | L30: =IFERROR(AVERAGEIFS(Table1[Final-demand Employment],Table1[State],state,Table1[Size_],size,Table1[SEG],Installation!$C30,Table1[Mult],Multiplier),0)*$H30/1000000 -> 0 | M30: =IFERROR(AVERAGEIFS(Table1[Final-demand Value-added],Table1[State],state,Table1[Size_],size,Table1[SEG],Installation!$C30,Table1[Mult],Multiplier),0)*$H30 -> 0
B31: State Taxes and Fees | C31: =VLOOKUP(B31,lookups!$G$4:$H$11,2,FALSE) -> SAL | D31: 0.07089910328 | E31: 0.05617994496 | F31: =Front!E60 -> 0.8 | G31: 0.05671928262 | H31: =G31*'Install assunptions'!$H$7 -> 7089910.328 | J31: ='Government Expend'!O40 -> 8394562.022 | K31: ='Government Expend'!P40 -> 1963915.904 | L31: ='Government Expend'!Q40 -> 53.09921986 | M31: ='Government Expend'!R40 -> 3982791.802
B32: Installation (non-residential construction) | C32: =VLOOKUP(B32,lookups!$G$4:$H$11,2,FALSE) -> CONS | D32: 0.1559775281 | E32: 0.1235954834 | F32: =Front!E61 -> 1 | G32: 0.1559775281 | H32: =G32*'Install assunptions'!$H$7 -> 19497191.01 | J32: =IFERROR(AVERAGEIFS(Table1[Final-demand Output],Table1[State],state,Table1[Size_],size,Table1[SEG],Installation!$C32,Table1[Mult],Multiplier),0)*$H32 -> 23164612.64 | K32: =IFERROR(AVERAGEIFS(Table1[Final-demand Earnings],Table1[State],state,Table1[Size_],size,Table1[SEG],Installation!$C32,Table1[Mult],Multiplier),0)*$H32 -> 4580540.075 | L32: =IFERROR(AVERAGEIFS(Table1[Final-demand Employment],Table1[State],state,Table1[Size_],size,Table1[SEG],Installation!$C32,Table1[Mult],Multiplier),0)*$H32/1000000 -> 70.99902107 | M32: =IFERROR(AVERAGEIFS(Table1[Final-demand Value-added],Table1[State],state,Table1[Size_],size,Table1[SEG],Installation!$C32,Table1[Mult],Multiplier),0)*$H32 -> 9416493.352
B33: Electrical components (less transmission) | C33: =VLOOKUP(B33,lookups!$G$4:$H$11,2,FALSE) -> ELEC | D33: 0.1559775281 | E33: 0.1235954834 | F33: =Front!E62 -> 0.15 | G33: 0.02339662921 | H33: =G33*'Install assunptions'!$H$7 -> 2924578.652 | J33: =IFERROR(AVERAGEIFS(Table1[Final-demand Output],Table1[State],state,Table1[Size_],size,Table1[SEG],Installation!$C33,Table1[Mult],Multiplier),0)*$H33 -> 2924578.652 | K33: =IFERROR(AVERAGEIFS(Table1[Final-demand Earnings],Table1[State],state,Table1[Size_],size,Table1[SEG],Installation!$C33,Table1[Mult],Multiplier),0)*$H33 -> 0 | L33: =IFERROR(AVERAGEIFS(Table1[Final-demand Employment],Table1[State],state,Table1[Size_],size,Table1[SEG],Installation!$C33,Table1[Mult],Multiplier),0)*$H33/1000000 -> 0 | M33: =IFERROR(AVERAGEIFS(Table1[Final-demand Value-added],Table1[State],state,Table1[Size_],size,Table1[SEG],Installation!$C33,Table1[Mult],Multiplier),0)*$H33 -> 0
B34: Structures | C34: =VLOOKUP(B34,lookups!$G$4:$H$11,2,FALSE) -> INST | D34: 0.1701573034 | E34: 0.1348314364 | F34: =Front!E63 -> 0.25 | G34: 0.04253932584 | H34: =G34*'Install assunptions'!$H$7 -> 5317415.73 | J34: =IFERROR(AVERAGEIFS(Table1[Final-demand Output],Table1[State],state,Table1[Size_],size,Table1[SEG],Installation!$C34,Table1[Mult],Multiplier),0)*$H34 -> 5317415.73 | K34: =IFERROR(AVERAGEIFS(Table1[Final-demand Earnings],Table1[State],state,Table1[Size_],size,Table1[SEG],Installation!$C34,Table1[Mult],Multiplier),0)*$H34 -> 0 | L34: =IFERROR(AVERAGEIFS(Table1[Final-demand Employment],Table1[State],state,Table1[Size_],size,Table1[SEG],Installation!$C34,Table1[Mult],Multiplier),0)*$H34/1000000 -> 0 | M34: =IFERROR(AVERAGEIFS(Table1[Final-demand Value-added],Table1[State],state,Table1[Size_],size,Table1[SEG],Installation!$C34,Table1[Mult],Multiplier),0)*$H34 -> 0
B35: PV Modules | C35: =VLOOKUP(B35,lookups!$G$4:$H$11,2,FALSE) -> PV | D35: 0.4679325843 | E35: 0.3707864502 | F35: =Front!E64 -> 0 | G35: 0 | H35: =G35*'Install assunptions'!$H$7 -> 0 | J35: =IFERROR(AVERAGEIFS(Table1[Final-demand Output],Table1[State],state,Table1[Size_],size,Table1[SEG],Installation!$C35,Table1[Mult],Multiplier),0)*$H35 -> 0 | K35: =IFERROR(AVERAGEIFS(Table1[Final-demand Earnings],Table1[State],state,Table1[Size_],size,Table1[SEG],Installation!$C35,Table1[Mult],Multiplier),0)*$H35 -> 0 | L35: =IFERROR(AVERAGEIFS(Table1[Final-demand Employment],Table1[State],state,Table1[Size_],size,Table1[SEG],Installation!$C35,Table1[Mult],Multiplier),0)*$H35/1000000 -> 0 | M35: =IFERROR(AVERAGEIFS(Table1[Final-demand Value-added],Table1[State],state,Table1[Size_],size,Table1[SEG],Installation!$C35,Table1[Mult],Multiplier),0)*$H35 -> 0
B36: HH* | J36: =Households!G30 -> 3393215.936 | K36: =Households!H30 -> 934573.1559 | L36: =Households!I30 -> 25.87316347 | M36: =Households!J30 -> 2062706.224
D38: =SUM(D28:D35) -> 1.262000227 | E38: =SUM(E28:E35) -> 1 | G38: =SUM(G28:G35) -> 0.3498861366 | H38: =SUM(H28:H35) -> 43735767.07 | J38: =SUM(J28:J37) -> 53131428.71 | K38: =SUM(K28:K37) -> 8259025.093 | L38: =SUM(L28:L37)/Inflation_Factor -> 150.4424346 | M38: =SUM(M28:M37) -> 17096939.16

Sheet O&M
D2: Average $/kWDC/year local O&M expenditure | E2: =Front!E85 -> 21.69 | J2: State | K2: =state -> IN
D3: O&M Cost Increment | E3: 0.05 | J3: Size | K3: =size -> LT 50k
D4: Average Adjustment Factor | E4: =E2/C45 -> 0.9988487221 | J4: Multiplier | K4: =Multiplier -> TypeII
D5: kWDC/year | E5: ='Install assunptions'!G7 -> 125000 | J5: Life | K5: =Life_of_project__Years -> 30
D8: Local O&M Percent capture | E8: =K69/H69 -> 0.6088559606
D9: land lease = 13.5% of O&M costs | E9: =I67 -> 0.2031552875
D10: taxes = 9.4% of O&M costs | E10: =I68 -> 0.21117997
I12: Employment | K12: Labor Income | M12: Value Added | O12: Output | R12: Gross Effects | W12: Net Effects
B13: Year | C13: Annual O&M Expenditure per kWDC/year | D13: Total O&M Expenditures | E13: Local O&M Expenditures | F13: Land Lease | G13: Tax Revenue | I13: Direct Effect | J13: Total Effect | K13: Direct Effect | L13: Total Effect | M13: Direct Effect | N13: Total Effect | O13: Direct Effect | P13: Total Effect | R13: Year | S13: Employment | T13: Labor Income | U13: Total Income | W13: Year | X13: Employment | Y13: Labor Income | Z13: Total Income
B14: 1 | C14: =C15-$E$3 -> 20.99 | D14: =C14*$E$5 -> 2623750 | E14: =$E$8*D14 -> 1597485.827 | F14: =$E$9*D14 -> 533028.6857 | G14: =$E$10*D14 -> 554083.4462 | I14: =I15/(1+$E$3) -> 2.956477978 | J14: 16.70506544 | K14: 114624.5031 | L14: 655025.6 | M14: 238805.6733 | N14: 1364663.098 | O14: 1354595.044 | P14: 2274713.089 | R14: =B14 -> 1 | S14: =J14 -> 16.70506544 | T14: =L14 -> 655025.6 | U14: =N14 -> 1364663.098 | W14: =B14 -> 1 | X14: =J14+ag_om_emp -> 13.81708513 | Y14: =L14+ag_om_earn -> 499837.44 | Z14: =N14+ag_om_va -> 1011812.218
B15: 2 | C15: 21.04 | D15: =C15*$E$5 -> 2630000 | E15: 1601291.176 | F15: 534298.4062 | G15: 555403.321 | I15: 3.104301877 | J15: 17.54031871 | K15: 120355.7282 | L15: 687776.88 | M15: 250745.9569 | N15: 1432896.252 | O15: 1422324.797 | P15: 2388448.743 | R15: =B15 -> 2 | S15: 17.54031871 | T15: 687776.88 | U15: 1432896.252 | W15: =B15 -> 2 | X15: 14.65233841 | Y15: 532588.72 | Z15: 1080045.372
B16: 3 | C16: 21.09 | D16: 2636250 | E16: 1605096.526 | F16: 535568.1268 | G16: 556723.1958 | I16: 3.25951697 | J16: 18.41733465 | K16: 126373.5146 | L16: 722165.724 | M16: 263283.2548 | N16: 1504541.065 | O16: 1493441.036 | P16: 2507871.181 | R16: 3 | S16: 18.41733465 | T16: 722165.724 | U16: 1504541.065 | W16: 3 | X16: 15.52935434 | Y16: 566977.564 | Z16: 1151690.185
B17: 4 | C17: 21.14 | D17: 2642500 | E17: 1608901.876 | F17: 536837.8473 | G17: 558043.0706 | I17: 3.422492819 | J17: 19.33820138 | K17: 132692.1904 | L17: 758274.0102 | M17: 276447.4175 | N17: 1579768.118 | O17: 1568113.088 | P17: 2633264.74 | R17: 4 | S17: 19.33820138 | T17: 758274.0102 | U17: 1579768.118 | W17: 4 | X17: 16.45022107 | Y17: 603085.8502 | Z17: 1226917.238
B18: 5 | C18: 21.19 | D18: 2648750 | E18: 1612707.226 | F18: 538107.5679 | G18: 559362.9455 | I18: 3.59361746 | J18: 20.30511145 | K18: 139326.7999 | L18: 796187.7107 | M18: 290269.7884 | N18: 1658756.524 | O18: 1646518.743 | P18: 2764927.977 | R18: 5 | S18: 20.30511145 | T18: 796187.7107 | U18: 1658756.524 | W18: 5 | X18: 17.41713114 | Y18: 640999.5507 | Z18: 1305905.644
B19: 6 | C19: 21.24 | D19: 2655000 | E19: 1616512.575 | F19: 539377.2884 | G19: 560682.8203 | I19: 3.773298333 | J19: 21.32036702 | K19: 146293.1399 | L19: 835997.0963 | M19: 304783.2778 | N19: 1741694.35 | O19: 1728844.68 | P19: 2903174.375 | R19: 6 | S19: 21.32036702 | T19: 835997.0963 | U19: 1741694.35 | W19: 6 | X19: 18.43238672 | Y19: 680808.9363 | Z19: 1388843.47
B20: 7 | C20: 21.29 | D20: 2661250 | E20: 1620317.925 | F20: 540647.009 | G20: 562002.6951 | I20: 3.96196325 | J20: 22.38638537 | K20: 153607.7969 | L20: 877796.9511 | M20: 320022.4417 | N20: 1828779.068 | O20: 1815286.914 | P20: 3048333.094 | R20: 7 | S20: 22.38638537 | T20: 877796.9511 | U20: 1828779.068 | W20: 7 | X20: 19.49840507 | Y20: 722608.7911 | Z20: 1475928.188
B21: 8 | C21: 21.34 | D21: 2667500 | E21: =$E$8*D21 -> 1624123.275 | F21: 541916.7295 | G21: 563322.5699 | I21: 4.160061412 | J21: 23.50570464 | K21: 161288.1867 | L21: 921686.7987 | M21: 336023.5638 | N21: 1920218.021 | O21: 1906051.26 | P21: 3200749.749 | R21: 8 | S21: 23.50570464 | T21: 921686.7987 | U21: 1920218.021 | W21: 8 | X21: 20.61772434 | Y21: 766498.6387 | Z21: 1567367.141
B22: 9 | C22: 21.39 | D22: 2673750 | E22: =$E$8*D22 -> 1627928.625 | F22: 543186.4501 | G22: 564642.4447 | I22: 4.368064483 | J22: 24.68098987 | K22: 169352.5961 | L22: 967771.1386 | M22: 352824.742 | N22: 2016228.922 | O22: 2001353.822 | P22: 3360787.236 | R22: 9 | S22: 24.68098987 | T22: 967771.1386 | U22: 2016228.922 | W22: 9 | X22: 21.79300957 | Y22: 812582.9786 | Z22: 1663378.042
B23: 10 | C23: 21.44 | D23: 2680000 | E23: 1631733.974 | F23: 544456.1706 | G23: 565962.3195 | I23: 4.586467707 | J23: 25.91503937 | K23: 177820.2259 | L23: 1016159.696 | M23: 370465.9791 | N23: 2117040.369 | O23: 2101421.514 | P23: 3528826.598 | R23: 10 | S23: 25.91503937 | T23: 1016159.696 | U23: 2117040.369 | W23: 10 | X23: 23.02705906 | Y23: 860971.5355 | Z23: 1764189.489
B24: 11 | C24: 21.49 | D24: 2686250 | E24: 1635539.324 | F24: 545725.8911 | G24: 567282.1943 | I24: 4.815791092 | J24: 27.21079133 | K24: 186711.2372 | L24: 1066967.68 | M24: 388989.278 | N24: 2222892.387 | O24: 2206492.589 | P24: 3705267.928 | R24: 11 | S24: 27.21079133 | T24: 1066967.68 | U24: 2222892.387 | W24: 11 | X24: 24.32281103 | Y24: 911779.5203 | Z24: 1870041.507
B25: 12 | C25: 21.54 | D25: 2692500 | E25: 1639344.674 | F25: 546995.6117 | G25: 568602.0691 | I25: 5.056580647 | J25: 28.5713309 | K25: 196046.799 | L25: 1120316.064 | M25: 408438.7419 | N25: 2334037.006 | O25: 2316817.219 | P25: 3890531.325 | R25: 12 | S25: 28.5713309 | T25: 1120316.064 | U25: 2334037.006 | W25: 12 | X25: 25.6833506 | Y25: 965127.9043 | Z25: 1981186.126
B26: 13 | C26: 21.59 | D26: 2698750 | E26: 1643150.024 | F26: 548265.3322 | G26: 569921.944 | I26: 5.309409679 | J26: 29.99989745 | K26: 205849.139 | L26: 1176331.868 | M26: 428860.679 | N26: 2450738.857 | O26: 2432658.08 | P26: 4085057.891 | R26: 13 | S26: 29.99989745 | T26: 1176331.868 | U26: 2450738.857 | W26: 13 | X26: 27.11191714 | Y26: 1021143.708 | Z26: 2097887.977
B27: 14 | C27: =C28-$E$3 -> 21.64 | D27: 2705000 | E27: 1646955.373 | F27: 549535.0528 | G27: 571241.8188 | I27: 5.574880163 | J27: 31.49989232 | K27: 216141.5959 | L27: 1235148.461 | M27: 450303.713 | N27: 2573275.799 | O27: 2554290.984 | P27: 4289310.785 | R27: 14 | S27: 31.49989232 | T27: 1235148.461 | U27: 2573275.799 | W27: 14 | X27: 28.61191201 | Y27: 1079960.301 | Z27: 2220424.919
B28: 15 | C28: =E2 -> 21.69 | D28: 2711250 | E28: 1650760.723 | F28: =$E$9*D28 -> 550804.7733 | G28: =$E$10*D28 -> 572561.6936 | I28: =S69 -> 5.853624171 | J28: =P69 -> 33.07488693 | K28: =R69 -> 226948.6757 | L28: =O69 -> 1296905.884 | M28: =N28*(K28/L28) -> 472818.8986 | N28: =Q69 -> 2701939.589 | O28: =SUM(K69) -> 2682005.533 | P28: =N69 -> 4503776.325 | R28: 15 | S28: 33.07488693 | T28: 1296905.884 | U28: 2701939.589 | W28: 15 | X28: 30.18690663 | Y28: 1141717.724 | Z28: 2349088.709
B29: 16 | C29: =C28+$E$3 -> 21.74 | D29: 2717500 | E29: 1654566.073 | F29: =$E$9*D29 -> 552074.4939 | G29: =$E$10*D29 -> 573881.5684 | I29: =I28*(1+$E$3) -> 6.14630538 | J29: 34.72863128 | K29: 238296.1095 | L29: 1361751.178 | M29: 496459.8436 | N29: 2837036.569 | O29: 2816105.809 | P29: 4728965.141 | R29: 16 | S29: 34.72863128 | T29: 1361751.178 | U29: 2837036.569 | W29: 16 | X29: 31.84065098 | Y29: 1206563.018 | Z29: 2484185.689
B30: 17 | C30: =C29+$E$3 -> 21.79 | D30: 2723750 | E30: 1658371.423 | F30: 553344.2144 | G30: 575201.4432 | I30: 6.453620649 | J30: 36.46506285 | K30: 250210.915 | L30: 1429838.737 | M30: 521282.8357 | N30: 2978888.397 | O30: 2956911.1 | P30: 4965413.398 | R30: 17 | S30: 36.46506285 | T30: 1429838.737 | U30: 2978888.397 | W30: 17 | X30: 33.57708254 | Y30: 1274650.577 | Z30: 2626037.517
B31: 18 | C31: 21.84 | D31: 2730000 | E31: 1662176.772 | F31: 554613.935 | G31: 576521.318 | I31: 6.776301681 | J31: 38.28831599 | K31: 262721.4607 | L31: 1501330.674 | M31: 547346.9775 | N31: 3127832.817 | O31: 3104756.655 | P31: 5213684.068 | R31: 18 | S31: 38.28831599 | T31: 1501330.674 | U31: 3127832.817 | W31: 18 | X31: 35.40033568 | Y31: 1346142.514 | Z31: 2774981.937
B32: 19 | C32: 21.89 | D32: 2736250 | E32: 1665982.122 | F32: 555883.6555 | G32: 577841.1928 | I32: 7.115116765 | J32: 40.20273179 | K32: 275857.5337 | L32: 1576397.208 | M32: 574714.3264 | N32: 3284224.458 | O32: 3259994.488 | P32: 5474368.271 | R32: 19 | S32: 40.20273179 | T32: 1576397.208 | U32: 3284224.458 | W32: 19 | X32: 37.31475148 | Y32: 1421209.048 | Z32: 2931373.578
B33: 20 | C33: 21.94 | D33: 2742500 | E33: 1669787.472 | F33: 557153.3761 | G33: 579161.0676 | I33: 7.470872604 | J33: 42.21286838 | K33: 289650.4104 | L33: 1655217.068 | M33: 603450.0427 | N33: 3448435.681 | O33: 3422994.212 | P33: 5748086.685 | R33: 20 | S33: 42.21286838 | T33: 1655217.068 | U33: 3448435.681 | W33: 20 | X33: 39.32488807 | Y33: 1500028.908 | Z33: 3095584.801
B34: 21 | C34: 21.99 | D34: 2748750 | E34: 1673592.822 | F34: 558423.0966 | G34: 580480.9425 | I34: 7.844416234 | J34: 44.3235118 | K34: 304132.931 | L34: 1737977.921 | M34: 633622.5448 | N34: 3620857.465 | O34: 3594143.923 | P34: 6035491.019 | R34: 21 | S34: 44.3235118 | T34: 1737977.921 | U34: 3620857.465 | W34: 21 | X34: 41.43553149 | Y34: 1582789.761 | Z34: 3268006.585
B35: 22 | C35: 22.04 | D35: 2755000 | E35: 1677398.171 | F35: 559692.8172 | G35: 581800.8173 | I35: 8.236637045 | J35: 46.53968739 | K35: 319339.5775 | L35: 1824876.817 | M35: 665303.6721 | N35: 3801900.338 | O35: 3773851.119 | P35: 6337265.57 | R35: 22 | S35: 46.53968739 | T35: 1824876.817 | U35: 3801900.338 | W35: 22 | X35: 43.65170708 | Y35: 1669688.657 | Z35: 3449049.458
B36: 23 | C36: 22.09 | D36: 2761250 | E36: 1681203.521 | F36: 560962.5377 | G36: 583120.6921 | I36: 8.648468898 | J36: 48.86667175 | K36: 335306.5564 | L36: 1916120.658 | M36: 698568.8557 | N36: 3991995.355 | O36: 3962543.675 | P36: 6654128.848 | R36: 23 | S36: 48.86667175 | T36: 1916120.658 | U36: 3991995.355 | W36: 23 | X36: 45.97869145 | Y36: 1760932.498 | Z36: 3639144.475
B37: 24 | C37: 22.14 | D37: 2767500 | E37: 1685008.871 | F37: 562232.2583 | G37: 584440.5669 | I37: 9.080892343 | J37: 51.31000534 | K37: 352071.8842 | L37: 2011926.691 | M37: 733497.2985 | N37: 4191595.123 | O37: 4160670.859 | P37: 6986835.291 | R37: 24 | S37: 51.31000534 | T37: 2011926.691 | U37: 4191595.123 | W37: 24 | X37: 48.42202504 | Y37: 1856738.531 | Z37: 3838744.243
B38: 25 | C38: 22.19 | D38: 2773750 | E38: 1688814.221 | F38: 563501.9788 | G38: 585760.4417 | I38: 9.53493696 | J38: 53.87550561 | K38: 369675.4784 | L38: 2112523.026 | M38: 770172.1634 | N38: 4401174.879 | O38: 4368704.401 | P38: 7336177.055 | R38: 25 | S38: 53.87550561 | T38: 2112523.026 | U38: 4401174.879 | W38: 25 | X38: 50.9875253 | Y38: 1957334.866 | Z38: 4048323.999
B39: =IF($B$38+1>$K$5,0,B38+1) -> 26 | C39: =IF(B39=0,0,C38+$E$3) -> 22.24 | D39: 2780000 | E39: 1692619.57 | F39: 564771.6994 | G39: 587080.3165 | I39: =IF(B39=0,0,I38*(1+$E$3)) -> 10.01168381 | J39: =IF(B39=0,0,J38*(1+$E$3)) -> 56.56928089 | K39: =IF(C39=0,0,K38*(1+$E$3)) -> 388159.2523 | L39: =IF(B39=0,0,L38*(1+$E$3)) -> 2218149.177 | M39: =IF(B39=0,0,M38*(1+$E$3)) -> 808680.7716 | N39: =IF(B39=0,0,N38*(1+$E$3)) -> 4621233.623 | O39: =IF(B39=0,0,O38*(1+$E$3)) -> 4587139.622 | P39: =IF(B39=0,0,P38*(1+$E$3)) -> 7702985.908 | R39: 26 | S39: 56.56928089 | T39: 2218149.177 | U39: 4621233.623 | W39: 26 | X39: =IF(W39=0,0,J39+ag_om_emp) -> 53.68130058 | Y39: =IF(W39=0,0,L39+ag_om_earn) -> 2062961.017 | Z39: =IF(W39=0,0,N39+ag_om_va) -> 4268382.743
B40: =IF($B$38+1>$K$5,0,B39+1) -> 27 | C40: =IF(B40=0,0,C39+$E$3) -> 22.29 | D40: 2786250 | E40: 1696424.92 | F40: 566041.4199 | G40: 588400.1913 | I40: =IF(B40=0,0,I39*(1+$E$3)) -> 10.512268 | J40: 59.39774493 | K40: 407567.2149 | L40: 2329056.636 | M40: 849114.8101 | N40: 4852295.304 | O40: 4816496.603 | P40: 8088135.203 | R40: 27 | S40: 59.39774493 | T40: 2329056.636 | U40: 4852295.304 | W40: 27 | X40: =IF(W40=0,0,J40+ag_om_emp) -> 56.50976463 | Y40: =IF(W40=0,0,L40+ag_om_earn) -> 2173868.476 | Z40: =IF(W40=0,0,N40+ag_om_va) -> 4499444.424
B41: =IF($B$38+1>$K$5,0,B40+1) -> 28 | C41: =IF(B41=0,0,C40+$E$3) -> 22.34 | D41: 2792500 | E41: 1700230.27 | F41: 567311.1405 | G41: 589720.0661 | I41: =IF(B41=0,0,I40*(1+$E$3)) -> 11.0378814 | J41: 62.36763218 | K41: 427945.5757 | L41: 2445509.468 | M41: 891570.5507 | N41: 5094910.069 | O41: 5057321.433 | P41: 8492541.964 | R41: 28 | S41: 62.36763218 | T41: 2445509.468 | U41: 5094910.069 | W41: 28 | X41: =IF(W41=0,0,J41+ag_om_emp) -> 59.47965188 | Y41: =IF(W41=0,0,L41+ag_om_earn) -> 2290321.308 | Z41: =IF(W41=0,0,N41+ag_om_va) -> 4742059.189
B42: =IF($B$38+1>$K$5,0,B41+1) -> 29 | C42: =IF(B42=0,0,C41+$E$3) -> 22.39 | D42: 2798750 | E42: 1704035.62 | F42: 568580.861 | G42: 591039.941 | I42: =IF(B42=0,0,I41*(1+$E$3)) -> 11.58977547 | J42: 65.48601379 | K42: 449342.8545 | L42: 2567784.941 | M42: 936149.0782 | N42: 5349655.573 | O42: 5310187.504 | P42: 8917169.062 | R42: 29 | S42: 65.48601379 | T42: 2567784.941 | U42: 5349655.573 | W42: 29 | X42: =IF(W42=0,0,J42+ag_om_emp) -> 62.59803349 | Y42: =IF(W42=0,0,L42+ag_om_earn) -> 2412596.781 | Z42: =IF(W42=0,0,N42+ag_om_va) -> 4996804.693
B43: =IF($B$38+1>$K$5,0,B42+1) -> 30 | C43: =IF(B43=0,0,C42+$E$3) -> 22.44 | D43: 2805000 | E43: 1707840.969 | F43: 569850.5815 | G43: 592359.8158 | I43: =IF(B43=0,0,I42*(1+$E$3)) -> 12.16926424 | J43: 68.76031448 | K43: 471809.9972 | L43: 2696174.188 | M43: 982956.5321 | N43: 5617138.352 | O43: 5575696.88 | P43: 9363027.515 | R43: 30 | S43: 68.76031448 | T43: 2696174.188 | U43: 5617138.352 | W43: 30 | X43: =IF(W43=0,0,J43+ag_om_emp) -> 65.87233417 | Y43: =IF(W43=0,0,L43+ag_om_earn) -> 2540986.028 | Z43: =IF(W43=0,0,N43+ag_om_va) -> 5264287.472
B45: Check | C45: =AVERAGEIFS(C14:C43,C14:C43,"<>0") -> 21.715 | D45: =D28/E5 -> 21.69 | E45: =E28/E5 -> 13.20608579 | F45: only 1/2 captured by assumptions
H49: =K29/K28 -> 1.05
K52: Local Expend | N52: O&M Impacts
H53: Expend | I53: Share O&M | J53: local share | K53: Facilities | L53: HH & Govt | N53: Final-demand Output | O53: Final-demand Earnings | P53: Final-demand Employment | Q53: Final-demand Value-added | R53: Direct Earnings | S53: Direct Employment
C54: Administrator | D54: 561400 | E54: Business support services | H54: =I54*$E$2*$E$5 -> 281747.532 | I54: =Front!E70/Front!$E$85 -> 0.1039179464 | J54: =Front!E88 -> 0 | K54: =J54*H54 -> 0 | N54: =SUMIFS(Table1[Final-demand Output],Table1[State],state,Table1[Size_],size,Table1[NAICS],$D54,Table1[Mult],Multiplier)*$K54 -> 0 | O54: =SUMIFS(Table1[Final-demand Earnings],Table1[State],state,Table1[Size_],size,Table1[NAICS],$D54,Table1[Mult],Multiplier)*$K54 -> 0 | P54: =SUMIFS(Table1[Final-demand Employment],Table1[State],state,Table1[Size_],size,Table1[NAICS],$D54,Table1[Mult],Multiplier)*$K54/1000000 -> 0 | Q54: =SUMIFS(Table1[Final-demand Value-added],Table1[State],state,Table1[Size_],size,Table1[NAICS],$D54,Table1[Mult],Multiplier)*$K54 -> 0 | R54: =IFERROR(O54/SUMIFS(Table1[Direct-effect Earnings /5/ (dollars)],Table1[State],state,Table1[Size_],size,Table1[NAICS],$D54,Table1[Mult],Multiplier),0) -> 0 | S54: =IFERROR(P54/SUMIFS(Table1[Direct-effect Employment /6/ (number of jobs)],Table1[State],state,Table1[Size_],size,Table1[NAICS],$D54,Table1[Mult],Multiplier),0) -> 0
C55: Cleaner | D55: 811300 | E55: Facilities support services | H55: =I55*$E$2*$E$5 -> 251884.3469 | I55: =Front!E71/Front!$E$85 -> 0.09290340136 | J55: =Front!E89 -> 0.75 | K55: 188913.2602 | N55: =SUMIFS(Table1[Final-demand Output],Table1[State],state,Table1[Size_],size,Table1[NAICS],$D55,Table1[Mult],Multiplier)*$K55 -> 250064.4825 | O55: =SUMIFS(Table1[Final-demand Earnings],Table1[State],state,Table1[Size_],size,Table1[NAICS],$D55,Table1[Mult],Multiplier)*$K55 -> 98386.02591 | P55: =SUMIFS(Table1[Final-demand Employment],Table1[State],state,Table1[Size_],size,Table1[NAICS],$D55,Table1[Mult],Multiplier)*$K55/1000000 -> 1.704639912 | Q55: =SUMIFS(Table1[Final-demand Value-added],Table1[State],state,Table1[Size_],size,Table1[NAICS],$D55,Table1[Mult],Multiplier)*$K55 -> 151149.4995 | R55: =IFERROR(O55/SUMIFS(Table1[Direct-effect Earnings /5/ (dollars)],Table1[State],state,Table1[Size_],size,Table1[NAICS],$D55,Table1[Mult],Multiplier),0) -> 83229.86711 | S55: =IFERROR(P55/SUMIFS(Table1[Direct-effect Employment /6/ (number of jobs)],Table1[State],state,Table1[Size_],size,Table1[NAICS],$D55,Table1[Mult],Multiplier),0) -> 1.343188017
C56: Inverter specialist | D56: 811200 | E56: Electronic and precision equipment repair and maintenance | H56: 469.7684165 | I56: =Front!E72/Front!$E$85 -> 0.0001732663592 | J56: =Front!E90 -> 0.25 | K56: 117.4421041 | N56: =SUMIFS(Table1[Final-demand Output],Table1[State],state,Table1[Size_],size,Table1[NAICS],$D56,Table1[Mult],Multiplier)*$K56 -> 151.2301975 | O56: =SUMIFS(Table1[Final-demand Earnings],Table1[State],state,Table1[Size_],size,Table1[NAICS],$D56,Table1[Mult],Multiplier)*$K56 -> 64.91025095 | P56: =SUMIFS(Table1[Final-demand Employment],Table1[State],state,Table1[Size_],size,Table1[NAICS],$D56,Table1[Mult],Multiplier)*$K56/1000000 -> 0.001247481774 | Q56: =SUMIFS(Table1[Final-demand Value-added],Table1[State],state,Table1[Size_],size,Table1[NAICS],$D56,Table1[Mult],Multiplier)*$K56 -> 98.31078536 | R56: =IFERROR(O56/SUMIFS(Table1[Direct-effect Earnings /5/ (dollars)],Table1[State],state,Table1[Size_],size,Table1[NAICS],$D56,Table1[Mult],Multiplier),0) -> 55.94746677 | S56: =IFERROR(P56/SUMIFS(Table1[Direct-effect Employment /6/ (number of jobs)],Table1[State],state,Table1[Size_],size,Table1[NAICS],$D56,Table1[Mult],Multiplier),0) -> 0.001029870201
C57: Inspector | D57: 811200 | E57: Electronic and precision equipment repair and maintenance | H57: 305314.8416 | I57: =Front!E73/Front!$E$85 -> 0.1126103611 | J57: =Front!E91 -> 0 | K57: 0 | N57: =SUMIFS(Table1[Final-demand Output],Table1[State],state,Table1[Size_],size,Table1[NAICS],$D57,Table1[Mult],Multiplier)*$K57 -> 0 | O57: =SUMIFS(Table1[Final-demand Earnings],Table1[State],state,Table1[Size_],size,Table1[NAICS],$D57,Table1[Mult],Multiplier)*$K57 -> 0 | P57: =SUMIFS(Table1[Final-demand Employment],Table1[State],state,Table1[Size_],size,Table1[NAICS],$D57,Table1[Mult],Multiplier)*$K57/1000000 -> 0 | Q57: =SUMIFS(Table1[Final-demand Value-added],Table1[State],state,Table1[Size_],size,Table1[NAICS],$D57,Table1[Mult],Multiplier)*$K57 -> 0 | R57: =IFERROR(O57/SUMIFS(Table1[Direct-effect Earnings /5/ (dollars)],Table1[State],state,Table1[Size_],size,Table1[NAICS],$D57,Table1[Mult],Multiplier),0) -> 0 | S57: =IFERROR(P57/SUMIFS(Table1[Direct-effect Employment /6/ (number of jobs)],Table1[State],state,Table1[Size_],size,Table1[NAICS],$D57,Table1[Mult],Multiplier),0) -> 0
C58: Journeyman electrician | D58: 5419A0 | E58: Electronic and precision equipment repair and maintenance | H58: 126951.8106 | I58: =Front!E74/Front!$E$85 -> 0.04682408874 | J58: =Front!E92 -> 0.5 | K58: 63475.90529 | N58: =SUMIFS(Table1[Final-demand Output],Table1[State],state,Table1[Size_],size,Table1[NAICS],$D58,Table1[Mult],Multiplier)*$K58 -> 77193.04843 | O58: =SUMIFS(Table1[Final-demand Earnings],Table1[State],state,Table1[Size_],size,Table1[NAICS],$D58,Table1[Mult],Multiplier)*$K58 -> 21404.07526 | P58: =SUMIFS(Table1[Final-demand Employment],Table1[State],state,Table1[Size_],size,Table1[NAICS],$D58,Table1[Mult],Multiplier)*$K58/1000000 -> 0.3509265424 | Q58: =SUMIFS(Table1[Final-demand Value-added],Table1[State],state,Table1[Size_],size,Table1[NAICS],$D58,Table1[Mult],Multiplier)*$K58 -> 50634.72965 | R58: =IFERROR(O58/SUMIFS(Table1[Direct-effect Earnings /5/ (dollars)],Table1[State],state,Table1[Size_],size,Table1[NAICS],$D58,Table1[Mult],Multiplier),0) -> 17577.46183 | S58: =IFERROR(P58/SUMIFS(Table1[Direct-effect Employment /6/ (number of jobs)],Table1[State],state,Table1[Size_],size,Table1[NAICS],$D58,Table1[Mult],Multiplier),0) -> 0.2541472642
C59: PV module/array Specialist | D59: 5419A0 | E59: Maintenance and repair construction of nonresidential structures | H59: 323081.067 | I59: =Front!E75/Front!$E$85 -> 0.1191631414 | J59: =Front!E93 -> 0.2 | K59: 64616.2134 | N59: =SUMIFS(Table1[Final-demand Output],Table1[State],state,Table1[Size_],size,Table1[NAICS],$D59,Table1[Mult],Multiplier)*$K59 -> 78579.77712 | O59: =SUMIFS(Table1[Final-demand Earnings],Table1[State],state,Table1[Size_],size,Table1[NAICS],$D59,Table1[Mult],Multiplier)*$K59 -> 21788.58716 | P59: =SUMIFS(Table1[Final-demand Employment],Table1[State],state,Table1[Size_],size,Table1[NAICS],$D59,Table1[Mult],Multiplier)*$K59/1000000 -> 0.3572307358 | Q59: =SUMIFS(Table1[Final-demand Value-added],Table1[State],state,Table1[Size_],size,Table1[NAICS],$D59,Table1[Mult],Multiplier)*$K59 -> 51544.35343 | R59: =IFERROR(O59/SUMIFS(Table1[Direct-effect Earnings /5/ (dollars)],Table1[State],state,Table1[Size_],size,Table1[NAICS],$D59,Table1[Mult],Multiplier),0) -> 17893.23081 | S59: =IFERROR(P59/SUMIFS(Table1[Direct-effect Employment /6/ (number of jobs)],Table1[State],state,Table1[Size_],size,Table1[NAICS],$D59,Table1[Mult],Multiplier),0) -> 0.2587128735
C60: Network/IT | D60: 54151A | E60: Other computer related services, including facilities management | H60: 183.3445506 | I60: =Front!E76/Front!$E$85 -> 6.762362402e-05 | J60: =Front!E94 -> 0 | K60: 0 | N60: =SUMIFS(Table1[Final-demand Output],Table1[State],state,Table1[Size_],size,Table1[NAICS],$D60,Table1[Mult],Multiplier)*$K60 -> 0 | O60: =SUMIFS(Table1[Final-demand Earnings],Table1[State],state,Table1[Size_],size,Table1[NAICS],$D60,Table1[Mult],Multiplier)*$K60 -> 0 | P60: =SUMIFS(Table1[Final-demand Employment],Table1[State],state,Table1[Size_],size,Table1[NAICS],$D60,Table1[Mult],Multiplier)*$K60/1000000 -> 0 | Q60: =SUMIFS(Table1[Final-demand Value-added],Table1[State],state,Table1[Size_],size,Table1[NAICS],$D60,Table1[Mult],Multiplier)*$K60 -> 0 | R60: =IFERROR(O60/SUMIFS(Table1[Direct-effect Earnings /5/ (dollars)],Table1[State],state,Table1[Size_],size,Table1[NAICS],$D60,Table1[Mult],Multiplier),0) -> 0 | S60: =IFERROR(P60/SUMIFS(Table1[Direct-effect Employment /6/ (number of jobs)],Table1[State],state,Table1[Size_],size,Table1[NAICS],$D60,Table1[Mult],Multiplier),0) -> 0
C61: Master electrician | D61: 811400 | E61: Facilities support services | H61: 59346.86303 | I61: =Front!E77/Front!$E$85 -> 0.02188911499 | J61: =Front!E95 -> 0.25 | K61: 14836.71576 | N61: =SUMIFS(Table1[Final-demand Output],Table1[State],state,Table1[Size_],size,Table1[NAICS],$D61,Table1[Mult],Multiplier)*$K61 -> 18010.28926 | O61: =SUMIFS(Table1[Final-demand Earnings],Table1[State],state,Table1[Size_],size,Table1[NAICS],$D61,Table1[Mult],Multiplier)*$K61 -> 6025.190269 | P61: =SUMIFS(Table1[Final-demand Employment],Table1[State],state,Table1[Size_],size,Table1[NAICS],$D61,Table1[Mult],Multiplier)*$K61/1000000 -> 0.1495659642 | Q61: =SUMIFS(Table1[Final-demand Value-added],Table1[State],state,Table1[Size_],size,Table1[NAICS],$D61,Table1[Mult],Multiplier)*$K61 -> 13930.19242 | R61: =IFERROR(O61/SUMIFS(Table1[Direct-effect Earnings /5/ (dollars)],Table1[State],state,Table1[Size_],size,Table1[NAICS],$D61,Table1[Mult],Multiplier),0) -> 5210.299437 | S61: =IFERROR(P61/SUMIFS(Table1[Direct-effect Employment /6/ (number of jobs)],Table1[State],state,Table1[Size_],size,Table1[NAICS],$D61,Table1[Mult],Multiplier),0) -> 0.1296627345
C62: Mechanic | D62: 811300 | E62: Facilities support services | H62: 29866.83824 | I62: =Front!E78/Front!$E$85 -> 0.01101589239 | J62: =Front!E96 -> 0.25 | K62: 7466.70956 | N62: =SUMIFS(Table1[Final-demand Output],Table1[State],state,Table1[Size_],size,Table1[NAICS],$D62,Table1[Mult],Multiplier)*$K62 -> 9883.683445 | O62: =SUMIFS(Table1[Final-demand Earnings],Table1[State],state,Table1[Size_],size,Table1[NAICS],$D62,Table1[Mult],Multiplier)*$K62 -> 3888.662339 | P62: =SUMIFS(Table1[Final-demand Employment],Table1[State],state,Table1[Size_],size,Table1[NAICS],$D62,Table1[Mult],Multiplier)*$K62/1000000 -> 0.06737510704 | Q62: =SUMIFS(Table1[Final-demand Value-added],Table1[State],state,Table1[Size_],size,Table1[NAICS],$D62,Table1[Mult],Multiplier)*$K62 -> 5974.114319 | R62: =IFERROR(O62/SUMIFS(Table1[Direct-effect Earnings /5/ (dollars)],Table1[State],state,Table1[Size_],size,Table1[NAICS],$D62,Table1[Mult],Multiplier),0) -> 3289.622146 | S62: =IFERROR(P62/SUMIFS(Table1[Direct-effect Employment /6/ (number of jobs)],Table1[State],state,Table1[Size_],size,Table1[NAICS],$D62,Table1[Mult],Multiplier),0) -> 0.05308888744
C63: Pest control | D63: 811300 | E63: Facilities support services | H63: 5439.123704 | I63: =Front!E79/Front!$E$85 -> 0.00200613138 | J63: =Front!E97 -> 1 | K63: 5439.123704 | N63: =SUMIFS(Table1[Final-demand Output],Table1[State],state,Table1[Size_],size,Table1[NAICS],$D63,Table1[Mult],Multiplier)*$K63 -> 7199.768047 | O63: =SUMIFS(Table1[Final-demand Earnings],Table1[State],state,Table1[Size_],size,Table1[NAICS],$D63,Table1[Mult],Multiplier)*$K63 -> 2832.695625 | P63: =SUMIFS(Table1[Final-demand Employment],Table1[State],state,Table1[Size_],size,Table1[NAICS],$D63,Table1[Mult],Multiplier)*$K63/1000000 -> 0.04907938883 | Q63: =SUMIFS(Table1[Final-demand Value-added],Table1[State],state,Table1[Size_],size,Table1[NAICS],$D63,Table1[Mult],Multiplier)*$K63 -> 4351.842876 | R63: =IFERROR(O63/SUMIFS(Table1[Direct-effect Earnings /5/ (dollars)],Table1[State],state,Table1[Size_],size,Table1[NAICS],$D63,Table1[Mult],Multiplier),0) -> 2396.324867 | S63: =IFERROR(P63/SUMIFS(Table1[Direct-effect Employment /6/ (number of jobs)],Table1[State],state,Table1[Size_],size,Table1[NAICS],$D63,Table1[Mult],Multiplier),0) -> 0.03867259383
C64: Structural engineer | D64: 541300 | E64: Architectural, engineering, and related services | H64: 47.86516166 | I64: =Front!E80/Front!$E$85 -> 1.765427816e-05 | J64: =Front!E98 -> 0 | K64: 0 | N64: =SUMIFS(Table1[Final-demand Output],Table1[State],state,Table1[Size_],size,Table1[NAICS],$D64,Table1[Mult],Multiplier)*$K64 -> 0 | O64: =SUMIFS(Table1[Final-demand Earnings],Table1[State],state,Table1[Size_],size,Table1[NAICS],$D64,Table1[Mult],Multiplier)*$K64 -> 0 | P64: =SUMIFS(Table1[Final-demand Employment],Table1[State],state,Table1[Size_],size,Table1[NAICS],$D64,Table1[Mult],Multiplier)*$K64/1000000 -> 0 | Q64: =SUMIFS(Table1[Final-demand Value-added],Table1[State],state,Table1[Size_],size,Table1[NAICS],$D64,Table1[Mult],Multiplier)*$K64 -> 0 | R64: =IFERROR(O64/SUMIFS(Table1[Direct-effect Earnings /5/ (dollars)],Table1[State],state,Table1[Size_],size,Table1[NAICS],$D64,Table1[Mult],Multiplier),0) -> 0 | S64: =IFERROR(P64/SUMIFS(Table1[Direct-effect Employment /6/ (number of jobs)],Table1[State],state,Table1[Size_],size,Table1[NAICS],$D64,Table1[Mult],Multiplier),0) -> 0
C65: Mower/Trimmer | D65: 812900 | E65: Facilities support services | H65: 202889.0726 | I65: =Front!E81/Front!$E$85 -> 0.07483229972 | J65: =Front!E99 -> 1 | K65: 202889.0726 | N65: =SUMIFS(Table1[Final-demand Output],Table1[State],state,Table1[Size_],size,Table1[NAICS],$D65,Table1[Mult],Multiplier)*$K65 -> 263694.9277 | O65: =SUMIFS(Table1[Final-demand Earnings],Table1[State],state,Table1[Size_],size,Table1[NAICS],$D65,Table1[Mult],Multiplier)*$K65 -> 113009.2134 | P65: =SUMIFS(Table1[Final-demand Employment],Table1[State],state,Table1[Size_],size,Table1[NAICS],$D65,Table1[Mult],Multiplier)*$K65/1000000 -> 4.636948599 | Q65: =SUMIFS(Table1[Final-demand Value-added],Table1[State],state,Table1[Size_],size,Table1[NAICS],$D65,Table1[Mult],Multiplier)*$K65 -> 169026.8864 | R65: =IFERROR(O65/SUMIFS(Table1[Direct-effect Earnings /5/ (dollars)],Table1[State],state,Table1[Size_],size,Table1[NAICS],$D65,Table1[Mult],Multiplier),0) -> 97295.92204 | S65: =IFERROR(P65/SUMIFS(Table1[Direct-effect Employment /6/ (number of jobs)],Table1[State],state,Table1[Size_],size,Table1[NAICS],$D65,Table1[Mult],Multiplier),0) -> 4.249792502
C66: Utilities locator | D66: 561400 | E66: Business support services | H66: 661.0591861 | I66: =Front!E82/Front!$E$85 -> 0.0002438208155 | J66: =Front!E100 -> 0 | K66: 0 | N66: =SUMIFS(Table1[Final-demand Output],Table1[State],state,Table1[Size_],size,Table1[NAICS],$D66,Table1[Mult],Multiplier)*$K66 -> 0 | O66: =SUMIFS(Table1[Final-demand Earnings],Table1[State],state,Table1[Size_],size,Table1[NAICS],$D66,Table1[Mult],Multiplier)*$K66 -> 0 | P66: =SUMIFS(Table1[Final-demand Employment],Table1[State],state,Table1[Size_],size,Table1[NAICS],$D66,Table1[Mult],Multiplier)*$K66/1000000 -> 0 | Q66: =SUMIFS(Table1[Final-demand Value-added],Table1[State],state,Table1[Size_],size,Table1[NAICS],$D66,Table1[Mult],Multiplier)*$K66 -> 0 | R66: =IFERROR(O66/SUMIFS(Table1[Direct-effect Earnings /5/ (dollars)],Table1[State],state,Table1[Size_],size,Table1[NAICS],$D66,Table1[Mult],Multiplier),0) -> 0 | S66: =IFERROR(P66/SUMIFS(Table1[Direct-effect Employment /6/ (number of jobs)],Table1[State],state,Table1[Size_],size,Table1[NAICS],$D66,Table1[Mult],Multiplier),0) -> 0
C67: land lease | E67: HH* | H67: =Front!E28*Front!E26+0.25*_xlfn.XLOOKUP($K$2,'Property Tax'!$Q$40:$X$40,'Property Tax'!$Q$41:$X$41,0) -> 2388710.968 | I67: =Front!E83/Front!$E$85 -> 0.2031552875 | J67: =Front!E101 -> 0.75 | L67: =J67*H67 -> 1791533.226 | N67: =Households!G30 -> 3393215.936 | O67: =Households!H30 -> 934573.1559 | P67: =Households!I30 -> 25.87316347 | Q67: =Households!J30 -> 2062706.224 | R67: =IFERROR(O67/SUMIFS(Table1[Direct-effect Earnings /5/ (dollars)],Table1[State],state,Table1[Size_],size,Table1[NAICS],$D67,Table1[Mult],Multiplier),0) -> 0 | S67: =IFERROR(P67/SUMIFS(Table1[Direct-effect Employment /6/ (number of jobs)],Table1[State],state,Table1[Size_],size,Table1[NAICS],$D67,Table1[Mult],Multiplier),0) -> 0
C68: Taxes | E68: Gov* | H68: ='Property Tax'!L2 -> 428397.3306 | I68: =Front!E84/Front!$E$85 -> 0.21117997 | J68: =Front!E102 -> 0.8 | L68: =J68*H68 -> 342717.8645 | N68: ='Government Expend'!S40 -> 405783.1815 | O68: ='Government Expend'!T40 -> 94933.36776 | P68: ='Government Expend'!U40 -> 2.566753371 | Q68: ='Government Expend'!V40 -> 192523.4365 | R68: =IFERROR(O68/SUMIFS(Table1[Direct-effect Earnings /5/ (dollars)],Table1[State],state,Table1[Size_],size,Table1[NAICS],$D68,Table1[Mult],Multiplier),0) -> 0 | S68: =IFERROR(P68/SUMIFS(Table1[Direct-effect Employment /6/ (number of jobs)],Table1[State],state,Table1[Size_],size,Table1[NAICS],$D68,Table1[Mult],Multiplier),0) -> 0
H69: =SUM(H54:H68) -> 4404991.831 | I69: =SUM(I54:I68) -> 1 | K69: =SUM(K54:L68) -> 2682005.533 | N69: =SUM(N54:N68) -> 4503776.325 | O69: =SUM(O54:O68) -> 1296905.884 | P69: =SUM(P54:P68)/Inflation_Factor -> 33.07488693 | Q69: =SUM(Q54:Q68) -> 2701939.589 | R69: =SUM(R54:R68) -> 226948.6757 | S69: =SUM(S54:S68)/Inflation_Factor -> 5.853624171
K70: =SUM(K54:K68) -> 547754.4426 | L70: =SUM(L54:L68) -> 2134251.09

Sheet Government Expend
N1: State | O1: =state -> IN
N2: Size | O2: =_xlfn.XLOOKUP(size,lookups!E4:E6,lookups!D4:D6) -> Large
N3: Mult. | O3: =Multiplier -> TypeII
O5: Installation | S5: O&M
C6: Nation | D6: IA | E6: IL | F6: IN | G6: MI | H6: MN | I6: OH | J6: WI | O6: Final-demand Output | P6: Final-demand Earnings | Q6: Final-demand Employment | R6: Final-demand Value-added | S6: Final-demand Output | T6: Final-demand Earnings | U6: Final-demand Employment | V6: Final-demand Value-added
A7: 611100 | B7: Education | C7: 0.2745766292 | D7: 0.3008954276 | E7: 0.2563638326 | F7: 0.2992197943 | G7: 0.3043687501 | H7: 0.2743417588 | I7: 0.2776571633 | J7: 0.3069190682 | L7: 2 | M7: 611100 | N7: =INDEX($A$6:$J$39,L7,MATCH($O$1,$A$6:$J$6,0)) -> 0.2992197943 | O7: =SUMIFS(Table1[Final-demand Output],Table1[NAICS],'Government Expend'!$M7,Table1[State],'Government Expend'!$O$1,Table1[Size],'Government Expend'!$O$2,Table1[Mult],Multiplier)*$N7*Installation!$H$31 -> 2634406.067 | P7: =SUMIFS(Table1[Final-demand Earnings],Table1[NAICS],'Government Expend'!$M7,Table1[State],'Government Expend'!$O$1,Table1[Size],'Government Expend'!$O$2,Table1[Mult],Multiplier)*$N7*Installation!$H$31 -> 1029535.565 | Q7: =SUMIFS(Table1[Final-demand Employment],Table1[NAICS],'Government Expend'!$M7,Table1[State],'Government Expend'!$O$1,Table1[Size],'Government Expend'!$O$2,Table1[Mult],Multiplier)*$N7*Installation!$H$31/1000000 -> 34.19572784 | R7: =SUMIFS(Table1[Final-demand Value-added],Table1[NAICS],'Government Expend'!$M7,Table1[State],'Government Expend'!$O$1,Table1[Size],'Government Expend'!$O$2,Table1[Mult],Multiplier)*$N7*Installation!$H$31 -> 1977395.631 | S7: =SUMIFS(Table1[Final-demand Output],Table1[NAICS],'Government Expend'!$M7,Table1[State],'Government Expend'!$O$1,Table1[Size],'Government Expend'!$O$2,Table1[Mult],Multiplier)*$N7*'O&M'!$L$68 -> 127344.0678 | T7: =SUMIFS(Table1[Final-demand Earnings],Table1[NAICS],'Government Expend'!$M7,Table1[State],'Government Expend'!$O$1,Table1[Size],'Government Expend'!$O$2,Table1[Mult],Multiplier)*$N7*'O&M'!$L$68 -> 49766.52931 | U7: =SUMIFS(Table1[Final-demand Employment],Table1[NAICS],'Government Expend'!$M7,Table1[State],'Government Expend'!$O$1,Table1[Size],'Government Expend'!$O$2,Table1[Mult],Multiplier)*$N7*'O&M'!$L$68/1000000 -> 1.652980966 | V7: =SUMIFS(Table1[Final-demand Value-added],Table1[NAICS],'Government Expend'!$M7,Table1[State],'Government Expend'!$O$1,Table1[Size],'Government Expend'!$O$2,Table1[Mult],Multiplier)*$N7*'O&M'!$L$68 -> 95584.96181
A8: 813A00 | B8: Public Wellfare | C8: 0.1874650033 | D8: 0.1767729688 | E8: 0.1554818434 | F8: 0.231883278 | G8: 0.1746144202 | H8: 0.236217165 | I8: 0.2184907546 | J8: 0.2071344542 | L8: 3 | M8: 813A00 | N8: =INDEX($A$6:$J$39,L8,MATCH($O$1,$A$6:$J$6,0)) -> 0.231883278 | O8: =SUMIFS(Table1[Final-demand Output],Table1[NAICS],'Government Expend'!$M8,Table1[State],'Government Expend'!$O$1,Table1[Size],'Government Expend'!$O$2,Table1[Mult],Multiplier)*$N8*Installation!$H$31 -> 1644031.647 | P8: =SUMIFS(Table1[Final-demand Earnings],Table1[NAICS],'Government Expend'!$M8,Table1[State],'Government Expend'!$O$1,Table1[Size],'Government Expend'!$O$2,Table1[Mult],Multiplier)*$N8*Installation!$H$31 -> 0 | Q8: =SUMIFS(Table1[Final-demand Employment],Table1[NAICS],'Government Expend'!$M8,Table1[State],'Government Expend'!$O$1,Table1[Size],'Government Expend'!$O$2,Table1[Mult],Multiplier)*$N8*Installation!$H$31/1000000 -> 0 | R8: =SUMIFS(Table1[Final-demand Value-added],Table1[NAICS],'Government Expend'!$M8,Table1[State],'Government Expend'!$O$1,Table1[Size],'Government Expend'!$O$2,Table1[Mult],Multiplier)*$N8*Installation!$H$31 -> 0 | S8: =SUMIFS(Table1[Final-demand Output],Table1[NAICS],'Government Expend'!$M8,Table1[State],'Government Expend'!$O$1,Table1[Size],'Government Expend'!$O$2,Table1[Mult],Multiplier)*$N8*'O&M'!$L$68 -> 79470.54183 | T8: =SUMIFS(Table1[Final-demand Earnings],Table1[NAICS],'Government Expend'!$M8,Table1[State],'Government Expend'!$O$1,Table1[Size],'Government Expend'!$O$2,Table1[Mult],Multiplier)*$N8*'O&M'!$L$68 -> 0 | U8: =SUMIFS(Table1[Final-demand Employment],Table1[NAICS],'Government Expend'!$M8,Table1[State],'Government Expend'!$O$1,Table1[Size],'Government Expend'!$O$2,Table1[Mult],Multiplier)*$N8*'O&M'!$L$68/1000000 -> 0 | V8: =SUMIFS(Table1[Final-demand Value-added],Table1[NAICS],'Government Expend'!$M8,Table1[State],'Government Expend'!$O$1,Table1[Size],'Government Expend'!$O$2,Table1[Mult],Multiplier)*$N8*'O&M'!$L$68 -> 0
A9: 622000 | B9: Hospitals | C9: 0.05315507665 | D9: 0.111998331 | E9: 0.02719691518 | F9: 0.08046742476 | G9: 0.05355482845 | H9: 0.02936717076 | I9: 0.04480858875 | J9: 0.03855558325 | L9: 4 | M9: 622000 | N9: =INDEX($A$6:$J$39,L9,MATCH($O$1,$A$6:$J$6,0)) -> 0.08046742476 | O9: =SUMIFS(Table1[Final-demand Output],Table1[NAICS],'Government Expend'!$M9,Table1[State],'Government Expend'!$O$1,Table1[Size],'Government Expend'!$O$2,Table1[Mult],Multiplier)*$N9*Installation!$H$31 -> 741031.3161 | P9: =SUMIFS(Table1[Final-demand Earnings],Table1[NAICS],'Government Expend'!$M9,Table1[State],'Government Expend'!$O$1,Table1[Size],'Government Expend'!$O$2,Table1[Mult],Multiplier)*$N9*Installation!$H$31 -> 224665.588 | Q9: =SUMIFS(Table1[Final-demand Employment],Table1[NAICS],'Government Expend'!$M9,Table1[State],'Government Expend'!$O$1,Table1[Size],'Government Expend'!$O$2,Table1[Mult],Multiplier)*$N9*Installation!$H$31/1000000 -> 3.946024563 | R9: =SUMIFS(Table1[Final-demand Value-added],Table1[NAICS],'Government Expend'!$M9,Table1[State],'Government Expend'!$O$1,Table1[Size],'Government Expend'!$O$2,Table1[Mult],Multiplier)*$N9*Installation!$H$31 -> 419950.0745 | S9: =SUMIFS(Table1[Final-demand Output],Table1[NAICS],'Government Expend'!$M9,Table1[State],'Government Expend'!$O$1,Table1[Size],'Government Expend'!$O$2,Table1[Mult],Multiplier)*$N9*'O&M'!$L$68 -> 35820.57578 | T9: =SUMIFS(Table1[Final-demand Earnings],Table1[NAICS],'Government Expend'!$M9,Table1[State],'Government Expend'!$O$1,Table1[Size],'Government Expend'!$O$2,Table1[Mult],Multiplier)*$N9*'O&M'!$L$68 -> 10860.06832 | U9: =SUMIFS(Table1[Final-demand Employment],Table1[NAICS],'Government Expend'!$M9,Table1[State],'Government Expend'!$O$1,Table1[Size],'Government Expend'!$O$2,Table1[Mult],Multiplier)*$N9*'O&M'!$L$68/1000000 -> 0.1907461517 | V9: =SUMIFS(Table1[Final-demand Value-added],Table1[NAICS],'Government Expend'!$M9,Table1[State],'Government Expend'!$O$1,Table1[Size],'Government Expend'!$O$2,Table1[Mult],Multiplier)*$N9*'O&M'!$L$68 -> 20299.88901
A10: 621900 | B10: Health | C10: 0.02826182722 | D10: 0.01023889901 | E10: 0.01390763568 | F10: 0.01620462902 | G10: 0.03978047649 | H10: 0.01854827046 | I10: 0.02498883032 | J10: 0.02238692757 | L10: 5 | M10: 621900 | N10: =INDEX($A$6:$J$39,L10,MATCH($O$1,$A$6:$J$6,0)) -> 0.01620462902 | O10: =SUMIFS(Table1[Final-demand Output],Table1[NAICS],'Government Expend'!$M10,Table1[State],'Government Expend'!$O$1,Table1[Size],'Government Expend'!$O$2,Table1[Mult],Multiplier)*$N10*Installation!$H$31 -> 150516.5592 | P10: =SUMIFS(Table1[Final-demand Earnings],Table1[NAICS],'Government Expend'!$M10,Table1[State],'Government Expend'!$O$1,Table1[Size],'Government Expend'!$O$2,Table1[Mult],Multiplier)*$N10*Installation!$H$31 -> 49839.00725 | Q10: =SUMIFS(Table1[Final-demand Employment],Table1[NAICS],'Government Expend'!$M10,Table1[State],'Government Expend'!$O$1,Table1[Size],'Government Expend'!$O$2,Table1[Mult],Multiplier)*$N10*Installation!$H$31/1000000 -> 1.023721701 | R10: =SUMIFS(Table1[Final-demand Value-added],Table1[NAICS],'Government Expend'!$M10,Table1[State],'Government Expend'!$O$1,Table1[Size],'Government Expend'!$O$2,Table1[Mult],Multiplier)*$N10*Installation!$H$31 -> 87315.91865 | S10: =SUMIFS(Table1[Final-demand Output],Table1[NAICS],'Government Expend'!$M10,Table1[State],'Government Expend'!$O$1,Table1[Size],'Government Expend'!$O$2,Table1[Mult],Multiplier)*$N10*'O&M'!$L$68 -> 7275.792128 | T10: =SUMIFS(Table1[Final-demand Earnings],Table1[NAICS],'Government Expend'!$M10,Table1[State],'Government Expend'!$O$1,Table1[Size],'Government Expend'!$O$2,Table1[Mult],Multiplier)*$N10*'O&M'!$L$68 -> 2409.158557 | U10: =SUMIFS(Table1[Final-demand Employment],Table1[NAICS],'Government Expend'!$M10,Table1[State],'Government Expend'!$O$1,Table1[Size],'Government Expend'!$O$2,Table1[Mult],Multiplier)*$N10*'O&M'!$L$68/1000000 -> 0.04948549405 | V10: =SUMIFS(Table1[Final-demand Value-added],Table1[NAICS],'Government Expend'!$M10,Table1[State],'Government Expend'!$O$1,Table1[Size],'Government Expend'!$O$2,Table1[Mult],Multiplier)*$N10*'O&M'!$L$68 -> 4220.748047
A11: 624A00 | B11: Employment security administration | C11: 0.0009633159379 | D11: 0.001349098807 | E11: 0.0002881045331 | F11: 0.001289459423 | G11: 0.001694080849 | H11: 0.000626103245 | I11: 0.0008662049339 | J11: 0.00137174069 | L11: 6 | M11: 624A00 | N11: =INDEX($A$6:$J$39,L11,MATCH($O$1,$A$6:$J$6,0)) -> 0.001289459423 | O11: =SUMIFS(Table1[Final-demand Output],Table1[NAICS],'Government Expend'!$M11,Table1[State],'Government Expend'!$O$1,Table1[Size],'Government Expend'!$O$2,Table1[Mult],Multiplier)*$N11*Installation!$H$31 -> 12345.56163 | P11: =SUMIFS(Table1[Final-demand Earnings],Table1[NAICS],'Government Expend'!$M11,Table1[State],'Government Expend'!$O$1,Table1[Size],'Government Expend'!$O$2,Table1[Mult],Multiplier)*$N11*Installation!$H$31 -> 3154.956544 | Q11: =SUMIFS(Table1[Final-demand Employment],Table1[NAICS],'Government Expend'!$M11,Table1[State],'Government Expend'!$O$1,Table1[Size],'Government Expend'!$O$2,Table1[Mult],Multiplier)*$N11*Installation!$H$31/1000000 -> 0.09740414084 | R11: =SUMIFS(Table1[Final-demand Value-added],Table1[NAICS],'Government Expend'!$M11,Table1[State],'Government Expend'!$O$1,Table1[Size],'Government Expend'!$O$2,Table1[Mult],Multiplier)*$N11*Installation!$H$31 -> 5571.227233 | S11: =SUMIFS(Table1[Final-demand Output],Table1[NAICS],'Government Expend'!$M11,Table1[State],'Government Expend'!$O$1,Table1[Size],'Government Expend'!$O$2,Table1[Mult],Multiplier)*$N11*'O&M'!$L$68 -> 596.7698208 | T11: =SUMIFS(Table1[Final-demand Earnings],Table1[NAICS],'Government Expend'!$M11,Table1[State],'Government Expend'!$O$1,Table1[Size],'Government Expend'!$O$2,Table1[Mult],Multiplier)*$N11*'O&M'!$L$68 -> 152.5068611 | U11: =SUMIFS(Table1[Final-demand Employment],Table1[NAICS],'Government Expend'!$M11,Table1[State],'Government Expend'!$O$1,Table1[Size],'Government Expend'!$O$2,Table1[Mult],Multiplier)*$N11*'O&M'!$L$68/1000000 -> 0.004708400755 | V11: =SUMIFS(Table1[Final-demand Value-added],Table1[NAICS],'Government Expend'!$M11,Table1[State],'Government Expend'!$O$1,Table1[Size],'Government Expend'!$O$2,Table1[Mult],Multiplier)*$N11*'O&M'!$L$68 -> 269.3065231
A12: 624A00 | B12: Veterans' services | C12: 0.0003708076511 | D12: 4.609975137e-05 | E12: 0.0001261371534 | F12: 0.0001760591144 | G12: 0 | H12: 0.0002851261131 | I12: 0.0002523950094 | J12: 0.0003938699707 | L12: 7 | M12: 624A00 | N12: =INDEX($A$6:$J$39,L12,MATCH($O$1,$A$6:$J$6,0)) -> 0.0001760591144 | O12: =SUMIFS(Table1[Final-demand Output],Table1[NAICS],'Government Expend'!$M12,Table1[State],'Government Expend'!$O$1,Table1[Size],'Government Expend'!$O$2,Table1[Mult],Multiplier)*$N12*Installation!$H$31 -> 1685.627797 | P12: =SUMIFS(Table1[Final-demand Earnings],Table1[NAICS],'Government Expend'!$M12,Table1[State],'Government Expend'!$O$1,Table1[Size],'Government Expend'!$O$2,Table1[Mult],Multiplier)*$N12*Installation!$H$31 -> 430.7687744 | Q12: =SUMIFS(Table1[Final-demand Employment],Table1[NAICS],'Government Expend'!$M12,Table1[State],'Government Expend'!$O$1,Table1[Size],'Government Expend'!$O$2,Table1[Mult],Multiplier)*$N12*Installation!$H$31/1000000 -> 0.01329928377 | R12: =SUMIFS(Table1[Final-demand Value-added],Table1[NAICS],'Government Expend'!$M12,Table1[State],'Government Expend'!$O$1,Table1[Size],'Government Expend'!$O$2,Table1[Mult],Multiplier)*$N12*Installation!$H$31 -> 760.6794874 | S12: =SUMIFS(Table1[Final-demand Output],Table1[NAICS],'Government Expend'!$M12,Table1[State],'Government Expend'!$O$1,Table1[Size],'Government Expend'!$O$2,Table1[Mult],Multiplier)*$N12*'O&M'!$L$68 -> 81.48125044 | T12: =SUMIFS(Table1[Final-demand Earnings],Table1[NAICS],'Government Expend'!$M12,Table1[State],'Government Expend'!$O$1,Table1[Size],'Government Expend'!$O$2,Table1[Mult],Multiplier)*$N12*'O&M'!$L$68 -> 20.82285214 | U12: =SUMIFS(Table1[Final-demand Employment],Table1[NAICS],'Government Expend'!$M12,Table1[State],'Government Expend'!$O$1,Table1[Size],'Government Expend'!$O$2,Table1[Mult],Multiplier)*$N12*'O&M'!$L$68/1000000 -> 0.0006428716193 | V12: =SUMIFS(Table1[Final-demand Value-added],Table1[NAICS],'Government Expend'!$M12,Table1[State],'Government Expend'!$O$1,Table1[Size],'Government Expend'!$O$2,Table1[Mult],Multiplier)*$N12*'O&M'!$L$68 -> 36.7703451
A13: 2332F0 | B13: Highways | C13: 0.05091352841 | D13: 0.081145605 | E13: 0.04812326892 | F13: 0.05238034854 | G13: 0.04781080685 | H13: 0.06947382344 | I13: 0.04419466091 | J13: 0.07311210364 | L13: 8 | M13: 2332F0 | N13: =INDEX($A$6:$J$39,L13,MATCH($O$1,$A$6:$J$6,0)) -> 0.05238034854 | O13: =SUMIFS(Table1[Final-demand Output],Table1[NAICS],'Government Expend'!$M13,Table1[State],'Government Expend'!$O$1,Table1[Size],'Government Expend'!$O$2,Table1[Mult],Multiplier)*$N13*Installation!$H$31 -> 476730.2032 | P13: =SUMIFS(Table1[Final-demand Earnings],Table1[NAICS],'Government Expend'!$M13,Table1[State],'Government Expend'!$O$1,Table1[Size],'Government Expend'!$O$2,Table1[Mult],Multiplier)*$N13*Installation!$H$31 -> 114531.1168 | Q13: =SUMIFS(Table1[Final-demand Employment],Table1[NAICS],'Government Expend'!$M13,Table1[State],'Government Expend'!$O$1,Table1[Size],'Government Expend'!$O$2,Table1[Mult],Multiplier)*$N13*Installation!$H$31/1000000 -> 1.917096405 | R13: =SUMIFS(Table1[Final-demand Value-added],Table1[NAICS],'Government Expend'!$M13,Table1[State],'Government Expend'!$O$1,Table1[Size],'Government Expend'!$O$2,Table1[Mult],Multiplier)*$N13*Installation!$H$31 -> 249599.1038 | S13: =SUMIFS(Table1[Final-demand Output],Table1[NAICS],'Government Expend'!$M13,Table1[State],'Government Expend'!$O$1,Table1[Size],'Government Expend'!$O$2,Table1[Mult],Multiplier)*$N13*'O&M'!$L$68 -> 23044.57315 | T13: =SUMIFS(Table1[Final-demand Earnings],Table1[NAICS],'Government Expend'!$M13,Table1[State],'Government Expend'!$O$1,Table1[Size],'Government Expend'!$O$2,Table1[Mult],Multiplier)*$N13*'O&M'!$L$68 -> 5536.29848 | U13: =SUMIFS(Table1[Final-demand Employment],Table1[NAICS],'Government Expend'!$M13,Table1[State],'Government Expend'!$O$1,Table1[Size],'Government Expend'!$O$2,Table1[Mult],Multiplier)*$N13*'O&M'!$L$68/1000000 -> 0.09267016866 | V13: =SUMIFS(Table1[Final-demand Value-added],Table1[NAICS],'Government Expend'!$M13,Table1[State],'Government Expend'!$O$1,Table1[Size],'Government Expend'!$O$2,Table1[Mult],Multiplier)*$N13*'O&M'!$L$68 -> 12065.32493
A14: 2332F0 | B14: Air transportation (airports) | C14: 0.007888145397 | D14: 0.003246587009 | E14: 0.01166482273 | F14: 0.004466454628 | G14: 0.005238955503 | H14: 0.00808897356 | I14: 0.002877155723 | J14: 0.004611611868 | L14: 9 | M14: 2332F0 | N14: =INDEX($A$6:$J$39,L14,MATCH($O$1,$A$6:$J$6,0)) -> 0.004466454628 | O14: =SUMIFS(Table1[Final-demand Output],Table1[NAICS],'Government Expend'!$M14,Table1[State],'Government Expend'!$O$1,Table1[Size],'Government Expend'!$O$2,Table1[Mult],Multiplier)*$N14*Installation!$H$31 -> 40650.62341 | P14: =SUMIFS(Table1[Final-demand Earnings],Table1[NAICS],'Government Expend'!$M14,Table1[State],'Government Expend'!$O$1,Table1[Size],'Government Expend'!$O$2,Table1[Mult],Multiplier)*$N14*Installation!$H$31 -> 9766.029647 | Q14: =SUMIFS(Table1[Final-demand Employment],Table1[NAICS],'Government Expend'!$M14,Table1[State],'Government Expend'!$O$1,Table1[Size],'Government Expend'!$O$2,Table1[Mult],Multiplier)*$N14*Installation!$H$31/1000000 -> 0.1634701629 | R14: =SUMIFS(Table1[Final-demand Value-added],Table1[NAICS],'Government Expend'!$M14,Table1[State],'Government Expend'!$O$1,Table1[Size],'Government Expend'!$O$2,Table1[Mult],Multiplier)*$N14*Installation!$H$31 -> 21283.23128 | S14: =SUMIFS(Table1[Final-demand Output],Table1[NAICS],'Government Expend'!$M14,Table1[State],'Government Expend'!$O$1,Table1[Size],'Government Expend'!$O$2,Table1[Mult],Multiplier)*$N14*'O&M'!$L$68 -> 1965.002969 | T14: =SUMIFS(Table1[Final-demand Earnings],Table1[NAICS],'Government Expend'!$M14,Table1[State],'Government Expend'!$O$1,Table1[Size],'Government Expend'!$O$2,Table1[Mult],Multiplier)*$N14*'O&M'!$L$68 -> 472.0783015 | U14: =SUMIFS(Table1[Final-demand Employment],Table1[NAICS],'Government Expend'!$M14,Table1[State],'Government Expend'!$O$1,Table1[Size],'Government Expend'!$O$2,Table1[Mult],Multiplier)*$N14*'O&M'!$L$68/1000000 -> 0.007901953981 | V14: =SUMIFS(Table1[Final-demand Value-added],Table1[NAICS],'Government Expend'!$M14,Table1[State],'Government Expend'!$O$1,Table1[Size],'Government Expend'!$O$2,Table1[Mult],Multiplier)*$N14*'O&M'!$L$68 -> 1028.806182
A15: 2332F0 | B15: Parking facilities | C15: 0.0005536956073 | D15: 0.0008140104997 | E15: 0.0002958647285 | F15: 0.0002734085406 | G15: 0.0005419786629 | H15: 0.000928828536 | I15: 0.0003902358459 | J15: 0.0008712637216 | L15: 10 | M15: 2332F0 | N15: =INDEX($A$6:$J$39,L15,MATCH($O$1,$A$6:$J$6,0)) -> 0.0002734085406 | O15: =SUMIFS(Table1[Final-demand Output],Table1[NAICS],'Government Expend'!$M15,Table1[State],'Government Expend'!$O$1,Table1[Size],'Government Expend'!$O$2,Table1[Mult],Multiplier)*$N15*Installation!$H$31 -> 2488.378041 | P15: =SUMIFS(Table1[Final-demand Earnings],Table1[NAICS],'Government Expend'!$M15,Table1[State],'Government Expend'!$O$1,Table1[Size],'Government Expend'!$O$2,Table1[Mult],Multiplier)*$N15*Installation!$H$31 -> 597.8155238 | Q15: =SUMIFS(Table1[Final-demand Employment],Table1[NAICS],'Government Expend'!$M15,Table1[State],'Government Expend'!$O$1,Table1[Size],'Government Expend'!$O$2,Table1[Mult],Multiplier)*$N15*Installation!$H$31/1000000 -> 0.01000662548 | R15: =SUMIFS(Table1[Final-demand Value-added],Table1[NAICS],'Government Expend'!$M15,Table1[State],'Government Expend'!$O$1,Table1[Size],'Government Expend'!$O$2,Table1[Mult],Multiplier)*$N15*Installation!$H$31 -> 1302.826892 | S15: =SUMIFS(Table1[Final-demand Output],Table1[NAICS],'Government Expend'!$M15,Table1[State],'Government Expend'!$O$1,Table1[Size],'Government Expend'!$O$2,Table1[Mult],Multiplier)*$N15*'O&M'!$L$68 -> 120.285246 | T15: =SUMIFS(Table1[Final-demand Earnings],Table1[NAICS],'Government Expend'!$M15,Table1[State],'Government Expend'!$O$1,Table1[Size],'Government Expend'!$O$2,Table1[Mult],Multiplier)*$N15*'O&M'!$L$68 -> 28.89769407 | U15: =SUMIFS(Table1[Final-demand Employment],Table1[NAICS],'Government Expend'!$M15,Table1[State],'Government Expend'!$O$1,Table1[Size],'Government Expend'!$O$2,Table1[Mult],Multiplier)*$N15*'O&M'!$L$68/1000000 -> 0.0004837084187 | V15: =SUMIFS(Table1[Final-demand Value-added],Table1[NAICS],'Government Expend'!$M15,Table1[State],'Government Expend'!$O$1,Table1[Size],'Government Expend'!$O$2,Table1[Mult],Multiplier)*$N15*'O&M'!$L$68 -> 62.97710825
A16: 2332F0 | B16: Sea and inland port facilities | C16: 0.001750244286 | D16: 5.875982214e-07 | E16: 8.462431529e-05 | F16: 0.0003271675199 | G16: 0.0004918580909 | H16: 0.0008006237993 | I16: 0.0001918570531 | J16: 0.000338600296 | L16: 11 | M16: 2332F0 | N16: =INDEX($A$6:$J$39,L16,MATCH($O$1,$A$6:$J$6,0)) -> 0.0003271675199 | O16: =SUMIFS(Table1[Final-demand Output],Table1[NAICS],'Government Expend'!$M16,Table1[State],'Government Expend'!$O$1,Table1[Size],'Government Expend'!$O$2,Table1[Mult],Multiplier)*$N16*Installation!$H$31 -> 2977.655602 | P16: =SUMIFS(Table1[Final-demand Earnings],Table1[NAICS],'Government Expend'!$M16,Table1[State],'Government Expend'!$O$1,Table1[Size],'Government Expend'!$O$2,Table1[Mult],Multiplier)*$N16*Installation!$H$31 -> 715.3610559 | Q16: =SUMIFS(Table1[Final-demand Employment],Table1[NAICS],'Government Expend'!$M16,Table1[State],'Government Expend'!$O$1,Table1[Size],'Government Expend'!$O$2,Table1[Mult],Multiplier)*$N16*Installation!$H$31/1000000 -> 0.01197417913 | R16: =SUMIFS(Table1[Final-demand Value-added],Table1[NAICS],'Government Expend'!$M16,Table1[State],'Government Expend'!$O$1,Table1[Size],'Government Expend'!$O$2,Table1[Mult],Multiplier)*$N16*Installation!$H$31 -> 1558.995349 | S16: =SUMIFS(Table1[Final-demand Output],Table1[NAICS],'Government Expend'!$M16,Table1[State],'Government Expend'!$O$1,Table1[Size],'Government Expend'!$O$2,Table1[Mult],Multiplier)*$N16*'O&M'!$L$68 -> 143.9363436 | T16: =SUMIFS(Table1[Final-demand Earnings],Table1[NAICS],'Government Expend'!$M16,Table1[State],'Government Expend'!$O$1,Table1[Size],'Government Expend'!$O$2,Table1[Mult],Multiplier)*$N16*'O&M'!$L$68 -> 34.57970582 | U16: =SUMIFS(Table1[Final-demand Employment],Table1[NAICS],'Government Expend'!$M16,Table1[State],'Government Expend'!$O$1,Table1[Size],'Government Expend'!$O$2,Table1[Mult],Multiplier)*$N16*'O&M'!$L$68/1000000 -> 0.0005788176309 | V16: =SUMIFS(Table1[Final-demand Value-added],Table1[NAICS],'Government Expend'!$M16,Table1[State],'Government Expend'!$O$1,Table1[Size],'Government Expend'!$O$2,Table1[Mult],Multiplier)*$N16*'O&M'!$L$68 -> 75.35998794
A17: 561600 | B17: Police protection | C17: 0.03098591868 | D17: 0.02335927286 | E17: 0.03623956856 | F17: 0.02412049986 | G17: 0.02569022613 | H17: 0.03233435329 | I17: 0.02894903698 | J17: 0.02941387067 | L17: 12 | M17: 561600 | N17: =INDEX($A$6:$J$39,L17,MATCH($O$1,$A$6:$J$6,0)) -> 0.02412049986 | O17: =SUMIFS(Table1[Final-demand Output],Table1[NAICS],'Government Expend'!$M17,Table1[State],'Government Expend'!$O$1,Table1[Size],'Government Expend'!$O$2,Table1[Mult],Multiplier)*$N17*Installation!$H$31 -> 171012.1811 | P17: =SUMIFS(Table1[Final-demand Earnings],Table1[NAICS],'Government Expend'!$M17,Table1[State],'Government Expend'!$O$1,Table1[Size],'Government Expend'!$O$2,Table1[Mult],Multiplier)*$N17*Installation!$H$31 -> 0 | Q17: =SUMIFS(Table1[Final-demand Employment],Table1[NAICS],'Government Expend'!$M17,Table1[State],'Government Expend'!$O$1,Table1[Size],'Government Expend'!$O$2,Table1[Mult],Multiplier)*$N17*Installation!$H$31/1000000 -> 0 | R17: =SUMIFS(Table1[Final-demand Value-added],Table1[NAICS],'Government Expend'!$M17,Table1[State],'Government Expend'!$O$1,Table1[Size],'Government Expend'!$O$2,Table1[Mult],Multiplier)*$N17*Installation!$H$31 -> 0 | S17: =SUMIFS(Table1[Final-demand Output],Table1[NAICS],'Government Expend'!$M17,Table1[State],'Government Expend'!$O$1,Table1[Size],'Government Expend'!$O$2,Table1[Mult],Multiplier)*$N17*'O&M'!$L$68 -> 8266.526201 | T17: =SUMIFS(Table1[Final-demand Earnings],Table1[NAICS],'Government Expend'!$M17,Table1[State],'Government Expend'!$O$1,Table1[Size],'Government Expend'!$O$2,Table1[Mult],Multiplier)*$N17*'O&M'!$L$68 -> 0 | U17: =SUMIFS(Table1[Final-demand Employment],Table1[NAICS],'Government Expend'!$M17,Table1[State],'Government Expend'!$O$1,Table1[Size],'Government Expend'!$O$2,Table1[Mult],Multiplier)*$N17*'O&M'!$L$68/1000000 -> 0 | V17: =SUMIFS(Table1[Final-demand Value-added],Table1[NAICS],'Government Expend'!$M17,Table1[State],'Government Expend'!$O$1,Table1[Size],'Government Expend'!$O$2,Table1[Mult],Multiplier)*$N17*'O&M'!$L$68 -> 0
A18: 561200 | B18: Fire protection | C18: 0.01388671367 | D18: 0.00773826794 | E18: 0.01614555563 | F18: 0.01377163402 | G18: 0.01142852904 | H18: 0.007471253519 | I18: 0.01587040659 | J18: 0.01119875079 | L18: 13 | M18: 561200 | N18: =INDEX($A$6:$J$39,L18,MATCH($O$1,$A$6:$J$6,0)) -> 0.01377163402 | O18: =SUMIFS(Table1[Final-demand Output],Table1[NAICS],'Government Expend'!$M18,Table1[State],'Government Expend'!$O$1,Table1[Size],'Government Expend'!$O$2,Table1[Mult],Multiplier)*$N18*Installation!$H$31 -> 97639.65024 | P18: =SUMIFS(Table1[Final-demand Earnings],Table1[NAICS],'Government Expend'!$M18,Table1[State],'Government Expend'!$O$1,Table1[Size],'Government Expend'!$O$2,Table1[Mult],Multiplier)*$N18*Installation!$H$31 -> 0 | Q18: =SUMIFS(Table1[Final-demand Employment],Table1[NAICS],'Government Expend'!$M18,Table1[State],'Government Expend'!$O$1,Table1[Size],'Government Expend'!$O$2,Table1[Mult],Multiplier)*$N18*Installation!$H$31/1000000 -> 0 | R18: =SUMIFS(Table1[Final-demand Value-added],Table1[NAICS],'Government Expend'!$M18,Table1[State],'Government Expend'!$O$1,Table1[Size],'Government Expend'!$O$2,Table1[Mult],Multiplier)*$N18*Installation!$H$31 -> 0 | S18: =SUMIFS(Table1[Final-demand Output],Table1[NAICS],'Government Expend'!$M18,Table1[State],'Government Expend'!$O$1,Table1[Size],'Government Expend'!$O$2,Table1[Mult],Multiplier)*$N18*'O&M'!$L$68 -> 4719.785 | T18: =SUMIFS(Table1[Final-demand Earnings],Table1[NAICS],'Government Expend'!$M18,Table1[State],'Government Expend'!$O$1,Table1[Size],'Government Expend'!$O$2,Table1[Mult],Multiplier)*$N18*'O&M'!$L$68 -> 0 | U18: =SUMIFS(Table1[Final-demand Employment],Table1[NAICS],'Government Expend'!$M18,Table1[State],'Government Expend'!$O$1,Table1[Size],'Government Expend'!$O$2,Table1[Mult],Multiplier)*$N18*'O&M'!$L$68/1000000 -> 0 | V18: =SUMIFS(Table1[Final-demand Value-added],Table1[NAICS],'Government Expend'!$M18,Table1[State],'Government Expend'!$O$1,Table1[Size],'Government Expend'!$O$2,Table1[Mult],Multiplier)*$N18*'O&M'!$L$68 -> 0
A19: 561600 | B19: Correction | C19: 0.02071948033 | D19: 0.01230588259 | E19: 0.01542950125 | F19: 0.01714621353 | G19: 0.02371639657 | H19: 0.01599124038 | I19: 0.01734428291 | J19: 0.02347933192 | L19: 14 | M19: 561600 | N19: =INDEX($A$6:$J$39,L19,MATCH($O$1,$A$6:$J$6,0)) -> 0.01714621353 | O19: =SUMIFS(Table1[Final-demand Output],Table1[NAICS],'Government Expend'!$M19,Table1[State],'Government Expend'!$O$1,Table1[Size],'Government Expend'!$O$2,Table1[Mult],Multiplier)*$N19*Installation!$H$31 -> 121565.1164 | P19: =SUMIFS(Table1[Final-demand Earnings],Table1[NAICS],'Government Expend'!$M19,Table1[State],'Government Expend'!$O$1,Table1[Size],'Government Expend'!$O$2,Table1[Mult],Multiplier)*$N19*Installation!$H$31 -> 0 | Q19: =SUMIFS(Table1[Final-demand Employment],Table1[NAICS],'Government Expend'!$M19,Table1[State],'Government Expend'!$O$1,Table1[Size],'Government Expend'!$O$2,Table1[Mult],Multiplier)*$N19*Installation!$H$31/1000000 -> 0 | R19: =SUMIFS(Table1[Final-demand Value-added],Table1[NAICS],'Government Expend'!$M19,Table1[State],'Government Expend'!$O$1,Table1[Size],'Government Expend'!$O$2,Table1[Mult],Multiplier)*$N19*Installation!$H$31 -> 0 | S19: =SUMIFS(Table1[Final-demand Output],Table1[NAICS],'Government Expend'!$M19,Table1[State],'Government Expend'!$O$1,Table1[Size],'Government Expend'!$O$2,Table1[Mult],Multiplier)*$N19*'O&M'!$L$68 -> 5876.313685 | T19: =SUMIFS(Table1[Final-demand Earnings],Table1[NAICS],'Government Expend'!$M19,Table1[State],'Government Expend'!$O$1,Table1[Size],'Government Expend'!$O$2,Table1[Mult],Multiplier)*$N19*'O&M'!$L$68 -> 0 | U19: =SUMIFS(Table1[Final-demand Employment],Table1[NAICS],'Government Expend'!$M19,Table1[State],'Government Expend'!$O$1,Table1[Size],'Government Expend'!$O$2,Table1[Mult],Multiplier)*$N19*'O&M'!$L$68/1000000 -> 0 | V19: =SUMIFS(Table1[Final-demand Value-added],Table1[NAICS],'Government Expend'!$M19,Table1[State],'Government Expend'!$O$1,Table1[Size],'Government Expend'!$O$2,Table1[Mult],Multiplier)*$N19*'O&M'!$L$68 -> 0
A20: 561200 | B20: Protective inspection and regulation | C20: 0.003935604905 | D20: 0.002976371954 | E20: 0.001576348737 | F20: 0.002203007176 | G20: 0.005206758113 | H20: 0.00218439386 | I20: 0.00248487861 | J20: 0.003713208723 | L20: 15 | M20: 561200 | N20: =INDEX($A$6:$J$39,L20,MATCH($O$1,$A$6:$J$6,0)) -> 0.002203007176 | O20: =SUMIFS(Table1[Final-demand Output],Table1[NAICS],'Government Expend'!$M20,Table1[State],'Government Expend'!$O$1,Table1[Size],'Government Expend'!$O$2,Table1[Mult],Multiplier)*$N20*Installation!$H$31 -> 15619.12333 | P20: =SUMIFS(Table1[Final-demand Earnings],Table1[NAICS],'Government Expend'!$M20,Table1[State],'Government Expend'!$O$1,Table1[Size],'Government Expend'!$O$2,Table1[Mult],Multiplier)*$N20*Installation!$H$31 -> 0 | Q20: =SUMIFS(Table1[Final-demand Employment],Table1[NAICS],'Government Expend'!$M20,Table1[State],'Government Expend'!$O$1,Table1[Size],'Government Expend'!$O$2,Table1[Mult],Multiplier)*$N20*Installation!$H$31/1000000 -> 0 | R20: =SUMIFS(Table1[Final-demand Value-added],Table1[NAICS],'Government Expend'!$M20,Table1[State],'Government Expend'!$O$1,Table1[Size],'Government Expend'!$O$2,Table1[Mult],Multiplier)*$N20*Installation!$H$31 -> 0 | S20: =SUMIFS(Table1[Final-demand Output],Table1[NAICS],'Government Expend'!$M20,Table1[State],'Government Expend'!$O$1,Table1[Size],'Government Expend'!$O$2,Table1[Mult],Multiplier)*$N20*'O&M'!$L$68 -> 755.0099148 | T20: =SUMIFS(Table1[Final-demand Earnings],Table1[NAICS],'Government Expend'!$M20,Table1[State],'Government Expend'!$O$1,Table1[Size],'Government Expend'!$O$2,Table1[Mult],Multiplier)*$N20*'O&M'!$L$68 -> 0 | U20: =SUMIFS(Table1[Final-demand Employment],Table1[NAICS],'Government Expend'!$M20,Table1[State],'Government Expend'!$O$1,Table1[Size],'Government Expend'!$O$2,Table1[Mult],Multiplier)*$N20*'O&M'!$L$68/1000000 -> 0 | V20: =SUMIFS(Table1[Final-demand Value-added],Table1[NAICS],'Government Expend'!$M20,Table1[State],'Government Expend'!$O$1,Table1[Size],'Government Expend'!$O$2,Table1[Mult],Multiplier)*$N20*'O&M'!$L$68 -> 0
A21: 561200 | B21: Natural resources | C21: 0.008894704026 | D21: 0.01513701095 | E21: 0.004592592334 | F21: 0.007623405944 | G21: 0.004481494227 | H21: 0.01257099006 | I21: 0.003816499941 | J21: 0.009852121418 | L21: 16 | M21: 561200 | N21: =INDEX($A$6:$J$39,L21,MATCH($O$1,$A$6:$J$6,0)) -> 0.007623405944 | O21: =SUMIFS(Table1[Final-demand Output],Table1[NAICS],'Government Expend'!$M21,Table1[State],'Government Expend'!$O$1,Table1[Size],'Government Expend'!$O$2,Table1[Mult],Multiplier)*$N21*Installation!$H$31 -> 54049.26454 | P21: =SUMIFS(Table1[Final-demand Earnings],Table1[NAICS],'Government Expend'!$M21,Table1[State],'Government Expend'!$O$1,Table1[Size],'Government Expend'!$O$2,Table1[Mult],Multiplier)*$N21*Installation!$H$31 -> 0 | Q21: =SUMIFS(Table1[Final-demand Employment],Table1[NAICS],'Government Expend'!$M21,Table1[State],'Government Expend'!$O$1,Table1[Size],'Government Expend'!$O$2,Table1[Mult],Multiplier)*$N21*Installation!$H$31/1000000 -> 0 | R21: =SUMIFS(Table1[Final-demand Value-added],Table1[NAICS],'Government Expend'!$M21,Table1[State],'Government Expend'!$O$1,Table1[Size],'Government Expend'!$O$2,Table1[Mult],Multiplier)*$N21*Installation!$H$31 -> 0 | S21: =SUMIFS(Table1[Final-demand Output],Table1[NAICS],'Government Expend'!$M21,Table1[State],'Government Expend'!$O$1,Table1[Size],'Government Expend'!$O$2,Table1[Mult],Multiplier)*$N21*'O&M'!$L$68 -> 2612.677405 | T21: =SUMIFS(Table1[Final-demand Earnings],Table1[NAICS],'Government Expend'!$M21,Table1[State],'Government Expend'!$O$1,Table1[Size],'Government Expend'!$O$2,Table1[Mult],Multiplier)*$N21*'O&M'!$L$68 -> 0 | U21: =SUMIFS(Table1[Final-demand Employment],Table1[NAICS],'Government Expend'!$M21,Table1[State],'Government Expend'!$O$1,Table1[Size],'Government Expend'!$O$2,Table1[Mult],Multiplier)*$N21*'O&M'!$L$68/1000000 -> 0 | V21: =SUMIFS(Table1[Final-demand Value-added],Table1[NAICS],'Government Expend'!$M21,Table1[State],'Government Expend'!$O$1,Table1[Size],'Government Expend'!$O$2,Table1[Mult],Multiplier)*$N21*'O&M'!$L$68 -> 0
A22: 561200 | B22: Parks and recreation | C22: 0.01232856347 | D22: 0.01153615563 | E22: 0.01987421623 | F22: 0.008884658875 | G22: 0.009366269256 | H22: 0.0180088862 | I22: 0.01217153378 | J22: 0.01206845086 | L22: 17 | M22: 561200 | N22: =INDEX($A$6:$J$39,L22,MATCH($O$1,$A$6:$J$6,0)) -> 0.008884658875 | O22: =SUMIFS(Table1[Final-demand Output],Table1[NAICS],'Government Expend'!$M22,Table1[State],'Government Expend'!$O$1,Table1[Size],'Government Expend'!$O$2,Table1[Mult],Multiplier)*$N22*Installation!$H$31 -> 62991.43472 | P22: =SUMIFS(Table1[Final-demand Earnings],Table1[NAICS],'Government Expend'!$M22,Table1[State],'Government Expend'!$O$1,Table1[Size],'Government Expend'!$O$2,Table1[Mult],Multiplier)*$N22*Installation!$H$31 -> 0 | Q22: =SUMIFS(Table1[Final-demand Employment],Table1[NAICS],'Government Expend'!$M22,Table1[State],'Government Expend'!$O$1,Table1[Size],'Government Expend'!$O$2,Table1[Mult],Multiplier)*$N22*Installation!$H$31/1000000 -> 0 | R22: =SUMIFS(Table1[Final-demand Value-added],Table1[NAICS],'Government Expend'!$M22,Table1[State],'Government Expend'!$O$1,Table1[Size],'Government Expend'!$O$2,Table1[Mult],Multiplier)*$N22*Installation!$H$31 -> 0 | S22: =SUMIFS(Table1[Final-demand Output],Table1[NAICS],'Government Expend'!$M22,Table1[State],'Government Expend'!$O$1,Table1[Size],'Government Expend'!$O$2,Table1[Mult],Multiplier)*$N22*'O&M'!$L$68 -> 3044.931316 | T22: =SUMIFS(Table1[Final-demand Earnings],Table1[NAICS],'Government Expend'!$M22,Table1[State],'Government Expend'!$O$1,Table1[Size],'Government Expend'!$O$2,Table1[Mult],Multiplier)*$N22*'O&M'!$L$68 -> 0 | U22: =SUMIFS(Table1[Final-demand Employment],Table1[NAICS],'Government Expend'!$M22,Table1[State],'Government Expend'!$O$1,Table1[Size],'Government Expend'!$O$2,Table1[Mult],Multiplier)*$N22*'O&M'!$L$68/1000000 -> 0 | V22: =SUMIFS(Table1[Final-demand Value-added],Table1[NAICS],'Government Expend'!$M22,Table1[State],'Government Expend'!$O$1,Table1[Size],'Government Expend'!$O$2,Table1[Mult],Multiplier)*$N22*'O&M'!$L$68 -> 0
A23: 624A00 | B23: Housing and community development | C23: 0.01438596023 | D23: 0.007013011481 | E23: 0.01362733665 | F23: 0.01528205457 | G23: 0.009770303751 | H23: 0.01545178672 | I23: 0.01541208673 | J23: 0.005462284926 | L23: 18 | M23: 624A00 | N23: =INDEX($A$6:$J$39,L23,MATCH($O$1,$A$6:$J$6,0)) -> 0.01528205457 | O23: =SUMIFS(Table1[Final-demand Output],Table1[NAICS],'Government Expend'!$M23,Table1[State],'Government Expend'!$O$1,Table1[Size],'Government Expend'!$O$2,Table1[Mult],Multiplier)*$N23*Installation!$H$31 -> 146313.6747 | P23: =SUMIFS(Table1[Final-demand Earnings],Table1[NAICS],'Government Expend'!$M23,Table1[State],'Government Expend'!$O$1,Table1[Size],'Government Expend'!$O$2,Table1[Mult],Multiplier)*$N23*Installation!$H$31 -> 37391.03164 | Q23: =SUMIFS(Table1[Final-demand Employment],Table1[NAICS],'Government Expend'!$M23,Table1[State],'Government Expend'!$O$1,Table1[Size],'Government Expend'!$O$2,Table1[Mult],Multiplier)*$N23*Installation!$H$31/1000000 -> 1.154387156 | R23: =SUMIFS(Table1[Final-demand Value-added],Table1[NAICS],'Government Expend'!$M23,Table1[State],'Government Expend'!$O$1,Table1[Size],'Government Expend'!$O$2,Table1[Mult],Multiplier)*$N23*Installation!$H$31 -> 66027.51285 | S23: =SUMIFS(Table1[Final-demand Output],Table1[NAICS],'Government Expend'!$M23,Table1[State],'Government Expend'!$O$1,Table1[Size],'Government Expend'!$O$2,Table1[Mult],Multiplier)*$N23*'O&M'!$L$68 -> 7072.629668 | T23: =SUMIFS(Table1[Final-demand Earnings],Table1[NAICS],'Government Expend'!$M23,Table1[State],'Government Expend'!$O$1,Table1[Size],'Government Expend'!$O$2,Table1[Mult],Multiplier)*$N23*'O&M'!$L$68 -> 1807.438165 | U23: =SUMIFS(Table1[Final-demand Employment],Table1[NAICS],'Government Expend'!$M23,Table1[State],'Government Expend'!$O$1,Table1[Size],'Government Expend'!$O$2,Table1[Mult],Multiplier)*$N23*'O&M'!$L$68/1000000 -> 0.0558017073 | V23: =SUMIFS(Table1[Final-demand Value-added],Table1[NAICS],'Government Expend'!$M23,Table1[State],'Government Expend'!$O$1,Table1[Size],'Government Expend'!$O$2,Table1[Mult],Multiplier)*$N23*'O&M'!$L$68 -> 3191.691736
A24: 221300 | B24: Sewerage | C24: 0.01578147083 | D24: 0.01977751448 | E24: 0.01034690338 | F24: 0.02084765196 | G24: 0.02418875056 | H24: 0.01417561037 | I24: 0.02118100393 | J24: 0.01835222583 | L24: 19 | M24: 221300 | N24: =INDEX($A$6:$J$39,L24,MATCH($O$1,$A$6:$J$6,0)) -> 0.02084765196 | O24: =SUMIFS(Table1[Final-demand Output],Table1[NAICS],'Government Expend'!$M24,Table1[State],'Government Expend'!$O$1,Table1[Size],'Government Expend'!$O$2,Table1[Mult],Multiplier)*$N24*Installation!$H$31 -> 174280.3927 | P24: =SUMIFS(Table1[Final-demand Earnings],Table1[NAICS],'Government Expend'!$M24,Table1[State],'Government Expend'!$O$1,Table1[Size],'Government Expend'!$O$2,Table1[Mult],Multiplier)*$N24*Installation!$H$31 -> 28630.4063 | Q24: =SUMIFS(Table1[Final-demand Employment],Table1[NAICS],'Government Expend'!$M24,Table1[State],'Government Expend'!$O$1,Table1[Size],'Government Expend'!$O$2,Table1[Mult],Multiplier)*$N24*Installation!$H$31/1000000 -> 0.45733268 | R24: =SUMIFS(Table1[Final-demand Value-added],Table1[NAICS],'Government Expend'!$M24,Table1[State],'Government Expend'!$O$1,Table1[Size],'Government Expend'!$O$2,Table1[Mult],Multiplier)*$N24*Installation!$H$31 -> 111491.5615 | S24: =SUMIFS(Table1[Final-demand Output],Table1[NAICS],'Government Expend'!$M24,Table1[State],'Government Expend'!$O$1,Table1[Size],'Government Expend'!$O$2,Table1[Mult],Multiplier)*$N24*'O&M'!$L$68 -> 8424.507679 | T24: =SUMIFS(Table1[Final-demand Earnings],Table1[NAICS],'Government Expend'!$M24,Table1[State],'Government Expend'!$O$1,Table1[Size],'Government Expend'!$O$2,Table1[Mult],Multiplier)*$N24*'O&M'!$L$68 -> 1383.959916 | U24: =SUMIFS(Table1[Final-demand Employment],Table1[NAICS],'Government Expend'!$M24,Table1[State],'Government Expend'!$O$1,Table1[Size],'Government Expend'!$O$2,Table1[Mult],Multiplier)*$N24*'O&M'!$L$68/1000000 -> 0.02210691986 | V24: =SUMIFS(Table1[Final-demand Value-added],Table1[NAICS],'Government Expend'!$M24,Table1[State],'Government Expend'!$O$1,Table1[Size],'Government Expend'!$O$2,Table1[Mult],Multiplier)*$N24*'O&M'!$L$68 -> 5389.369979
A25: 562000 | B25: Solid waste management | C25: 0.006950019823 | D25: 0.009002191715 | E25: 0.004016713351 | F25: 0.004789903459 | G25: 0.005026018901 | H25: 0.006522216464 | I25: 0.004146352584 | J25: 0.006684952311 | L25: 20 | M25: 562000 | N25: =INDEX($A$6:$J$39,L25,MATCH($O$1,$A$6:$J$6,0)) -> 0.004789903459 | O25: =SUMIFS(Table1[Final-demand Output],Table1[NAICS],'Government Expend'!$M25,Table1[State],'Government Expend'!$O$1,Table1[Size],'Government Expend'!$O$2,Table1[Mult],Multiplier)*$N25*Installation!$H$31 -> 43658.95801 | P25: =SUMIFS(Table1[Final-demand Earnings],Table1[NAICS],'Government Expend'!$M25,Table1[State],'Government Expend'!$O$1,Table1[Size],'Government Expend'!$O$2,Table1[Mult],Multiplier)*$N25*Installation!$H$31 -> 8561.312471 | Q25: =SUMIFS(Table1[Final-demand Employment],Table1[NAICS],'Government Expend'!$M25,Table1[State],'Government Expend'!$O$1,Table1[Size],'Government Expend'!$O$2,Table1[Mult],Multiplier)*$N25*Installation!$H$31/1000000 -> 0.1593436503 | R25: =SUMIFS(Table1[Final-demand Value-added],Table1[NAICS],'Government Expend'!$M25,Table1[State],'Government Expend'!$O$1,Table1[Size],'Government Expend'!$O$2,Table1[Mult],Multiplier)*$N25*Installation!$H$31 -> 22644.51867 | S25: =SUMIFS(Table1[Final-demand Output],Table1[NAICS],'Government Expend'!$M25,Table1[State],'Government Expend'!$O$1,Table1[Size],'Government Expend'!$O$2,Table1[Mult],Multiplier)*$N25*'O&M'!$L$68 -> 2110.422299 | T25: =SUMIFS(Table1[Final-demand Earnings],Table1[NAICS],'Government Expend'!$M25,Table1[State],'Government Expend'!$O$1,Table1[Size],'Government Expend'!$O$2,Table1[Mult],Multiplier)*$N25*'O&M'!$L$68 -> 413.8437006 | U25: =SUMIFS(Table1[Final-demand Employment],Table1[NAICS],'Government Expend'!$M25,Table1[State],'Government Expend'!$O$1,Table1[Size],'Government Expend'!$O$2,Table1[Mult],Multiplier)*$N25*'O&M'!$L$68/1000000 -> 0.007702483252 | V25: =SUMIFS(Table1[Final-demand Value-added],Table1[NAICS],'Government Expend'!$M25,Table1[State],'Government Expend'!$O$1,Table1[Size],'Government Expend'!$O$2,Table1[Mult],Multiplier)*$N25*'O&M'!$L$68 -> 1094.609201
A26: 52A000 | B26: Financial administration | C26: 0.01254749349 | D26: 0.01219859249 | E26: 0.01296946107 | F26: 0.009297078508 | G26: 0.01445438509 | H26: 0.02179748398 | I26: 0.01614982445 | J26: 0.008636358872 | L26: 21 | M26: 52A000 | N26: =INDEX($A$6:$J$39,L26,MATCH($O$1,$A$6:$J$6,0)) -> 0.009297078508 | O26: =SUMIFS(Table1[Final-demand Output],Table1[NAICS],'Government Expend'!$M26,Table1[State],'Government Expend'!$O$1,Table1[Size],'Government Expend'!$O$2,Table1[Mult],Multiplier)*$N26*Installation!$H$31 -> 77516.57265 | P26: =SUMIFS(Table1[Final-demand Earnings],Table1[NAICS],'Government Expend'!$M26,Table1[State],'Government Expend'!$O$1,Table1[Size],'Government Expend'!$O$2,Table1[Mult],Multiplier)*$N26*Installation!$H$31 -> 16525.00405 | Q26: =SUMIFS(Table1[Final-demand Employment],Table1[NAICS],'Government Expend'!$M26,Table1[State],'Government Expend'!$O$1,Table1[Size],'Government Expend'!$O$2,Table1[Mult],Multiplier)*$N26*Installation!$H$31/1000000 -> 0.2814392094 | R26: =SUMIFS(Table1[Final-demand Value-added],Table1[NAICS],'Government Expend'!$M26,Table1[State],'Government Expend'!$O$1,Table1[Size],'Government Expend'!$O$2,Table1[Mult],Multiplier)*$N26*Installation!$H$31 -> 53641.9956 | S26: =SUMIFS(Table1[Final-demand Output],Table1[NAICS],'Government Expend'!$M26,Table1[State],'Government Expend'!$O$1,Table1[Size],'Government Expend'!$O$2,Table1[Mult],Multiplier)*$N26*'O&M'!$L$68 -> 3747.059273 | T26: =SUMIFS(Table1[Final-demand Earnings],Table1[NAICS],'Government Expend'!$M26,Table1[State],'Government Expend'!$O$1,Table1[Size],'Government Expend'!$O$2,Table1[Mult],Multiplier)*$N26*'O&M'!$L$68 -> 798.7991155 | U26: =SUMIFS(Table1[Final-demand Employment],Table1[NAICS],'Government Expend'!$M26,Table1[State],'Government Expend'!$O$1,Table1[Size],'Government Expend'!$O$2,Table1[Mult],Multiplier)*$N26*'O&M'!$L$68/1000000 -> 0.01360443791 | V26: =SUMIFS(Table1[Final-demand Value-added],Table1[NAICS],'Government Expend'!$M26,Table1[State],'Government Expend'!$O$1,Table1[Size],'Government Expend'!$O$2,Table1[Mult],Multiplier)*$N26*'O&M'!$L$68 -> 2592.990507
A27: 541100 | B27: Judicial and legal | C27: 0.01265070484 | D27: 0.0102299782 | E27: 0.009711557617 | F27: 0.009976919746 | G27: 0.01284082989 | H27: 0.01090443952 | I27: 0.01425322149 | J27: 0.0109081128 | L27: 22 | M27: 541100 | N27: =INDEX($A$6:$J$39,L27,MATCH($O$1,$A$6:$J$6,0)) -> 0.009976919746 | O27: =SUMIFS(Table1[Final-demand Output],Table1[NAICS],'Government Expend'!$M27,Table1[State],'Government Expend'!$O$1,Table1[Size],'Government Expend'!$O$2,Table1[Mult],Multiplier)*$N27*Installation!$H$31 -> 90116.98413 | P27: =SUMIFS(Table1[Final-demand Earnings],Table1[NAICS],'Government Expend'!$M27,Table1[State],'Government Expend'!$O$1,Table1[Size],'Government Expend'!$O$2,Table1[Mult],Multiplier)*$N27*Installation!$H$31 -> 36909.76634 | Q27: =SUMIFS(Table1[Final-demand Employment],Table1[NAICS],'Government Expend'!$M27,Table1[State],'Government Expend'!$O$1,Table1[Size],'Government Expend'!$O$2,Table1[Mult],Multiplier)*$N27*Installation!$H$31/1000000 -> 0.4189520201 | R27: =SUMIFS(Table1[Final-demand Value-added],Table1[NAICS],'Government Expend'!$M27,Table1[State],'Government Expend'!$O$1,Table1[Size],'Government Expend'!$O$2,Table1[Mult],Multiplier)*$N27*Installation!$H$31 -> 61412.53188 | S27: =SUMIFS(Table1[Final-demand Output],Table1[NAICS],'Government Expend'!$M27,Table1[State],'Government Expend'!$O$1,Table1[Size],'Government Expend'!$O$2,Table1[Mult],Multiplier)*$N27*'O&M'!$L$68 -> 4356.148234 | T27: =SUMIFS(Table1[Final-demand Earnings],Table1[NAICS],'Government Expend'!$M27,Table1[State],'Government Expend'!$O$1,Table1[Size],'Government Expend'!$O$2,Table1[Mult],Multiplier)*$N27*'O&M'!$L$68 -> 1784.174371 | U27: =SUMIFS(Table1[Final-demand Employment],Table1[NAICS],'Government Expend'!$M27,Table1[State],'Government Expend'!$O$1,Table1[Size],'Government Expend'!$O$2,Table1[Mult],Multiplier)*$N27*'O&M'!$L$68/1000000 -> 0.02025164424 | V27: =SUMIFS(Table1[Final-demand Value-added],Table1[NAICS],'Government Expend'!$M27,Table1[State],'Government Expend'!$O$1,Table1[Size],'Government Expend'!$O$2,Table1[Mult],Multiplier)*$N27*'O&M'!$L$68 -> 2968.609024
A28: 561700 | B28: General public buildings | C28: 0.004041610487 | D28: 0.003089297649 | E28: 0.004727635266 | F28: 0.002414617579 | G28: 0.001988976948 | H28: 0.003603195722 | I28: 0.004516138907 | J28: 0.00526707615 | L28: 23 | M28: 561700 | N28: =INDEX($A$6:$J$39,L28,MATCH($O$1,$A$6:$J$6,0)) -> 0.002414617579 | O28: =SUMIFS(Table1[Final-demand Output],Table1[NAICS],'Government Expend'!$M28,Table1[State],'Government Expend'!$O$1,Table1[Size],'Government Expend'!$O$2,Table1[Mult],Multiplier)*$N28*Installation!$H$31 -> 21585.87934 | P28: =SUMIFS(Table1[Final-demand Earnings],Table1[NAICS],'Government Expend'!$M28,Table1[State],'Government Expend'!$O$1,Table1[Size],'Government Expend'!$O$2,Table1[Mult],Multiplier)*$N28*Installation!$H$31 -> 5875.385668 | Q28: =SUMIFS(Table1[Final-demand Employment],Table1[NAICS],'Government Expend'!$M28,Table1[State],'Government Expend'!$O$1,Table1[Size],'Government Expend'!$O$2,Table1[Mult],Multiplier)*$N28*Installation!$H$31/1000000 -> 0.1833301794 | R28: =SUMIFS(Table1[Final-demand Value-added],Table1[NAICS],'Government Expend'!$M28,Table1[State],'Government Expend'!$O$1,Table1[Size],'Government Expend'!$O$2,Table1[Mult],Multiplier)*$N28*Installation!$H$31 -> 12810.46357 | S28: =SUMIFS(Table1[Final-demand Output],Table1[NAICS],'Government Expend'!$M28,Table1[State],'Government Expend'!$O$1,Table1[Size],'Government Expend'!$O$2,Table1[Mult],Multiplier)*$N28*'O&M'!$L$68 -> 1043.43583 | T28: =SUMIFS(Table1[Final-demand Earnings],Table1[NAICS],'Government Expend'!$M28,Table1[State],'Government Expend'!$O$1,Table1[Size],'Government Expend'!$O$2,Table1[Mult],Multiplier)*$N28*'O&M'!$L$68 -> 284.0091815 | U28: =SUMIFS(Table1[Final-demand Employment],Table1[NAICS],'Government Expend'!$M28,Table1[State],'Government Expend'!$O$1,Table1[Size],'Government Expend'!$O$2,Table1[Mult],Multiplier)*$N28*'O&M'!$L$68/1000000 -> 0.008861963647 | V28: =SUMIFS(Table1[Final-demand Value-added],Table1[NAICS],'Government Expend'!$M28,Table1[State],'Government Expend'!$O$1,Table1[Size],'Government Expend'!$O$2,Table1[Mult],Multiplier)*$N28*'O&M'!$L$68 -> 619.2426297
A29: 541610 | B29: Other governmental administration | C29: 0.009489806729 | D29: 0.006819023941 | E29: 0.0139989458 | F29: 0.01463793435 | G29: 0.00793223081 | H29: 0.008114442402 | I29: 0.01056829857 | J29: 0.01608109117 | L29: 24 | M29: 541610 | N29: =INDEX($A$6:$J$39,L29,MATCH($O$1,$A$6:$J$6,0)) -> 0.01463793435 | O29: =SUMIFS(Table1[Final-demand Output],Table1[NAICS],'Government Expend'!$M29,Table1[State],'Government Expend'!$O$1,Table1[Size],'Government Expend'!$O$2,Table1[Mult],Multiplier)*$N29*Installation!$H$31 -> 134117.0159 | P29: =SUMIFS(Table1[Final-demand Earnings],Table1[NAICS],'Government Expend'!$M29,Table1[State],'Government Expend'!$O$1,Table1[Size],'Government Expend'!$O$2,Table1[Mult],Multiplier)*$N29*Installation!$H$31 -> 49119.85114 | Q29: =SUMIFS(Table1[Final-demand Employment],Table1[NAICS],'Government Expend'!$M29,Table1[State],'Government Expend'!$O$1,Table1[Size],'Government Expend'!$O$2,Table1[Mult],Multiplier)*$N29*Installation!$H$31/1000000 -> 1.052345849 | R29: =SUMIFS(Table1[Final-demand Value-added],Table1[NAICS],'Government Expend'!$M29,Table1[State],'Government Expend'!$O$1,Table1[Size],'Government Expend'!$O$2,Table1[Mult],Multiplier)*$N29*Installation!$H$31 -> 83928.21385 | S29: =SUMIFS(Table1[Final-demand Output],Table1[NAICS],'Government Expend'!$M29,Table1[State],'Government Expend'!$O$1,Table1[Size],'Government Expend'!$O$2,Table1[Mult],Multiplier)*$N29*'O&M'!$L$68 -> 6483.057635 | T29: =SUMIFS(Table1[Final-demand Earnings],Table1[NAICS],'Government Expend'!$M29,Table1[State],'Government Expend'!$O$1,Table1[Size],'Government Expend'!$O$2,Table1[Mult],Multiplier)*$N29*'O&M'!$L$68 -> 2374.395402 | U29: =SUMIFS(Table1[Final-demand Employment],Table1[NAICS],'Government Expend'!$M29,Table1[State],'Government Expend'!$O$1,Table1[Size],'Government Expend'!$O$2,Table1[Mult],Multiplier)*$N29*'O&M'!$L$68/1000000 -> 0.05086915145 | V29: =SUMIFS(Table1[Final-demand Value-added],Table1[NAICS],'Government Expend'!$M29,Table1[State],'Government Expend'!$O$1,Table1[Size],'Government Expend'!$O$2,Table1[Mult],Multiplier)*$N29*'O&M'!$L$68 -> 4056.990412
A30: 52A000 | B30: Interest on general debt | C30: 0.02852228298 | D30: 0.01590572296 | E30: 0.05185794869 | F30: 0.02795551793 | G30: 0.03006334485 | H30: 0.02384047372 | I30: 0.02308552877 | J30: 0.02019532241 | L30: 25 | M30: 52A000 | N30: =INDEX($A$6:$J$39,L30,MATCH($O$1,$A$6:$J$6,0)) -> 0.02795551793 | O30: =SUMIFS(Table1[Final-demand Output],Table1[NAICS],'Government Expend'!$M30,Table1[State],'Government Expend'!$O$1,Table1[Size],'Government Expend'!$O$2,Table1[Mult],Multiplier)*$N30*Installation!$H$31 -> 233085.6876 | P30: =SUMIFS(Table1[Final-demand Earnings],Table1[NAICS],'Government Expend'!$M30,Table1[State],'Government Expend'!$O$1,Table1[Size],'Government Expend'!$O$2,Table1[Mult],Multiplier)*$N30*Installation!$H$31 -> 49689.27031 | Q30: =SUMIFS(Table1[Final-demand Employment],Table1[NAICS],'Government Expend'!$M30,Table1[State],'Government Expend'!$O$1,Table1[Size],'Government Expend'!$O$2,Table1[Mult],Multiplier)*$N30*Installation!$H$31/1000000 -> 0.8462635717 | R30: =SUMIFS(Table1[Final-demand Value-added],Table1[NAICS],'Government Expend'!$M30,Table1[State],'Government Expend'!$O$1,Table1[Size],'Government Expend'!$O$2,Table1[Mult],Multiplier)*$N30*Installation!$H$31 -> 161296.8814 | S30: =SUMIFS(Table1[Final-demand Output],Table1[NAICS],'Government Expend'!$M30,Table1[State],'Government Expend'!$O$1,Table1[Size],'Government Expend'!$O$2,Table1[Mult],Multiplier)*$N30*'O&M'!$L$68 -> 11267.08596 | T30: =SUMIFS(Table1[Final-demand Earnings],Table1[NAICS],'Government Expend'!$M30,Table1[State],'Government Expend'!$O$1,Table1[Size],'Government Expend'!$O$2,Table1[Mult],Multiplier)*$N30*'O&M'!$L$68 -> 2401.92045 | U30: =SUMIFS(Table1[Final-demand Employment],Table1[NAICS],'Government Expend'!$M30,Table1[State],'Government Expend'!$O$1,Table1[Size],'Government Expend'!$O$2,Table1[Mult],Multiplier)*$N30*'O&M'!$L$68/1000000 -> 0.04090737833 | V30: =SUMIFS(Table1[Final-demand Value-added],Table1[NAICS],'Government Expend'!$M30,Table1[State],'Government Expend'!$O$1,Table1[Size],'Government Expend'!$O$2,Table1[Mult],Multiplier)*$N30*'O&M'!$L$68 -> 7796.900129
A31: 561400 | B31: Miscellaneous commercial activities | C31: 0.002085209187 | D31: 0.001725108251 | E31: 0.0002221914144 | F31: 0.000263178287 | G31: 0.0008481985377 | H31: 0.0002709829252 | I31: 0.0005404790416 | J31: 0.0002205678029 | L31: 26 | M31: 561400 | N31: =INDEX($A$6:$J$39,L31,MATCH($O$1,$A$6:$J$6,0)) -> 0.000263178287 | O31: =SUMIFS(Table1[Final-demand Output],Table1[NAICS],'Government Expend'!$M31,Table1[State],'Government Expend'!$O$1,Table1[Size],'Government Expend'!$O$2,Table1[Mult],Multiplier)*$N31*Installation!$H$31 -> 2440.610876 | P31: =SUMIFS(Table1[Final-demand Earnings],Table1[NAICS],'Government Expend'!$M31,Table1[State],'Government Expend'!$O$1,Table1[Size],'Government Expend'!$O$2,Table1[Mult],Multiplier)*$N31*Installation!$H$31 -> 802.9012689 | Q31: =SUMIFS(Table1[Final-demand Employment],Table1[NAICS],'Government Expend'!$M31,Table1[State],'Government Expend'!$O$1,Table1[Size],'Government Expend'!$O$2,Table1[Mult],Multiplier)*$N31*Installation!$H$31/1000000 -> 0.01989471046 | R31: =SUMIFS(Table1[Final-demand Value-added],Table1[NAICS],'Government Expend'!$M31,Table1[State],'Government Expend'!$O$1,Table1[Size],'Government Expend'!$O$2,Table1[Mult],Multiplier)*$N31*Installation!$H$31 -> 1408.762394 | S31: =SUMIFS(Table1[Final-demand Output],Table1[NAICS],'Government Expend'!$M31,Table1[State],'Government Expend'!$O$1,Table1[Size],'Government Expend'!$O$2,Table1[Mult],Multiplier)*$N31*'O&M'!$L$68 -> 117.9762379 | T31: =SUMIFS(Table1[Final-demand Earnings],Table1[NAICS],'Government Expend'!$M31,Table1[State],'Government Expend'!$O$1,Table1[Size],'Government Expend'!$O$2,Table1[Mult],Multiplier)*$N31*'O&M'!$L$68 -> 38.81129599 | U31: =SUMIFS(Table1[Final-demand Employment],Table1[NAICS],'Government Expend'!$M31,Table1[State],'Government Expend'!$O$1,Table1[Size],'Government Expend'!$O$2,Table1[Mult],Multiplier)*$N31*'O&M'!$L$68/1000000 -> 0.0009616867304 | V31: =SUMIFS(Table1[Final-demand Value-added],Table1[NAICS],'Government Expend'!$M31,Table1[State],'Government Expend'!$O$1,Table1[Size],'Government Expend'!$O$2,Table1[Mult],Multiplier)*$N31*'O&M'!$L$68 -> 68.09790488
A32: 561400 | B32: Other and unallocable | C32: 0.03527230331 | D32: 0.03354707753 | E32: 0.06783841086 | F32: 0.04336818954 | G32: 0.04073585566 | H32: 0.03317042528 | I32: 0.02273985446 | J32: 0.01959644375 | L32: 27 | M32: 561400 | N32: =INDEX($A$6:$J$39,L32,MATCH($O$1,$A$6:$J$6,0)) -> 0.04336818954 | O32: =SUMIFS(Table1[Final-demand Output],Table1[NAICS],'Government Expend'!$M32,Table1[State],'Government Expend'!$O$1,Table1[Size],'Government Expend'!$O$2,Table1[Mult],Multiplier)*$N32*Installation!$H$31 -> 402179.36 | P32: =SUMIFS(Table1[Final-demand Earnings],Table1[NAICS],'Government Expend'!$M32,Table1[State],'Government Expend'!$O$1,Table1[Size],'Government Expend'!$O$2,Table1[Mult],Multiplier)*$N32*Installation!$H$31 -> 132307.1702 | Q32: =SUMIFS(Table1[Final-demand Employment],Table1[NAICS],'Government Expend'!$M32,Table1[State],'Government Expend'!$O$1,Table1[Size],'Government Expend'!$O$2,Table1[Mult],Multiplier)*$N32*Installation!$H$31/1000000 -> 3.278376737 | R32: =SUMIFS(Table1[Final-demand Value-added],Table1[NAICS],'Government Expend'!$M32,Table1[State],'Government Expend'!$O$1,Table1[Size],'Government Expend'!$O$2,Table1[Mult],Multiplier)*$N32*Installation!$H$31 -> 232144.8141 | S32: =SUMIFS(Table1[Final-demand Output],Table1[NAICS],'Government Expend'!$M32,Table1[State],'Government Expend'!$O$1,Table1[Size],'Government Expend'!$O$2,Table1[Mult],Multiplier)*$N32*'O&M'!$L$68 -> 19440.87372 | T32: =SUMIFS(Table1[Final-demand Earnings],Table1[NAICS],'Government Expend'!$M32,Table1[State],'Government Expend'!$O$1,Table1[Size],'Government Expend'!$O$2,Table1[Mult],Multiplier)*$N32*'O&M'!$L$68 -> 6395.571837 | U32: =SUMIFS(Table1[Final-demand Employment],Table1[NAICS],'Government Expend'!$M32,Table1[State],'Government Expend'!$O$1,Table1[Size],'Government Expend'!$O$2,Table1[Mult],Multiplier)*$N32*'O&M'!$L$68/1000000 -> 0.158472847 | V32: =SUMIFS(Table1[Final-demand Value-added],Table1[NAICS],'Government Expend'!$M32,Table1[State],'Government Expend'!$O$1,Table1[Size],'Government Expend'!$O$2,Table1[Mult],Multiplier)*$N32*'O&M'!$L$68 -> 11221.60525
A33: 221300 | B33: Water supply | C33: 0.01982671832 | D33: 0.01656118878 | E33: 0.01879050722 | F33: 0.01320326088 | G33: 0.01776223255 | H33: 0.01272519106 | I33: 0.01393224137 | J33: 0.01186119732 | L33: 28 | M33: 221300 | N33: =INDEX($A$6:$J$39,L33,MATCH($O$1,$A$6:$J$6,0)) -> 0.01320326088 | O33: =SUMIFS(Table1[Final-demand Output],Table1[NAICS],'Government Expend'!$M33,Table1[State],'Government Expend'!$O$1,Table1[Size],'Government Expend'!$O$2,Table1[Mult],Multiplier)*$N33*Installation!$H$31 -> 110375.4752 | P33: =SUMIFS(Table1[Final-demand Earnings],Table1[NAICS],'Government Expend'!$M33,Table1[State],'Government Expend'!$O$1,Table1[Size],'Government Expend'!$O$2,Table1[Mult],Multiplier)*$N33*Installation!$H$31 -> 18132.24454 | Q33: =SUMIFS(Table1[Final-demand Employment],Table1[NAICS],'Government Expend'!$M33,Table1[State],'Government Expend'!$O$1,Table1[Size],'Government Expend'!$O$2,Table1[Mult],Multiplier)*$N33*Installation!$H$31/1000000 -> 0.289638502 | R33: =SUMIFS(Table1[Final-demand Value-added],Table1[NAICS],'Government Expend'!$M33,Table1[State],'Government Expend'!$O$1,Table1[Size],'Government Expend'!$O$2,Table1[Mult],Multiplier)*$N33*Installation!$H$31 -> 70609.97448 | S33: =SUMIFS(Table1[Final-demand Output],Table1[NAICS],'Government Expend'!$M33,Table1[State],'Government Expend'!$O$1,Table1[Size],'Government Expend'!$O$2,Table1[Mult],Multiplier)*$N33*'O&M'!$L$68 -> 5335.419686 | T33: =SUMIFS(Table1[Final-demand Earnings],Table1[NAICS],'Government Expend'!$M33,Table1[State],'Government Expend'!$O$1,Table1[Size],'Government Expend'!$O$2,Table1[Mult],Multiplier)*$N33*'O&M'!$L$68 -> 876.4912164 | U33: =SUMIFS(Table1[Final-demand Employment],Table1[NAICS],'Government Expend'!$M33,Table1[State],'Government Expend'!$O$1,Table1[Size],'Government Expend'!$O$2,Table1[Mult],Multiplier)*$N33*'O&M'!$L$68/1000000 -> 0.014000782 | V33: =SUMIFS(Table1[Final-demand Value-added],Table1[NAICS],'Government Expend'!$M33,Table1[State],'Government Expend'!$O$1,Table1[Size],'Government Expend'!$O$2,Table1[Mult],Multiplier)*$N33*'O&M'!$L$68 -> 3413.202501
A34: 2211A0 | B34: Electric power | C34: 0.02010687324 | D34: 0.01377944538 | E34: 0.006598049453 | F34: 0.01979816373 | G34: 0.0135284459 | H34: 0.02088844758 | I34: 0.00893178407 | J34: 0.01898296584 | L34: 29 | M34: 2211A0 | N34: =INDEX($A$6:$J$39,L34,MATCH($O$1,$A$6:$J$6,0)) -> 0.01979816373 | O34: =SUMIFS(Table1[Final-demand Output],Table1[NAICS],'Government Expend'!$M34,Table1[State],'Government Expend'!$O$1,Table1[Size],'Government Expend'!$O$2,Table1[Mult],Multiplier)*$N34*Installation!$H$31 -> 168552.9404 | P34: =SUMIFS(Table1[Final-demand Earnings],Table1[NAICS],'Government Expend'!$M34,Table1[State],'Government Expend'!$O$1,Table1[Size],'Government Expend'!$O$2,Table1[Mult],Multiplier)*$N34*Installation!$H$31 -> 26052.15335 | Q34: =SUMIFS(Table1[Final-demand Employment],Table1[NAICS],'Government Expend'!$M34,Table1[State],'Government Expend'!$O$1,Table1[Size],'Government Expend'!$O$2,Table1[Mult],Multiplier)*$N34*Installation!$H$31/1000000 -> 0.2953466371 | R34: =SUMIFS(Table1[Final-demand Value-added],Table1[NAICS],'Government Expend'!$M34,Table1[State],'Government Expend'!$O$1,Table1[Size],'Government Expend'!$O$2,Table1[Mult],Multiplier)*$N34*Installation!$H$31 -> 97723.64849 | S34: =SUMIFS(Table1[Final-demand Output],Table1[NAICS],'Government Expend'!$M34,Table1[State],'Government Expend'!$O$1,Table1[Size],'Government Expend'!$O$2,Table1[Mult],Multiplier)*$N34*'O&M'!$L$68 -> 8147.649422 | T34: =SUMIFS(Table1[Final-demand Earnings],Table1[NAICS],'Government Expend'!$M34,Table1[State],'Government Expend'!$O$1,Table1[Size],'Government Expend'!$O$2,Table1[Mult],Multiplier)*$N34*'O&M'!$L$68 -> 1259.330224 | U34: =SUMIFS(Table1[Final-demand Employment],Table1[NAICS],'Government Expend'!$M34,Table1[State],'Government Expend'!$O$1,Table1[Size],'Government Expend'!$O$2,Table1[Mult],Multiplier)*$N34*'O&M'!$L$68/1000000 -> 0.01427670649 | V34: =SUMIFS(Table1[Final-demand Value-added],Table1[NAICS],'Government Expend'!$M34,Table1[State],'Government Expend'!$O$1,Table1[Size],'Government Expend'!$O$2,Table1[Mult],Multiplier)*$N34*'O&M'!$L$68 -> 4723.845376
A35: 221200 | B35: Gas supply | C35: 0.001925680774 | D35: 0.00165903016 | E35: 0.0004974097516 | F35: 0.004771510605 | G35: 0 | H35: 0.001345171233 | I35: 0.0002967207315 | J35: 2.179823587e-05 | L35: 30 | M35: 221200 | N35: =INDEX($A$6:$J$39,L35,MATCH($O$1,$A$6:$J$6,0)) -> 0.004771510605 | O35: =SUMIFS(Table1[Final-demand Output],Table1[NAICS],'Government Expend'!$M35,Table1[State],'Government Expend'!$O$1,Table1[Size],'Government Expend'!$O$2,Table1[Mult],Multiplier)*$N35*Installation!$H$31 -> 33829.58232 | P35: =SUMIFS(Table1[Final-demand Earnings],Table1[NAICS],'Government Expend'!$M35,Table1[State],'Government Expend'!$O$1,Table1[Size],'Government Expend'!$O$2,Table1[Mult],Multiplier)*$N35*Installation!$H$31 -> 0 | Q35: =SUMIFS(Table1[Final-demand Employment],Table1[NAICS],'Government Expend'!$M35,Table1[State],'Government Expend'!$O$1,Table1[Size],'Government Expend'!$O$2,Table1[Mult],Multiplier)*$N35*Installation!$H$31/1000000 -> 0 | R35: =SUMIFS(Table1[Final-demand Value-added],Table1[NAICS],'Government Expend'!$M35,Table1[State],'Government Expend'!$O$1,Table1[Size],'Government Expend'!$O$2,Table1[Mult],Multiplier)*$N35*Installation!$H$31 -> 0 | S35: =SUMIFS(Table1[Final-demand Output],Table1[NAICS],'Government Expend'!$M35,Table1[State],'Government Expend'!$O$1,Table1[Size],'Government Expend'!$O$2,Table1[Mult],Multiplier)*$N35*'O&M'!$L$68 -> 1635.281925 | T35: =SUMIFS(Table1[Final-demand Earnings],Table1[NAICS],'Government Expend'!$M35,Table1[State],'Government Expend'!$O$1,Table1[Size],'Government Expend'!$O$2,Table1[Mult],Multiplier)*$N35*'O&M'!$L$68 -> 0 | U35: =SUMIFS(Table1[Final-demand Employment],Table1[NAICS],'Government Expend'!$M35,Table1[State],'Government Expend'!$O$1,Table1[Size],'Government Expend'!$O$2,Table1[Mult],Multiplier)*$N35*'O&M'!$L$68/1000000 -> 0 | V35: =SUMIFS(Table1[Final-demand Value-added],Table1[NAICS],'Government Expend'!$M35,Table1[State],'Government Expend'!$O$1,Table1[Size],'Government Expend'!$O$2,Table1[Mult],Multiplier)*$N35*'O&M'!$L$68 -> 0
A36: 485A00 | B36: Transit | C36: 0.02059465732 | D36: 0.003096135155 | E36: 0.02662244067 | F36: 0.003875985379 | G36: 0.006519617461 | H36: 0.008509716051 | I36: 0.005862506002 | J36: 0.005622226385 | L36: 31 | M36: 485A00 | N36: =INDEX($A$6:$J$39,L36,MATCH($O$1,$A$6:$J$6,0)) -> 0.003875985379 | O36: =SUMIFS(Table1[Final-demand Output],Table1[NAICS],'Government Expend'!$M36,Table1[State],'Government Expend'!$O$1,Table1[Size],'Government Expend'!$O$2,Table1[Mult],Multiplier)*$N36*Installation!$H$31 -> 35647.56032 | P36: =SUMIFS(Table1[Final-demand Earnings],Table1[NAICS],'Government Expend'!$M36,Table1[State],'Government Expend'!$O$1,Table1[Size],'Government Expend'!$O$2,Table1[Mult],Multiplier)*$N36*Installation!$H$31 -> 10445.29577 | Q36: =SUMIFS(Table1[Final-demand Employment],Table1[NAICS],'Government Expend'!$M36,Table1[State],'Government Expend'!$O$1,Table1[Size],'Government Expend'!$O$2,Table1[Mult],Multiplier)*$N36*Installation!$H$31/1000000 -> 0.8820188022 | R36: =SUMIFS(Table1[Final-demand Value-added],Table1[NAICS],'Government Expend'!$M36,Table1[State],'Government Expend'!$O$1,Table1[Size],'Government Expend'!$O$2,Table1[Mult],Multiplier)*$N36*Installation!$H$31 -> 14734.98446 | S36: =SUMIFS(Table1[Final-demand Output],Table1[NAICS],'Government Expend'!$M36,Table1[State],'Government Expend'!$O$1,Table1[Size],'Government Expend'!$O$2,Table1[Mult],Multiplier)*$N36*'O&M'!$L$68 -> 1723.160827 | T36: =SUMIFS(Table1[Final-demand Earnings],Table1[NAICS],'Government Expend'!$M36,Table1[State],'Government Expend'!$O$1,Table1[Size],'Government Expend'!$O$2,Table1[Mult],Multiplier)*$N36*'O&M'!$L$68 -> 504.9132211 | U36: =SUMIFS(Table1[Final-demand Employment],Table1[NAICS],'Government Expend'!$M36,Table1[State],'Government Expend'!$O$1,Table1[Size],'Government Expend'!$O$2,Table1[Mult],Multiplier)*$N36*'O&M'!$L$68/1000000 -> 0.0426357438 | V36: =SUMIFS(Table1[Final-demand Value-added],Table1[NAICS],'Government Expend'!$M36,Table1[State],'Government Expend'!$O$1,Table1[Size],'Government Expend'!$O$2,Table1[Mult],Multiplier)*$N36*'O&M'!$L$68 -> 712.2716894
A37: 4B0000 | B37: Liquor store expenditure | C37: 0.002214927457 | D37: 0.006396193603 | E37: 0 | F37: 0 | G37: 0.008767092662 | H37: 0.003538295284 | I37: 0.007470258527 | J37: 0 | L37: 32 | M37: 4B0000 | N37: =INDEX($A$6:$J$39,L37,MATCH($O$1,$A$6:$J$6,0)) -> 0 | O37: =SUMIFS(Table1[Final-demand Output],Table1[NAICS],'Government Expend'!$M37,Table1[State],'Government Expend'!$O$1,Table1[Size],'Government Expend'!$O$2,Table1[Mult],Multiplier)*$N37*Installation!$H$31 -> 0 | P37: =SUMIFS(Table1[Final-demand Earnings],Table1[NAICS],'Government Expend'!$M37,Table1[State],'Government Expend'!$O$1,Table1[Size],'Government Expend'!$O$2,Table1[Mult],Multiplier)*$N37*Installation!$H$31 -> 0 | Q37: =SUMIFS(Table1[Final-demand Employment],Table1[NAICS],'Government Expend'!$M37,Table1[State],'Government Expend'!$O$1,Table1[Size],'Government Expend'!$O$2,Table1[Mult],Multiplier)*$N37*Installation!$H$31/1000000 -> 0 | R37: =SUMIFS(Table1[Final-demand Value-added],Table1[NAICS],'Government Expend'!$M37,Table1[State],'Government Expend'!$O$1,Table1[Size],'Government Expend'!$O$2,Table1[Mult],Multiplier)*$N37*Installation!$H$31 -> 0 | S37: =SUMIFS(Table1[Final-demand Output],Table1[NAICS],'Government Expend'!$M37,Table1[State],'Government Expend'!$O$1,Table1[Size],'Government Expend'!$O$2,Table1[Mult],Multiplier)*$N37*'O&M'!$L$68 -> 0 | T37: =SUMIFS(Table1[Final-demand Earnings],Table1[NAICS],'Government Expend'!$M37,Table1[State],'Government Expend'!$O$1,Table1[Size],'Government Expend'!$O$2,Table1[Mult],Multiplier)*$N37*'O&M'!$L$68 -> 0 | U37: =SUMIFS(Table1[Final-demand Employment],Table1[NAICS],'Government Expend'!$M37,Table1[State],'Government Expend'!$O$1,Table1[Size],'Government Expend'!$O$2,Table1[Mult],Multiplier)*$N37*'O&M'!$L$68/1000000 -> 0 | V37: =SUMIFS(Table1[Final-demand Value-added],Table1[NAICS],'Government Expend'!$M37,Table1[State],'Government Expend'!$O$1,Table1[Size],'Government Expend'!$O$2,Table1[Mult],Multiplier)*$N37*'O&M'!$L$68 -> 0
A38: 524200 | B38: Insurance trust expenditure | C38: 0.09372963316 | D38: 0.07560225679 | E38: 0.1452001671 | F38: 0.04355950917 | G38: 0.0939071372 | H38: 0.08468026263 | I38: 0.1315943143 | J38: 0.1018131503 | L38: 33 | M38: 524200 | N38: =INDEX($A$6:$J$39,L38,MATCH($O$1,$A$6:$J$6,0)) -> 0.04355950917 | O38: =SUMIFS(Table1[Final-demand Output],Table1[NAICS],'Government Expend'!$M38,Table1[State],'Government Expend'!$O$1,Table1[Size],'Government Expend'!$O$2,Table1[Mult],Multiplier)*$N38*Installation!$H$31 -> 441322.3769 | P38: =SUMIFS(Table1[Final-demand Earnings],Table1[NAICS],'Government Expend'!$M38,Table1[State],'Government Expend'!$O$1,Table1[Size],'Government Expend'!$O$2,Table1[Mult],Multiplier)*$N38*Installation!$H$31 -> 95676.46772 | Q38: =SUMIFS(Table1[Final-demand Employment],Table1[NAICS],'Government Expend'!$M38,Table1[State],'Government Expend'!$O$1,Table1[Size],'Government Expend'!$O$2,Table1[Mult],Multiplier)*$N38*Installation!$H$31/1000000 -> 1.766308657 | R38: =SUMIFS(Table1[Final-demand Value-added],Table1[NAICS],'Government Expend'!$M38,Table1[State],'Government Expend'!$O$1,Table1[Size],'Government Expend'!$O$2,Table1[Mult],Multiplier)*$N38*Installation!$H$31 -> 202069.441 | S38: =SUMIFS(Table1[Final-demand Output],Table1[NAICS],'Government Expend'!$M38,Table1[State],'Government Expend'!$O$1,Table1[Size],'Government Expend'!$O$2,Table1[Mult],Multiplier)*$N38*'O&M'!$L$68 -> 21333.00078 | T38: =SUMIFS(Table1[Final-demand Earnings],Table1[NAICS],'Government Expend'!$M38,Table1[State],'Government Expend'!$O$1,Table1[Size],'Government Expend'!$O$2,Table1[Mult],Multiplier)*$N38*'O&M'!$L$68 -> 4624.887083 | U38: =SUMIFS(Table1[Final-demand Employment],Table1[NAICS],'Government Expend'!$M38,Table1[State],'Government Expend'!$O$1,Table1[Size],'Government Expend'!$O$2,Table1[Mult],Multiplier)*$N38*'O&M'!$L$68/1000000 -> 0.08538126758 | V38: =SUMIFS(Table1[Final-demand Value-added],Table1[NAICS],'Government Expend'!$M38,Table1[State],'Government Expend'!$O$1,Table1[Size],'Government Expend'!$O$2,Table1[Mult],Multiplier)*$N38*'O&M'!$L$68 -> 9767.797349
A39: 611B00 | B39: Libraries | C39: 0.003225389774 | D39: 0.00403762776 | E39: 0.005583483198 | F39: 0.005521034836 | G39: 0.003680778336 | H39: 0.003222911909 | I39: 0.003964900837 | J39: 0.004873252625 | L39: 34 | M39: 611B00 | N39: =INDEX($A$6:$J$39,L39,MATCH($O$1,$A$6:$J$6,0)) -> 0.005521034836 | O39: =SUMIFS(Table1[Final-demand Output],Table1[NAICS],'Government Expend'!$M39,Table1[State],'Government Expend'!$O$1,Table1[Size],'Government Expend'!$O$2,Table1[Mult],Multiplier)*$N39*Installation!$H$31 -> 49798.54123 | P39: =SUMIFS(Table1[Final-demand Earnings],Table1[NAICS],'Government Expend'!$M39,Table1[State],'Government Expend'!$O$1,Table1[Size],'Government Expend'!$O$2,Table1[Mult],Multiplier)*$N39*Installation!$H$31 -> 14561.43479 | Q39: =SUMIFS(Table1[Final-demand Employment],Table1[NAICS],'Government Expend'!$M39,Table1[State],'Government Expend'!$O$1,Table1[Size],'Government Expend'!$O$2,Table1[Mult],Multiplier)*$N39*Installation!$H$31/1000000 -> 0.6355165982 | R39: =SUMIFS(Table1[Final-demand Value-added],Table1[NAICS],'Government Expend'!$M39,Table1[State],'Government Expend'!$O$1,Table1[Size],'Government Expend'!$O$2,Table1[Mult],Multiplier)*$N39*Installation!$H$31 -> 26108.80915 | S39: =SUMIFS(Table1[Final-demand Output],Table1[NAICS],'Government Expend'!$M39,Table1[State],'Government Expend'!$O$1,Table1[Size],'Government Expend'!$O$2,Table1[Mult],Multiplier)*$N39*'O&M'!$L$68 -> 2407.202477 | T39: =SUMIFS(Table1[Final-demand Earnings],Table1[NAICS],'Government Expend'!$M39,Table1[State],'Government Expend'!$O$1,Table1[Size],'Government Expend'!$O$2,Table1[Mult],Multiplier)*$N39*'O&M'!$L$68 -> 703.882504 | U39: =SUMIFS(Table1[Final-demand Employment],Table1[NAICS],'Government Expend'!$M39,Table1[State],'Government Expend'!$O$1,Table1[Size],'Government Expend'!$O$2,Table1[Mult],Multiplier)*$N39*'O&M'!$L$68/1000000 -> 0.03072011934 | V39: =SUMIFS(Table1[Final-demand Value-added],Table1[NAICS],'Government Expend'!$M39,Table1[State],'Government Expend'!$O$1,Table1[Size],'Government Expend'!$O$2,Table1[Mult],Multiplier)*$N39*'O&M'!$L$68 -> 1262.068898
N40: =SUM(N7:N39) -> 0.9999999537 | O40: 8394562.022 | P40: 1963915.904 | Q40: 53.09921986 | R40: 3982791.802 | S40: 405783.1815 | T40: 94933.36776 | U40: 2.566753371 | V40: 192523.4365
C41: =SUM(C7:C40) -> 1.000000001 | D41: 0.9999999733 | E41: 0.9999999935 | F41: 0.9999999537 | G41: 1.000000028 | H41: 1.000000014 | I41: 1 | J41: 0.9999999845

Sheet Ag production
B2: Single cropping, three crop rotation
B3: Months of install Phase | D3: =Front!E18 -> 18
B4: State | D4: =state -> IN
B5: Size | D5: =size -> LT 50k
B6: Multiplier | D6: =Multiplier -> TypeII
B7: Ag Acres Displaced | D7: =Front!E17 -> 800
B8: Soil Productivity | D8: =soil -> Average
G9: Installation Phase | L9: O&M Phase
D10: ($/acre) | G10: Final-demand Output | H10: Final-demand Earnings | I10: Final-demand Employment | J10: Final-demand Value-added | L10: Final-demand Output | M10: Final-demand Earnings | N10: Final-demand Employment | O10: Final-demand Value-added
B11: Corn Production | C11: 1111C0 | D11: =(INDEX(lookups!$N$4:$Q$7,MATCH(B11,lookups!$N$4:$N$7,0),MATCH($D$8,lookups!$N$4:$Q$4,0)))*-1 -> -1028 | E11: =1/3 -> 0.3333333333 | G11: =(SUMIFS(Table1[Final-demand Output],Table1[NAICS],$C11,Table1[State],$D$4,Table1[Size_],$D$5,Table1[Mult],$D$6)*$D11*$E11*$D$7)*ROUNDUP(D3/12,0) -> -764722.3467 | H11: =(SUMIFS(Table1[Final-demand Earnings],Table1[NAICS],$C11,Table1[State],$D$4,Table1[Size_],$D$5,Table1[Mult],$D$6)*$D11*$E11*$D$7)*ROUNDUP(D3/12,0) -> -133612.5867 | I11: =(SUMIFS(Table1[Final-demand Employment],Table1[NAICS],$C11,Table1[State],$D$4,Table1[Size_],$D$5,Table1[Mult],$D$6)*$D11*$E11*$D$7/(1000000))*ROUNDUP(D3/12,0) -> -2.68809664 | J11: =(SUMIFS(Table1[Final-demand Value-added],Table1[NAICS],$C11,Table1[State],$D$4,Table1[Size_],$D$5,Table1[Mult],$D$6)*$D11*$E11*$D$7)*ROUNDUP(D3/12,0) -> -303794.56 | L11: =SUMIFS(Table1[Final-demand Output],Table1[NAICS],$C11,Table1[State],$D$4,Table1[Size_],$D$5,Table1[Mult],$D$6)*$D11*$E11*$D$7 -> -382361.1733 | M11: =SUMIFS(Table1[Final-demand Earnings],Table1[NAICS],$C11,Table1[State],$D$4,Table1[Size_],$D$5,Table1[Mult],$D$6)*$D11*$E11*$D$7 -> -66806.29333 | N11: =SUMIFS(Table1[Final-demand Employment],Table1[NAICS],$C11,Table1[State],$D$4,Table1[Size_],$D$5,Table1[Mult],$D$6)*$D11*$E11*$D$7/(1000000) -> -1.34404832 | O11: =SUMIFS(Table1[Final-demand Value-added],Table1[NAICS],$C11,Table1[State],$D$4,Table1[Size_],$D$5,Table1[Mult],$D$6)*$D11*$E11*$D$7 -> -151897.28
B12: Soy Production | C12: 1111C0 | D12: =(INDEX(lookups!$N$4:$Q$7,MATCH(B12,lookups!$N$4:$N$7,0),MATCH($D$8,lookups!$N$4:$Q$4,0)))*-1 -> -805 | E12: =1/3 -> 0.3333333333 | G12: =(SUMIFS(Table1[Final-demand Output],Table1[NAICS],$C12,Table1[State],$D$4,Table1[Size_],$D$5,Table1[Mult],$D$6)*$D12*$E12*$D$7)*ROUNDUP(D3/12,0) -> -598834.1333 | H12: =(SUMIFS(Table1[Final-demand Earnings],Table1[NAICS],$C12,Table1[State],$D$4,Table1[Size_],$D$5,Table1[Mult],$D$6)*$D12*$E12*$D$7)*ROUNDUP(D3/12,0) -> -104628.5333 | I12: =(SUMIFS(Table1[Final-demand Employment],Table1[NAICS],$C12,Table1[State],$D$4,Table1[Size_],$D$5,Table1[Mult],$D$6)*$D12*$E12*$D$7/(1000000))*ROUNDUP(D3/12,0) -> -2.1049784 | J12: =(SUMIFS(Table1[Final-demand Value-added],Table1[NAICS],$C12,Table1[State],$D$4,Table1[Size_],$D$5,Table1[Mult],$D$6)*$D12*$E12*$D$7)*ROUNDUP(D3/12,0) -> -237893.6 | L12: =SUMIFS(Table1[Final-demand Output],Table1[NAICS],$C12,Table1[State],$D$4,Table1[Size_],$D$5,Table1[Mult],$D$6)*$D12*$E12*$D$7 -> -299417.0667 | M12: =SUMIFS(Table1[Final-demand Earnings],Table1[NAICS],$C12,Table1[State],$D$4,Table1[Size_],$D$5,Table1[Mult],$D$6)*$D12*$E12*$D$7 -> -52314.26667 | N12: =SUMIFS(Table1[Final-demand Employment],Table1[NAICS],$C12,Table1[State],$D$4,Table1[Size_],$D$5,Table1[Mult],$D$6)*$D12*$E12*$D$7/(1000000) -> -1.0524892 | O12: =SUMIFS(Table1[Final-demand Value-added],Table1[NAICS],$C12,Table1[State],$D$4,Table1[Size_],$D$5,Table1[Mult],$D$6)*$D12*$E12*$D$7 -> -118946.8
B13: Wheat Production | C13: 1111C0 | D13: =(INDEX(lookups!$N$4:$Q$7,MATCH(B13,lookups!$N$4:$N$7,0),MATCH($D$8,lookups!$N$4:$Q$4,0)))*-1 -> -555 | E13: =1/3 -> 0.3333333333 | G13: =(SUMIFS(Table1[Final-demand Output],Table1[NAICS],$C13,Table1[State],$D$4,Table1[Size_],$D$5,Table1[Mult],$D$6)*$D13*$E13*$D$7)*ROUNDUP(D3/12,0) -> -412860.8 | H13: =(SUMIFS(Table1[Final-demand Earnings],Table1[NAICS],$C13,Table1[State],$D$4,Table1[Size_],$D$5,Table1[Mult],$D$6)*$D13*$E13*$D$7)*ROUNDUP(D3/12,0) -> -72135.2 | I13: =(SUMIFS(Table1[Final-demand Employment],Table1[NAICS],$C13,Table1[State],$D$4,Table1[Size_],$D$5,Table1[Mult],$D$6)*$D13*$E13*$D$7/(1000000))*ROUNDUP(D3/12,0) -> -1.4512584 | J13: =(SUMIFS(Table1[Final-demand Value-added],Table1[NAICS],$C13,Table1[State],$D$4,Table1[Size_],$D$5,Table1[Mult],$D$6)*$D13*$E13*$D$7)*ROUNDUP(D3/12,0) -> -164013.6 | L13: =SUMIFS(Table1[Final-demand Output],Table1[NAICS],$C13,Table1[State],$D$4,Table1[Size_],$D$5,Table1[Mult],$D$6)*$D13*$E13*$D$7 -> -206430.4 | M13: =SUMIFS(Table1[Final-demand Earnings],Table1[NAICS],$C13,Table1[State],$D$4,Table1[Size_],$D$5,Table1[Mult],$D$6)*$D13*$E13*$D$7 -> -36067.6 | N13: =SUMIFS(Table1[Final-demand Employment],Table1[NAICS],$C13,Table1[State],$D$4,Table1[Size_],$D$5,Table1[Mult],$D$6)*$D13*$E13*$D$7/(1000000) -> -0.7256292 | O13: =SUMIFS(Table1[Final-demand Value-added],Table1[NAICS],$C13,Table1[State],$D$4,Table1[Size_],$D$5,Table1[Mult],$D$6)*$D13*$E13*$D$7 -> -82006.8
D14: =SUMPRODUCT(D11:D13,E11:E13) -> -796 | E14: =ROUND(SUM(E11:E13),2) -> 1 | G14: =SUM(G11:G13) -> -1776417.28 | H14: =SUM(H11:H13) -> -310376.32 | I14: =SUM(I11:I13)/Inflation_Factor -> -5.775960609 | J14: =SUM(J11:J13) -> -705701.76 | L14: =SUM(L11:L13) -> -888208.64 | M14: =SUM(M11:M13) -> -155188.16 | N14: =SUM(N11:N13)/Inflation_Factor -> -2.887980305 | O14: =SUM(O11:O13) -> -352850.88
B16: Expected Ag Revenues | D16: =D14*D7 -> -636800

Sheet Households
B2: State | C2: =state -> IN
B3: Size | C3: =size -> LT 50k
B4: Multiplier | C4: =Multiplier -> TypeII
C6: Consumer Expenditures
B7: Installation | C7: ='O&M'!L67*(Front!E18/12) -> 2687299.839 | D7: ="over " & TEXT(Front!E18,"##") & " months" -> over 18 months
B8: O&M Phase | C8: ='O&M'!L67 -> 1791533.226
G9: Installation Phase | M9: O&M Phase
D11: Share | E11: Margins | G11: Final-demand Output | H11: Final-demand Earnings | I11: Final-demand Employment | J11: Final-demand Value-added | M11: Final-demand Output | N11: Final-demand Earnings | O11: Final-demand Employment | P11: Final-demand Value-added
B13: 441000 | C13: Motor vehicles and parts | D13: 0.03957948402 | E13: 1 | G13: =SUMIFS(Table1[Final-demand Output],Table1[NAICS],$B13,Table1[State],$C$2,Table1[Size_],$C$3,Table1[Mult],$C$4)*$D13*$E13*$C$7 -> 133643.7789 | H13: =SUMIFS(Table1[Final-demand Earnings],Table1[NAICS],$B13,Table1[State],$C$2,Table1[Size_],$C$3,Table1[Mult],$C$4)*$D13*$E13*$C$7 -> 38662.56556 | I13: =SUMIFS(Table1[Final-demand Employment],Table1[NAICS],$B13,Table1[State],$C$2,Table1[Size_],$C$3,Table1[Mult],$C$4)*$D13*$E13*$C$7/1000000 -> 0.7899926807 | J13: =SUMIFS(Table1[Final-demand Value-added],Table1[NAICS],$B13,Table1[State],$C$2,Table1[Size_],$C$3,Table1[Mult],$C$4)*$D13*$E13*$C$7 -> 92630.61444 | M13: =SUMIFS(Table1[Final-demand Output],Table1[NAICS],$B13,Table1[State],$C$2,Table1[Size_],$C$3,Table1[Mult],$C$4)*$D13*$E13*$C$8 -> 89095.8526 | N13: =SUMIFS(Table1[Final-demand Earnings],Table1[NAICS],$B13,Table1[State],$C$2,Table1[Size_],$C$3,Table1[Mult],$C$4)*$D13*$E13*$C$8 -> 25775.04371 | O13: =SUMIFS(Table1[Final-demand Employment],Table1[NAICS],$B13,Table1[State],$C$2,Table1[Size_],$C$3,Table1[Mult],$C$4)*$D13*$E13*$C$8/1000000 -> 0.5266617872 | P13: =SUMIFS(Table1[Final-demand Value-added],Table1[NAICS],$B13,Table1[State],$C$2,Table1[Size_],$C$3,Table1[Mult],$C$4)*$D13*$E13*$C$8 -> 61753.74296
B14: 4B0000 | C14: Other Retail | D14: 0.2924346282 | E14: 1 | G14: =SUMIFS(Table1[Final-demand Output],Table1[NAICS],$B14,Table1[State],$C$2,Table1[Size_],$C$3,Table1[Mult],$C$4)*$D14*$E14*$C$7 -> 1015566.27 | H14: =SUMIFS(Table1[Final-demand Earnings],Table1[NAICS],$B14,Table1[State],$C$2,Table1[Size_],$C$3,Table1[Mult],$C$4)*$D14*$E14*$C$7 -> 300355.5121 | I14: =SUMIFS(Table1[Final-demand Employment],Table1[NAICS],$B14,Table1[State],$C$2,Table1[Size_],$C$3,Table1[Mult],$C$4)*$D14*$E14*$C$7/1000000 -> 10.87833912 | J14: =SUMIFS(Table1[Final-demand Value-added],Table1[NAICS],$B14,Table1[State],$C$2,Table1[Size_],$C$3,Table1[Mult],$C$4)*$D14*$E14*$C$7 -> 617921.3478 | M14: =SUMIFS(Table1[Final-demand Output],Table1[NAICS],$B14,Table1[State],$C$2,Table1[Size_],$C$3,Table1[Mult],$C$4)*$D14*$E14*$C$8 -> 677044.1797 | N14: =SUMIFS(Table1[Final-demand Earnings],Table1[NAICS],$B14,Table1[State],$C$2,Table1[Size_],$C$3,Table1[Mult],$C$4)*$D14*$E14*$C$8 -> 200237.008 | O14: =SUMIFS(Table1[Final-demand Employment],Table1[NAICS],$B14,Table1[State],$C$2,Table1[Size_],$C$3,Table1[Mult],$C$4)*$D14*$E14*$C$8/1000000 -> 7.252226079 | P14: =SUMIFS(Table1[Final-demand Value-added],Table1[NAICS],$B14,Table1[State],$C$2,Table1[Size_],$C$3,Table1[Mult],$C$4)*$D14*$E14*$C$8 -> 411947.5652
B15: 531000 | C15: Housing | D15: 0.1595078963 | E15: 1 | G15: =SUMIFS(Table1[Final-demand Output],Table1[NAICS],$B15,Table1[State],$C$2,Table1[Size_],$C$3,Table1[Mult],$C$4)*$D15*$E15*$C$7 -> 500315.079 | H15: =SUMIFS(Table1[Final-demand Earnings],Table1[NAICS],$B15,Table1[State],$C$2,Table1[Size_],$C$3,Table1[Mult],$C$4)*$D15*$E15*$C$7 -> 77456.24981 | I15: =SUMIFS(Table1[Final-demand Employment],Table1[NAICS],$B15,Table1[State],$C$2,Table1[Size_],$C$3,Table1[Mult],$C$4)*$D15*$E15*$C$7/1000000 -> 2.038766801 | J15: =SUMIFS(Table1[Final-demand Value-added],Table1[NAICS],$B15,Table1[State],$C$2,Table1[Size_],$C$3,Table1[Mult],$C$4)*$D15*$E15*$C$7 -> 358947.7786 | M15: =SUMIFS(Table1[Final-demand Output],Table1[NAICS],$B15,Table1[State],$C$2,Table1[Size_],$C$3,Table1[Mult],$C$4)*$D15*$E15*$C$8 -> 333543.386 | N15: =SUMIFS(Table1[Final-demand Earnings],Table1[NAICS],$B15,Table1[State],$C$2,Table1[Size_],$C$3,Table1[Mult],$C$4)*$D15*$E15*$C$8 -> 51637.49987 | O15: =SUMIFS(Table1[Final-demand Employment],Table1[NAICS],$B15,Table1[State],$C$2,Table1[Size_],$C$3,Table1[Mult],$C$4)*$D15*$E15*$C$8/1000000 -> 1.359177867 | P15: =SUMIFS(Table1[Final-demand Value-added],Table1[NAICS],$B15,Table1[State],$C$2,Table1[Size_],$C$3,Table1[Mult],$C$4)*$D15*$E15*$C$8 -> 239298.519
B16: 221300 | C16: Water supply and sanitation (25) | D16: 0.007802223287 | E16: 1 | G16: =SUMIFS(Table1[Final-demand Output],Table1[NAICS],$B16,Table1[State],$C$2,Table1[Size_],$C$3,Table1[Mult],$C$4)*$D16*$E16*$C$7 -> 24722.08757 | H16: =SUMIFS(Table1[Final-demand Earnings],Table1[NAICS],$B16,Table1[State],$C$2,Table1[Size_],$C$3,Table1[Mult],$C$4)*$D16*$E16*$C$7 -> 4061.291122 | I16: =SUMIFS(Table1[Final-demand Employment],Table1[NAICS],$B16,Table1[State],$C$2,Table1[Size_],$C$3,Table1[Mult],$C$4)*$D16*$E16*$C$7/1000000 -> 0.06487372669 | J16: =SUMIFS(Table1[Final-demand Value-added],Table1[NAICS],$B16,Table1[State],$C$2,Table1[Size_],$C$3,Table1[Mult],$C$4)*$D16*$E16*$C$7 -> 15815.34276 | M16: =SUMIFS(Table1[Final-demand Output],Table1[NAICS],$B16,Table1[State],$C$2,Table1[Size_],$C$3,Table1[Mult],$C$4)*$D16*$E16*$C$8 -> 16481.39171 | N16: =SUMIFS(Table1[Final-demand Earnings],Table1[NAICS],$B16,Table1[State],$C$2,Table1[Size_],$C$3,Table1[Mult],$C$4)*$D16*$E16*$C$8 -> 2707.527414 | O16: =SUMIFS(Table1[Final-demand Employment],Table1[NAICS],$B16,Table1[State],$C$2,Table1[Size_],$C$3,Table1[Mult],$C$4)*$D16*$E16*$C$8/1000000 -> 0.04324915112 | P16: =SUMIFS(Table1[Final-demand Value-added],Table1[NAICS],$B16,Table1[State],$C$2,Table1[Size_],$C$3,Table1[Mult],$C$4)*$D16*$E16*$C$8 -> 10543.56184
B17: 2211A0 | C17: Electricity (27) | D17: 0.01398298319 | E17: 1 | G17: =SUMIFS(Table1[Final-demand Output],Table1[NAICS],$B17,Table1[State],$C$2,Table1[Size_],$C$3,Table1[Mult],$C$4)*$D17*$E17*$C$7 -> 45121.82333 | H17: =SUMIFS(Table1[Final-demand Earnings],Table1[NAICS],$B17,Table1[State],$C$2,Table1[Size_],$C$3,Table1[Mult],$C$4)*$D17*$E17*$C$7 -> 6974.192547 | I17: =SUMIFS(Table1[Final-demand Employment],Table1[NAICS],$B17,Table1[State],$C$2,Table1[Size_],$C$3,Table1[Mult],$C$4)*$D17*$E17*$C$7/1000000 -> 0.0790646473 | J17: =SUMIFS(Table1[Final-demand Value-added],Table1[NAICS],$B17,Table1[State],$C$2,Table1[Size_],$C$3,Table1[Mult],$C$4)*$D17*$E17*$C$7 -> 26160.73735 | M17: =SUMIFS(Table1[Final-demand Output],Table1[NAICS],$B17,Table1[State],$C$2,Table1[Size_],$C$3,Table1[Mult],$C$4)*$D17*$E17*$C$8 -> 30081.21556 | N17: =SUMIFS(Table1[Final-demand Earnings],Table1[NAICS],$B17,Table1[State],$C$2,Table1[Size_],$C$3,Table1[Mult],$C$4)*$D17*$E17*$C$8 -> 4649.461698 | O17: =SUMIFS(Table1[Final-demand Employment],Table1[NAICS],$B17,Table1[State],$C$2,Table1[Size_],$C$3,Table1[Mult],$C$4)*$D17*$E17*$C$8/1000000 -> 0.05270976487 | P17: =SUMIFS(Table1[Final-demand Value-added],Table1[NAICS],$B17,Table1[State],$C$2,Table1[Size_],$C$3,Table1[Mult],$C$4)*$D17*$E17*$C$8 -> 17440.49156
B18: 221200 | C18: Natural gas (28) | D18: 0.003951010136 | E18: 1 | G18: =SUMIFS(Table1[Final-demand Output],Table1[NAICS],$B18,Table1[State],$C$2,Table1[Size_],$C$3,Table1[Mult],$C$4)*$D18*$E18*$C$7 -> 10617.5489 | H18: =SUMIFS(Table1[Final-demand Earnings],Table1[NAICS],$B18,Table1[State],$C$2,Table1[Size_],$C$3,Table1[Mult],$C$4)*$D18*$E18*$C$7 -> 0 | I18: =SUMIFS(Table1[Final-demand Employment],Table1[NAICS],$B18,Table1[State],$C$2,Table1[Size_],$C$3,Table1[Mult],$C$4)*$D18*$E18*$C$7/1000000 -> 0 | J18: =SUMIFS(Table1[Final-demand Value-added],Table1[NAICS],$B18,Table1[State],$C$2,Table1[Size_],$C$3,Table1[Mult],$C$4)*$D18*$E18*$C$7 -> 0 | M18: =SUMIFS(Table1[Final-demand Output],Table1[NAICS],$B18,Table1[State],$C$2,Table1[Size_],$C$3,Table1[Mult],$C$4)*$D18*$E18*$C$8 -> 7078.365933 | N18: =SUMIFS(Table1[Final-demand Earnings],Table1[NAICS],$B18,Table1[State],$C$2,Table1[Size_],$C$3,Table1[Mult],$C$4)*$D18*$E18*$C$8 -> 0 | O18: =SUMIFS(Table1[Final-demand Employment],Table1[NAICS],$B18,Table1[State],$C$2,Table1[Size_],$C$3,Table1[Mult],$C$4)*$D18*$E18*$C$8/1000000 -> 0 | P18: =SUMIFS(Table1[Final-demand Value-added],Table1[NAICS],$B18,Table1[State],$C$2,Table1[Size_],$C$3,Table1[Mult],$C$4)*$D18*$E18*$C$8 -> 0
B19: 621100 | C19: Outpatient services | D19: 0.07864002372 | E19: 1 | G19: =SUMIFS(Table1[Final-demand Output],Table1[NAICS],$B19,Table1[State],$C$2,Table1[Size_],$C$3,Table1[Mult],$C$4)*$D19*$E19*$C$7 -> 275362.1079 | H19: =SUMIFS(Table1[Final-demand Earnings],Table1[NAICS],$B19,Table1[State],$C$2,Table1[Size_],$C$3,Table1[Mult],$C$4)*$D19*$E19*$C$7 -> 110271.6408 | I19: =SUMIFS(Table1[Final-demand Employment],Table1[NAICS],$B19,Table1[State],$C$2,Table1[Size_],$C$3,Table1[Mult],$C$4)*$D19*$E19*$C$7/1000000 -> 1.283804505 | J19: =SUMIFS(Table1[Final-demand Value-added],Table1[NAICS],$B19,Table1[State],$C$2,Table1[Size_],$C$3,Table1[Mult],$C$4)*$D19*$E19*$C$7 -> 180538.6407 | M19: =SUMIFS(Table1[Final-demand Output],Table1[NAICS],$B19,Table1[State],$C$2,Table1[Size_],$C$3,Table1[Mult],$C$4)*$D19*$E19*$C$8 -> 183574.7386 | N19: =SUMIFS(Table1[Final-demand Earnings],Table1[NAICS],$B19,Table1[State],$C$2,Table1[Size_],$C$3,Table1[Mult],$C$4)*$D19*$E19*$C$8 -> 73514.42718 | O19: =SUMIFS(Table1[Final-demand Employment],Table1[NAICS],$B19,Table1[State],$C$2,Table1[Size_],$C$3,Table1[Mult],$C$4)*$D19*$E19*$C$8/1000000 -> 0.8558696698 | P19: =SUMIFS(Table1[Final-demand Value-added],Table1[NAICS],$B19,Table1[State],$C$2,Table1[Size_],$C$3,Table1[Mult],$C$4)*$D19*$E19*$C$8 -> 120359.0938
B20: 622000 | C20: Hospital and nursing home services | D20: 0.09356680125 | E20: 1 | G20: =SUMIFS(Table1[Final-demand Output],Table1[NAICS],$B20,Table1[State],$C$2,Table1[Size_],$C$3,Table1[Mult],$C$4)*$D20*$E20*$C$7 -> 326598.0786 | H20: =SUMIFS(Table1[Final-demand Earnings],Table1[NAICS],$B20,Table1[State],$C$2,Table1[Size_],$C$3,Table1[Mult],$C$4)*$D20*$E20*$C$7 -> 99017.87925 | I20: =SUMIFS(Table1[Final-demand Employment],Table1[NAICS],$B20,Table1[State],$C$2,Table1[Size_],$C$3,Table1[Mult],$C$4)*$D20*$E20*$C$7/1000000 -> 1.739149227 | J20: =SUMIFS(Table1[Final-demand Value-added],Table1[NAICS],$B20,Table1[State],$C$2,Table1[Size_],$C$3,Table1[Mult],$C$4)*$D20*$E20*$C$7 -> 185086.4929 | M20: =SUMIFS(Table1[Final-demand Output],Table1[NAICS],$B20,Table1[State],$C$2,Table1[Size_],$C$3,Table1[Mult],$C$4)*$D20*$E20*$C$8 -> 217732.0524 | N20: =SUMIFS(Table1[Final-demand Earnings],Table1[NAICS],$B20,Table1[State],$C$2,Table1[Size_],$C$3,Table1[Mult],$C$4)*$D20*$E20*$C$8 -> 66011.9195 | O20: =SUMIFS(Table1[Final-demand Employment],Table1[NAICS],$B20,Table1[State],$C$2,Table1[Size_],$C$3,Table1[Mult],$C$4)*$D20*$E20*$C$8/1000000 -> 1.159432818 | P20: =SUMIFS(Table1[Final-demand Value-added],Table1[NAICS],$B20,Table1[State],$C$2,Table1[Size_],$C$3,Table1[Mult],$C$4)*$D20*$E20*$C$8 -> 123390.9953
B21: 811100 | C21: Motor vehicle services | D21: 0.02147631105 | E21: 1 | G21: =SUMIFS(Table1[Final-demand Output],Table1[NAICS],$B21,Table1[State],$C$2,Table1[Size_],$C$3,Table1[Mult],$C$4)*$D21*$E21*$C$7 -> 77699.39857 | H21: =SUMIFS(Table1[Final-demand Earnings],Table1[NAICS],$B21,Table1[State],$C$2,Table1[Size_],$C$3,Table1[Mult],$C$4)*$D21*$E21*$C$7 -> 30195.59187 | I21: =SUMIFS(Table1[Final-demand Employment],Table1[NAICS],$B21,Table1[State],$C$2,Table1[Size_],$C$3,Table1[Mult],$C$4)*$D21*$E21*$C$7/1000000 -> 0.7194884663 | J21: =SUMIFS(Table1[Final-demand Value-added],Table1[NAICS],$B21,Table1[State],$C$2,Table1[Size_],$C$3,Table1[Mult],$C$4)*$D21*$E21*$C$7 -> 47024.78642 | M21: =SUMIFS(Table1[Final-demand Output],Table1[NAICS],$B21,Table1[State],$C$2,Table1[Size_],$C$3,Table1[Mult],$C$4)*$D21*$E21*$C$8 -> 51799.59905 | N21: =SUMIFS(Table1[Final-demand Earnings],Table1[NAICS],$B21,Table1[State],$C$2,Table1[Size_],$C$3,Table1[Mult],$C$4)*$D21*$E21*$C$8 -> 20130.39458 | O21: =SUMIFS(Table1[Final-demand Employment],Table1[NAICS],$B21,Table1[State],$C$2,Table1[Size_],$C$3,Table1[Mult],$C$4)*$D21*$E21*$C$8/1000000 -> 0.4796589776 | P21: =SUMIFS(Table1[Final-demand Value-added],Table1[NAICS],$B21,Table1[State],$C$2,Table1[Size_],$C$3,Table1[Mult],$C$4)*$D21*$E21*$C$8 -> 31349.85761
B22: 485A00 | C22: Public transportation | D22: 0.01102043842 | E22: 1 | G22: =SUMIFS(Table1[Final-demand Output],Table1[NAICS],$B22,Table1[State],$C$2,Table1[Size_],$C$3,Table1[Mult],$C$4)*$D22*$E22*$C$7 -> 38416.86649 | H22: =SUMIFS(Table1[Final-demand Earnings],Table1[NAICS],$B22,Table1[State],$C$2,Table1[Size_],$C$3,Table1[Mult],$C$4)*$D22*$E22*$C$7 -> 11256.74603 | I22: =SUMIFS(Table1[Final-demand Employment],Table1[NAICS],$B22,Table1[State],$C$2,Table1[Size_],$C$3,Table1[Mult],$C$4)*$D22*$E22*$C$7/1000000 -> 0.9505390625 | J22: =SUMIFS(Table1[Final-demand Value-added],Table1[NAICS],$B22,Table1[State],$C$2,Table1[Size_],$C$3,Table1[Mult],$C$4)*$D22*$E22*$C$7 -> 15879.68225 | M22: =SUMIFS(Table1[Final-demand Output],Table1[NAICS],$B22,Table1[State],$C$2,Table1[Size_],$C$3,Table1[Mult],$C$4)*$D22*$E22*$C$8 -> 25611.24433 | N22: =SUMIFS(Table1[Final-demand Earnings],Table1[NAICS],$B22,Table1[State],$C$2,Table1[Size_],$C$3,Table1[Mult],$C$4)*$D22*$E22*$C$8 -> 7504.497355 | O22: =SUMIFS(Table1[Final-demand Employment],Table1[NAICS],$B22,Table1[State],$C$2,Table1[Size_],$C$3,Table1[Mult],$C$4)*$D22*$E22*$C$8/1000000 -> 0.6336927083 | P22: =SUMIFS(Table1[Final-demand Value-added],Table1[NAICS],$B22,Table1[State],$C$2,Table1[Size_],$C$3,Table1[Mult],$C$4)*$D22*$E22*$C$8 -> 10586.45483
B23: 713900 | C23: Recreation services | D23: 0.03926963815 | E23: 1 | G23: =SUMIFS(Table1[Final-demand Output],Table1[NAICS],$B23,Table1[State],$C$2,Table1[Size_],$C$3,Table1[Mult],$C$4)*$D23*$E23*$C$7 -> 136597.1159 | H23: =SUMIFS(Table1[Final-demand Earnings],Table1[NAICS],$B23,Table1[State],$C$2,Table1[Size_],$C$3,Table1[Mult],$C$4)*$D23*$E23*$C$7 -> 37726.72198 | I23: =SUMIFS(Table1[Final-demand Employment],Table1[NAICS],$B23,Table1[State],$C$2,Table1[Size_],$C$3,Table1[Mult],$C$4)*$D23*$E23*$C$7/1000000 -> 1.753453614 | J23: =SUMIFS(Table1[Final-demand Value-added],Table1[NAICS],$B23,Table1[State],$C$2,Table1[Size_],$C$3,Table1[Mult],$C$4)*$D23*$E23*$C$7 -> 73859.95165 | M23: =SUMIFS(Table1[Final-demand Output],Table1[NAICS],$B23,Table1[State],$C$2,Table1[Size_],$C$3,Table1[Mult],$C$4)*$D23*$E23*$C$8 -> 91064.74393 | N23: =SUMIFS(Table1[Final-demand Earnings],Table1[NAICS],$B23,Table1[State],$C$2,Table1[Size_],$C$3,Table1[Mult],$C$4)*$D23*$E23*$C$8 -> 25151.14799 | O23: =SUMIFS(Table1[Final-demand Employment],Table1[NAICS],$B23,Table1[State],$C$2,Table1[Size_],$C$3,Table1[Mult],$C$4)*$D23*$E23*$C$8/1000000 -> 1.168969076 | P23: =SUMIFS(Table1[Final-demand Value-added],Table1[NAICS],$B23,Table1[State],$C$2,Table1[Size_],$C$3,Table1[Mult],$C$4)*$D23*$E23*$C$8 -> 49239.96776
B24: 722110 | C24: Food services and accommodations | D24: 0.06887512641 | E24: 1 | G24: =SUMIFS(Table1[Final-demand Output],Table1[NAICS],$B24,Table1[State],$C$2,Table1[Size_],$C$3,Table1[Mult],$C$4)*$D24*$E24*$C$7 -> 238763.6697 | H24: =SUMIFS(Table1[Final-demand Earnings],Table1[NAICS],$B24,Table1[State],$C$2,Table1[Size_],$C$3,Table1[Mult],$C$4)*$D24*$E24*$C$7 -> 65687.7724 | I24: =SUMIFS(Table1[Final-demand Employment],Table1[NAICS],$B24,Table1[State],$C$2,Table1[Size_],$C$3,Table1[Mult],$C$4)*$D24*$E24*$C$7/1000000 -> 2.758349685 | J24: =SUMIFS(Table1[Final-demand Value-added],Table1[NAICS],$B24,Table1[State],$C$2,Table1[Size_],$C$3,Table1[Mult],$C$4)*$D24*$E24*$C$7 -> 136298.8887 | M24: =SUMIFS(Table1[Final-demand Output],Table1[NAICS],$B24,Table1[State],$C$2,Table1[Size_],$C$3,Table1[Mult],$C$4)*$D24*$E24*$C$8 -> 159175.7798 | N24: =SUMIFS(Table1[Final-demand Earnings],Table1[NAICS],$B24,Table1[State],$C$2,Table1[Size_],$C$3,Table1[Mult],$C$4)*$D24*$E24*$C$8 -> 43791.84827 | O24: =SUMIFS(Table1[Final-demand Employment],Table1[NAICS],$B24,Table1[State],$C$2,Table1[Size_],$C$3,Table1[Mult],$C$4)*$D24*$E24*$C$8/1000000 -> 1.83889979 | P24: =SUMIFS(Table1[Final-demand Value-added],Table1[NAICS],$B24,Table1[State],$C$2,Table1[Size_],$C$3,Table1[Mult],$C$4)*$D24*$E24*$C$8 -> 90865.92579
B25: 52A000 | C25: Financial services | D25: 0.05277264536 | E25: 1 | G25: =SUMIFS(Table1[Final-demand Output],Table1[NAICS],$B25,Table1[State],$C$2,Table1[Size_],$C$3,Table1[Mult],$C$4)*$D25*$E25*$C$7 -> 166775.5235 | H25: =SUMIFS(Table1[Final-demand Earnings],Table1[NAICS],$B25,Table1[State],$C$2,Table1[Size_],$C$3,Table1[Mult],$C$4)*$D25*$E25*$C$7 -> 35553.25149 | I25: =SUMIFS(Table1[Final-demand Employment],Table1[NAICS],$B25,Table1[State],$C$2,Table1[Size_],$C$3,Table1[Mult],$C$4)*$D25*$E25*$C$7/1000000 -> 0.6055114394 | J25: =SUMIFS(Table1[Final-demand Value-added],Table1[NAICS],$B25,Table1[State],$C$2,Table1[Size_],$C$3,Table1[Mult],$C$4)*$D25*$E25*$C$7 -> 115409.7968 | M25: =SUMIFS(Table1[Final-demand Output],Table1[NAICS],$B25,Table1[State],$C$2,Table1[Size_],$C$3,Table1[Mult],$C$4)*$D25*$E25*$C$8 -> 111183.6823 | N25: =SUMIFS(Table1[Final-demand Earnings],Table1[NAICS],$B25,Table1[State],$C$2,Table1[Size_],$C$3,Table1[Mult],$C$4)*$D25*$E25*$C$8 -> 23702.16766 | O25: =SUMIFS(Table1[Final-demand Employment],Table1[NAICS],$B25,Table1[State],$C$2,Table1[Size_],$C$3,Table1[Mult],$C$4)*$D25*$E25*$C$8/1000000 -> 0.403674293 | P25: =SUMIFS(Table1[Final-demand Value-added],Table1[NAICS],$B25,Table1[State],$C$2,Table1[Size_],$C$3,Table1[Mult],$C$4)*$D25*$E25*$C$8 -> 76939.86454
B26: 524200 | C26: Insurance | D26: 0.02983739745 | E26: 1 | G26: =SUMIFS(Table1[Final-demand Output],Table1[NAICS],$B26,Table1[State],$C$2,Table1[Size_],$C$3,Table1[Mult],$C$4)*$D26*$E26*$C$7 -> 114580.1256 | H26: =SUMIFS(Table1[Final-demand Earnings],Table1[NAICS],$B26,Table1[State],$C$2,Table1[Size_],$C$3,Table1[Mult],$C$4)*$D26*$E26*$C$7 -> 24840.39393 | I26: =SUMIFS(Table1[Final-demand Employment],Table1[NAICS],$B26,Table1[State],$C$2,Table1[Size_],$C$3,Table1[Mult],$C$4)*$D26*$E26*$C$7/1000000 -> 0.4585851033 | J26: =SUMIFS(Table1[Final-demand Value-added],Table1[NAICS],$B26,Table1[State],$C$2,Table1[Size_],$C$3,Table1[Mult],$C$4)*$D26*$E26*$C$7 -> 52463.10442 | M26: =SUMIFS(Table1[Final-demand Output],Table1[NAICS],$B26,Table1[State],$C$2,Table1[Size_],$C$3,Table1[Mult],$C$4)*$D26*$E26*$C$8 -> 76386.75043 | N26: =SUMIFS(Table1[Final-demand Earnings],Table1[NAICS],$B26,Table1[State],$C$2,Table1[Size_],$C$3,Table1[Mult],$C$4)*$D26*$E26*$C$8 -> 16560.26262 | O26: =SUMIFS(Table1[Final-demand Employment],Table1[NAICS],$B26,Table1[State],$C$2,Table1[Size_],$C$3,Table1[Mult],$C$4)*$D26*$E26*$C$8/1000000 -> 0.3057234022 | P26: =SUMIFS(Table1[Final-demand Value-added],Table1[NAICS],$B26,Table1[State],$C$2,Table1[Size_],$C$3,Table1[Mult],$C$4)*$D26*$E26*$C$8 -> 34975.40294
B27: 515200 | C27: Communication | D27: 0.01843963138 | E27: 1 | G27: =SUMIFS(Table1[Final-demand Output],Table1[NAICS],$B27,Table1[State],$C$2,Table1[Size_],$C$3,Table1[Mult],$C$4)*$D27*$E27*$C$7 -> 49552.81843 | H27: =SUMIFS(Table1[Final-demand Earnings],Table1[NAICS],$B27,Table1[State],$C$2,Table1[Size_],$C$3,Table1[Mult],$C$4)*$D27*$E27*$C$7 -> 0 | I27: =SUMIFS(Table1[Final-demand Employment],Table1[NAICS],$B27,Table1[State],$C$2,Table1[Size_],$C$3,Table1[Mult],$C$4)*$D27*$E27*$C$7/1000000 -> 0 | J27: =SUMIFS(Table1[Final-demand Value-added],Table1[NAICS],$B27,Table1[State],$C$2,Table1[Size_],$C$3,Table1[Mult],$C$4)*$D27*$E27*$C$7 -> 0 | M27: =SUMIFS(Table1[Final-demand Output],Table1[NAICS],$B27,Table1[State],$C$2,Table1[Size_],$C$3,Table1[Mult],$C$4)*$D27*$E27*$C$8 -> 33035.21228 | N27: =SUMIFS(Table1[Final-demand Earnings],Table1[NAICS],$B27,Table1[State],$C$2,Table1[Size_],$C$3,Table1[Mult],$C$4)*$D27*$E27*$C$8 -> 0 | O27: =SUMIFS(Table1[Final-demand Employment],Table1[NAICS],$B27,Table1[State],$C$2,Table1[Size_],$C$3,Table1[Mult],$C$4)*$D27*$E27*$C$8/1000000 -> 0 | P27: =SUMIFS(Table1[Final-demand Value-added],Table1[NAICS],$B27,Table1[State],$C$2,Table1[Size_],$C$3,Table1[Mult],$C$4)*$D27*$E27*$C$8 -> 0
B28: 611B00 | C28: Education services | D28: 0.02118832546 | E28: 1 | G28: =SUMIFS(Table1[Final-demand Output],Table1[NAICS],$B28,Table1[State],$C$2,Table1[Size_],$C$3,Table1[Mult],$C$4)*$D28*$E28*$C$7 -> 72438.28381 | H28: =SUMIFS(Table1[Final-demand Earnings],Table1[NAICS],$B28,Table1[State],$C$2,Table1[Size_],$C$3,Table1[Mult],$C$4)*$D28*$E28*$C$7 -> 21181.4507 | I28: =SUMIFS(Table1[Final-demand Employment],Table1[NAICS],$B28,Table1[State],$C$2,Table1[Size_],$C$3,Table1[Mult],$C$4)*$D28*$E28*$C$7/1000000 -> 0.9244393624 | J28: =SUMIFS(Table1[Final-demand Value-added],Table1[NAICS],$B28,Table1[State],$C$2,Table1[Size_],$C$3,Table1[Mult],$C$4)*$D28*$E28*$C$7 -> 37978.56886 | M28: =SUMIFS(Table1[Final-demand Output],Table1[NAICS],$B28,Table1[State],$C$2,Table1[Size_],$C$3,Table1[Mult],$C$4)*$D28*$E28*$C$8 -> 48292.18921 | N28: =SUMIFS(Table1[Final-demand Earnings],Table1[NAICS],$B28,Table1[State],$C$2,Table1[Size_],$C$3,Table1[Mult],$C$4)*$D28*$E28*$C$8 -> 14120.96713 | O28: =SUMIFS(Table1[Final-demand Employment],Table1[NAICS],$B28,Table1[State],$C$2,Table1[Size_],$C$3,Table1[Mult],$C$4)*$D28*$E28*$C$8/1000000 -> 0.6162929083 | P28: =SUMIFS(Table1[Final-demand Value-added],Table1[NAICS],$B28,Table1[State],$C$2,Table1[Size_],$C$3,Table1[Mult],$C$4)*$D28*$E28*$C$8 -> 25319.04591
B29: 812900 | C29: Other Personal Services | D29: 0.04765543618 | E29: 1 | G29: =SUMIFS(Table1[Final-demand Output],Table1[NAICS],$B29,Table1[State],$C$2,Table1[Size_],$C$3,Table1[Mult],$C$4)*$D29*$E29*$C$7 -> 166445.3604 | H29: =SUMIFS(Table1[Final-demand Earnings],Table1[NAICS],$B29,Table1[State],$C$2,Table1[Size_],$C$3,Table1[Mult],$C$4)*$D29*$E29*$C$7 -> 71331.8964 | I29: =SUMIFS(Table1[Final-demand Employment],Table1[NAICS],$B29,Table1[State],$C$2,Table1[Size_],$C$3,Table1[Mult],$C$4)*$D29*$E29*$C$7/1000000 -> 2.926861686 | J29: =SUMIFS(Table1[Final-demand Value-added],Table1[NAICS],$B29,Table1[State],$C$2,Table1[Size_],$C$3,Table1[Mult],$C$4)*$D29*$E29*$C$7 -> 106690.4899 | M29: =SUMIFS(Table1[Final-demand Output],Table1[NAICS],$B29,Table1[State],$C$2,Table1[Size_],$C$3,Table1[Mult],$C$4)*$D29*$E29*$C$8 -> 110963.5736 | N29: =SUMIFS(Table1[Final-demand Earnings],Table1[NAICS],$B29,Table1[State],$C$2,Table1[Size_],$C$3,Table1[Mult],$C$4)*$D29*$E29*$C$8 -> 47554.5976 | O29: =SUMIFS(Table1[Final-demand Employment],Table1[NAICS],$B29,Table1[State],$C$2,Table1[Size_],$C$3,Table1[Mult],$C$4)*$D29*$E29*$C$8/1000000 -> 1.951241124 | P29: =SUMIFS(Table1[Final-demand Value-added],Table1[NAICS],$B29,Table1[State],$C$2,Table1[Size_],$C$3,Table1[Mult],$C$4)*$D29*$E29*$C$8 -> 71126.99328
G30: =SUM(G13:G29) -> 3393215.936 | H30: =SUM(H13:H29) -> 934573.1559 | I30: =SUM(I13:I29)/Inflation_Factor -> 25.87316347 | J30: =SUM(J13:J29) -> 2062706.224 | M30: =SUM(M13:M29) -> 2262143.958 | N30: =SUM(N13:N29) -> 623048.7706 | O30: =SUM(O13:O29)/Inflation_Factor -> 17.24877565 | P30: =SUM(P13:P29) -> 1375137.482

Sheet Decommission
D6: Nameplate mWdc | E6: acres | F6: decom. Cost | G6: months
C7: Tarrecon | D7: 120 | F7: 7017423 | G7: 12 | H7: =F7/D7 -> 58478.525
C8: Stantec | D8: =200*1.3 -> 260 | E8: 1300 | F8: 8511662 | H8: =F8/D8 -> 32737.16154
C9: Dupuis | D9: 1.87 | E9: 34 | F9: 106040 | H9: =F9/D9 -> 56705.88235
C10: Sandifer | D10: 69 | E10: 574 | F10: 1376955 | H10: =F10/D10 -> 19955.86957
E21: Decommission Costs per mWdc | F21: =AVERAGE(H7:H10) -> 41969.35961
E22: mWdc | F22: ='Install assunptions'!F7 -> 125
E23: Decommission Costs | F23: =F22*F21 -> 5246169.952
E26: Tasks | F26: Estimated Cost ($) | G26: Cost Share | I26: Estimated Cost ($) | M26: Final-demand Output | N26: Final-demand Earnings | O26: Final-demand Employment | P26: Final-demand Value-added
E27: Remove Rack Wiring | F27: =G27*$F$23 -> 214291.2278 | G27: =I27/$I$39 -> 0.04084717608 | I27: 2459 | K27: CONS | M27: =IFERROR(AVERAGEIFS(Table1[Final-demand Output],Table1[State],state,Table1[Size_],size,Table1[SEG],$K27,Table1[Mult],Multiplier),0)*$F27 -> 254599.4077 | N27: =IFERROR(AVERAGEIFS(Table1[Final-demand Earnings],Table1[State],state,Table1[Size_],size,Table1[SEG],$K27,Table1[Mult],Multiplier),0)*$F27 -> 50344.15244 | O27: =IFERROR(AVERAGEIFS(Table1[Final-demand Employment],Table1[State],state,Table1[Size_],size,Table1[SEG],$K27,Table1[Mult],Multiplier),0)*$F27/1000000 -> 0.7803415059 | P27: =IFERROR(AVERAGEIFS(Table1[Final-demand Value-added],Table1[State],state,Table1[Size_],size,Table1[SEG],$K27,Table1[Mult],Multiplier),0)*$F27 -> 103495.52
E28: Remove Panels | F28: =G28*$F$23 -> 213506.9166 | G28: 0.04069767442 | I28: 2450 | K28: CONS | M28: =IFERROR(AVERAGEIFS(Table1[Final-demand Output],Table1[State],state,Table1[Size_],size,Table1[SEG],$K28,Table1[Mult],Multiplier),0)*$F28 -> 253667.5677 | N28: =IFERROR(AVERAGEIFS(Table1[Final-demand Earnings],Table1[State],state,Table1[Size_],size,Table1[SEG],$K28,Table1[Mult],Multiplier),0)*$F28 -> 50159.89162 | O28: =IFERROR(AVERAGEIFS(Table1[Final-demand Employment],Table1[State],state,Table1[Size_],size,Table1[SEG],$K28,Table1[Mult],Multiplier),0)*$F28/1000000 -> 0.777485437 | P28: =IFERROR(AVERAGEIFS(Table1[Final-demand Value-added],Table1[State],state,Table1[Size_],size,Table1[SEG],$K28,Table1[Mult],Multiplier),0)*$F28 -> 103116.7238
E29: Dismantle Racks | F29: 1076249.151 | G29: 0.2051495017 | I29: 12350 | K29: CONS | M29: =IFERROR(AVERAGEIFS(Table1[Final-demand Output],Table1[State],state,Table1[Size_],size,Table1[SEG],$K29,Table1[Mult],Multiplier),0)*$F29 -> 1278691.617 | N29: =IFERROR(AVERAGEIFS(Table1[Final-demand Earnings],Table1[State],state,Table1[Size_],size,Table1[SEG],$K29,Table1[Mult],Multiplier),0)*$F29 -> 252846.8006 | O29: =IFERROR(AVERAGEIFS(Table1[Final-demand Employment],Table1[State],state,Table1[Size_],size,Table1[SEG],$K29,Table1[Mult],Multiplier),0)*$F29/1000000 -> 3.919161284 | P29: =IFERROR(AVERAGEIFS(Table1[Final-demand Value-added],Table1[State],state,Table1[Size_],size,Table1[SEG],$K29,Table1[Mult],Multiplier),0)*$F29 -> 519792.4651
E30: Remove Electrical Equipment | F30: 161219.5085 | G30: 0.03073089701 | I30: 1850 | K30: ELEC | M30: =IFERROR(AVERAGEIFS(Table1[Final-demand Output],Table1[State],state,Table1[Size_],size,Table1[SEG],$K30,Table1[Mult],Multiplier),0)*$F30 -> 161219.5085 | N30: =IFERROR(AVERAGEIFS(Table1[Final-demand Earnings],Table1[State],state,Table1[Size_],size,Table1[SEG],$K30,Table1[Mult],Multiplier),0)*$F30 -> 0 | O30: =IFERROR(AVERAGEIFS(Table1[Final-demand Employment],Table1[State],state,Table1[Size_],size,Table1[SEG],$K30,Table1[Mult],Multiplier),0)*$F30/1000000 -> 0 | P30: =IFERROR(AVERAGEIFS(Table1[Final-demand Value-added],Table1[State],state,Table1[Size_],size,Table1[SEG],$K30,Table1[Mult],Multiplier),0)*$F30 -> 0
E31: Breakup and Remove Concrete Pads or Ballasts | F31: 130718.5204 | G31: 0.02491694352 | I31: 1500 | K31: CONS | M31: =IFERROR(AVERAGEIFS(Table1[Final-demand Output],Table1[State],state,Table1[Size_],size,Table1[SEG],$K31,Table1[Mult],Multiplier),0)*$F31 -> 155306.6741 | N31: =IFERROR(AVERAGEIFS(Table1[Final-demand Earnings],Table1[State],state,Table1[Size_],size,Table1[SEG],$K31,Table1[Mult],Multiplier),0)*$F31 -> 30710.13772 | O31: =IFERROR(AVERAGEIFS(Table1[Final-demand Employment],Table1[State],state,Table1[Size_],size,Table1[SEG],$K31,Table1[Mult],Multiplier),0)*$F31/1000000 -> 0.476011492 | P31: =IFERROR(AVERAGEIFS(Table1[Final-demand Value-added],Table1[State],state,Table1[Size_],size,Table1[SEG],$K31,Table1[Mult],Multiplier),0)*$F31 -> 63132.68807
E32: Remove Racks | F32: 679736.306 | G32: 0.1295681063 | I32: 7800 | K32: CONS | M32: =IFERROR(AVERAGEIFS(Table1[Final-demand Output],Table1[State],state,Table1[Size_],size,Table1[SEG],$K32,Table1[Mult],Multiplier),0)*$F32 -> 807594.7052 | N32: =IFERROR(AVERAGEIFS(Table1[Final-demand Earnings],Table1[State],state,Table1[Size_],size,Table1[SEG],$K32,Table1[Mult],Multiplier),0)*$F32 -> 159692.7162 | O32: =IFERROR(AVERAGEIFS(Table1[Final-demand Employment],Table1[State],state,Table1[Size_],size,Table1[SEG],$K32,Table1[Mult],Multiplier),0)*$F32/1000000 -> 2.475259758 | P32: =IFERROR(AVERAGEIFS(Table1[Final-demand Value-added],Table1[State],state,Table1[Size_],size,Table1[SEG],$K32,Table1[Mult],Multiplier),0)*$F32 -> 328289.9779
E33: Remove Cable | F33: 566446.9217 | G33: 0.1079734219 | I33: 6500 | K33: CONS | M33: =IFERROR(AVERAGEIFS(Table1[Final-demand Output],Table1[State],state,Table1[Size_],size,Table1[SEG],$K33,Table1[Mult],Multiplier),0)*$F33 -> 672995.5877 | N33: =IFERROR(AVERAGEIFS(Table1[Final-demand Earnings],Table1[State],state,Table1[Size_],size,Table1[SEG],$K33,Table1[Mult],Multiplier),0)*$F33 -> 133077.2635 | O33: =IFERROR(AVERAGEIFS(Table1[Final-demand Employment],Table1[State],state,Table1[Size_],size,Table1[SEG],$K33,Table1[Mult],Multiplier),0)*$F33/1000000 -> 2.062716465 | P33: =IFERROR(AVERAGEIFS(Table1[Final-demand Value-added],Table1[State],state,Table1[Size_],size,Table1[SEG],$K33,Table1[Mult],Multiplier),0)*$F33 -> 273574.9816
E34: Remove Ground Screws and Power Poles | F34: 1206967.672 | G34: 0.2300664452 | I34: 13850 | K34: CONS | M34: =IFERROR(AVERAGEIFS(Table1[Final-demand Output],Table1[State],state,Table1[Size_],size,Table1[SEG],$K34,Table1[Mult],Multiplier),0)*$F34 -> 1433998.291 | N34: =IFERROR(AVERAGEIFS(Table1[Final-demand Earnings],Table1[State],state,Table1[Size_],size,Table1[SEG],$K34,Table1[Mult],Multiplier),0)*$F34 -> 283556.9383 | O34: =IFERROR(AVERAGEIFS(Table1[Final-demand Employment],Table1[State],state,Table1[Size_],size,Table1[SEG],$K34,Table1[Mult],Multiplier),0)*$F34/1000000 -> 4.395172776 | P34: =IFERROR(AVERAGEIFS(Table1[Final-demand Value-added],Table1[State],state,Table1[Size_],size,Table1[SEG],$K34,Table1[Mult],Multiplier),0)*$F34 -> 582925.1531
E35: Remove Fence | F35: 431371.1173 | G35: 0.08222591362 | I35: 4950 | K35: CONS | M35: =IFERROR(AVERAGEIFS(Table1[Final-demand Output],Table1[State],state,Table1[Size_],size,Table1[SEG],$K35,Table1[Mult],Multiplier),0)*$F35 -> 512512.0245 | N35: =IFERROR(AVERAGEIFS(Table1[Final-demand Earnings],Table1[State],state,Table1[Size_],size,Table1[SEG],$K35,Table1[Mult],Multiplier),0)*$F35 -> 101343.4545 | O35: =IFERROR(AVERAGEIFS(Table1[Final-demand Employment],Table1[State],state,Table1[Size_],size,Table1[SEG],$K35,Table1[Mult],Multiplier),0)*$F35/1000000 -> 1.570837924 | P35: =IFERROR(AVERAGEIFS(Table1[Final-demand Value-added],Table1[State],state,Table1[Size_],size,Table1[SEG],$K35,Table1[Mult],Multiplier),0)*$F35 -> 208337.8706
E36: Grading | F36: 348582.721 | G36: 0.06644518272 | I36: 4000 | K36: CONS | M36: =IFERROR(AVERAGEIFS(Table1[Final-demand Output],Table1[State],state,Table1[Size_],size,Table1[SEG],$K36,Table1[Mult],Multiplier),0)*$F36 -> 414151.1309 | N36: =IFERROR(AVERAGEIFS(Table1[Final-demand Earnings],Table1[State],state,Table1[Size_],size,Table1[SEG],$K36,Table1[Mult],Multiplier),0)*$F36 -> 81893.7006 | O36: =IFERROR(AVERAGEIFS(Table1[Final-demand Employment],Table1[State],state,Table1[Size_],size,Table1[SEG],$K36,Table1[Mult],Multiplier),0)*$F36/1000000 -> 1.269363979 | P36: =IFERROR(AVERAGEIFS(Table1[Final-demand Value-added],Table1[State],state,Table1[Size_],size,Table1[SEG],$K36,Table1[Mult],Multiplier),0)*$F36 -> 168353.8348
E37: Seed Disturbed Areas | F37: 21786.42007 | G37: 0.00415282392 | I37: 250 | K37: CONS | M37: =IFERROR(AVERAGEIFS(Table1[Final-demand Output],Table1[State],state,Table1[Size_],size,Table1[SEG],$K37,Table1[Mult],Multiplier),0)*$F37 -> 25884.44568 | N37: =IFERROR(AVERAGEIFS(Table1[Final-demand Earnings],Table1[State],state,Table1[Size_],size,Table1[SEG],$K37,Table1[Mult],Multiplier),0)*$F37 -> 5118.356287 | O37: =IFERROR(AVERAGEIFS(Table1[Final-demand Employment],Table1[State],state,Table1[Size_],size,Table1[SEG],$K37,Table1[Mult],Multiplier),0)*$F37/1000000 -> 0.07933524867 | P37: =IFERROR(AVERAGEIFS(Table1[Final-demand Value-added],Table1[State],state,Table1[Size_],size,Table1[SEG],$K37,Table1[Mult],Multiplier),0)*$F37 -> 10522.11468
E38: Truck to Recycling Center | F38: 196077.7806 | G38: 0.03737541528 | I38: 2250 | K38: EPC | M38: =IFERROR(AVERAGEIFS(Table1[Final-demand Output],Table1[State],state,Table1[Size_],size,Table1[SEG],$K38,Table1[Mult],Multiplier),0)*$F38 -> 237526.4448 | N38: =IFERROR(AVERAGEIFS(Table1[Final-demand Earnings],Table1[State],state,Table1[Size_],size,Table1[SEG],$K38,Table1[Mult],Multiplier),0)*$F38 -> 31376.80218 | O38: =IFERROR(AVERAGEIFS(Table1[Final-demand Employment],Table1[State],state,Table1[Size_],size,Table1[SEG],$K38,Table1[Mult],Multiplier),0)*$F38/1000000 -> 0.5096911188 | P38: =IFERROR(AVERAGEIFS(Table1[Final-demand Value-added],Table1[State],state,Table1[Size_],size,Table1[SEG],$K38,Table1[Mult],Multiplier),0)*$F38 -> 65768.84489
E39: Current Total | F39: 5246169.952 | G39: 1 | I39: 60200 | M39: =SUM(M27:M38) -> 6208147.404 | N39: =SUM(N27:N38) -> 1180120.214 | O39: =SUM(O27:O38)/Inflation_Factor -> 16.94158345 | P39: =SUM(P27:P38) -> 2427310.175

Sheet Timeseries
C1: Project Life | D1: =Life_of_project__Years -> 30
C3: discount | D3: 0.05 | E3: 0.06 | F3: 0.07
C4: PV | D4: =NPV(D3,$F$11:$F$41)+$F$10 -> 43092303.1 | E4: =NPV(E3,$F$11:$F$41)+$F$10 -> 38329029.11 | F4: =NPV(F3,$F$11:$F$41)+$F$10 -> 34438154.61
C9: Year | D9: Employment | E9: Labor Income | F9: Total Income | H9: Discount Factor | I9: Discounted Cash Flow | M9: Year | N9: CPI | O9: pfactor
C10: 0 | D10: 144.1 | E10: 6224277 | F10: 9068985 | H10: =1/((1+$E$3)^C10) -> 1 | I10: =F10*H10 -> 9068985 | M10: 2010 | N10: 218.056 | O10: =N10/$N$22 -> 0.7450957612
C11: 1 | D11: ='O&M'!X14 -> 13.81708513 | E11: ='O&M'!Y14 -> 499837.44 | F11: ='O&M'!Z14 -> 1011812.218 | H11: 0.9433962264 | I11: 954539.8279 | M11: 2011 | N11: 224.939 | O11: 0.768614922
C12: 2 | D12: ='O&M'!X15 -> 14.65233841 | E12: ='O&M'!Y15 -> 532588.72 | F12: ='O&M'!Z15 -> 1080045.372 | H12: 0.88999644 | I12: 961236.5365 | M12: 2012 | N12: 229.594 | O12: 0.784521023
C13: 3 | D13: ='O&M'!X16 -> 15.52935434 | E13: ='O&M'!Y16 -> 566977.564 | F13: ='O&M'!Z16 -> 1151690.185 | H13: 0.839619283 | I13: 966981.2875 | M13: 2013 | N13: 232.957 | O13: 0.7960123695
C14: 4 | D14: ='O&M'!X17 -> 16.45022107 | E14: ='O&M'!Y17 -> 603085.8502 | F14: ='O&M'!Z17 -> 1226917.238 | H14: 0.7920936632 | I14: 971833.3698 | M14: 2014 | N14: 236.736 | O14: 0.8089251849
C15: 5 | D15: ='O&M'!X18 -> 17.41713114 | E15: ='O&M'!Y18 -> 640999.5507 | F15: ='O&M'!Z18 -> 1305905.644 | H15: 0.7472581729 | I15: 975848.6656 | M15: 2015 | N15: 237.017 | O15: 0.8098853599
C16: 6 | D16: ='O&M'!X19 -> 18.43238672 | E16: ='O&M'!Y19 -> 680808.9363 | F16: ='O&M'!Z19 -> 1388843.47 | H16: 0.7049605404 | I16: 979079.8435 | M16: 2016 | N16: 240.007 | O16: 0.8201021681
C17: 7 | D17: ='O&M'!X20 -> 19.49840507 | E17: ='O&M'!Y20 -> 722608.7911 | F17: ='O&M'!Z20 -> 1475928.188 | H17: 0.6650571136 | I17: 981576.5406 | M17: 2017 | N17: 245.12 | O17: 0.8375732518
C18: 8 | D18: ='O&M'!X21 -> 20.61772434 | E18: ='O&M'!Y21 -> 766498.6387 | F18: ='O&M'!Z21 -> 1567367.141 | H18: 0.6274123713 | I18: 983385.5349 | M18: 2018 | N18: 251.107 | O18: 0.8580307871
C19: 9 | D19: ='O&M'!X22 -> 21.79300957 | E19: ='O&M'!Y22 -> 812582.9786 | F19: ='O&M'!Z22 -> 1663378.042 | H19: 0.5918984635 | I19: 984550.9076 | M19: 2019 | N19: 255.657 | O19: 0.8735781039
C20: 10 | D20: ='O&M'!X23 -> 23.02705906 | E20: ='O&M'!Y23 -> 860971.5355 | F20: ='O&M'!Z23 -> 1764189.489 | H20: 0.5583947769 | I20: 985114.1959 | M20: 2020 | N20: 258.811 | O20: 0.8843552989
C21: 11 | D21: ='O&M'!X24 -> 24.32281103 | E21: ='O&M'!Y24 -> 911779.5203 | F21: ='O&M'!Z24 -> 1870041.507 | H21: 0.5267875254 | I21: 985114.5378 | M21: 2021 | N21: 270.97 | O21: 0.9259025132
C22: 12 | D22: ='O&M'!X25 -> 25.6833506 | E22: ='O&M'!Y25 -> 965127.9043 | F22: ='O&M'!Z25 -> 1981186.126 | H22: 0.4969693636 | I22: 984588.8083 | M22: 2022 | N22: 292.655 | O22: 1
C23: 13 | D23: ='O&M'!X26 -> 27.11191714 | E23: ='O&M'!Y26 -> 1021143.708 | F23: ='O&M'!Z26 -> 2097887.977 | H23: 0.4688390222 | I23: 983571.7477 | M23: 2023 | N23: =N22*1.028 -> 300.84934 | O23: 1.028
C24: 14 | D24: ='O&M'!X27 -> 28.61191201 | E24: ='O&M'!Y27 -> 1079960.301 | F24: ='O&M'!Z27 -> 2220424.919 | H24: 0.4423009644 | I24: 982096.0832 | M24: 2024 | N24: =N23*1.028 -> 309.2731215 | O24: 1.056784
C25: 15 | D25: ='O&M'!X28 -> 30.18690663 | E25: ='O&M'!Y28 -> 1141717.724 | F25: ='O&M'!Z28 -> 2349088.709 | H25: 0.4172650607 | I25: 980192.643 | M25: 2025 | N25: =N24*1.023 -> 316.3864033 | O25: 1.081090032
C26: 16 | D26: ='O&M'!X29 -> 31.84065098 | E26: ='O&M'!Y29 -> 1206563.018 | F26: ='O&M'!Z29 -> 2484185.689 | H26: 0.3936462837 | I26: 977890.4645 | M26: 2026 | N26: =N25*1.02 -> 322.7141314 | O26: 1.102711833
C27: 17 | D27: ='O&M'!X30 -> 33.57708254 | E27: ='O&M'!Y30 -> 1274650.577 | F27: ='O&M'!Z30 -> 2626037.517 | H27: 0.3713644186 | I27: 975216.8959 | M27: 2027 | N27: =N26*1.02 -> 329.168414 | O27: 1.124766069
C28: 18 | D28: ='O&M'!X31 -> 35.40033568 | E28: ='O&M'!Y31 -> 1346142.514 | F28: ='O&M'!Z31 -> 2774981.937 | H28: 0.3503437911 | I28: 972197.6922 | M28: 2028 | N28: 335.7517823 | O28: 1.147261391
C29: 19 | D29: ='O&M'!X32 -> 37.31475148 | E29: ='O&M'!Y32 -> 1421209.048 | F29: ='O&M'!Z32 -> 2931373.578 | H29: 0.3305130105 | I29: 968857.1062 | M29: 2029 | N29: 342.4668179 | O29: 1.170206618
C30: 20 | D30: ='O&M'!X33 -> 39.32488807 | E30: ='O&M'!Y33 -> 1500028.908 | F30: ='O&M'!Z33 -> 3095584.801 | H30: 0.3118047269 | I30: 965217.9734 | M30: 2030 | N30: 349.3161543 | O30: 1.193610751
C31: 21 | D31: ='O&M'!X34 -> 41.43553149 | E31: ='O&M'!Y34 -> 1582789.761 | F31: ='O&M'!Z34 -> 3268006.585 | H31: 0.2941554027 | I31: 961301.7931 | M31: 2031 | N31: 356.3024774 | O31: 1.217482966
C32: 22 | D32: ='O&M'!X35 -> 43.65170708 | E32: ='O&M'!Y35 -> 1669688.657 | F32: ='O&M'!Z35 -> 3449049.458 | H32: 0.2775050969 | I32: 957128.8042 | M32: 2032 | N32: 363.4285269 | O32: 1.241832625
C33: 23 | D33: ='O&M'!X36 -> 45.97869145 | E33: ='O&M'!Y36 -> 1760932.498 | F33: ='O&M'!Z36 -> 3639144.475 | H33: 0.2617972612 | I33: 952718.0569 | M33: 2033 | N33: 370.6970975 | O33: 1.266669278
C34: 24 | D34: ='O&M'!X37 -> 48.42202504 | E34: ='O&M'!Y37 -> 1856738.531 | F34: ='O&M'!Z37 -> 3838744.243 | H34: 0.2469785483 | I34: 948087.4806 | M34: 2034 | N34: 378.1110394 | O34: 1.292002663
C35: 25 | D35: ='O&M'!X38 -> 50.9875253 | E35: ='O&M'!Y38 -> 1957334.866 | F35: ='O&M'!Z38 -> 4048323.999 | H35: 0.2329986305 | I35: 943253.9476 | M35: 2035 | N35: 385.6732602 | O35: 1.317842717
C36: 26 | D36: ='O&M'!X39 -> 53.68130058 | E36: ='O&M'!Y39 -> 2062961.017 | F36: ='O&M'!Z39 -> 4268382.743 | H36: 0.2198100288 | I36: 938233.3336 | M36: 2036 | N36: 393.3867254 | O36: 1.344199571
C37: 27 | D37: ='O&M'!X40 -> 56.50976463 | E37: ='O&M'!Y40 -> 2173868.476 | F37: ='O&M'!Z40 -> 4499444.424 | H37: 0.2073679517 | I37: 933040.5739 | M37: 2037 | N37: 401.2544599 | O37: 1.371083562
C38: 28 | D38: ='O&M'!X41 -> 59.47965188 | E38: ='O&M'!Y41 -> 2290321.308 | F38: ='O&M'!Z41 -> 4742059.189 | H38: 0.1956301431 | I38: 927689.7178 | M38: 2038 | N38: 409.2795491 | O38: 1.398505234
C39: 29 | D39: ='O&M'!X42 -> 62.59803349 | E39: ='O&M'!Y42 -> 2412596.781 | F39: ='O&M'!Z42 -> 4996804.693 | H39: 0.1845567388 | I39: 922193.9784 | M39: 2039 | N39: 417.4651401 | O39: 1.426475338
C40: 30 | D40: ='O&M'!X43 -> 65.87233417 | E40: ='O&M'!Y43 -> 2540986.028 | F40: ='O&M'!Z43 -> 5264287.472 | H40: 0.1741101309 | I40: 916565.7808 | M40: 2040 | N40: =N39*1.02 -> 425.8144429 | O40: 1.455004845
C41: 31 | D41: =IF(D1=30,outcome!G50,0) -> 14.05360314 | E41: =IF(D1=30,outcome!$G$49,0) -> 1024932.054 | F41: =IF(D1=30,outcome!$G$51,0) -> 2074459.295 | H41: 0.1642548405 | I41: 340739.9805

Sheet Property Tax
E1: Nameplate Capacity (MWac) | F1: =Front!E11 -> 100 | H1: Acres | I1: =Front!E16 -> 600 | K1: Total | L1: =_xlfn.XLOOKUP(state,'Property Tax'!$C$7:$K$7,'Property Tax'!C40:K40,NA(),0,1) -> 12851919.92 | P1: State | Q1: =state -> IN
E2: Production (MWh) | F2: =$F$1*Front!E13*(1-Front!E14)*Installation!D3 -> 158576.94 | H2: Productivity (IL) | I2: =soil -> Average | K2: Average | L2: =_xlfn.XLOOKUP(state,'Property Tax'!$C$7:$K$7,'Property Tax'!C41:K41,NA(),0,1) -> 428397.3306
E3: MI PPI Millage | F3: 34.53 | H3: IL Market Value | I3: =53*(VLOOKUP(Front!E2,Timeseries!$M$9:$O$40,2,FALSE)/VLOOKUP(2015,Timeseries!$M$9:$O$40,2,FALSE))*VLOOKUP(I2,rng_Il_tax,2,FALSE)*I1 -> 42448.80167 | K3: PV | L3: =_xlfn.XLOOKUP(state,'Property Tax'!$C$7:$K$7,'Property Tax'!C42:K42,NA(),0,1) -> 5410233.258
E4: Market Value ($/MWac) | F4: =rng_mkt_value -> 259255.4855
E5: Project Life | F5: =Life_of_project__Years -> 30
C6: Tax | P6: HH Income
C7: yr | D7: IL | E7: MN | F7: WI | G7: IN | H7: MI | I7: MI2 | J7: IA | K7: OH | M7: IA Progression | N7: Discount Factor | P7: yr | Q7: IL | R7: MN | S7: WI | T7: IN | U7: MI | V7: MI2 | W7: IA | X7: OH
C8: 0 | F8: =$I$1*lookups!$AH$30 ->  | I8: 30000 | N8: =1/((1+Front!$E$35)^C8) -> 1 | P8: 0 | Q8: 0 | R8: 0 | S8: 0 | U8: 0 | V8: 0 | W8: 0 | X8: 0
C9: 1 | D9: =0.0208*MAX(1-C9/Life_of_project__Years,0.3)*$F$4*$F$1-$I$3-INDEX(lookups!$AG$19:$AJ$26,MATCH($D$7,lookups!$AG$19:$AG$26,0),MATCH($I$2,lookups!$AG$19:$AJ$19,0))*$I$1 -> 421646.7205 | E9: =1590*$F$1*1.2-INDEX(lookups!$AG$19:$AJ$26,MATCH($E$7,lookups!$AG$19:$AG$26,0),MATCH($I$2,lookups!$AG$19:$AJ$19,0))*$I$1 -> 85806 | F9: =4000*$F$1-INDEX(lookups!$AG$19:$AJ$26,MATCH('Property Tax'!$F$7,lookups!$AG$19:$AG$26,0),MATCH('Property Tax'!$I$2,lookups!$AG$19:$AJ$19,0))*'Property Tax'!$I$1*VLOOKUP(Front!$E$5,lookups!$BA$3:$BC$75,3,FALSE) ->  | G9: =((_xlfn.XLOOKUP(Front!$E$5,lookups!$BH$3:$BH$95,lookups!$BJ$3:$BJ$95)-_xlfn.XLOOKUP($I$2,lookups!$AG$34:$AG$36,lookups!$AH$34:$AH$36))*$I$1*_xlfn.XLOOKUP(Front!$E$5,lookups!$BH$3:$BH$95,lookups!$BK$3:$BK$95)/100) + 0.03*$F$4*MAX(((5-C9)/5),0.3)*$F$1 -> 793947.5651 | H9: =MAX(1-C9/Life_of_project__Years,0.3)*$F$4*$F$1*(VLOOKUP(Front!$E$5,lookups!$BM$3:$BN$86,2)/1000) -> 582700.5119 | I9: =7000*$F$1 -> 700000 | J9: =$F$2*M9*1000*0.0006 + 0.00259183*$F$2*1000 + 5*550 + MAX(1-C9/Life_of_project__Years,0.3)*$F$4*$F$1*0.03 -> 1165595.378 | K9: =9000*$F$1-INDEX(lookups!$AG$19:$AJ$26,MATCH(state,lookups!$AG$19:$AG$26,0),MATCH('Property Tax'!$I$2,lookups!$AG$19:$AJ$19,0))*$I$1 -> 885389.4594 | M9: =MIN(0,0.3) -> 0 | N9: =1/((1+Front!$E$35)^C9) -> 0.9302325581 | P9: 1 | Q9: 0 | R9: 0 | S9: 0 | T9: =VLOOKUP(Front!$E$5,lookups!$BH$3:$BJ$95,3)*$I$1+INDEX(lookups!$AG$19:$AJ$26,MATCH('Property Tax'!$Q$1,lookups!$AG$19:$AG$26,0),MATCH('Property Tax'!$I$2,lookups!$AG$19:$AJ$19,0))*'Property Tax'!$I$1+0.03*0.3*$F$4*MAX(((5-C8)/5),0) -> 7816943.84 | U9: 0 | V9: 0 | W9: 0 | X9: 0
C10: 2 | D10: =0.0208*MAX(1-C10/Life_of_project__Years,0.3)*$F$4*$F$1-$I$3-INDEX(lookups!$AG$19:$AJ$26,MATCH($D$7,lookups!$AG$19:$AG$26,0),MATCH($I$2,lookups!$AG$19:$AJ$19,0))*$I$1 -> 403671.6735 | E10: =1590*$F$1*1.2-INDEX(lookups!$AG$19:$AJ$26,MATCH($E$7,lookups!$AG$19:$AG$26,0),MATCH($I$2,lookups!$AG$19:$AJ$19,0))*$I$1 -> 85806 | F10: =4000*$F$1-INDEX(lookups!$AG$19:$AJ$26,MATCH('Property Tax'!$F$7,lookups!$AG$19:$AG$26,0),MATCH('Property Tax'!$I$2,lookups!$AG$19:$AJ$19,0))*'Property Tax'!$I$1*VLOOKUP(Front!$E$5,lookups!$BA$3:$BC$75,3,FALSE) ->  | G10: =((_xlfn.XLOOKUP(Front!$E$5,lookups!$BH$3:$BH$95,lookups!$BJ$3:$BJ$95)-_xlfn.XLOOKUP($I$2,lookups!$AG$34:$AG$36,lookups!$AH$34:$AH$36))*$I$1*_xlfn.XLOOKUP(Front!$E$5,lookups!$BH$3:$BH$95,lookups!$BK$3:$BK$95)/100) + 0.03*$F$4*MAX(((5-C10)/5),0.3)*$F$1 -> 638394.2738 | H10: =MAX(1-C10/Life_of_project__Years,0.3)*$F$4*$F$1*(VLOOKUP(Front!$E$5,lookups!$BM$3:$BN$86,2)/1000) -> 562607.3908 | I10: 700000 | J10: 1144427.138 | K10: =9000*$F$1-INDEX(lookups!$AG$19:$AJ$26,MATCH(state,lookups!$AG$19:$AG$26,0),MATCH('Property Tax'!$I$2,lookups!$AG$19:$AJ$19,0))*$I$1 -> 885389.4594 | M10: =MIN(M9+0.05,0.3) -> 0.05 | N10: =1/((1+Front!$E$35)^C10) -> 0.8653326122 | P10: 2 | Q10: 0 | R10: 0 | S10: 0 | T10: =VLOOKUP(Front!$E$5,lookups!$BH$3:$BJ$95,3)*$I$1+INDEX(lookups!$AG$19:$AJ$26,MATCH('Property Tax'!$Q$1,lookups!$AG$19:$AG$26,0),MATCH('Property Tax'!$I$2,lookups!$AG$19:$AJ$19,0))*'Property Tax'!$I$1+0.03*0.3*$F$4*MAX(((5-C9)/5),0) -> 7816477.18 | U10: 0 | V10: 0 | W10: 0 | X10: 0
C11: 3 | D11: =0.0208*MAX(1-C11/Life_of_project__Years,0.3)*$F$4*$F$1-$I$3-INDEX(lookups!$AG$19:$AJ$26,MATCH($D$7,lookups!$AG$19:$AG$26,0),MATCH($I$2,lookups!$AG$19:$AJ$19,0))*$I$1 -> 385696.6265 | E11: =1590*$F$1*1.2-INDEX(lookups!$AG$19:$AJ$26,MATCH($E$7,lookups!$AG$19:$AG$26,0),MATCH($I$2,lookups!$AG$19:$AJ$19,0))*$I$1 -> 85806 | F11: =4000*$F$1-INDEX(lookups!$AG$19:$AJ$26,MATCH('Property Tax'!$F$7,lookups!$AG$19:$AG$26,0),MATCH('Property Tax'!$I$2,lookups!$AG$19:$AJ$19,0))*'Property Tax'!$I$1*VLOOKUP(Front!$E$5,lookups!$BA$3:$BC$75,3,FALSE) ->  | G11: =((_xlfn.XLOOKUP(Front!$E$5,lookups!$BH$3:$BH$95,lookups!$BJ$3:$BJ$95)-_xlfn.XLOOKUP($I$2,lookups!$AG$34:$AG$36,lookups!$AH$34:$AH$36))*$I$1*_xlfn.XLOOKUP(Front!$E$5,lookups!$BH$3:$BH$95,lookups!$BK$3:$BK$95)/100) + 0.03*$F$4*MAX(((5-C11)/5),0.3)*$F$1 -> 482840.9825 | H11: =MAX(1-C11/Life_of_project__Years,0.3)*$F$4*$F$1*(VLOOKUP(Front!$E$5,lookups!$BM$3:$BN$86,2)/1000) -> 542514.2697 | I11: 700000 | J11: 1123258.898 | K11: =9000*$F$1-INDEX(lookups!$AG$19:$AJ$26,MATCH(state,lookups!$AG$19:$AG$26,0),MATCH('Property Tax'!$I$2,lookups!$AG$19:$AJ$19,0))*$I$1 -> 885389.4594 | M11: =MIN(M10+0.05,0.3) -> 0.1 | N11: =1/((1+Front!$E$35)^C11) -> 0.8049605695 | P11: 3 | Q11: 0 | R11: 0 | S11: 0 | T11: =VLOOKUP(Front!$E$5,lookups!$BH$3:$BJ$95,3)*$I$1+INDEX(lookups!$AG$19:$AJ$26,MATCH('Property Tax'!$Q$1,lookups!$AG$19:$AG$26,0),MATCH('Property Tax'!$I$2,lookups!$AG$19:$AJ$19,0))*'Property Tax'!$I$1+0.03*0.3*$F$4*MAX(((5-C10)/5),0) -> 7816010.52 | U11: 0 | V11: 0 | W11: 0 | X11: 0
C12: 4 | D12: =0.0208*MAX(1-C12/Life_of_project__Years,0.3)*$F$4*$F$1-$I$3-INDEX(lookups!$AG$19:$AJ$26,MATCH($D$7,lookups!$AG$19:$AG$26,0),MATCH($I$2,lookups!$AG$19:$AJ$19,0))*$I$1 -> 367721.5795 | E12: =1590*$F$1*1.2-INDEX(lookups!$AG$19:$AJ$26,MATCH($E$7,lookups!$AG$19:$AG$26,0),MATCH($I$2,lookups!$AG$19:$AJ$19,0))*$I$1 -> 85806 | F12: =4000*$F$1-INDEX(lookups!$AG$19:$AJ$26,MATCH('Property Tax'!$F$7,lookups!$AG$19:$AG$26,0),MATCH('Property Tax'!$I$2,lookups!$AG$19:$AJ$19,0))*'Property Tax'!$I$1*VLOOKUP(Front!$E$5,lookups!$BA$3:$BC$75,3,FALSE) ->  | G12: =((_xlfn.XLOOKUP(Front!$E$5,lookups!$BH$3:$BH$95,lookups!$BJ$3:$BJ$95)-_xlfn.XLOOKUP($I$2,lookups!$AG$34:$AG$36,lookups!$AH$34:$AH$36))*$I$1*_xlfn.XLOOKUP(Front!$E$5,lookups!$BH$3:$BH$95,lookups!$BK$3:$BK$95)/100) + 0.03*$F$4*MAX(((5-C12)/5),0.3)*$F$1 -> 405064.3369 | H12: =MAX(1-C12/Life_of_project__Years,0.3)*$F$4*$F$1*(VLOOKUP(Front!$E$5,lookups!$BM$3:$BN$86,2)/1000) -> 522421.1486 | I12: 700000 | J12: 1102090.657 | K12: =9000*$F$1-INDEX(lookups!$AG$19:$AJ$26,MATCH(state,lookups!$AG$19:$AG$26,0),MATCH('Property Tax'!$I$2,lookups!$AG$19:$AJ$19,0))*$I$1 -> 885389.4594 | M12: 0.15 | N12: =1/((1+Front!$E$35)^C12) -> 0.7488005298 | P12: 4 | Q12: 0 | R12: 0 | S12: 0 | T12: =VLOOKUP(Front!$E$5,lookups!$BH$3:$BJ$95,3)*$I$1+INDEX(lookups!$AG$19:$AJ$26,MATCH('Property Tax'!$Q$1,lookups!$AG$19:$AG$26,0),MATCH('Property Tax'!$I$2,lookups!$AG$19:$AJ$19,0))*'Property Tax'!$I$1+0.03*0.3*$F$4*MAX(((5-C11)/5),0) -> 7815543.86 | U12: 0 | V12: 0 | W12: 0 | X12: 0
C13: 5 | D13: =0.0208*MAX(1-C13/Life_of_project__Years,0.3)*$F$4*$F$1-$I$3-INDEX(lookups!$AG$19:$AJ$26,MATCH($D$7,lookups!$AG$19:$AG$26,0),MATCH($I$2,lookups!$AG$19:$AJ$19,0))*$I$1 -> 349746.5325 | E13: =1590*$F$1*1.2-INDEX(lookups!$AG$19:$AJ$26,MATCH($E$7,lookups!$AG$19:$AG$26,0),MATCH($I$2,lookups!$AG$19:$AJ$19,0))*$I$1 -> 85806 | F13: =4000*$F$1-INDEX(lookups!$AG$19:$AJ$26,MATCH('Property Tax'!$F$7,lookups!$AG$19:$AG$26,0),MATCH('Property Tax'!$I$2,lookups!$AG$19:$AJ$19,0))*'Property Tax'!$I$1*VLOOKUP(Front!$E$5,lookups!$BA$3:$BC$75,3,FALSE) ->  | G13: =((_xlfn.XLOOKUP(Front!$E$5,lookups!$BH$3:$BH$95,lookups!$BJ$3:$BJ$95)-_xlfn.XLOOKUP($I$2,lookups!$AG$34:$AG$36,lookups!$AH$34:$AH$36))*$I$1*_xlfn.XLOOKUP(Front!$E$5,lookups!$BH$3:$BH$95,lookups!$BK$3:$BK$95)/100) + 0.03*$F$4*MAX(((5-C13)/5),0.3)*$F$1 -> 405064.3369 | H13: =MAX(1-C13/Life_of_project__Years,0.3)*$F$4*$F$1*(VLOOKUP(Front!$E$5,lookups!$BM$3:$BN$86,2)/1000) -> 502328.0275 | I13: 700000 | J13: 1080922.417 | K13: =9000*$F$1-INDEX(lookups!$AG$19:$AJ$26,MATCH(state,lookups!$AG$19:$AG$26,0),MATCH('Property Tax'!$I$2,lookups!$AG$19:$AJ$19,0))*$I$1 -> 885389.4594 | M13: 0.2 | N13: =1/((1+Front!$E$35)^C13) -> 0.6965586324 | P13: 5 | Q13: 0 | R13: 0 | S13: 0 | T13: =VLOOKUP(Front!$E$5,lookups!$BH$3:$BJ$95,3)*$I$1+INDEX(lookups!$AG$19:$AJ$26,MATCH('Property Tax'!$Q$1,lookups!$AG$19:$AG$26,0),MATCH('Property Tax'!$I$2,lookups!$AG$19:$AJ$19,0))*'Property Tax'!$I$1+0.03*0.3*$F$4*MAX(((5-C12)/5),0) -> 7815077.2 | U13: 0 | V13: 0 | W13: 0 | X13: 0
C14: 6 | D14: =0.0208*MAX(1-C14/Life_of_project__Years,0.3)*$F$4*$F$1-$I$3-INDEX(lookups!$AG$19:$AJ$26,MATCH($D$7,lookups!$AG$19:$AG$26,0),MATCH($I$2,lookups!$AG$19:$AJ$19,0))*$I$1 -> 331771.4855 | E14: =1590*$F$1*1.2-INDEX(lookups!$AG$19:$AJ$26,MATCH($E$7,lookups!$AG$19:$AG$26,0),MATCH($I$2,lookups!$AG$19:$AJ$19,0))*$I$1 -> 85806 | F14: =4000*$F$1-INDEX(lookups!$AG$19:$AJ$26,MATCH('Property Tax'!$F$7,lookups!$AG$19:$AG$26,0),MATCH('Property Tax'!$I$2,lookups!$AG$19:$AJ$19,0))*'Property Tax'!$I$1*VLOOKUP(Front!$E$5,lookups!$BA$3:$BC$75,3,FALSE) ->  | G14: =((_xlfn.XLOOKUP(Front!$E$5,lookups!$BH$3:$BH$95,lookups!$BJ$3:$BJ$95)-_xlfn.XLOOKUP($I$2,lookups!$AG$34:$AG$36,lookups!$AH$34:$AH$36))*$I$1*_xlfn.XLOOKUP(Front!$E$5,lookups!$BH$3:$BH$95,lookups!$BK$3:$BK$95)/100) + 0.03*$F$4*MAX(((5-C14)/5),0.3)*$F$1 -> 405064.3369 | H14: =MAX(1-C14/Life_of_project__Years,0.3)*$F$4*$F$1*(VLOOKUP(Front!$E$5,lookups!$BM$3:$BN$86,2)/1000) -> 482234.9064 | I14: 700000 | J14: 1059754.176 | K14: =9000*$F$1-INDEX(lookups!$AG$19:$AJ$26,MATCH(state,lookups!$AG$19:$AG$26,0),MATCH('Property Tax'!$I$2,lookups!$AG$19:$AJ$19,0))*$I$1 -> 885389.4594 | M14: 0.25 | N14: =1/((1+Front!$E$35)^C14) -> 0.6479615185 | P14: 6 | Q14: 0 | R14: 0 | S14: 0 | T14: =VLOOKUP(Front!$E$5,lookups!$BH$3:$BJ$95,3)*$I$1+INDEX(lookups!$AG$19:$AJ$26,MATCH('Property Tax'!$Q$1,lookups!$AG$19:$AG$26,0),MATCH('Property Tax'!$I$2,lookups!$AG$19:$AJ$19,0))*'Property Tax'!$I$1+0.03*0.3*$F$4*MAX(((5-C13)/5),0) -> 7814610.541 | U14: 0 | V14: 0 | W14: 0 | X14: 0
C15: 7 | D15: =0.0208*MAX(1-C15/Life_of_project__Years,0.3)*$F$4*$F$1-$I$3-INDEX(lookups!$AG$19:$AJ$26,MATCH($D$7,lookups!$AG$19:$AG$26,0),MATCH($I$2,lookups!$AG$19:$AJ$19,0))*$I$1 -> 313796.4385 | E15: =1590*$F$1*1.2-INDEX(lookups!$AG$19:$AJ$26,MATCH($E$7,lookups!$AG$19:$AG$26,0),MATCH($I$2,lookups!$AG$19:$AJ$19,0))*$I$1 -> 85806 | F15: =4000*$F$1-INDEX(lookups!$AG$19:$AJ$26,MATCH('Property Tax'!$F$7,lookups!$AG$19:$AG$26,0),MATCH('Property Tax'!$I$2,lookups!$AG$19:$AJ$19,0))*'Property Tax'!$I$1*VLOOKUP(Front!$E$5,lookups!$BA$3:$BC$75,3,FALSE) ->  | G15: =((_xlfn.XLOOKUP(Front!$E$5,lookups!$BH$3:$BH$95,lookups!$BJ$3:$BJ$95)-_xlfn.XLOOKUP($I$2,lookups!$AG$34:$AG$36,lookups!$AH$34:$AH$36))*$I$1*_xlfn.XLOOKUP(Front!$E$5,lookups!$BH$3:$BH$95,lookups!$BK$3:$BK$95)/100) + 0.03*$F$4*MAX(((5-C15)/5),0.3)*$F$1 -> 405064.3369 | H15: =MAX(1-C15/Life_of_project__Years,0.3)*$F$4*$F$1*(VLOOKUP(Front!$E$5,lookups!$BM$3:$BN$86,2)/1000) -> 462141.7853 | I15: 700000 | J15: 1038585.936 | K15: =9000*$F$1-INDEX(lookups!$AG$19:$AJ$26,MATCH(state,lookups!$AG$19:$AG$26,0),MATCH('Property Tax'!$I$2,lookups!$AG$19:$AJ$19,0))*$I$1 -> 885389.4594 | M15: 0.3 | N15: =1/((1+Front!$E$35)^C15) -> 0.6027549009 | P15: 7 | Q15: 0 | R15: 0 | S15: 0 | T15: =VLOOKUP(Front!$E$5,lookups!$BH$3:$BJ$95,3)*$I$1+INDEX(lookups!$AG$19:$AJ$26,MATCH('Property Tax'!$Q$1,lookups!$AG$19:$AG$26,0),MATCH('Property Tax'!$I$2,lookups!$AG$19:$AJ$19,0))*'Property Tax'!$I$1+0.03*0.3*$F$4*MAX(((5-C14)/5),0) -> 7814610.541 | U15: 0 | V15: 0 | W15: 0 | X15: 0
C16: 8 | D16: =0.0208*MAX(1-C16/Life_of_project__Years,0.3)*$F$4*$F$1-$I$3-INDEX(lookups!$AG$19:$AJ$26,MATCH($D$7,lookups!$AG$19:$AG$26,0),MATCH($I$2,lookups!$AG$19:$AJ$19,0))*$I$1 -> 295821.3915 | E16: =1590*$F$1*1.2-INDEX(lookups!$AG$19:$AJ$26,MATCH($E$7,lookups!$AG$19:$AG$26,0),MATCH($I$2,lookups!$AG$19:$AJ$19,0))*$I$1 -> 85806 | F16: =4000*$F$1-INDEX(lookups!$AG$19:$AJ$26,MATCH('Property Tax'!$F$7,lookups!$AG$19:$AG$26,0),MATCH('Property Tax'!$I$2,lookups!$AG$19:$AJ$19,0))*'Property Tax'!$I$1*VLOOKUP(Front!$E$5,lookups!$BA$3:$BC$75,3,FALSE) ->  | G16: =((_xlfn.XLOOKUP(Front!$E$5,lookups!$BH$3:$BH$95,lookups!$BJ$3:$BJ$95)-_xlfn.XLOOKUP($I$2,lookups!$AG$34:$AG$36,lookups!$AH$34:$AH$36))*$I$1*_xlfn.XLOOKUP(Front!$E$5,lookups!$BH$3:$BH$95,lookups!$BK$3:$BK$95)/100) + 0.03*$F$4*MAX(((5-C16)/5),0.3)*$F$1 -> 405064.3369 | H16: =MAX(1-C16/Life_of_project__Years,0.3)*$F$4*$F$1*(VLOOKUP(Front!$E$5,lookups!$BM$3:$BN$86,2)/1000) -> 442048.6642 | I16: 700000 | J16: 1012660.388 | K16: =9000*$F$1-INDEX(lookups!$AG$19:$AJ$26,MATCH(state,lookups!$AG$19:$AG$26,0),MATCH('Property Tax'!$I$2,lookups!$AG$19:$AJ$19,0))*$I$1 -> 885389.4594 | M16: 0.3 | N16: =1/((1+Front!$E$35)^C16) -> 0.5607022334 | P16: 8 | Q16: 0 | R16: 0 | S16: 0 | T16: =VLOOKUP(Front!$E$5,lookups!$BH$3:$BJ$95,3)*$I$1+INDEX(lookups!$AG$19:$AJ$26,MATCH('Property Tax'!$Q$1,lookups!$AG$19:$AG$26,0),MATCH('Property Tax'!$I$2,lookups!$AG$19:$AJ$19,0))*'Property Tax'!$I$1+0.03*0.3*$F$4*MAX(((5-C15)/5),0) -> 7814610.541 | U16: 0 | V16: 0 | W16: 0 | X16: 0
C17: 9 | D17: =0.0208*MAX(1-C17/Life_of_project__Years,0.3)*$F$4*$F$1-$I$3-INDEX(lookups!$AG$19:$AJ$26,MATCH($D$7,lookups!$AG$19:$AG$26,0),MATCH($I$2,lookups!$AG$19:$AJ$19,0))*$I$1 -> 277846.3446 | E17: =1590*$F$1*1.2-INDEX(lookups!$AG$19:$AJ$26,MATCH($E$7,lookups!$AG$19:$AG$26,0),MATCH($I$2,lookups!$AG$19:$AJ$19,0))*$I$1 -> 85806 | F17: =4000*$F$1-INDEX(lookups!$AG$19:$AJ$26,MATCH('Property Tax'!$F$7,lookups!$AG$19:$AG$26,0),MATCH('Property Tax'!$I$2,lookups!$AG$19:$AJ$19,0))*'Property Tax'!$I$1*VLOOKUP(Front!$E$5,lookups!$BA$3:$BC$75,3,FALSE) ->  | G17: =((_xlfn.XLOOKUP(Front!$E$5,lookups!$BH$3:$BH$95,lookups!$BJ$3:$BJ$95)-_xlfn.XLOOKUP($I$2,lookups!$AG$34:$AG$36,lookups!$AH$34:$AH$36))*$I$1*_xlfn.XLOOKUP(Front!$E$5,lookups!$BH$3:$BH$95,lookups!$BK$3:$BK$95)/100) + 0.03*$F$4*MAX(((5-C17)/5),0.3)*$F$1 -> 405064.3369 | H17: =MAX(1-C17/Life_of_project__Years,0.3)*$F$4*$F$1*(VLOOKUP(Front!$E$5,lookups!$BM$3:$BN$86,2)/1000) -> 421955.5431 | I17: 700000 | J17: 986734.8391 | K17: =9000*$F$1-INDEX(lookups!$AG$19:$AJ$26,MATCH(state,lookups!$AG$19:$AG$26,0),MATCH('Property Tax'!$I$2,lookups!$AG$19:$AJ$19,0))*$I$1 -> 885389.4594 | M17: 0.3 | N17: =1/((1+Front!$E$35)^C17) -> 0.5215834729 | P17: 9 | Q17: 0 | R17: 0 | S17: 0 | T17: =VLOOKUP(Front!$E$5,lookups!$BH$3:$BJ$95,3)*$I$1+INDEX(lookups!$AG$19:$AJ$26,MATCH('Property Tax'!$Q$1,lookups!$AG$19:$AG$26,0),MATCH('Property Tax'!$I$2,lookups!$AG$19:$AJ$19,0))*'Property Tax'!$I$1+0.03*0.3*$F$4*MAX(((5-C16)/5),0) -> 7814610.541 | U17: 0 | V17: 0 | W17: 0 | X17: 0
C18: 10 | D18: =0.0208*MAX(1-C18/Life_of_project__Years,0.3)*$F$4*$F$1-$I$3-INDEX(lookups!$AG$19:$AJ$26,MATCH($D$7,lookups!$AG$19:$AG$26,0),MATCH($I$2,lookups!$AG$19:$AJ$19,0))*$I$1 -> 259871.2976 | E18: =1590*$F$1*1.2-INDEX(lookups!$AG$19:$AJ$26,MATCH($E$7,lookups!$AG$19:$AG$26,0),MATCH($I$2,lookups!$AG$19:$AJ$19,0))*$I$1 -> 85806 | F18: =4000*$F$1-INDEX(lookups!$AG$19:$AJ$26,MATCH('Property Tax'!$F$7,lookups!$AG$19:$AG$26,0),MATCH('Property Tax'!$I$2,lookups!$AG$19:$AJ$19,0))*'Property Tax'!$I$1*VLOOKUP(Front!$E$5,lookups!$BA$3:$BC$75,3,FALSE) ->  | G18: =((_xlfn.XLOOKUP(Front!$E$5,lookups!$BH$3:$BH$95,lookups!$BJ$3:$BJ$95)-_xlfn.XLOOKUP($I$2,lookups!$AG$34:$AG$36,lookups!$AH$34:$AH$36))*$I$1*_xlfn.XLOOKUP(Front!$E$5,lookups!$BH$3:$BH$95,lookups!$BK$3:$BK$95)/100) + 0.03*$F$4*MAX(((5-C18)/5),0.3)*$F$1 -> 405064.3369 | H18: =MAX(1-C18/Life_of_project__Years,0.3)*$F$4*$F$1*(VLOOKUP(Front!$E$5,lookups!$BM$3:$BN$86,2)/1000) -> 401862.422 | I18: 700000 | J18: 960809.2905 | K18: =9000*$F$1-INDEX(lookups!$AG$19:$AJ$26,MATCH(state,lookups!$AG$19:$AG$26,0),MATCH('Property Tax'!$I$2,lookups!$AG$19:$AJ$19,0))*$I$1 -> 885389.4594 | M18: 0.3 | N18: =1/((1+Front!$E$35)^C18) -> 0.4851939283 | P18: 10 | Q18: 0 | R18: 0 | S18: 0 | T18: =VLOOKUP(Front!$E$5,lookups!$BH$3:$BJ$95,3)*$I$1+INDEX(lookups!$AG$19:$AJ$26,MATCH('Property Tax'!$Q$1,lookups!$AG$19:$AG$26,0),MATCH('Property Tax'!$I$2,lookups!$AG$19:$AJ$19,0))*'Property Tax'!$I$1+0.03*0.3*$F$4*MAX(((5-C17)/5),0) -> 7814610.541 | U18: 0 | V18: 0 | W18: 0 | X18: 0
C19: 11 | D19: =0.0208*MAX(1-C19/Life_of_project__Years,0.3)*$F$4*$F$1-$I$3-INDEX(lookups!$AG$19:$AJ$26,MATCH($D$7,lookups!$AG$19:$AG$26,0),MATCH($I$2,lookups!$AG$19:$AJ$19,0))*$I$1 -> 241896.2506 | E19: =1590*$F$1*1.2-INDEX(lookups!$AG$19:$AJ$26,MATCH($E$7,lookups!$AG$19:$AG$26,0),MATCH($I$2,lookups!$AG$19:$AJ$19,0))*$I$1 -> 85806 | F19: =4000*$F$1-INDEX(lookups!$AG$19:$AJ$26,MATCH('Property Tax'!$F$7,lookups!$AG$19:$AG$26,0),MATCH('Property Tax'!$I$2,lookups!$AG$19:$AJ$19,0))*'Property Tax'!$I$1*VLOOKUP(Front!$E$5,lookups!$BA$3:$BC$75,3,FALSE) ->  | G19: =((_xlfn.XLOOKUP(Front!$E$5,lookups!$BH$3:$BH$95,lookups!$BJ$3:$BJ$95)-_xlfn.XLOOKUP($I$2,lookups!$AG$34:$AG$36,lookups!$AH$34:$AH$36))*$I$1*_xlfn.XLOOKUP(Front!$E$5,lookups!$BH$3:$BH$95,lookups!$BK$3:$BK$95)/100) + 0.03*$F$4*MAX(((5-C19)/5),0.3)*$F$1 -> 405064.3369 | H19: =MAX(1-C19/Life_of_project__Years,0.3)*$F$4*$F$1*(VLOOKUP(Front!$E$5,lookups!$BM$3:$BN$86,2)/1000) -> 381769.3009 | I19: 700000 | J19: 934883.742 | K19: =9000*$F$1-INDEX(lookups!$AG$19:$AJ$26,MATCH(state,lookups!$AG$19:$AG$26,0),MATCH('Property Tax'!$I$2,lookups!$AG$19:$AJ$19,0))*$I$1 -> 885389.4594 | M19: 0.3 | N19: =1/((1+Front!$E$35)^C19) -> 0.4513431891 | P19: 11 | Q19: 0 | R19: 0 | S19: 0 | T19: =VLOOKUP(Front!$E$5,lookups!$BH$3:$BJ$95,3)*$I$1+INDEX(lookups!$AG$19:$AJ$26,MATCH('Property Tax'!$Q$1,lookups!$AG$19:$AG$26,0),MATCH('Property Tax'!$I$2,lookups!$AG$19:$AJ$19,0))*'Property Tax'!$I$1+0.03*0.3*$F$4*MAX(((5-C18)/5),0) -> 7814610.541 | U19: 0 | V19: 0 | W19: 0 | X19: 0
C20: 12 | D20: =0.0208*MAX(1-C20/Life_of_project__Years,0.3)*$F$4*$F$1-$I$3-INDEX(lookups!$AG$19:$AJ$26,MATCH($D$7,lookups!$AG$19:$AG$26,0),MATCH($I$2,lookups!$AG$19:$AJ$19,0))*$I$1 -> 223921.2036 | E20: =1590*$F$1*1.2-INDEX(lookups!$AG$19:$AJ$26,MATCH($E$7,lookups!$AG$19:$AG$26,0),MATCH($I$2,lookups!$AG$19:$AJ$19,0))*$I$1 -> 85806 | F20: =4000*$F$1-INDEX(lookups!$AG$19:$AJ$26,MATCH('Property Tax'!$F$7,lookups!$AG$19:$AG$26,0),MATCH('Property Tax'!$I$2,lookups!$AG$19:$AJ$19,0))*'Property Tax'!$I$1*VLOOKUP(Front!$E$5,lookups!$BA$3:$BC$75,3,FALSE) ->  | G20: =((_xlfn.XLOOKUP(Front!$E$5,lookups!$BH$3:$BH$95,lookups!$BJ$3:$BJ$95)-_xlfn.XLOOKUP($I$2,lookups!$AG$34:$AG$36,lookups!$AH$34:$AH$36))*$I$1*_xlfn.XLOOKUP(Front!$E$5,lookups!$BH$3:$BH$95,lookups!$BK$3:$BK$95)/100) + 0.03*$F$4*MAX(((5-C20)/5),0.3)*$F$1 -> 405064.3369 | H20: =MAX(1-C20/Life_of_project__Years,0.3)*$F$4*$F$1*(VLOOKUP(Front!$E$5,lookups!$BM$3:$BN$86,2)/1000) -> 361676.1798 | I20: 700000 | J20: 908958.1934 | K20: =9000*$F$1-INDEX(lookups!$AG$19:$AJ$26,MATCH(state,lookups!$AG$19:$AG$26,0),MATCH('Property Tax'!$I$2,lookups!$AG$19:$AJ$19,0))*$I$1 -> 885389.4594 | M20: 0.3 | N20: =1/((1+Front!$E$35)^C20) -> 0.4198541294 | P20: 12 | Q20: 0 | R20: 0 | S20: 0 | T20: =VLOOKUP(Front!$E$5,lookups!$BH$3:$BJ$95,3)*$I$1+INDEX(lookups!$AG$19:$AJ$26,MATCH('Property Tax'!$Q$1,lookups!$AG$19:$AG$26,0),MATCH('Property Tax'!$I$2,lookups!$AG$19:$AJ$19,0))*'Property Tax'!$I$1+0.03*0.3*$F$4*MAX(((5-C19)/5),0) -> 7814610.541 | U20: 0 | V20: 0 | W20: 0 | X20: 0
C21: 13 | D21: =0.0208*MAX(1-C21/Life_of_project__Years,0.3)*$F$4*$F$1-$I$3-INDEX(lookups!$AG$19:$AJ$26,MATCH($D$7,lookups!$AG$19:$AG$26,0),MATCH($I$2,lookups!$AG$19:$AJ$19,0))*$I$1 -> 205946.1566 | E21: =1590*$F$1*1.2-INDEX(lookups!$AG$19:$AJ$26,MATCH($E$7,lookups!$AG$19:$AG$26,0),MATCH($I$2,lookups!$AG$19:$AJ$19,0))*$I$1 -> 85806 | F21: =4000*$F$1-INDEX(lookups!$AG$19:$AJ$26,MATCH('Property Tax'!$F$7,lookups!$AG$19:$AG$26,0),MATCH('Property Tax'!$I$2,lookups!$AG$19:$AJ$19,0))*'Property Tax'!$I$1*VLOOKUP(Front!$E$5,lookups!$BA$3:$BC$75,3,FALSE) ->  | G21: =((_xlfn.XLOOKUP(Front!$E$5,lookups!$BH$3:$BH$95,lookups!$BJ$3:$BJ$95)-_xlfn.XLOOKUP($I$2,lookups!$AG$34:$AG$36,lookups!$AH$34:$AH$36))*$I$1*_xlfn.XLOOKUP(Front!$E$5,lookups!$BH$3:$BH$95,lookups!$BK$3:$BK$95)/100) + 0.03*$F$4*MAX(((5-C21)/5),0.3)*$F$1 -> 405064.3369 | H21: =MAX(1-C21/Life_of_project__Years,0.3)*$F$4*$F$1*(VLOOKUP(Front!$E$5,lookups!$BM$3:$BN$86,2)/1000) -> 341583.0587 | I21: 700000 | J21: 883032.6449 | K21: =9000*$F$1-INDEX(lookups!$AG$19:$AJ$26,MATCH(state,lookups!$AG$19:$AG$26,0),MATCH('Property Tax'!$I$2,lookups!$AG$19:$AJ$19,0))*$I$1 -> 885389.4594 | M21: 0.3 | N21: =1/((1+Front!$E$35)^C21) -> 0.3905619808 | P21: 13 | Q21: 0 | R21: 0 | S21: 0 | T21: =VLOOKUP(Front!$E$5,lookups!$BH$3:$BJ$95,3)*$I$1+INDEX(lookups!$AG$19:$AJ$26,MATCH('Property Tax'!$Q$1,lookups!$AG$19:$AG$26,0),MATCH('Property Tax'!$I$2,lookups!$AG$19:$AJ$19,0))*'Property Tax'!$I$1+0.03*0.3*$F$4*MAX(((5-C20)/5),0) -> 7814610.541 | U21: 0 | V21: 0 | W21: 0 | X21: 0
C22: 14 | D22: =0.0208*MAX(1-C22/Life_of_project__Years,0.3)*$F$4*$F$1-$I$3-INDEX(lookups!$AG$19:$AJ$26,MATCH($D$7,lookups!$AG$19:$AG$26,0),MATCH($I$2,lookups!$AG$19:$AJ$19,0))*$I$1 -> 187971.1096 | E22: =1590*$F$1*1.2-INDEX(lookups!$AG$19:$AJ$26,MATCH($E$7,lookups!$AG$19:$AG$26,0),MATCH($I$2,lookups!$AG$19:$AJ$19,0))*$I$1 -> 85806 | F22: =4000*$F$1-INDEX(lookups!$AG$19:$AJ$26,MATCH('Property Tax'!$F$7,lookups!$AG$19:$AG$26,0),MATCH('Property Tax'!$I$2,lookups!$AG$19:$AJ$19,0))*'Property Tax'!$I$1*VLOOKUP(Front!$E$5,lookups!$BA$3:$BC$75,3,FALSE) ->  | G22: =((_xlfn.XLOOKUP(Front!$E$5,lookups!$BH$3:$BH$95,lookups!$BJ$3:$BJ$95)-_xlfn.XLOOKUP($I$2,lookups!$AG$34:$AG$36,lookups!$AH$34:$AH$36))*$I$1*_xlfn.XLOOKUP(Front!$E$5,lookups!$BH$3:$BH$95,lookups!$BK$3:$BK$95)/100) + 0.03*$F$4*MAX(((5-C22)/5),0.3)*$F$1 -> 405064.3369 | H22: =MAX(1-C22/Life_of_project__Years,0.3)*$F$4*$F$1*(VLOOKUP(Front!$E$5,lookups!$BM$3:$BN$86,2)/1000) -> 321489.9376 | I22: 700000 | J22: 857107.0963 | K22: =9000*$F$1-INDEX(lookups!$AG$19:$AJ$26,MATCH(state,lookups!$AG$19:$AG$26,0),MATCH('Property Tax'!$I$2,lookups!$AG$19:$AJ$19,0))*$I$1 -> 885389.4594 | M22: 0.3 | N22: =1/((1+Front!$E$35)^C22) -> 0.3633134706 | P22: 14 | Q22: 0 | R22: 0 | S22: 0 | T22: =VLOOKUP(Front!$E$5,lookups!$BH$3:$BJ$95,3)*$I$1+INDEX(lookups!$AG$19:$AJ$26,MATCH('Property Tax'!$Q$1,lookups!$AG$19:$AG$26,0),MATCH('Property Tax'!$I$2,lookups!$AG$19:$AJ$19,0))*'Property Tax'!$I$1+0.03*0.3*$F$4*MAX(((5-C21)/5),0) -> 7814610.541 | U22: 0 | V22: 0 | W22: 0 | X22: 0
C23: 15 | D23: =0.0208*MAX(1-C23/Life_of_project__Years,0.3)*$F$4*$F$1-$I$3-INDEX(lookups!$AG$19:$AJ$26,MATCH($D$7,lookups!$AG$19:$AG$26,0),MATCH($I$2,lookups!$AG$19:$AJ$19,0))*$I$1 -> 169996.0626 | E23: =1590*$F$1*1.2-INDEX(lookups!$AG$19:$AJ$26,MATCH($E$7,lookups!$AG$19:$AG$26,0),MATCH($I$2,lookups!$AG$19:$AJ$19,0))*$I$1 -> 85806 | F23: =4000*$F$1-INDEX(lookups!$AG$19:$AJ$26,MATCH('Property Tax'!$F$7,lookups!$AG$19:$AG$26,0),MATCH('Property Tax'!$I$2,lookups!$AG$19:$AJ$19,0))*'Property Tax'!$I$1*VLOOKUP(Front!$E$5,lookups!$BA$3:$BC$75,3,FALSE) ->  | G23: =((_xlfn.XLOOKUP(Front!$E$5,lookups!$BH$3:$BH$95,lookups!$BJ$3:$BJ$95)-_xlfn.XLOOKUP($I$2,lookups!$AG$34:$AG$36,lookups!$AH$34:$AH$36))*$I$1*_xlfn.XLOOKUP(Front!$E$5,lookups!$BH$3:$BH$95,lookups!$BK$3:$BK$95)/100) + 0.03*$F$4*MAX(((5-C23)/5),0.3)*$F$1 -> 405064.3369 | H23: =MAX(1-C23/Life_of_project__Years,0.3)*$F$4*$F$1*(VLOOKUP(Front!$E$5,lookups!$BM$3:$BN$86,2)/1000) -> 301396.8165 | I23: 700000 | J23: 831181.5478 | K23: =9000*$F$1-INDEX(lookups!$AG$19:$AJ$26,MATCH(state,lookups!$AG$19:$AG$26,0),MATCH('Property Tax'!$I$2,lookups!$AG$19:$AJ$19,0))*$I$1 -> 885389.4594 | M23: 0.3 | N23: =1/((1+Front!$E$35)^C23) -> 0.3379660191 | P23: 15 | Q23: 0 | R23: 0 | S23: 0 | T23: =VLOOKUP(Front!$E$5,lookups!$BH$3:$BJ$95,3)*$I$1+INDEX(lookups!$AG$19:$AJ$26,MATCH('Property Tax'!$Q$1,lookups!$AG$19:$AG$26,0),MATCH('Property Tax'!$I$2,lookups!$AG$19:$AJ$19,0))*'Property Tax'!$I$1+0.03*0.3*$F$4*MAX(((5-C22)/5),0) -> 7814610.541 | U23: 0 | V23: 0 | W23: 0 | X23: 0
C24: 16 | D24: =0.0208*MAX(1-C24/Life_of_project__Years,0.3)*$F$4*$F$1-$I$3-INDEX(lookups!$AG$19:$AJ$26,MATCH($D$7,lookups!$AG$19:$AG$26,0),MATCH($I$2,lookups!$AG$19:$AJ$19,0))*$I$1 -> 152021.0156 | E24: =1590*$F$1*1.2-INDEX(lookups!$AG$19:$AJ$26,MATCH($E$7,lookups!$AG$19:$AG$26,0),MATCH($I$2,lookups!$AG$19:$AJ$19,0))*$I$1 -> 85806 | F24: =4000*$F$1-INDEX(lookups!$AG$19:$AJ$26,MATCH('Property Tax'!$F$7,lookups!$AG$19:$AG$26,0),MATCH('Property Tax'!$I$2,lookups!$AG$19:$AJ$19,0))*'Property Tax'!$I$1*VLOOKUP(Front!$E$5,lookups!$BA$3:$BC$75,3,FALSE) ->  | G24: =((_xlfn.XLOOKUP(Front!$E$5,lookups!$BH$3:$BH$95,lookups!$BJ$3:$BJ$95)-_xlfn.XLOOKUP($I$2,lookups!$AG$34:$AG$36,lookups!$AH$34:$AH$36))*$I$1*_xlfn.XLOOKUP(Front!$E$5,lookups!$BH$3:$BH$95,lookups!$BK$3:$BK$95)/100) + 0.03*$F$4*MAX(((5-C24)/5),0.3)*$F$1 -> 405064.3369 | H24: =MAX(1-C24/Life_of_project__Years,0.3)*$F$4*$F$1*(VLOOKUP(Front!$E$5,lookups!$BM$3:$BN$86,2)/1000) -> 281303.6954 | I24: 700000 | J24: 805255.9992 | K24: =9000*$F$1-INDEX(lookups!$AG$19:$AJ$26,MATCH(state,lookups!$AG$19:$AG$26,0),MATCH('Property Tax'!$I$2,lookups!$AG$19:$AJ$19,0))*$I$1 -> 885389.4594 | M24: 0.3 | N24: =1/((1+Front!$E$35)^C24) -> 0.3143869945 | P24: 16 | Q24: 0 | R24: 0 | S24: 0 | T24: =VLOOKUP(Front!$E$5,lookups!$BH$3:$BJ$95,3)*$I$1+INDEX(lookups!$AG$19:$AJ$26,MATCH('Property Tax'!$Q$1,lookups!$AG$19:$AG$26,0),MATCH('Property Tax'!$I$2,lookups!$AG$19:$AJ$19,0))*'Property Tax'!$I$1+0.03*0.3*$F$4*MAX(((5-C23)/5),0) -> 7814610.541 | U24: 0 | V24: 0 | W24: 0 | X24: 0
C25: 17 | D25: =0.0208*MAX(1-C25/Life_of_project__Years,0.3)*$F$4*$F$1-$I$3-INDEX(lookups!$AG$19:$AJ$26,MATCH($D$7,lookups!$AG$19:$AG$26,0),MATCH($I$2,lookups!$AG$19:$AJ$19,0))*$I$1 -> 134045.9686 | E25: =1590*$F$1*1.2-INDEX(lookups!$AG$19:$AJ$26,MATCH($E$7,lookups!$AG$19:$AG$26,0),MATCH($I$2,lookups!$AG$19:$AJ$19,0))*$I$1 -> 85806 | F25: =4000*$F$1-INDEX(lookups!$AG$19:$AJ$26,MATCH('Property Tax'!$F$7,lookups!$AG$19:$AG$26,0),MATCH('Property Tax'!$I$2,lookups!$AG$19:$AJ$19,0))*'Property Tax'!$I$1*VLOOKUP(Front!$E$5,lookups!$BA$3:$BC$75,3,FALSE) ->  | G25: =((_xlfn.XLOOKUP(Front!$E$5,lookups!$BH$3:$BH$95,lookups!$BJ$3:$BJ$95)-_xlfn.XLOOKUP($I$2,lookups!$AG$34:$AG$36,lookups!$AH$34:$AH$36))*$I$1*_xlfn.XLOOKUP(Front!$E$5,lookups!$BH$3:$BH$95,lookups!$BK$3:$BK$95)/100) + 0.03*$F$4*MAX(((5-C25)/5),0.3)*$F$1 -> 405064.3369 | H25: =MAX(1-C25/Life_of_project__Years,0.3)*$F$4*$F$1*(VLOOKUP(Front!$E$5,lookups!$BM$3:$BN$86,2)/1000) -> 261210.5743 | I25: 700000 | J25: 779330.4507 | K25: =9000*$F$1-INDEX(lookups!$AG$19:$AJ$26,MATCH(state,lookups!$AG$19:$AG$26,0),MATCH('Property Tax'!$I$2,lookups!$AG$19:$AJ$19,0))*$I$1 -> 885389.4594 | M25: 0.3 | N25: =1/((1+Front!$E$35)^C25) -> 0.2924530182 | P25: 17 | Q25: 0 | R25: 0 | S25: 0 | T25: =VLOOKUP(Front!$E$5,lookups!$BH$3:$BJ$95,3)*$I$1+INDEX(lookups!$AG$19:$AJ$26,MATCH('Property Tax'!$Q$1,lookups!$AG$19:$AG$26,0),MATCH('Property Tax'!$I$2,lookups!$AG$19:$AJ$19,0))*'Property Tax'!$I$1+0.03*0.3*$F$4*MAX(((5-C24)/5),0) -> 7814610.541 | U25: 0 | V25: 0 | W25: 0 | X25: 0
C26: 18 | D26: =0.0208*MAX(1-C26/Life_of_project__Years,0.3)*$F$4*$F$1-$I$3-INDEX(lookups!$AG$19:$AJ$26,MATCH($D$7,lookups!$AG$19:$AG$26,0),MATCH($I$2,lookups!$AG$19:$AJ$19,0))*$I$1 -> 116070.9216 | E26: =1590*$F$1*1.2-INDEX(lookups!$AG$19:$AJ$26,MATCH($E$7,lookups!$AG$19:$AG$26,0),MATCH($I$2,lookups!$AG$19:$AJ$19,0))*$I$1 -> 85806 | F26: =4000*$F$1-INDEX(lookups!$AG$19:$AJ$26,MATCH('Property Tax'!$F$7,lookups!$AG$19:$AG$26,0),MATCH('Property Tax'!$I$2,lookups!$AG$19:$AJ$19,0))*'Property Tax'!$I$1*VLOOKUP(Front!$E$5,lookups!$BA$3:$BC$75,3,FALSE) ->  | G26: =((_xlfn.XLOOKUP(Front!$E$5,lookups!$BH$3:$BH$95,lookups!$BJ$3:$BJ$95)-_xlfn.XLOOKUP($I$2,lookups!$AG$34:$AG$36,lookups!$AH$34:$AH$36))*$I$1*_xlfn.XLOOKUP(Front!$E$5,lookups!$BH$3:$BH$95,lookups!$BK$3:$BK$95)/100) + 0.03*$F$4*MAX(((5-C26)/5),0.3)*$F$1 -> 405064.3369 | H26: =MAX(1-C26/Life_of_project__Years,0.3)*$F$4*$F$1*(VLOOKUP(Front!$E$5,lookups!$BM$3:$BN$86,2)/1000) -> 241117.4532 | I26: 700000 | J26: 753404.9021 | K26: =9000*$F$1-INDEX(lookups!$AG$19:$AJ$26,MATCH(state,lookups!$AG$19:$AG$26,0),MATCH('Property Tax'!$I$2,lookups!$AG$19:$AJ$19,0))*$I$1 -> 885389.4594 | M26: 0.3 | N26: =1/((1+Front!$E$35)^C26) -> 0.2720493192 | P26: 18 | Q26: 0 | R26: 0 | S26: 0 | T26: =VLOOKUP(Front!$E$5,lookups!$BH$3:$BJ$95,3)*$I$1+INDEX(lookups!$AG$19:$AJ$26,MATCH('Property Tax'!$Q$1,lookups!$AG$19:$AG$26,0),MATCH('Property Tax'!$I$2,lookups!$AG$19:$AJ$19,0))*'Property Tax'!$I$1+0.03*0.3*$F$4*MAX(((5-C25)/5),0) -> 7814610.541 | U26: 0 | V26: 0 | W26: 0 | X26: 0
C27: 19 | D27: =0.0208*MAX(1-C27/Life_of_project__Years,0.3)*$F$4*$F$1-$I$3-INDEX(lookups!$AG$19:$AJ$26,MATCH($D$7,lookups!$AG$19:$AG$26,0),MATCH($I$2,lookups!$AG$19:$AJ$19,0))*$I$1 -> 98095.87464 | E27: =1590*$F$1*1.2-INDEX(lookups!$AG$19:$AJ$26,MATCH($E$7,lookups!$AG$19:$AG$26,0),MATCH($I$2,lookups!$AG$19:$AJ$19,0))*$I$1 -> 85806 | F27: =4000*$F$1-INDEX(lookups!$AG$19:$AJ$26,MATCH('Property Tax'!$F$7,lookups!$AG$19:$AG$26,0),MATCH('Property Tax'!$I$2,lookups!$AG$19:$AJ$19,0))*'Property Tax'!$I$1*VLOOKUP(Front!$E$5,lookups!$BA$3:$BC$75,3,FALSE) ->  | G27: =((_xlfn.XLOOKUP(Front!$E$5,lookups!$BH$3:$BH$95,lookups!$BJ$3:$BJ$95)-_xlfn.XLOOKUP($I$2,lookups!$AG$34:$AG$36,lookups!$AH$34:$AH$36))*$I$1*_xlfn.XLOOKUP(Front!$E$5,lookups!$BH$3:$BH$95,lookups!$BK$3:$BK$95)/100) + 0.03*$F$4*MAX(((5-C27)/5),0.3)*$F$1 -> 405064.3369 | H27: =MAX(1-C27/Life_of_project__Years,0.3)*$F$4*$F$1*(VLOOKUP(Front!$E$5,lookups!$BM$3:$BN$86,2)/1000) -> 221024.3321 | I27: 700000 | J27: 727479.3536 | K27: =9000*$F$1-INDEX(lookups!$AG$19:$AJ$26,MATCH(state,lookups!$AG$19:$AG$26,0),MATCH('Property Tax'!$I$2,lookups!$AG$19:$AJ$19,0))*$I$1 -> 885389.4594 | M27: 0.3 | N27: =1/((1+Front!$E$35)^C27) -> 0.2530691342 | P27: 19 | Q27: 0 | R27: 0 | S27: 0 | T27: =VLOOKUP(Front!$E$5,lookups!$BH$3:$BJ$95,3)*$I$1+INDEX(lookups!$AG$19:$AJ$26,MATCH('Property Tax'!$Q$1,lookups!$AG$19:$AG$26,0),MATCH('Property Tax'!$I$2,lookups!$AG$19:$AJ$19,0))*'Property Tax'!$I$1+0.03*0.3*$F$4*MAX(((5-C26)/5),0) -> 7814610.541 | U27: 0 | V27: 0 | W27: 0 | X27: 0
C28: 20 | D28: =0.0208*MAX(1-C28/Life_of_project__Years,0.3)*$F$4*$F$1-$I$3-INDEX(lookups!$AG$19:$AJ$26,MATCH($D$7,lookups!$AG$19:$AG$26,0),MATCH($I$2,lookups!$AG$19:$AJ$19,0))*$I$1 -> 80120.82765 | E28: =1590*$F$1*1.2-INDEX(lookups!$AG$19:$AJ$26,MATCH($E$7,lookups!$AG$19:$AG$26,0),MATCH($I$2,lookups!$AG$19:$AJ$19,0))*$I$1 -> 85806 | F28: =4000*$F$1-INDEX(lookups!$AG$19:$AJ$26,MATCH('Property Tax'!$F$7,lookups!$AG$19:$AG$26,0),MATCH('Property Tax'!$I$2,lookups!$AG$19:$AJ$19,0))*'Property Tax'!$I$1*VLOOKUP(Front!$E$5,lookups!$BA$3:$BC$75,3,FALSE) ->  | G28: =((_xlfn.XLOOKUP(Front!$E$5,lookups!$BH$3:$BH$95,lookups!$BJ$3:$BJ$95)-_xlfn.XLOOKUP($I$2,lookups!$AG$34:$AG$36,lookups!$AH$34:$AH$36))*$I$1*_xlfn.XLOOKUP(Front!$E$5,lookups!$BH$3:$BH$95,lookups!$BK$3:$BK$95)/100) + 0.03*$F$4*MAX(((5-C28)/5),0.3)*$F$1 -> 405064.3369 | H28: =MAX(1-C28/Life_of_project__Years,0.3)*$F$4*$F$1*(VLOOKUP(Front!$E$5,lookups!$BM$3:$BN$86,2)/1000) -> 200931.211 | I28: 700000 | J28: 701553.8051 | K28: =9000*$F$1-INDEX(lookups!$AG$19:$AJ$26,MATCH(state,lookups!$AG$19:$AG$26,0),MATCH('Property Tax'!$I$2,lookups!$AG$19:$AJ$19,0))*$I$1 -> 885389.4594 | M28: 0.3 | N28: =1/((1+Front!$E$35)^C28) -> 0.2354131481 | P28: 20 | Q28: 0 | R28: 0 | S28: 0 | T28: =VLOOKUP(Front!$E$5,lookups!$BH$3:$BJ$95,3)*$I$1+INDEX(lookups!$AG$19:$AJ$26,MATCH('Property Tax'!$Q$1,lookups!$AG$19:$AG$26,0),MATCH('Property Tax'!$I$2,lookups!$AG$19:$AJ$19,0))*'Property Tax'!$I$1+0.03*0.3*$F$4*MAX(((5-C27)/5),0) -> 7814610.541 | U28: 0 | V28: 0 | W28: 0 | X28: 0
C29: 21 | D29: =0.0208*MAX(1-C29/Life_of_project__Years,0.3)*$F$4*$F$1-$I$3-INDEX(lookups!$AG$19:$AJ$26,MATCH($D$7,lookups!$AG$19:$AG$26,0),MATCH($I$2,lookups!$AG$19:$AJ$19,0))*$I$1 -> 62145.78065 | E29: =1590*$F$1*1.2-INDEX(lookups!$AG$19:$AJ$26,MATCH($E$7,lookups!$AG$19:$AG$26,0),MATCH($I$2,lookups!$AG$19:$AJ$19,0))*$I$1 -> 85806 | F29: =4000*$F$1-INDEX(lookups!$AG$19:$AJ$26,MATCH('Property Tax'!$F$7,lookups!$AG$19:$AG$26,0),MATCH('Property Tax'!$I$2,lookups!$AG$19:$AJ$19,0))*'Property Tax'!$I$1*VLOOKUP(Front!$E$5,lookups!$BA$3:$BC$75,3,FALSE) ->  | G29: =((_xlfn.XLOOKUP(Front!$E$5,lookups!$BH$3:$BH$95,lookups!$BJ$3:$BJ$95)-_xlfn.XLOOKUP($I$2,lookups!$AG$34:$AG$36,lookups!$AH$34:$AH$36))*$I$1*_xlfn.XLOOKUP(Front!$E$5,lookups!$BH$3:$BH$95,lookups!$BK$3:$BK$95)/100) + 0.03*$F$4*MAX(((5-C29)/5),0.3)*$F$1 -> 405064.3369 | H29: =MAX(1-C29/Life_of_project__Years,0.3)*$F$4*$F$1*(VLOOKUP(Front!$E$5,lookups!$BM$3:$BN$86,2)/1000) -> 180838.0899 | I29: 0 | J29: 675628.2565 | K29: =9000*$F$1-INDEX(lookups!$AG$19:$AJ$26,MATCH(state,lookups!$AG$19:$AG$26,0),MATCH('Property Tax'!$I$2,lookups!$AG$19:$AJ$19,0))*$I$1 -> 885389.4594 | M29: 0.3 | N29: =1/((1+Front!$E$35)^C29) -> 0.2189889749 | P29: 21 | Q29: 0 | R29: 0 | S29: 0 | T29: =VLOOKUP(Front!$E$5,lookups!$BH$3:$BJ$95,3)*$I$1+INDEX(lookups!$AG$19:$AJ$26,MATCH('Property Tax'!$Q$1,lookups!$AG$19:$AG$26,0),MATCH('Property Tax'!$I$2,lookups!$AG$19:$AJ$19,0))*'Property Tax'!$I$1+0.03*0.3*$F$4*MAX(((5-C28)/5),0) -> 7814610.541 | U29: 0 | V29: 0 | W29: 0 | X29: 0
C30: 22 | D30: =0.0208*MAX(1-C30/Life_of_project__Years,0.3)*$F$4*$F$1-$I$3-INDEX(lookups!$AG$19:$AJ$26,MATCH($D$7,lookups!$AG$19:$AG$26,0),MATCH($I$2,lookups!$AG$19:$AJ$19,0))*$I$1 -> 62145.78065 | E30: =1590*$F$1*1.2-INDEX(lookups!$AG$19:$AJ$26,MATCH($E$7,lookups!$AG$19:$AG$26,0),MATCH($I$2,lookups!$AG$19:$AJ$19,0))*$I$1 -> 85806 | F30: =4000*$F$1-INDEX(lookups!$AG$19:$AJ$26,MATCH('Property Tax'!$F$7,lookups!$AG$19:$AG$26,0),MATCH('Property Tax'!$I$2,lookups!$AG$19:$AJ$19,0))*'Property Tax'!$I$1*VLOOKUP(Front!$E$5,lookups!$BA$3:$BC$75,3,FALSE) ->  | G30: =((_xlfn.XLOOKUP(Front!$E$5,lookups!$BH$3:$BH$95,lookups!$BJ$3:$BJ$95)-_xlfn.XLOOKUP($I$2,lookups!$AG$34:$AG$36,lookups!$AH$34:$AH$36))*$I$1*_xlfn.XLOOKUP(Front!$E$5,lookups!$BH$3:$BH$95,lookups!$BK$3:$BK$95)/100) + 0.03*$F$4*MAX(((5-C30)/5),0.3)*$F$1 -> 405064.3369 | H30: =MAX(1-C30/Life_of_project__Years,0.3)*$F$4*$F$1*(VLOOKUP(Front!$E$5,lookups!$BM$3:$BN$86,2)/1000) -> 180838.0899 | I30: 0 | J30: 675628.2565 | K30: =9000*$F$1-INDEX(lookups!$AG$19:$AJ$26,MATCH(state,lookups!$AG$19:$AG$26,0),MATCH('Property Tax'!$I$2,lookups!$AG$19:$AJ$19,0))*$I$1 -> 885389.4594 | M30: 0.3 | N30: =1/((1+Front!$E$35)^C30) -> 0.2037106744 | P30: 22 | Q30: 0 | R30: 0 | S30: 0 | T30: =VLOOKUP(Front!$E$5,lookups!$BH$3:$BJ$95,3)*$I$1+INDEX(lookups!$AG$19:$AJ$26,MATCH('Property Tax'!$Q$1,lookups!$AG$19:$AG$26,0),MATCH('Property Tax'!$I$2,lookups!$AG$19:$AJ$19,0))*'Property Tax'!$I$1+0.03*0.3*$F$4*MAX(((5-C29)/5),0) -> 7814610.541 | U30: 0 | V30: 0 | W30: 0 | X30: 0
C31: 23 | D31: =0.0208*MAX(1-C31/Life_of_project__Years,0.3)*$F$4*$F$1-$I$3-INDEX(lookups!$AG$19:$AJ$26,MATCH($D$7,lookups!$AG$19:$AG$26,0),MATCH($I$2,lookups!$AG$19:$AJ$19,0))*$I$1 -> 62145.78065 | E31: =1590*$F$1*1.2-INDEX(lookups!$AG$19:$AJ$26,MATCH($E$7,lookups!$AG$19:$AG$26,0),MATCH($I$2,lookups!$AG$19:$AJ$19,0))*$I$1 -> 85806 | F31: =4000*$F$1-INDEX(lookups!$AG$19:$AJ$26,MATCH('Property Tax'!$F$7,lookups!$AG$19:$AG$26,0),MATCH('Property Tax'!$I$2,lookups!$AG$19:$AJ$19,0))*'Property Tax'!$I$1*VLOOKUP(Front!$E$5,lookups!$BA$3:$BC$75,3,FALSE) ->  | G31: =((_xlfn.XLOOKUP(Front!$E$5,lookups!$BH$3:$BH$95,lookups!$BJ$3:$BJ$95)-_xlfn.XLOOKUP($I$2,lookups!$AG$34:$AG$36,lookups!$AH$34:$AH$36))*$I$1*_xlfn.XLOOKUP(Front!$E$5,lookups!$BH$3:$BH$95,lookups!$BK$3:$BK$95)/100) + 0.03*$F$4*MAX(((5-C31)/5),0.3)*$F$1 -> 405064.3369 | H31: =MAX(1-C31/Life_of_project__Years,0.3)*$F$4*$F$1*(VLOOKUP(Front!$E$5,lookups!$BM$3:$BN$86,2)/1000) -> 180838.0899 | I31: 0 | J31: 675628.2565 | K31: =9000*$F$1-INDEX(lookups!$AG$19:$AJ$26,MATCH(state,lookups!$AG$19:$AG$26,0),MATCH('Property Tax'!$I$2,lookups!$AG$19:$AJ$19,0))*$I$1 -> 885389.4594 | M31: 0.3 | N31: =1/((1+Front!$E$35)^C31) -> 0.1894983017 | P31: 23 | Q31: 0 | R31: 0 | S31: 0 | T31: =VLOOKUP(Front!$E$5,lookups!$BH$3:$BJ$95,3)*$I$1+INDEX(lookups!$AG$19:$AJ$26,MATCH('Property Tax'!$Q$1,lookups!$AG$19:$AG$26,0),MATCH('Property Tax'!$I$2,lookups!$AG$19:$AJ$19,0))*'Property Tax'!$I$1+0.03*0.3*$F$4*MAX(((5-C30)/5),0) -> 7814610.541 | U31: 0 | V31: 0 | W31: 0 | X31: 0
C32: 24 | D32: =0.0208*MAX(1-C32/Life_of_project__Years,0.3)*$F$4*$F$1-$I$3-INDEX(lookups!$AG$19:$AJ$26,MATCH($D$7,lookups!$AG$19:$AG$26,0),MATCH($I$2,lookups!$AG$19:$AJ$19,0))*$I$1 -> 62145.78065 | E32: =1590*$F$1*1.2-INDEX(lookups!$AG$19:$AJ$26,MATCH($E$7,lookups!$AG$19:$AG$26,0),MATCH($I$2,lookups!$AG$19:$AJ$19,0))*$I$1 -> 85806 | F32: =4000*$F$1-INDEX(lookups!$AG$19:$AJ$26,MATCH('Property Tax'!$F$7,lookups!$AG$19:$AG$26,0),MATCH('Property Tax'!$I$2,lookups!$AG$19:$AJ$19,0))*'Property Tax'!$I$1*VLOOKUP(Front!$E$5,lookups!$BA$3:$BC$75,3,FALSE) ->  | G32: =((_xlfn.XLOOKUP(Front!$E$5,lookups!$BH$3:$BH$95,lookups!$BJ$3:$BJ$95)-_xlfn.XLOOKUP($I$2,lookups!$AG$34:$AG$36,lookups!$AH$34:$AH$36))*$I$1*_xlfn.XLOOKUP(Front!$E$5,lookups!$BH$3:$BH$95,lookups!$BK$3:$BK$95)/100) + 0.03*$F$4*MAX(((5-C32)/5),0.3)*$F$1 -> 405064.3369 | H32: =MAX(1-C32/Life_of_project__Years,0.3)*$F$4*$F$1*(VLOOKUP(Front!$E$5,lookups!$BM$3:$BN$86,2)/1000) -> 180838.0899 | I32: 0 | J32: 675628.2565 | K32: =9000*$F$1-INDEX(lookups!$AG$19:$AJ$26,MATCH(state,lookups!$AG$19:$AG$26,0),MATCH('Property Tax'!$I$2,lookups!$AG$19:$AJ$19,0))*$I$1 -> 885389.4594 | M32: 0.3 | N32: =1/((1+Front!$E$35)^C32) -> 0.17627749 | P32: 24 | Q32: 0 | R32: 0 | S32: 0 | T32: =VLOOKUP(Front!$E$5,lookups!$BH$3:$BJ$95,3)*$I$1+INDEX(lookups!$AG$19:$AJ$26,MATCH('Property Tax'!$Q$1,lookups!$AG$19:$AG$26,0),MATCH('Property Tax'!$I$2,lookups!$AG$19:$AJ$19,0))*'Property Tax'!$I$1+0.03*0.3*$F$4*MAX(((5-C31)/5),0) -> 7814610.541 | U32: 0 | V32: 0 | W32: 0 | X32: 0
C33: 25 | D33: =0.0208*MAX(1-C33/Life_of_project__Years,0.3)*$F$4*$F$1-$I$3-INDEX(lookups!$AG$19:$AJ$26,MATCH($D$7,lookups!$AG$19:$AG$26,0),MATCH($I$2,lookups!$AG$19:$AJ$19,0))*$I$1 -> 62145.78065 | E33: =1590*$F$1*1.2-INDEX(lookups!$AG$19:$AJ$26,MATCH($E$7,lookups!$AG$19:$AG$26,0),MATCH($I$2,lookups!$AG$19:$AJ$19,0))*$I$1 -> 85806 | F33: =4000*$F$1-INDEX(lookups!$AG$19:$AJ$26,MATCH('Property Tax'!$F$7,lookups!$AG$19:$AG$26,0),MATCH('Property Tax'!$I$2,lookups!$AG$19:$AJ$19,0))*'Property Tax'!$I$1*VLOOKUP(Front!$E$5,lookups!$BA$3:$BC$75,3,FALSE) ->  | G33: =((_xlfn.XLOOKUP(Front!$E$5,lookups!$BH$3:$BH$95,lookups!$BJ$3:$BJ$95)-_xlfn.XLOOKUP($I$2,lookups!$AG$34:$AG$36,lookups!$AH$34:$AH$36))*$I$1*_xlfn.XLOOKUP(Front!$E$5,lookups!$BH$3:$BH$95,lookups!$BK$3:$BK$95)/100) + 0.03*$F$4*MAX(((5-C33)/5),0.3)*$F$1 -> 405064.3369 | H33: =MAX(1-C33/Life_of_project__Years,0.3)*$F$4*$F$1*(VLOOKUP(Front!$E$5,lookups!$BM$3:$BN$86,2)/1000) -> 180838.0899 | I33: 0 | J33: 675628.2565 | K33: =9000*$F$1-INDEX(lookups!$AG$19:$AJ$26,MATCH(state,lookups!$AG$19:$AG$26,0),MATCH('Property Tax'!$I$2,lookups!$AG$19:$AJ$19,0))*$I$1 -> 885389.4594 | M33: 0.3 | N33: =1/((1+Front!$E$35)^C33) -> 0.1639790605 | P33: 25 | Q33: 0 | R33: 0 | S33: 0 | T33: =VLOOKUP(Front!$E$5,lookups!$BH$3:$BJ$95,3)*$I$1+INDEX(lookups!$AG$19:$AJ$26,MATCH('Property Tax'!$Q$1,lookups!$AG$19:$AG$26,0),MATCH('Property Tax'!$I$2,lookups!$AG$19:$AJ$19,0))*'Property Tax'!$I$1+0.03*0.3*$F$4*MAX(((5-C32)/5),0) -> 7814610.541 | U33: 0 | V33: 0 | W33: 0 | X33: 0
C34: =IF(C$33+1>Life_of_project__Years,0,C33+1) -> 26 | D34: =0.0208*MAX(1-C34/Life_of_project__Years,0.3)*$F$4*$F$1-$I$3-INDEX(lookups!$AG$19:$AJ$26,MATCH($D$7,lookups!$AG$19:$AG$26,0),MATCH($I$2,lookups!$AG$19:$AJ$19,0))*$I$1 -> 62145.78065 | E34: =1590*$F$1*1.2-INDEX(lookups!$AG$19:$AJ$26,MATCH($E$7,lookups!$AG$19:$AG$26,0),MATCH($I$2,lookups!$AG$19:$AJ$19,0))*$I$1 -> 85806 | F34: =4000*$F$1-INDEX(lookups!$AG$19:$AJ$26,MATCH('Property Tax'!$F$7,lookups!$AG$19:$AG$26,0),MATCH('Property Tax'!$I$2,lookups!$AG$19:$AJ$19,0))*'Property Tax'!$I$1*VLOOKUP(Front!$E$5,lookups!$BA$3:$BC$75,3,FALSE) ->  | G34: =((_xlfn.XLOOKUP(Front!$E$5,lookups!$BH$3:$BH$95,lookups!$BJ$3:$BJ$95)-_xlfn.XLOOKUP($I$2,lookups!$AG$34:$AG$36,lookups!$AH$34:$AH$36))*$I$1*_xlfn.XLOOKUP(Front!$E$5,lookups!$BH$3:$BH$95,lookups!$BK$3:$BK$95)/100) + 0.03*$F$4*MAX(((5-C34)/5),0.3)*$F$1 -> 405064.3369 | H34: =MAX(1-C34/Life_of_project__Years,0.3)*$F$4*$F$1*(VLOOKUP(Front!$E$5,lookups!$BM$3:$BN$86,2)/1000) -> 180838.0899 | I34: 0 | J34: =IF(C34=0,0,$F$2*M34*1000*0.0006 + 0.00259183*$F$2*1000 + 5*550 + MAX(1-C34/Life_of_project__Years,0.3)*$F$4*$F$1*0.03) -> 675628.2565 | K34: =9000*$F$1-INDEX(lookups!$AG$19:$AJ$26,MATCH(state,lookups!$AG$19:$AG$26,0),MATCH('Property Tax'!$I$2,lookups!$AG$19:$AJ$19,0))*$I$1 -> 885389.4594 | M34: 0.3 | N34: =1/((1+Front!$E$35)^C34) -> 0.1525386609 | P34: =IF(P$33+1>Life_of_project__Years,0,P33+1) -> 26 | Q34: 0 | R34: 0 | S34: 0 | T34: =VLOOKUP(Front!$E$5,lookups!$BH$3:$BJ$95,3)*$I$1+INDEX(lookups!$AG$19:$AJ$26,MATCH('Property Tax'!$Q$1,lookups!$AG$19:$AG$26,0),MATCH('Property Tax'!$I$2,lookups!$AG$19:$AJ$19,0))*'Property Tax'!$I$1+0.03*0.3*$F$4*MAX(((5-C33)/5),0) -> 7814610.541 | U34: 0 | V34: 0 | W34: 0 | X34: 0
C35: =IF(C$33+1>Life_of_project__Years,0,C34+1) -> 27 | D35: =0.0208*MAX(1-C35/Life_of_project__Years,0.3)*$F$4*$F$1-$I$3-INDEX(lookups!$AG$19:$AJ$26,MATCH($D$7,lookups!$AG$19:$AG$26,0),MATCH($I$2,lookups!$AG$19:$AJ$19,0))*$I$1 -> 62145.78065 | E35: =1590*$F$1*1.2-INDEX(lookups!$AG$19:$AJ$26,MATCH($E$7,lookups!$AG$19:$AG$26,0),MATCH($I$2,lookups!$AG$19:$AJ$19,0))*$I$1 -> 85806 | F35: =4000*$F$1-INDEX(lookups!$AG$19:$AJ$26,MATCH('Property Tax'!$F$7,lookups!$AG$19:$AG$26,0),MATCH('Property Tax'!$I$2,lookups!$AG$19:$AJ$19,0))*'Property Tax'!$I$1*VLOOKUP(Front!$E$5,lookups!$BA$3:$BC$75,3,FALSE) ->  | G35: =((_xlfn.XLOOKUP(Front!$E$5,lookups!$BH$3:$BH$95,lookups!$BJ$3:$BJ$95)-_xlfn.XLOOKUP($I$2,lookups!$AG$34:$AG$36,lookups!$AH$34:$AH$36))*$I$1*_xlfn.XLOOKUP(Front!$E$5,lookups!$BH$3:$BH$95,lookups!$BK$3:$BK$95)/100) + 0.03*$F$4*MAX(((5-C35)/5),0.3)*$F$1 -> 405064.3369 | H35: =MAX(1-C35/Life_of_project__Years,0.3)*$F$4*$F$1*(VLOOKUP(Front!$E$5,lookups!$BM$3:$BN$86,2)/1000) -> 180838.0899 | I35: 0 | J35: =IF(C35=0,0,$F$2*M35*1000*0.0006 + 0.00259183*$F$2*1000 + 5*550 + MAX(1-C35/Life_of_project__Years,0.3)*$F$4*$F$1*0.03) -> 675628.2565 | K35: =9000*$F$1-INDEX(lookups!$AG$19:$AJ$26,MATCH(state,lookups!$AG$19:$AG$26,0),MATCH('Property Tax'!$I$2,lookups!$AG$19:$AJ$19,0))*$I$1 -> 885389.4594 | M35: 0.3 | N35: =1/((1+Front!$E$35)^C35) -> 0.1418964287 | P35: =IF(P$33+1>Life_of_project__Years,0,P34+1) -> 27 | Q35: 0 | R35: 0 | S35: 0 | T35: =VLOOKUP(Front!$E$5,lookups!$BH$3:$BJ$95,3)*$I$1+INDEX(lookups!$AG$19:$AJ$26,MATCH('Property Tax'!$Q$1,lookups!$AG$19:$AG$26,0),MATCH('Property Tax'!$I$2,lookups!$AG$19:$AJ$19,0))*'Property Tax'!$I$1+0.03*0.3*$F$4*MAX(((5-C34)/5),0) -> 7814610.541 | U35: 0 | V35: 0 | W35: 0 | X35: 0
C36: =IF(C$33+1>Life_of_project__Years,0,C35+1) -> 28 | D36: =0.0208*MAX(1-C36/Life_of_project__Years,0.3)*$F$4*$F$1-$I$3-INDEX(lookups!$AG$19:$AJ$26,MATCH($D$7,lookups!$AG$19:$AG$26,0),MATCH($I$2,lookups!$AG$19:$AJ$19,0))*$I$1 -> 62145.78065 | E36: =1590*$F$1*1.2-INDEX(lookups!$AG$19:$AJ$26,MATCH($E$7,lookups!$AG$19:$AG$26,0),MATCH($I$2,lookups!$AG$19:$AJ$19,0))*$I$1 -> 85806 | F36: =4000*$F$1-INDEX(lookups!$AG$19:$AJ$26,MATCH('Property Tax'!$F$7,lookups!$AG$19:$AG$26,0),MATCH('Property Tax'!$I$2,lookups!$AG$19:$AJ$19,0))*'Property Tax'!$I$1*VLOOKUP(Front!$E$5,lookups!$BA$3:$BC$75,3,FALSE) ->  | G36: =((_xlfn.XLOOKUP(Front!$E$5,lookups!$BH$3:$BH$95,lookups!$BJ$3:$BJ$95)-_xlfn.XLOOKUP($I$2,lookups!$AG$34:$AG$36,lookups!$AH$34:$AH$36))*$I$1*_xlfn.XLOOKUP(Front!$E$5,lookups!$BH$3:$BH$95,lookups!$BK$3:$BK$95)/100) + 0.03*$F$4*MAX(((5-C36)/5),0.3)*$F$1 -> 405064.3369 | H36: =MAX(1-C36/Life_of_project__Years,0.3)*$F$4*$F$1*(VLOOKUP(Front!$E$5,lookups!$BM$3:$BN$86,2)/1000) -> 180838.0899 | I36: 0 | J36: =IF(C36=0,0,$F$2*M36*1000*0.0006 + 0.00259183*$F$2*1000 + 5*550 + MAX(1-C36/Life_of_project__Years,0.3)*$F$4*$F$1*0.03) -> 675628.2565 | K36: =9000*$F$1-INDEX(lookups!$AG$19:$AJ$26,MATCH(state,lookups!$AG$19:$AG$26,0),MATCH('Property Tax'!$I$2,lookups!$AG$19:$AJ$19,0))*$I$1 -> 885389.4594 | M36: 0.3 | N36: =1/((1+Front!$E$35)^C36) -> 0.1319966779 | P36: =IF(P$33+1>Life_of_project__Years,0,P35+1) -> 28 | Q36: 0 | R36: 0 | S36: 0 | T36: =VLOOKUP(Front!$E$5,lookups!$BH$3:$BJ$95,3)*$I$1+INDEX(lookups!$AG$19:$AJ$26,MATCH('Property Tax'!$Q$1,lookups!$AG$19:$AG$26,0),MATCH('Property Tax'!$I$2,lookups!$AG$19:$AJ$19,0))*'Property Tax'!$I$1+0.03*0.3*$F$4*MAX(((5-C35)/5),0) -> 7814610.541 | U36: 0 | V36: 0 | W36: 0 | X36: 0
C37: =IF(C$33+1>Life_of_project__Years,0,C36+1) -> 29 | D37: =0.0208*MAX(1-C37/Life_of_project__Years,0.3)*$F$4*$F$1-$I$3-INDEX(lookups!$AG$19:$AJ$26,MATCH($D$7,lookups!$AG$19:$AG$26,0),MATCH($I$2,lookups!$AG$19:$AJ$19,0))*$I$1 -> 62145.78065 | E37: =1590*$F$1*1.2-INDEX(lookups!$AG$19:$AJ$26,MATCH($E$7,lookups!$AG$19:$AG$26,0),MATCH($I$2,lookups!$AG$19:$AJ$19,0))*$I$1 -> 85806 | F37: =4000*$F$1-INDEX(lookups!$AG$19:$AJ$26,MATCH('Property Tax'!$F$7,lookups!$AG$19:$AG$26,0),MATCH('Property Tax'!$I$2,lookups!$AG$19:$AJ$19,0))*'Property Tax'!$I$1*VLOOKUP(Front!$E$5,lookups!$BA$3:$BC$75,3,FALSE) ->  | G37: =((_xlfn.XLOOKUP(Front!$E$5,lookups!$BH$3:$BH$95,lookups!$BJ$3:$BJ$95)-_xlfn.XLOOKUP($I$2,lookups!$AG$34:$AG$36,lookups!$AH$34:$AH$36))*$I$1*_xlfn.XLOOKUP(Front!$E$5,lookups!$BH$3:$BH$95,lookups!$BK$3:$BK$95)/100) + 0.03*$F$4*MAX(((5-C37)/5),0.3)*$F$1 -> 405064.3369 | H37: =MAX(1-C37/Life_of_project__Years,0.3)*$F$4*$F$1*(VLOOKUP(Front!$E$5,lookups!$BM$3:$BN$86,2)/1000) -> 180838.0899 | I37: 0 | J37: =IF(C37=0,0,$F$2*M37*1000*0.0006 + 0.00259183*$F$2*1000 + 5*550 + MAX(1-C37/Life_of_project__Years,0.3)*$F$4*$F$1*0.03) -> 675628.2565 | K37: =9000*$F$1-INDEX(lookups!$AG$19:$AJ$26,MATCH(state,lookups!$AG$19:$AG$26,0),MATCH('Property Tax'!$I$2,lookups!$AG$19:$AJ$19,0))*$I$1 -> 885389.4594 | M37: 0.3 | N37: =1/((1+Front!$E$35)^C37) -> 0.1227876073 | P37: =IF(P$33+1>Life_of_project__Years,0,P36+1) -> 29 | Q37: 0 | R37: 0 | S37: 0 | T37: =VLOOKUP(Front!$E$5,lookups!$BH$3:$BJ$95,3)*$I$1+INDEX(lookups!$AG$19:$AJ$26,MATCH('Property Tax'!$Q$1,lookups!$AG$19:$AG$26,0),MATCH('Property Tax'!$I$2,lookups!$AG$19:$AJ$19,0))*'Property Tax'!$I$1+0.03*0.3*$F$4*MAX(((5-C36)/5),0) -> 7814610.541 | U37: 0 | V37: 0 | W37: 0 | X37: 0
C38: =IF(C$33+1>Life_of_project__Years,0,C37+1) -> 30 | D38: =0.0208*MAX(1-C38/Life_of_project__Years,0.3)*$F$4*$F$1-$I$3-INDEX(lookups!$AG$19:$AJ$26,MATCH($D$7,lookups!$AG$19:$AG$26,0),MATCH($I$2,lookups!$AG$19:$AJ$19,0))*$I$1 -> 62145.78065 | E38: =1590*$F$1*1.2-INDEX(lookups!$AG$19:$AJ$26,MATCH($E$7,lookups!$AG$19:$AG$26,0),MATCH($I$2,lookups!$AG$19:$AJ$19,0))*$I$1 -> 85806 | F38: =4000*$F$1-INDEX(lookups!$AG$19:$AJ$26,MATCH('Property Tax'!$F$7,lookups!$AG$19:$AG$26,0),MATCH('Property Tax'!$I$2,lookups!$AG$19:$AJ$19,0))*'Property Tax'!$I$1*VLOOKUP(Front!$E$5,lookups!$BA$3:$BC$75,3,FALSE) ->  | G38: =((_xlfn.XLOOKUP(Front!$E$5,lookups!$BH$3:$BH$95,lookups!$BJ$3:$BJ$95)-_xlfn.XLOOKUP($I$2,lookups!$AG$34:$AG$36,lookups!$AH$34:$AH$36))*$I$1*_xlfn.XLOOKUP(Front!$E$5,lookups!$BH$3:$BH$95,lookups!$BK$3:$BK$95)/100) + 0.03*$F$4*MAX(((5-C38)/5),0.3)*$F$1 -> 405064.3369 | H38: =MAX(1-C38/Life_of_project__Years,0.3)*$F$4*$F$1*(VLOOKUP(Front!$E$5,lookups!$BM$3:$BN$86,2)/1000) -> 180838.0899 | I38: 0 | J38: =IF(C38=0,0,$F$2*M38*1000*0.0006 + 0.00259183*$F$2*1000 + 5*550 + MAX(1-C38/Life_of_project__Years,0.3)*$F$4*$F$1*0.03) -> 675628.2565 | K38: =9000*$F$1-INDEX(lookups!$AG$19:$AJ$26,MATCH(state,lookups!$AG$19:$AG$26,0),MATCH('Property Tax'!$I$2,lookups!$AG$19:$AJ$19,0))*$I$1 -> 885389.4594 | M38: 0.3 | N38: =1/((1+Front!$E$35)^C38) -> 0.1142210301 | P38: =IF(P$33+1>Life_of_project__Years,0,P37+1) -> 30 | Q38: 0 | R38: 0 | S38: 0 | T38: =VLOOKUP(Front!$E$5,lookups!$BH$3:$BJ$95,3)*$I$1+INDEX(lookups!$AG$19:$AJ$26,MATCH('Property Tax'!$Q$1,lookups!$AG$19:$AG$26,0),MATCH('Property Tax'!$I$2,lookups!$AG$19:$AJ$19,0))*'Property Tax'!$I$1+0.03*0.3*$F$4*MAX(((5-C37)/5),0) -> 7814610.541 | U38: 0 | V38: 0 | W38: 0 | X38: 0
C40: Total | D40: =SUM(D9:D39) -> 5639133.288 | E40: 2574180 | G40: 12851919.92 | H40: 9644698.127 | I40: 14000000 | J40: 25613309.42 | K40: 26561683.78 | Q40: IL | R40: MN | S40: WI | T40: IN | U40: MI | V40: MI2 | W40: IA | X40: OH
C41: Average | D41: =AVERAGEIFS(D9:D38,$C$9:$C$38,"<>0") -> 187971.1096 | E41: =AVERAGEIFS(E9:E38,$C$9:$C$38,"<>0") -> 85806 | G41: 428397.3306 | H41: 321489.9376 | I41: 466666.6667 | J41: 853776.9806 | K41: 885389.4594 | Q41: =AVERAGE(Q9:Q38) -> 0 | R41: =AVERAGE(R9:R38) -> 0 | S41: 0 | T41: 7814843.871 | U41: 0 | V41: 0 | W41: 0 | X41: 0
C42: PV | D42: =SUMPRODUCT(D8:D38,$N$8:$N$38) -> 3084025.389 | E42: =SUMPRODUCT(E8:E38,$N$8:$N$38) -> 1013402.004 | G42: 5410233.258 | H42: 4762744.66 | I42: 7166143.951 | J42: 11286089.55 | K42: 10456791.51

Sheet Multipliers
A1: NAICS | B1: Industry Desc | C1: Final-demand Output | D1: Final-demand Earnings | E1: Final-demand Employment | F1: Final-demand Value-added | G1: Direct-effect Earnings /5/ (dollars) | H1: Direct-effect Employment /6/ (number of jobs) | I1: Region | J1: Mult | K1: State | L1: Size | M1: Size_ | N1: SEG
A2: 1111C0 | B2: Oilseed and grain farming | C2: 1.3116 | D2: 0.2429 | E2: 5.2136 | F2: 0.5009 | G2: 1.5098 | H2: 1.595 | I2: RENVILLEMN | J2: TypeI | K2: MN | L2: Small | M2: =VLOOKUP(Table1[[#This Row],[Size]],lookups!$D$4:$E$6,2,FALSE) -> LT 15k | N2: Unused
A3: 111200 | B3: Vegetable and melon farming | C3: 1.2153 | D3: 0.2932 | E3: 6.5806 | F3: 0.6428 | G3: 1.2745 | H3: 1.302 | I3: RENVILLEMN | J3: TypeI | K3: MN | L3: Small | M3: =VLOOKUP(Table1[[#This Row],[Size]],lookups!$D$4:$E$6,2,FALSE) -> LT 15k | N3: Unused
A4: 111300 | B4: Fruit and tree nut farming | C4: 1.1735 | D4: 0.3234 | E4: 13.8655 | F4: 0.7796 | G4: 1.2286 | H4: 1.1311 | I4: RENVILLEMN | J4: TypeI | K4: MN | L4: Small | M4: =VLOOKUP(Table1[[#This Row],[Size]],lookups!$D$4:$E$6,2,FALSE) -> LT 15k | N4: Unused
A5: 111400 | B5: Greenhouse, nursery, and floriculture production | C5: 1.1608 | D5: 0.381 | E5: 8.1484 | F5: 0.613 | G5: 1.1285 | H5: 1.1327 | I5: RENVILLEMN | J5: TypeI | K5: MN | L5: Small | M5: =VLOOKUP(Table1[[#This Row],[Size]],lookups!$D$4:$E$6,2,FALSE) -> LT 15k | N5: Unused
A6: 111900 | B6: Other crop farming | C6: 1.2274 | D6: 0.2961 | E6: 6.1259 | F6: 0.621 | G6: 1.2958 | H6: 1.3726 | I6: RENVILLEMN | J6: TypeI | K6: MN | L6: Small | M6: =VLOOKUP(Table1[[#This Row],[Size]],lookups!$D$4:$E$6,2,FALSE) -> LT 15k | N6: Unused
A7: 112120 | B7: Dairy cattle and milk production | C7: 1.7379 | D7: 0.2664 | E7: 5.1449 | F7: 0.4742 | G7: 1.8459 | H7: 1.702 | I7: RENVILLEMN | J7: TypeI | K7: MN | L7: Small | M7: =VLOOKUP(Table1[[#This Row],[Size]],lookups!$D$4:$E$6,2,FALSE) -> LT 15k | N7: Unused
A8: 1121A0 | B8: Beef cattle ranching and farming, including feedlots and dual-purpose ranching and farming | C8: 1.8824 | D8: 0.2884 | E8: 6.3143 | F8: 0.6259 | G8: 2.0275 | H8: 1.9014 | I8: RENVILLEMN | J8: TypeI | K8: MN | L8: Small | M8: =VLOOKUP(Table1[[#This Row],[Size]],lookups!$D$4:$E$6,2,FALSE) -> LT 15k | N8: Unused
A9: 112300 | B9: Poultry and egg production | C9: 2.0461 | D9: 0.2902 | E9: 4.8327 | F9: 0.4328 | G9: 2.2582 | H9: 2.2175 | I9: RENVILLEMN | J9: TypeI | K9: MN | L9: Small | M9: =VLOOKUP(Table1[[#This Row],[Size]],lookups!$D$4:$E$6,2,FALSE) -> LT 15k | N9: Unused
A10: 112A00 | B10: Animal production, except cattle and poultry and eggs | C10: 1.3799 | D10: 0.2606 | E10: 4.7142 | F10: 0.8263 | G10: 1.3655 | H10: 1.3667 | I10: RENVILLEMN | J10: TypeI | K10: MN | L10: Small | M10: =VLOOKUP(Table1[[#This Row],[Size]],lookups!$D$4:$E$6,2,FALSE) -> LT 15k | N10: Unused
A11: 113000 | B11: Forestry and logging | C11: 1 | D11: 0 | E11: 0 | F11: 0 | G11: 0 | H11: 0 | I11: RENVILLEMN | J11: TypeI | K11: MN | L11: Small | M11: =VLOOKUP(Table1[[#This Row],[Size]],lookups!$D$4:$E$6,2,FALSE) -> LT 15k | N11: Unused
A12: 114000 | B12: Fishing, hunting and trapping | C12: 1 | D12: 0 | E12: 0 | F12: 0 | G12: 0 | H12: 0 | I12: RENVILLEMN | J12: TypeI | K12: MN | L12: Small | M12: =VLOOKUP(Table1[[#This Row],[Size]],lookups!$D$4:$E$6,2,FALSE) -> LT 15k | N12: Unused
A13: 115000 | B13: Support activities for agriculture and forestry | C13: 1.1185 | D13: 0.5379 | E13: 16.4352 | F13: 0.7773 | G13: 1.0411 | H13: 1.0183 | I13: RENVILLEMN | J13: TypeI | K13: MN | L13: Small | M13: =VLOOKUP(Table1[[#This Row],[Size]],lookups!$D$4:$E$6,2,FALSE) -> LT 15k | N13: Unused
A14: 211000 | B14: Oil and gas extraction | C14: 1 | D14: 0 | E14: 0 | F14: 0 | G14: 0 | H14: 0 | I14: RENVILLEMN | J14: TypeI | K14: MN | L14: Small | M14: =VLOOKUP(Table1[[#This Row],[Size]],lookups!$D$4:$E$6,2,FALSE) -> LT 15k | N14: Unused
A15: 212100 | B15: Coal mining | C15: 1 | D15: 0 | E15: 0 | F15: 0 | G15: 0 | H15: 0 | I15: RENVILLEMN | J15: TypeI | K15: MN | L15: Small | M15: =VLOOKUP(Table1[[#This Row],[Size]],lookups!$D$4:$E$6,2,FALSE) -> LT 15k | N15: Unused
A16: 212230 | B16: Copper, nickel, lead, and zinc mining | C16: 1 | D16: 0 | E16: 0 | F16: 0 | G16: 0 | H16: 0 | I16: RENVILLEMN | J16: TypeI | K16: MN | L16: Small | M16: =VLOOKUP(Table1[[#This Row],[Size]],lookups!$D$4:$E$6,2,FALSE) -> LT 15k | N16: Unused
A17: 2122A0 | B17: Iron, gold, silver, and other metal ore mining | C17: 1 | D17: 0 | E17: 0 | F17: 0 | G17: 0 | H17: 0 | I17: RENVILLEMN | J17: TypeI | K17: MN | L17: Small | M17: =VLOOKUP(Table1[[#This Row],[Size]],lookups!$D$4:$E$6,2,FALSE) -> LT 15k | N17: Unused
A18: 212310 | B18: Stone mining and quarrying | C18: 1 | D18: 0 | E18: 0 | F18: 0 | G18: 0 | H18: 0 | I18: RENVILLEMN | J18: TypeI | K18: MN | L18: Small | M18: =VLOOKUP(Table1[[#This Row],[Size]],lookups!$D$4:$E$6,2,FALSE) -> LT 15k | N18: Unused
A19: 2123A0 | B19: Other nonmetallic mineral mining and quarrying | C19: 1.1155 | D19: 0.2088 | E19: 2.8887 | F19: 0.5759 | G19: 1.1296 | H19: 1.116 | I19: RENVILLEMN | J19: TypeI | K19: MN | L19: Small | M19: =VLOOKUP(Table1[[#This Row],[Size]],lookups!$D$4:$E$6,2,FALSE) -> LT 15k | N19: Unused
A20: 213111 | B20: Drilling oil and gas wells | C20: 1 | D20: 0 | E20: 0 | F20: 0 | G20: 0 | H20: 0 | I20: RENVILLEMN | J20: TypeI | K20: MN | L20: Small | M20: =VLOOKUP(Table1[[#This Row],[Size]],lookups!$D$4:$E$6,2,FALSE) -> LT 15k | N20: Unused
A21: 21311A | B21: Other support activities for mining | C21: 1 | D21: 0 | E21: 0 | F21: 0 | G21: 0 | H21: 0 | I21: RENVILLEMN | J21: TypeI | K21: MN | L21: Small | M21: =VLOOKUP(Table1[[#This Row],[Size]],lookups!$D$4:$E$6,2,FALSE) -> LT 15k | N21: Unused
A22: 2211A0 | B22: Electric power generation, transmission, and distribution* | C22: 1.0822 | D22: 0.1663 | E22: 1.3181 | F22: 0.6277 | G22: 1.1157 | H22: 1.2155 | I22: RENVILLEMN | J22: TypeI | K22: MN | L22: Small | M22: =VLOOKUP(Table1[[#This Row],[Size]],lookups!$D$4:$E$6,2,FALSE) -> LT 15k | N22: CONS
A23: 221200 | B23: Natural gas distribution | C23: 1 | D23: 0 | E23: 0 | F23: 0 | G23: 0 | H23: 0 | I23: RENVILLEMN | J23: TypeI | K23: MN | L23: Small | M23: =VLOOKUP(Table1[[#This Row],[Size]],lookups!$D$4:$E$6,2,FALSE) -> LT 15k | N23: Unused
A24: 221300 | B24: Water, sewage and other systems | C24: 1.1022 | D24: 0.1854 | E24: 2.7809 | F24: 0.7117 | G24: 1.1415 | H24: 1.1325 | I24: RENVILLEMN | J24: TypeI | K24: MN | L24: Small | M24: =VLOOKUP(Table1[[#This Row],[Size]],lookups!$D$4:$E$6,2,FALSE) -> LT 15k | N24: Unused
A25: 2332E0 | B25: Nonresidential structures | C25: 1.1224 | D25: 0.4149 | E25: 5.7267 | F25: 0.6205 | G25: 1.0597 | H25: 1.0649 | I25: RENVILLEMN | J25: TypeI | K25: MN | L25: Small | M25: =VLOOKUP(Table1[[#This Row],[Size]],lookups!$D$4:$E$6,2,FALSE) -> LT 15k | N25: CONS
A26: 23030A | B26: Maintenance and repair | C26: 1.1619 | D26: 0.2486 | E26: 3.7598 | F26: 0.5226 | G26: 1.1655 | H26: 1.217 | I26: RENVILLEMN | J26: TypeI | K26: MN | L26: Small | M26: =VLOOKUP(Table1[[#This Row],[Size]],lookups!$D$4:$E$6,2,FALSE) -> LT 15k | N26: Unused
A27: 2334B0 | B27: Residential structures | C27: 1.144 | D27: 0.3874 | E27: 5.4813 | F27: 0.6149 | G27: 1.0888 | H27: 1.1243 | I27: RENVILLEMN | J27: TypeI | K27: MN | L27: Small | M27: =VLOOKUP(Table1[[#This Row],[Size]],lookups!$D$4:$E$6,2,FALSE) -> LT 15k | N27: Unused
A28: 2332F0 | B28: Transportation structures and highways and streets | C28: 1.111 | D28: 0.2436 | E28: 3.2744 | F28: 0.5837 | G28: 1.0987 | H28: 1.1059 | I28: RENVILLEMN | J28: TypeI | K28: MN | L28: Small | M28: =VLOOKUP(Table1[[#This Row],[Size]],lookups!$D$4:$E$6,2,FALSE) -> LT 15k | N28: Unused
A29: 321100 | B29: Sawmills and wood preservation | C29: 1 | D29: 0 | E29: 0 | F29: 0 | G29: 0 | H29: 0 | I29: RENVILLEMN | J29: TypeI | K29: MN | L29: Small | M29: =VLOOKUP(Table1[[#This Row],[Size]],lookups!$D$4:$E$6,2,FALSE) -> LT 15k | N29: Unused
A30: 321200 | B30: Veneer, plywood, and engineered wood product manufacturing | C30: 1 | D30: 0 | E30: 0 | F30: 0 | G30: 0 | H30: 0 | I30: RENVILLEMN | J30: TypeI | K30: MN | L30: Small | M30: =VLOOKUP(Table1[[#This Row],[Size]],lookups!$D$4:$E$6,2,FALSE) -> LT 15k | N30: Unused
A31: 321910 | B31: Millwork | C31: 1 | D31: 0 | E31: 0 | F31: 0 | G31: 0 | H31: 0 | I31: RENVILLEMN | J31: TypeI | K31: MN | L31: Small | M31: =VLOOKUP(Table1[[#This Row],[Size]],lookups!$D$4:$E$6,2,FALSE) -> LT 15k | N31: Unused
A32: 3219A0 | B32: All other wood product manufacturing | C32: 1 | D32: 0 | E32: 0 | F32: 0 | G32: 0 | H32: 0 | I32: RENVILLEMN | J32: TypeI | K32: MN | L32: Small | M32: =VLOOKUP(Table1[[#This Row],[Size]],lookups!$D$4:$E$6,2,FALSE) -> LT 15k | N32: Unused
A33: 327100 | B33: Clay product and refractory manufacturing | C33: 1 | D33: 0 | E33: 0 | F33: 0 | G33: 0 | H33: 0 | I33: RENVILLEMN | J33: TypeI | K33: MN | L33: Small | M33: =VLOOKUP(Table1[[#This Row],[Size]],lookups!$D$4:$E$6,2,FALSE) -> LT 15k | N33: Unused
A34: 327200 | B34: Glass and glass product manufacturing | C34: 1 | D34: 0 | E34: 0 | F34: 0 | G34: 0 | H34: 0 | I34: RENVILLEMN | J34: TypeI | K34: MN | L34: Small | M34: =VLOOKUP(Table1[[#This Row],[Size]],lookups!$D$4:$E$6,2,FALSE) -> LT 15k | N34: Unused
A35: 327310 | B35: Cement manufacturing | C35: 1 | D35: 0 | E35: 0 | F35: 0 | G35: 0 | H35: 0 | I35: RENVILLEMN | J35: TypeI | K35: MN | L35: Small | M35: =VLOOKUP(Table1[[#This Row],[Size]],lookups!$D$4:$E$6,2,FALSE) -> LT 15k | N35: Unused
A36: 327320 | B36: Ready-mix concrete manufacturing | C36: 1.2294 | D36: 0.1545 | E36: 2.2771 | F36: 0.4564 | G36: 1.413 | H36: 1.3995 | I36: RENVILLEMN | J36: TypeI | K36: MN | L36: Small | M36: =VLOOKUP(Table1[[#This Row],[Size]],lookups!$D$4:$E$6,2,FALSE) -> LT 15k | N36: Unused
A37: 327330 | B37: Concrete pipe, brick, and block manufacturing | C37: 1.1496 | D37: 0.1293 | E37: 2.3618 | F37: 0.508 | G37: 1.2943 | H37: 1.2303 | I37: RENVILLEMN | J37: TypeI | K37: MN | L37: Small | M37: =VLOOKUP(Table1[[#This Row],[Size]],lookups!$D$4:$E$6,2,FALSE) -> LT 15k | N37: Unused
A38: 327390 | B38: Other concrete product manufacturing | C38: 1 | D38: 0 | E38: 0 | F38: 0 | G38: 0 | H38: 0 | I38: RENVILLEMN | J38: TypeI | K38: MN | L38: Small | M38: =VLOOKUP(Table1[[#This Row],[Size]],lookups!$D$4:$E$6,2,FALSE) -> LT 15k | N38: Unused
A39: 327400 | B39: Lime and gypsum product manufacturing | C39: 1 | D39: 0 | E39: 0 | F39: 0 | G39: 0 | H39: 0 | I39: RENVILLEMN | J39: TypeI | K39: MN | L39: Small | M39: =VLOOKUP(Table1[[#This Row],[Size]],lookups!$D$4:$E$6,2,FALSE) -> LT 15k | N39: Unused
A40: 327910 | B40: Abrasive product manufacturing | C40: 1 | D40: 0 | E40: 0 | F40: 0 | G40: 0 | H40: 0 | I40: RENVILLEMN | J40: TypeI | K40: MN | L40: Small | M40: =VLOOKUP(Table1[[#This Row],[Size]],lookups!$D$4:$E$6,2,FALSE) -> LT 15k | N40: Unused
A41: 327991 | B41: Cut stone and stone product manufacturing | C41: 1 | D41: 0 | E41: 0 | F41: 0 | G41: 0 | H41: 0 | I41: RENVILLEMN | J41: TypeI | K41: MN | L41: Small | M41: =VLOOKUP(Table1[[#This Row],[Size]],lookups!$D$4:$E$6,2,FALSE) -> LT 15k | N41: Unused
A42: 327992 | B42: Ground or treated mineral and earth manufacturing | C42: 1 | D42: 0 | E42: 0 | F42: 0 | G42: 0 | H42: 0 | I42: RENVILLEMN | J42: TypeI | K42: MN | L42: Small | M42: =VLOOKUP(Table1[[#This Row],[Size]],lookups!$D$4:$E$6,2,FALSE) -> LT 15k | N42: Unused
A43: 327993 | B43: Mineral wool manufacturing | C43: 1 | D43: 0 | E43: 0 | F43: 0 | G43: 0 | H43: 0 | I43: RENVILLEMN | J43: TypeI | K43: MN | L43: Small | M43: =VLOOKUP(Table1[[#This Row],[Size]],lookups!$D$4:$E$6,2,FALSE) -> LT 15k | N43: Unused
A44: 327999 | B44: Miscellaneous nonmetallic mineral products | C44: 1 | D44: 0 | E44: 0 | F44: 0 | G44: 0 | H44: 0 | I44: RENVILLEMN | J44: TypeI | K44: MN | L44: Small | M44: =VLOOKUP(Table1[[#This Row],[Size]],lookups!$D$4:$E$6,2,FALSE) -> LT 15k | N44: Unused
A45: 331110 | B45: Iron and steel mills and ferroalloy manufacturing | C45: 1 | D45: 0 | E45: 0 | F45: 0 | G45: 0 | H45: 0 | I45: RENVILLEMN | J45: TypeI | K45: MN | L45: Small | M45: =VLOOKUP(Table1[[#This Row],[Size]],lookups!$D$4:$E$6,2,FALSE) -> LT 15k | N45: Unused
A46: 331200 | B46: Steel product manufacturing from purchased steel | C46: 1.1255 | D46: 0.1028 | E46: 1.7434 | F46: 0.3487 | G46: 1.2914 | H46: 1.2247 | I46: RENVILLEMN | J46: TypeI | K46: MN | L46: Small | M46: =VLOOKUP(Table1[[#This Row],[Size]],lookups!$D$4:$E$6,2,FALSE) -> LT 15k | N46: Unused
A47: 331314 | B47: Secondary smelting and alloying of aluminum | C47: 1 | D47: 0 | E47: 0 | F47: 0 | G47: 0 | H47: 0 | I47: RENVILLEMN | J47: TypeI | K47: MN | L47: Small | M47: =VLOOKUP(Table1[[#This Row],[Size]],lookups!$D$4:$E$6,2,FALSE) -> LT 15k | N47: Unused
A48: 331313 | B48: Alumina refining and primary aluminum production | C48: 1 | D48: 0 | E48: 0 | F48: 0 | G48: 0 | H48: 0 | I48: RENVILLEMN | J48: TypeI | K48: MN | L48: Small | M48: =VLOOKUP(Table1[[#This Row],[Size]],lookups!$D$4:$E$6,2,FALSE) -> LT 15k | N48: Unused
A49: 33131B | B49: Aluminum product manufacturing from purchased aluminum | C49: 1 | D49: 0 | E49: 0 | F49: 0 | G49: 0 | H49: 0 | I49: RENVILLEMN | J49: TypeI | K49: MN | L49: Small | M49: =VLOOKUP(Table1[[#This Row],[Size]],lookups!$D$4:$E$6,2,FALSE) -> LT 15k | N49: Unused
A50: 331410 | B50: Nonferrous metal (except aluminum) smelting and refining | C50: 1 | D50: 0 | E50: 0 | F50: 0 | G50: 0 | H50: 0 | I50: RENVILLEMN | J50: TypeI | K50: MN | L50: Small | M50: =VLOOKUP(Table1[[#This Row],[Size]],lookups!$D$4:$E$6,2,FALSE) -> LT 15k | N50: Unused
A51: 331420 | B51: Copper rolling, drawing, extruding, and alloying | C51: 1 | D51: 0 | E51: 0 | F51: 0 | G51: 0 | H51: 0 | I51: RENVILLEMN | J51: TypeI | K51: MN | L51: Small | M51: =VLOOKUP(Table1[[#This Row],[Size]],lookups!$D$4:$E$6,2,FALSE) -> LT 15k | N51: Unused
A52: 331490 | B52: Nonferrous metal (except copper and aluminum) rolling, drawing, extruding, and alloying | C52: 1 | D52: 0 | E52: 0 | F52: 0 | G52: 0 | H52: 0 | I52: RENVILLEMN | J52: TypeI | K52: MN | L52: Small | M52: =VLOOKUP(Table1[[#This Row],[Size]],lookups!$D$4:$E$6,2,FALSE) -> LT 15k | N52: Unused
A53: 331510 | B53: Ferrous metal foundries | C53: 1 | D53: 0 | E53: 0 | F53: 0 | G53: 0 | H53: 0 | I53: RENVILLEMN | J53: TypeI | K53: MN | L53: Small | M53: =VLOOKUP(Table1[[#This Row],[Size]],lookups!$D$4:$E$6,2,FALSE) -> LT 15k | N53: Unused
A54: 331520 | B54: Nonferrous metal foundries | C54: 1 | D54: 0 | E54: 0 | F54: 0 | G54: 0 | H54: 0 | I54: RENVILLEMN | J54: TypeI | K54: MN | L54: Small | M54: =VLOOKUP(Table1[[#This Row],[Size]],lookups!$D$4:$E$6,2,FALSE) -> LT 15k | N54: Unused
A55: 332114 | B55: Custom roll forming | C55: 1 | D55: 0 | E55: 0 | F55: 0 | G55: 0 | H55: 0 | I55: RENVILLEMN | J55: TypeI | K55: MN | L55: Small | M55: =VLOOKUP(Table1[[#This Row],[Size]],lookups!$D$4:$E$6,2,FALSE) -> LT 15k | N55: Unused
A56: 33211A | B56: All other forging, stamping, and sintering | C56: 1 | D56: 0 | E56: 0 | F56: 0 | G56: 0 | H56: 0 | I56: RENVILLEMN | J56: TypeI | K56: MN | L56: Small | M56: =VLOOKUP(Table1[[#This Row],[Size]],lookups!$D$4:$E$6,2,FALSE) -> LT 15k | N56: Unused
A57: 332119 | B57: Metal crown, closure, and other metal stamping (except automotive) | C57: 1 | D57: 0 | E57: 0 | F57: 0 | G57: 0 | H57: 0 | I57: RENVILLEMN | J57: TypeI | K57: MN | L57: Small | M57: =VLOOKUP(Table1[[#This Row],[Size]],lookups!$D$4:$E$6,2,FALSE) -> LT 15k | N57: Unused
A58: 332200 | B58: Cutlery and handtool manufacturing | C58: 1.088 | D58: 0.1648 | E58: 2.5517 | F58: 0.5507 | G58: 1.125 | H58: 1.1117 | I58: RENVILLEMN | J58: TypeI | K58: MN | L58: Small | M58: =VLOOKUP(Table1[[#This Row],[Size]],lookups!$D$4:$E$6,2,FALSE) -> LT 15k | N58: Unused
A59: 332310 | B59: Plate work and fabricated structural product manufacturing | C59: 1 | D59: 0 | E59: 0 | F59: 0 | G59: 0 | H59: 0 | I59: RENVILLEMN | J59: TypeI | K59: MN | L59: Small | M59: =VLOOKUP(Table1[[#This Row],[Size]],lookups!$D$4:$E$6,2,FALSE) -> LT 15k | N59: EPC
A60: 332320 | B60: Ornamental and architectural metal products manufacturing | C60: 1.1437 | D60: 0.1637 | E60: 2.6789 | F60: 0.4692 | G60: 1.2038 | H60: 1.1831 | I60: RENVILLEMN | J60: TypeI | K60: MN | L60: Small | M60: =VLOOKUP(Table1[[#This Row],[Size]],lookups!$D$4:$E$6,2,FALSE) -> LT 15k | N60: Unused
A61: 332410 | B61: Power boiler and heat exchanger manufacturing | C61: 1 | D61: 0 | E61: 0 | F61: 0 | G61: 0 | H61: 0 | I61: RENVILLEMN | J61: TypeI | K61: MN | L61: Small | M61: =VLOOKUP(Table1[[#This Row],[Size]],lookups!$D$4:$E$6,2,FALSE) -> LT 15k | N61: Unused
A62: 332420 | B62: Metal tank (heavy gauge) manufacturing | C62: 1 | D62: 0 | E62: 0 | F62: 0 | G62: 0 | H62: 0 | I62: RENVILLEMN | J62: TypeI | K62: MN | L62: Small | M62: =VLOOKUP(Table1[[#This Row],[Size]],lookups!$D$4:$E$6,2,FALSE) -> LT 15k | N62: Unused
A63: 332430 | B63: Metal can, box, and other metal container (light gauge) manufacturing | C63: 1 | D63: 0 | E63: 0 | F63: 0 | G63: 0 | H63: 0 | I63: RENVILLEMN | J63: TypeI | K63: MN | L63: Small | M63: =VLOOKUP(Table1[[#This Row],[Size]],lookups!$D$4:$E$6,2,FALSE) -> LT 15k | N63: Unused
A64: 332500 | B64: Hardware manufacturing | C64: 1 | D64: 0 | E64: 0 | F64: 0 | G64: 0 | H64: 0 | I64: RENVILLEMN | J64: TypeI | K64: MN | L64: Small | M64: =VLOOKUP(Table1[[#This Row],[Size]],lookups!$D$4:$E$6,2,FALSE) -> LT 15k | N64: EPC
A65: 332600 | B65: Spring and wire product manufacturing | C65: 1 | D65: 0 | E65: 0 | F65: 0 | G65: 0 | H65: 0 | I65: RENVILLEMN | J65: TypeI | K65: MN | L65: Small | M65: =VLOOKUP(Table1[[#This Row],[Size]],lookups!$D$4:$E$6,2,FALSE) -> LT 15k | N65: EPC
A66: 332710 | B66: Machine shops | C66: 1.11 | D66: 0.2167 | E66: 3.5334 | F66: 0.5613 | G66: 1.1205 | H66: 1.1113 | I66: RENVILLEMN | J66: TypeI | K66: MN | L66: Small | M66: =VLOOKUP(Table1[[#This Row],[Size]],lookups!$D$4:$E$6,2,FALSE) -> LT 15k | N66: Unused
A67: 332720 | B67: Turned product and screw, nut, and bolt manufacturing | C67: 1 | D67: 0 | E67: 0 | F67: 0 | G67: 0 | H67: 0 | I67: RENVILLEMN | J67: TypeI | K67: MN | L67: Small | M67: =VLOOKUP(Table1[[#This Row],[Size]],lookups!$D$4:$E$6,2,FALSE) -> LT 15k | N67: Unused
A68: 332800 | B68: Coating, engraving, heat treating and allied activities | C68: 1 | D68: 0 | E68: 0 | F68: 0 | G68: 0 | H68: 0 | I68: RENVILLEMN | J68: TypeI | K68: MN | L68: Small | M68: =VLOOKUP(Table1[[#This Row],[Size]],lookups!$D$4:$E$6,2,FALSE) -> LT 15k | N68: EPC
A69: 332913 | B69: Plumbing fixture fitting and trim manufacturing | C69: 1 | D69: 0 | E69: 0 | F69: 0 | G69: 0 | H69: 0 | I69: RENVILLEMN | J69: TypeI | K69: MN | L69: Small | M69: =VLOOKUP(Table1[[#This Row],[Size]],lookups!$D$4:$E$6,2,FALSE) -> LT 15k | N69: Unused
A70: 33291A | B70: Valve and fittings other than plumbing | C70: 1 | D70: 0 | E70: 0 | F70: 0 | G70: 0 | H70: 0 | I70: RENVILLEMN | J70: TypeI | K70: MN | L70: Small | M70: =VLOOKUP(Table1[[#This Row],[Size]],lookups!$D$4:$E$6,2,FALSE) -> LT 15k | N70: Unused
A71: 332991 | B71: Ball and roller bearing manufacturing | C71: 1 | D71: 0 | E71: 0 | F71: 0 | G71: 0 | H71: 0 | I71: RENVILLEMN | J71: TypeI | K71: MN | L71: Small | M71: =VLOOKUP(Table1[[#This Row],[Size]],lookups!$D$4:$E$6,2,FALSE) -> LT 15k | N71: Unused
A72: 332996 | B72: Fabricated pipe and pipe fitting manufacturing | C72: 1 | D72: 0 | E72: 0 | F72: 0 | G72: 0 | H72: 0 | I72: RENVILLEMN | J72: TypeI | K72: MN | L72: Small | M72: =VLOOKUP(Table1[[#This Row],[Size]],lookups!$D$4:$E$6,2,FALSE) -> LT 15k | N72: EPC
A73: 33299A | B73: Ammunition, arms, ordnance, and accessories manufacturing | C73: 1 | D73: 0 | E73: 0 | F73: 0 | G73: 0 | H73: 0 | I73: RENVILLEMN | J73: TypeI | K73: MN | L73: Small | M73: =VLOOKUP(Table1[[#This Row],[Size]],lookups!$D$4:$E$6,2,FALSE) -> LT 15k | N73: Unused
A74: 332999 | B74: Other fabricated metal manufacturing | C74: 1 | D74: 0 | E74: 0 | F74: 0 | G74: 0 | H74: 0 | I74: RENVILLEMN | J74: TypeI | K74: MN | L74: Small | M74: =VLOOKUP(Table1[[#This Row],[Size]],lookups!$D$4:$E$6,2,FALSE) -> LT 15k | N74: Unused
A75: 333111 | B75: Farm machinery and equipment manufacturing | C75: 1.1271 | D75: 0.1038 | E75: 1.6798 | F75: 0.3564 | G75: 1.304 | H75: 1.2434 | I75: RENVILLEMN | J75: TypeI | K75: MN | L75: Small | M75: =VLOOKUP(Table1[[#This Row],[Size]],lookups!$D$4:$E$6,2,FALSE) -> LT 15k | N75: Unused
A76: 333112 | B76: Lawn and garden equipment manufacturing | C76: 1 | D76: 0 | E76: 0 | F76: 0 | G76: 0 | H76: 0 | I76: RENVILLEMN | J76: TypeI | K76: MN | L76: Small | M76: =VLOOKUP(Table1[[#This Row],[Size]],lookups!$D$4:$E$6,2,FALSE) -> LT 15k | N76: Unused
A77: 333120 | B77: Construction machinery manufacturing | C77: 1 | D77: 0 | E77: 0 | F77: 0 | G77: 0 | H77: 0 | I77: RENVILLEMN | J77: TypeI | K77: MN | L77: Small | M77: =VLOOKUP(Table1[[#This Row],[Size]],lookups!$D$4:$E$6,2,FALSE) -> LT 15k | N77: Unused
A78: 333130 | B78: Mining and oil and gas field machinery manufacturing | C78: 1 | D78: 0 | E78: 0 | F78: 0 | G78: 0 | H78: 0 | I78: RENVILLEMN | J78: TypeI | K78: MN | L78: Small | M78: =VLOOKUP(Table1[[#This Row],[Size]],lookups!$D$4:$E$6,2,FALSE) -> LT 15k | N78: Unused
A79: 333242 | B79: Semiconductor machinery manufacturing | C79: 1 | D79: 0 | E79: 0 | F79: 0 | G79: 0 | H79: 0 | I79: RENVILLEMN | J79: TypeI | K79: MN | L79: Small | M79: =VLOOKUP(Table1[[#This Row],[Size]],lookups!$D$4:$E$6,2,FALSE) -> LT 15k | N79: ELEC
A80: 33329A | B80: Other industrial machinery manufacturing | C80: 1 | D80: 0 | E80: 0 | F80: 0 | G80: 0 | H80: 0 | I80: RENVILLEMN | J80: TypeI | K80: MN | L80: Small | M80: =VLOOKUP(Table1[[#This Row],[Size]],lookups!$D$4:$E$6,2,FALSE) -> LT 15k | N80: Unused
A81: 333314 | B81: Optical instrument and lens manufacturing | C81: 1 | D81: 0 | E81: 0 | F81: 0 | G81: 0 | H81: 0 | I81: RENVILLEMN | J81: TypeI | K81: MN | L81: Small | M81: =VLOOKUP(Table1[[#This Row],[Size]],lookups!$D$4:$E$6,2,FALSE) -> LT 15k | N81: Unused
A82: 333316 | B82: Photographic and photocopying equipment manufacturing | C82: 1 | D82: 0 | E82: 0 | F82: 0 | G82: 0 | H82: 0 | I82: RENVILLEMN | J82: TypeI | K82: MN | L82: Small | M82: =VLOOKUP(Table1[[#This Row],[Size]],lookups!$D$4:$E$6,2,FALSE) -> LT 15k | N82: Unused
A83: 333318 | B83: Other commercial and service industry machinery manufacturing | C83: 1 | D83: 0 | E83: 0 | F83: 0 | G83: 0 | H83: 0 | I83: RENVILLEMN | J83: TypeI | K83: MN | L83: Small | M83: =VLOOKUP(Table1[[#This Row],[Size]],lookups!$D$4:$E$6,2,FALSE) -> LT 15k | N83: Unused
A84: 333414 | B84: Heating equipment (except warm air furnaces) manufacturing | C84: 1 | D84: 0 | E84: 0 | F84: 0 | G84: 0 | H84: 0 | I84: RENVILLEMN | J84: TypeI | K84: MN | L84: Small | M84: =VLOOKUP(Table1[[#This Row],[Size]],lookups!$D$4:$E$6,2,FALSE) -> LT 15k | N84: Unused
A85: 333415 | B85: Air conditioning, refrigeration, and warm air heating equipment manufacturing | C85: 1 | D85: 0 | E85: 0 | F85: 0 | G85: 0 | H85: 0 | I85: RENVILLEMN | J85: TypeI | K85: MN | L85: Small | M85: =VLOOKUP(Table1[[#This Row],[Size]],lookups!$D$4:$E$6,2,FALSE) -> LT 15k | N85: Unused
A86: 333413 | B86: Industrial and commercial fan and blower and air purification equipment manufacturing | C86: 1 | D86: 0 | E86: 0 | F86: 0 | G86: 0 | H86: 0 | I86: RENVILLEMN | J86: TypeI | K86: MN | L86: Small | M86: =VLOOKUP(Table1[[#This Row],[Size]],lookups!$D$4:$E$6,2,FALSE) -> LT 15k | N86: Unused
A87: 333511 | B87: Industrial mold manufacturing | C87: 1 | D87: 0 | E87: 0 | F87: 0 | G87: 0 | H87: 0 | I87: RENVILLEMN | J87: TypeI | K87: MN | L87: Small | M87: =VLOOKUP(Table1[[#This Row],[Size]],lookups!$D$4:$E$6,2,FALSE) -> LT 15k | N87: Unused
A88: 333514 | B88: Special tool, die, jig, and fixture manufacturing | C88: 1 | D88: 0 | E88: 0 | F88: 0 | G88: 0 | H88: 0 | I88: RENVILLEMN | J88: TypeI | K88: MN | L88: Small | M88: =VLOOKUP(Table1[[#This Row],[Size]],lookups!$D$4:$E$6,2,FALSE) -> LT 15k | N88: Unused
A89: 333517 | B89: Machine tool manufacturing | C89: 1 | D89: 0 | E89: 0 | F89: 0 | G89: 0 | H89: 0 | I89: RENVILLEMN | J89: TypeI | K89: MN | L89: Small | M89: =VLOOKUP(Table1[[#This Row],[Size]],lookups!$D$4:$E$6,2,FALSE) -> LT 15k | N89: Unused
A90: 33351B | B90: Cutting and machine tool accessory, rolling mill, and other metalworking machinery manufacturing | C90: 1 | D90: 0 | E90: 0 | F90: 0 | G90: 0 | H90: 0 | I90: RENVILLEMN | J90: TypeI | K90: MN | L90: Small | M90: =VLOOKUP(Table1[[#This Row],[Size]],lookups!$D$4:$E$6,2,FALSE) -> LT 15k | N90: Unused
A91: 333611 | B91: Turbine and turbine generator set units manufacturing | C91: 1 | D91: 0 | E91: 0 | F91: 0 | G91: 0 | H91: 0 | I91: RENVILLEMN | J91: TypeI | K91: MN | L91: Small | M91: =VLOOKUP(Table1[[#This Row],[Size]],lookups!$D$4:$E$6,2,FALSE) -> LT 15k | N91: Unused
A92: 333612 | B92: Speed changer, industrial high-speed drive, and gear manufacturing | C92: 1 | D92: 0 | E92: 0 | F92: 0 | G92: 0 | H92: 0 | I92: RENVILLEMN | J92: TypeI | K92: MN | L92: Small | M92: =VLOOKUP(Table1[[#This Row],[Size]],lookups!$D$4:$E$6,2,FALSE) -> LT 15k | N92: Unused
A93: 333613 | B93: Mechanical power transmission equipment manufacturing | C93: 1 | D93: 0 | E93: 0 | F93: 0 | G93: 0 | H93: 0 | I93: RENVILLEMN | J93: TypeI | K93: MN | L93: Small | M93: =VLOOKUP(Table1[[#This Row],[Size]],lookups!$D$4:$E$6,2,FALSE) -> LT 15k | N93: INST
A94: 333618 | B94: Other engine equipment manufacturing | C94: 1 | D94: 0 | E94: 0 | F94: 0 | G94: 0 | H94: 0 | I94: RENVILLEMN | J94: TypeI | K94: MN | L94: Small | M94: =VLOOKUP(Table1[[#This Row],[Size]],lookups!$D$4:$E$6,2,FALSE) -> LT 15k | N94: Unused
A95: 333912 | B95: Air and gas compressor manufacturing | C95: 1 | D95: 0 | E95: 0 | F95: 0 | G95: 0 | H95: 0 | I95: RENVILLEMN | J95: TypeI | K95: MN | L95: Small | M95: =VLOOKUP(Table1[[#This Row],[Size]],lookups!$D$4:$E$6,2,FALSE) -> LT 15k | N95: Unused
A96: 33391A | B96: Pump and pumping equipment manufacturing | C96: 1 | D96: 0 | E96: 0 | F96: 0 | G96: 0 | H96: 0 | I96: RENVILLEMN | J96: TypeI | K96: MN | L96: Small | M96: =VLOOKUP(Table1[[#This Row],[Size]],lookups!$D$4:$E$6,2,FALSE) -> LT 15k | N96: Unused
A97: 333920 | B97: Material handling equipment manufacturing | C97: 1 | D97: 0 | E97: 0 | F97: 0 | G97: 0 | H97: 0 | I97: RENVILLEMN | J97: TypeI | K97: MN | L97: Small | M97: =VLOOKUP(Table1[[#This Row],[Size]],lookups!$D$4:$E$6,2,FALSE) -> LT 15k | N97: Unused
A98: 333991 | B98: Power-driven handtool manufacturing | C98: 1 | D98: 0 | E98: 0 | F98: 0 | G98: 0 | H98: 0 | I98: RENVILLEMN | J98: TypeI | K98: MN | L98: Small | M98: =VLOOKUP(Table1[[#This Row],[Size]],lookups!$D$4:$E$6,2,FALSE) -> LT 15k | N98: Unused
A99: 333993 | B99: Packaging machinery manufacturing | C99: 1 | D99: 0 | E99: 0 | F99: 0 | G99: 0 | H99: 0 | I99: RENVILLEMN | J99: TypeI | K99: MN | L99: Small | M99: =VLOOKUP(Table1[[#This Row],[Size]],lookups!$D$4:$E$6,2,FALSE) -> LT 15k | N99: Unused
A100: 333994 | B100: Industrial process furnace and oven manufacturing | C100: 1 | D100: 0 | E100: 0 | F100: 0 | G100: 0 | H100: 0 | I100: RENVILLEMN | J100: TypeI | K100: MN | L100: Small | M100: =VLOOKUP(Table1[[#This Row],[Size]],lookups!$D$4:$E$6,2,FALSE) -> LT 15k | N100: Unused
A101: 33399A | B101: Other general purpose machinery manufacturing | C101: 1 | D101: 0 | E101: 0 | F101: 0 | G101: 0 | H101: 0 | I101: RENVILLEMN | J101: TypeI | K101: MN | L101: Small | M101: =VLOOKUP(Table1[[#This Row],[Size]],lookups!$D$4:$E$6,2,FALSE) -> LT 15k | N101: Unused
A102: 33399B | B102: Fluid power process machinery | C102: 1 | D102: 0 | E102: 0 | F102: 0 | G102: 0 | H102: 0 | I102: RENVILLEMN | J102: TypeI | K102: MN | L102: Small | M102: =VLOOKUP(Table1[[#This Row],[Size]],lookups!$D$4:$E$6,2,FALSE) -> LT 15k | N102: Unused
A103: 334111 | B103: Electronic computer manufacturing | C103: 1 | D103: 0 | E103: 0 | F103: 0 | G103: 0 | H103: 0 | I103: RENVILLEMN | J103: TypeI | K103: MN | L103: Small | M103: =VLOOKUP(Table1[[#This Row],[Size]],lookups!$D$4:$E$6,2,FALSE) -> LT 15k | N103: ELEC
A104: 334112 | B104: Computer storage device manufacturing | C104: 1 | D104: 0 | E104: 0 | F104: 0 | G104: 0 | H104: 0 | I104: RENVILLEMN | J104: TypeI | K104: MN | L104: Small | M104: =VLOOKUP(Table1[[#This Row],[Size]],lookups!$D$4:$E$6,2,FALSE) -> LT 15k | N104: Unused
A105: 334118 | B105: Computer terminals and other computer peripheral equipment manufacturing | C105: 1 | D105: 0 | E105: 0 | F105: 0 | G105: 0 | H105: 0 | I105: RENVILLEMN | J105: TypeI | K105: MN | L105: Small | M105: =VLOOKUP(Table1[[#This Row],[Size]],lookups!$D$4:$E$6,2,FALSE) -> LT 15k | N105: Unused
A106: 334210 | B106: Telephone apparatus manufacturing | C106: 1 | D106: 0 | E106: 0 | F106: 0 | G106: 0 | H106: 0 | I106: RENVILLEMN | J106: TypeI | K106: MN | L106: Small | M106: =VLOOKUP(Table1[[#This Row],[Size]],lookups!$D$4:$E$6,2,FALSE) -> LT 15k | N106: Unused
A107: 334220 | B107: Broadcast and wireless communications equipment | C107: 1 | D107: 0 | E107: 0 | F107: 0 | G107: 0 | H107: 0 | I107: RENVILLEMN | J107: TypeI | K107: MN | L107: Small | M107: =VLOOKUP(Table1[[#This Row],[Size]],lookups!$D$4:$E$6,2,FALSE) -> LT 15k | N107: Unused
A108: 334290 | B108: Other communications equipment manufacturing | C108: 1 | D108: 0 | E108: 0 | F108: 0 | G108: 0 | H108: 0 | I108: RENVILLEMN | J108: TypeI | K108: MN | L108: Small | M108: =VLOOKUP(Table1[[#This Row],[Size]],lookups!$D$4:$E$6,2,FALSE) -> LT 15k | N108: Unused
A109: 334413 | B109: Semiconductor and related device manufacturing | C109: 1 | D109: 0 | E109: 0 | F109: 0 | G109: 0 | H109: 0 | I109: RENVILLEMN | J109: TypeI | K109: MN | L109: Small | M109: =VLOOKUP(Table1[[#This Row],[Size]],lookups!$D$4:$E$6,2,FALSE) -> LT 15k | N109: Unused
A110: 334418 | B110: Printed circuit assembly (electronic assembly) manufacturing | C110: 1 | D110: 0 | E110: 0 | F110: 0 | G110: 0 | H110: 0 | I110: RENVILLEMN | J110: TypeI | K110: MN | L110: Small | M110: =VLOOKUP(Table1[[#This Row],[Size]],lookups!$D$4:$E$6,2,FALSE) -> LT 15k | N110: ELEC
A111: 33441A | B111: Other electronic component manufacturing | C111: 1 | D111: 0 | E111: 0 | F111: 0 | G111: 0 | H111: 0 | I111: RENVILLEMN | J111: TypeI | K111: MN | L111: Small | M111: =VLOOKUP(Table1[[#This Row],[Size]],lookups!$D$4:$E$6,2,FALSE) -> LT 15k | N111: ELEC
A112: 334510 | B112: Electromedical and electrotherapeutic apparatus manufacturing | C112: 1 | D112: 0 | E112: 0 | F112: 0 | G112: 0 | H112: 0 | I112: RENVILLEMN | J112: TypeI | K112: MN | L112: Small | M112: =VLOOKUP(Table1[[#This Row],[Size]],lookups!$D$4:$E$6,2,FALSE) -> LT 15k | N112: Unused
A113: 334511 | B113: Search, detection, and navigation instruments manufacturing | C113: 1 | D113: 0 | E113: 0 | F113: 0 | G113: 0 | H113: 0 | I113: RENVILLEMN | J113: TypeI | K113: MN | L113: Small | M113: =VLOOKUP(Table1[[#This Row],[Size]],lookups!$D$4:$E$6,2,FALSE) -> LT 15k | N113: Unused
A114: 334512 | B114: Automatic environmental control manufacturing | C114: 1 | D114: 0 | E114: 0 | F114: 0 | G114: 0 | H114: 0 | I114: RENVILLEMN | J114: TypeI | K114: MN | L114: Small | M114: =VLOOKUP(Table1[[#This Row],[Size]],lookups!$D$4:$E$6,2,FALSE) -> LT 15k | N114: Unused
A115: 334513 | B115: Industrial process variable instruments manufacturing | C115: 1 | D115: 0 | E115: 0 | F115: 0 | G115: 0 | H115: 0 | I115: RENVILLEMN | J115: TypeI | K115: MN | L115: Small | M115: =VLOOKUP(Table1[[#This Row],[Size]],lookups!$D$4:$E$6,2,FALSE) -> LT 15k | N115: Unused
A116: 334514 | B116: Totalizing fluid meter and counting device manufacturing | C116: 1 | D116: 0 | E116: 0 | F116: 0 | G116: 0 | H116: 0 | I116: RENVILLEMN | J116: TypeI | K116: MN | L116: Small | M116: =VLOOKUP(Table1[[#This Row],[Size]],lookups!$D$4:$E$6,2,FALSE) -> LT 15k | N116: Unused
A117: 334515 | B117: Electricity and signal testing instruments manufacturing | C117: 1 | D117: 0 | E117: 0 | F117: 0 | G117: 0 | H117: 0 | I117: RENVILLEMN | J117: TypeI | K117: MN | L117: Small | M117: =VLOOKUP(Table1[[#This Row],[Size]],lookups!$D$4:$E$6,2,FALSE) -> LT 15k | N117: ELEC
A118: 334516 | B118: Analytical laboratory instrument manufacturing | C118: 1 | D118: 0 | E118: 0 | F118: 0 | G118: 0 | H118: 0 | I118: RENVILLEMN | J118: TypeI | K118: MN | L118: Small | M118: =VLOOKUP(Table1[[#This Row],[Size]],lookups!$D$4:$E$6,2,FALSE) -> LT 15k | N118: Unused
A119: 334517 | B119: Irradiation apparatus manufacturing | C119: 1 | D119: 0 | E119: 0 | F119: 0 | G119: 0 | H119: 0 | I119: RENVILLEMN | J119: TypeI | K119: MN | L119: Small | M119: =VLOOKUP(Table1[[#This Row],[Size]],lookups!$D$4:$E$6,2,FALSE) -> LT 15k | N119: Unused
A120: 33451A | B120: Watch, clock, and other measuring and controlling device manufacturing | C120: 1 | D120: 0 | E120: 0 | F120: 0 | G120: 0 | H120: 0 | I120: RENVILLEMN | J120: TypeI | K120: MN | L120: Small | M120: =VLOOKUP(Table1[[#This Row],[Size]],lookups!$D$4:$E$6,2,FALSE) -> LT 15k | N120: Unused
A121: 334300 | B121: Audio and video equipment manufacturing | C121: 1 | D121: 0 | E121: 0 | F121: 0 | G121: 0 | H121: 0 | I121: RENVILLEMN | J121: TypeI | K121: MN | L121: Small | M121: =VLOOKUP(Table1[[#This Row],[Size]],lookups!$D$4:$E$6,2,FALSE) -> LT 15k | N121: Unused
A122: 334610 | B122: Manufacturing and reproducing magnetic and optical media | C122: 1 | D122: 0 | E122: 0 | F122: 0 | G122: 0 | H122: 0 | I122: RENVILLEMN | J122: TypeI | K122: MN | L122: Small | M122: =VLOOKUP(Table1[[#This Row],[Size]],lookups!$D$4:$E$6,2,FALSE) -> LT 15k | N122: Unused
A123: 335110 | B123: Electric lamp bulb and part manufacturing | C123: 1 | D123: 0 | E123: 0 | F123: 0 | G123: 0 | H123: 0 | I123: RENVILLEMN | J123: TypeI | K123: MN | L123: Small | M123: =VLOOKUP(Table1[[#This Row],[Size]],lookups!$D$4:$E$6,2,FALSE) -> LT 15k | N123: ELEC
A124: 335120 | B124: Lighting fixture manufacturing | C124: 1 | D124: 0 | E124: 0 | F124: 0 | G124: 0 | H124: 0 | I124: RENVILLEMN | J124: TypeI | K124: MN | L124: Small | M124: =VLOOKUP(Table1[[#This Row],[Size]],lookups!$D$4:$E$6,2,FALSE) -> LT 15k | N124: Unused
A125: 335210 | B125: Small electrical appliance manufacturing | C125: 1 | D125: 0 | E125: 0 | F125: 0 | G125: 0 | H125: 0 | I125: RENVILLEMN | J125: TypeI | K125: MN | L125: Small | M125: =VLOOKUP(Table1[[#This Row],[Size]],lookups!$D$4:$E$6,2,FALSE) -> LT 15k | N125: Unused
A126: 335220 | B126: Major household appliance manufacturing | C126: 1 | D126: 0 | E126: 0 | F126: 0 | G126: 0 | H126: 0 | I126: RENVILLEMN | J126: TypeI | K126: MN | L126: Small | M126: =VLOOKUP(Table1[[#This Row],[Size]],lookups!$D$4:$E$6,2,FALSE) -> LT 15k | N126: Unused
A127: 335311 | B127: Power, distribution, and specialty transformer manufacturing | C127: 1 | D127: 0 | E127: 0 | F127: 0 | G127: 0 | H127: 0 | I127: RENVILLEMN | J127: TypeI | K127: MN | L127: Small | M127: =VLOOKUP(Table1[[#This Row],[Size]],lookups!$D$4:$E$6,2,FALSE) -> LT 15k | N127: ELEC
A128: 335312 | B128: Motor and generator manufacturing | C128: 1 | D128: 0 | E128: 0 | F128: 0 | G128: 0 | H128: 0 | I128: RENVILLEMN | J128: TypeI | K128: MN | L128: Small | M128: =VLOOKUP(Table1[[#This Row],[Size]],lookups!$D$4:$E$6,2,FALSE) -> LT 15k | N128: Unused
A129: 335313 | B129: Switchgear and switchboard apparatus manufacturing | C129: 1 | D129: 0 | E129: 0 | F129: 0 | G129: 0 | H129: 0 | I129: RENVILLEMN | J129: TypeI | K129: MN | L129: Small | M129: =VLOOKUP(Table1[[#This Row],[Size]],lookups!$D$4:$E$6,2,FALSE) -> LT 15k | N129: ELEC
A130: 335314 | B130: Relay and industrial control manufacturing | C130: 1 | D130: 0 | E130: 0 | F130: 0 | G130: 0 | H130: 0 | I130: RENVILLEMN | J130: TypeI | K130: MN | L130: Small | M130: =VLOOKUP(Table1[[#This Row],[Size]],lookups!$D$4:$E$6,2,FALSE) -> LT 15k | N130: ELEC
A131: 335911 | B131: Storage battery manufacturing | C131: 1 | D131: 0 | E131: 0 | F131: 0 | G131: 0 | H131: 0 | I131: RENVILLEMN | J131: TypeI | K131: MN | L131: Small | M131: =VLOOKUP(Table1[[#This Row],[Size]],lookups!$D$4:$E$6,2,FALSE) -> LT 15k | N131: Unused
A132: 335912 | B132: Primary battery manufacturing | C132: 1 | D132: 0 | E132: 0 | F132: 0 | G132: 0 | H132: 0 | I132: RENVILLEMN | J132: TypeI | K132: MN | L132: Small | M132: =VLOOKUP(Table1[[#This Row],[Size]],lookups!$D$4:$E$6,2,FALSE) -> LT 15k | N132: Unused
A133: 335920 | B133: Communication and energy wire and cable manufacturing | C133: 1 | D133: 0 | E133: 0 | F133: 0 | G133: 0 | H133: 0 | I133: RENVILLEMN | J133: TypeI | K133: MN | L133: Small | M133: =VLOOKUP(Table1[[#This Row],[Size]],lookups!$D$4:$E$6,2,FALSE) -> LT 15k | N133: Unused
A134: 335930 | B134: Wiring device manufacturing | C134: 1 | D134: 0 | E134: 0 | F134: 0 | G134: 0 | H134: 0 | I134: RENVILLEMN | J134: TypeI | K134: MN | L134: Small | M134: =VLOOKUP(Table1[[#This Row],[Size]],lookups!$D$4:$E$6,2,FALSE) -> LT 15k | N134: Unused
A135: 335991 | B135: Carbon and graphite product manufacturing | C135: 1 | D135: 0 | E135: 0 | F135: 0 | G135: 0 | H135: 0 | I135: RENVILLEMN | J135: TypeI | K135: MN | L135: Small | M135: =VLOOKUP(Table1[[#This Row],[Size]],lookups!$D$4:$E$6,2,FALSE) -> LT 15k | N135: Unused
A136: 335999 | B136: All other miscellaneous electrical equipment and component manufacturing | C136: 1 | D136: 0 | E136: 0 | F136: 0 | G136: 0 | H136: 0 | I136: RENVILLEMN | J136: TypeI | K136: MN | L136: Small | M136: =VLOOKUP(Table1[[#This Row],[Size]],lookups!$D$4:$E$6,2,FALSE) -> LT 15k | N136: Unused
A137: 336111 | B137: Automobile manufacturing | C137: 1 | D137: 0 | E137: 0 | F137: 0 | G137: 0 | H137: 0 | I137: RENVILLEMN | J137: TypeI | K137: MN | L137: Small | M137: =VLOOKUP(Table1[[#This Row],[Size]],lookups!$D$4:$E$6,2,FALSE) -> LT 15k | N137: Unused
A138: 336112 | B138: Light truck and utility vehicle manufacturing | C138: 1 | D138: 0 | E138: 0 | F138: 0 | G138: 0 | H138: 0 | I138: RENVILLEMN | J138: TypeI | K138: MN | L138: Small | M138: =VLOOKUP(Table1[[#This Row],[Size]],lookups!$D$4:$E$6,2,FALSE) -> LT 15k | N138: Unused
A139: 336120 | B139: Heavy duty truck manufacturing | C139: 1 | D139: 0 | E139: 0 | F139: 0 | G139: 0 | H139: 0 | I139: RENVILLEMN | J139: TypeI | K139: MN | L139: Small | M139: =VLOOKUP(Table1[[#This Row],[Size]],lookups!$D$4:$E$6,2,FALSE) -> LT 15k | N139: Unused
A140: 336211 | B140: Motor vehicle body manufacturing | C140: 1 | D140: 0 | E140: 0 | F140: 0 | G140: 0 | H140: 0 | I140: RENVILLEMN | J140: TypeI | K140: MN | L140: Small | M140: =VLOOKUP(Table1[[#This Row],[Size]],lookups!$D$4:$E$6,2,FALSE) -> LT 15k | N140: Unused
A141: 336212 | B141: Truck trailer manufacturing | C141: 1 | D141: 0 | E141: 0 | F141: 0 | G141: 0 | H141: 0 | I141: RENVILLEMN | J141: TypeI | K141: MN | L141: Small | M141: =VLOOKUP(Table1[[#This Row],[Size]],lookups!$D$4:$E$6,2,FALSE) -> LT 15k | N141: Unused
A142: 336213 | B142: Motor home manufacturing | C142: 1 | D142: 0 | E142: 0 | F142: 0 | G142: 0 | H142: 0 | I142: RENVILLEMN | J142: TypeI | K142: MN | L142: Small | M142: =VLOOKUP(Table1[[#This Row],[Size]],lookups!$D$4:$E$6,2,FALSE) -> LT 15k | N142: Unused
A143: 336214 | B143: Travel trailer and camper manufacturing | C143: 1 | D143: 0 | E143: 0 | F143: 0 | G143: 0 | H143: 0 | I143: RENVILLEMN | J143: TypeI | K143: MN | L143: Small | M143: =VLOOKUP(Table1[[#This Row],[Size]],lookups!$D$4:$E$6,2,FALSE) -> LT 15k | N143: Unused
A144: 336310 | B144: Motor vehicle gasoline engine and engine parts manufacturing | C144: 1 | D144: 0 | E144: 0 | F144: 0 | G144: 0 | H144: 0 | I144: RENVILLEMN | J144: TypeI | K144: MN | L144: Small | M144: =VLOOKUP(Table1[[#This Row],[Size]],lookups!$D$4:$E$6,2,FALSE) -> LT 15k | N144: Unused
A145: 336320 | B145: Motor vehicle electrical and electronic equipment manufacturing | C145: 1 | D145: 0 | E145: 0 | F145: 0 | G145: 0 | H145: 0 | I145: RENVILLEMN | J145: TypeI | K145: MN | L145: Small | M145: =VLOOKUP(Table1[[#This Row],[Size]],lookups!$D$4:$E$6,2,FALSE) -> LT 15k | N145: Unused
A146: 336350 | B146: Motor vehicle transmission and power train parts manufacturing | C146: 1 | D146: 0 | E146: 0 | F146: 0 | G146: 0 | H146: 0 | I146: RENVILLEMN | J146: TypeI | K146: MN | L146: Small | M146: =VLOOKUP(Table1[[#This Row],[Size]],lookups!$D$4:$E$6,2,FALSE) -> LT 15k | N146: Unused
A147: 336360 | B147: Motor vehicle seating and interior trim manufacturing | C147: 1 | D147: 0 | E147: 0 | F147: 0 | G147: 0 | H147: 0 | I147: RENVILLEMN | J147: TypeI | K147: MN | L147: Small | M147: =VLOOKUP(Table1[[#This Row],[Size]],lookups!$D$4:$E$6,2,FALSE) -> LT 15k | N147: Unused
A148: 336370 | B148: Motor vehicle metal stamping | C148: 1 | D148: 0 | E148: 0 | F148: 0 | G148: 0 | H148: 0 | I148: RENVILLEMN | J148: TypeI | K148: MN | L148: Small | M148: =VLOOKUP(Table1[[#This Row],[Size]],lookups!$D$4:$E$6,2,FALSE) -> LT 15k | N148: Unused
A149: 336390 | B149: Other motor vehicle parts manufacturing | C149: 1 | D149: 0 | E149: 0 | F149: 0 | G149: 0 | H149: 0 | I149: RENVILLEMN | J149: TypeI | K149: MN | L149: Small | M149: =VLOOKUP(Table1[[#This Row],[Size]],lookups!$D$4:$E$6,2,FALSE) -> LT 15k | N149: Unused
A150: 3363A0 | B150: Motor vehicle steering, suspension component (except spring), and brake systems manufacturing | C150: 1 | D150: 0 | E150: 0 | F150: 0 | G150: 0 | H150: 0 | I150: RENVILLEMN | J150: TypeI | K150: MN | L150: Small | M150: =VLOOKUP(Table1[[#This Row],[Size]],lookups!$D$4:$E$6,2,FALSE) -> LT 15k | N150: Unused
A151: 336411 | B151: Aircraft manufacturing | C151: 1 | D151: 0 | E151: 0 | F151: 0 | G151: 0 | H151: 0 | I151: RENVILLEMN | J151: TypeI | K151: MN | L151: Small | M151: =VLOOKUP(Table1[[#This Row],[Size]],lookups!$D$4:$E$6,2,FALSE) -> LT 15k | N151: Unused
A152: 336412 | B152: Aircraft engine and engine parts manufacturing | C152: 1 | D152: 0 | E152: 0 | F152: 0 | G152: 0 | H152: 0 | I152: RENVILLEMN | J152: TypeI | K152: MN | L152: Small | M152: =VLOOKUP(Table1[[#This Row],[Size]],lookups!$D$4:$E$6,2,FALSE) -> LT 15k | N152: Unused
A153: 336413 | B153: Other aircraft parts and auxiliary equipment manufacturing | C153: 1 | D153: 0 | E153: 0 | F153: 0 | G153: 0 | H153: 0 | I153: RENVILLEMN | J153: TypeI | K153: MN | L153: Small | M153: =VLOOKUP(Table1[[#This Row],[Size]],lookups!$D$4:$E$6,2,FALSE) -> LT 15k | N153: Unused
A154: 336414 | B154: Guided missile and space vehicle manufacturing | C154: 1 | D154: 0 | E154: 0 | F154: 0 | G154: 0 | H154: 0 | I154: RENVILLEMN | J154: TypeI | K154: MN | L154: Small | M154: =VLOOKUP(Table1[[#This Row],[Size]],lookups!$D$4:$E$6,2,FALSE) -> LT 15k | N154: Unused
A155: 33641A | B155: Propulsion units and parts for space vehicles and guided missiles | C155: 1 | D155: 0 | E155: 0 | F155: 0 | G155: 0 | H155: 0 | I155: RENVILLEMN | J155: TypeI | K155: MN | L155: Small | M155: =VLOOKUP(Table1[[#This Row],[Size]],lookups!$D$4:$E$6,2,FALSE) -> LT 15k | N155: Unused
A156: 336500 | B156: Railroad rolling stock manufacturing | C156: 1 | D156: 0 | E156: 0 | F156: 0 | G156: 0 | H156: 0 | I156: RENVILLEMN | J156: TypeI | K156: MN | L156: Small | M156: =VLOOKUP(Table1[[#This Row],[Size]],lookups!$D$4:$E$6,2,FALSE) -> LT 15k | N156: Unused
A157: 336611 | B157: Ship building and repairing | C157: 1 | D157: 0 | E157: 0 | F157: 0 | G157: 0 | H157: 0 | I157: RENVILLEMN | J157: TypeI | K157: MN | L157: Small | M157: =VLOOKUP(Table1[[#This Row],[Size]],lookups!$D$4:$E$6,2,FALSE) -> LT 15k | N157: Unused
A158: 336612 | B158: Boat building | C158: 1 | D158: 0 | E158: 0 | F158: 0 | G158: 0 | H158: 0 | I158: RENVILLEMN | J158: TypeI | K158: MN | L158: Small | M158: =VLOOKUP(Table1[[#This Row],[Size]],lookups!$D$4:$E$6,2,FALSE) -> LT 15k | N158: Unused
A159: 336991 | B159: Motorcycle, bicycle, and parts manufacturing | C159: 1 | D159: 0 | E159: 0 | F159: 0 | G159: 0 | H159: 0 | I159: RENVILLEMN | J159: TypeI | K159: MN | L159: Small | M159: =VLOOKUP(Table1[[#This Row],[Size]],lookups!$D$4:$E$6,2,FALSE) -> LT 15k | N159: Unused
A160: 336992 | B160: Military armored vehicle, tank, and tank component manufacturing | C160: 1 | D160: 0 | E160: 0 | F160: 0 | G160: 0 | H160: 0 | I160: RENVILLEMN | J160: TypeI | K160: MN | L160: Small | M160: =VLOOKUP(Table1[[#This Row],[Size]],lookups!$D$4:$E$6,2,FALSE) -> LT 15k | N160: Unused
A161: 336999 | B161: All other transportation equipment manufacturing | C161: 1 | D161: 0 | E161: 0 | F161: 0 | G161: 0 | H161: 0 | I161: RENVILLEMN | J161: TypeI | K161: MN | L161: Small | M161: =VLOOKUP(Table1[[#This Row],[Size]],lookups!$D$4:$E$6,2,FALSE) -> LT 15k | N161: Unused
A162: 337110 | B162: Wood kitchen cabinet and countertop manufacturing | C162: 1 | D162: 0 | E162: 0 | F162: 0 | G162: 0 | H162: 0 | I162: RENVILLEMN | J162: TypeI | K162: MN | L162: Small | M162: =VLOOKUP(Table1[[#This Row],[Size]],lookups!$D$4:$E$6,2,FALSE) -> LT 15k | N162: Unused
A163: 337121 | B163: Upholstered household furniture manufacturing | C163: 1 | D163: 0 | E163: 0 | F163: 0 | G163: 0 | H163: 0 | I163: RENVILLEMN | J163: TypeI | K163: MN | L163: Small | M163: =VLOOKUP(Table1[[#This Row],[Size]],lookups!$D$4:$E$6,2,FALSE) -> LT 15k | N163: Unused
A164: 337122 | B164: Nonupholstered wood household furniture manufacturing | C164: 1 | D164: 0 | E164: 0 | F164: 0 | G164: 0 | H164: 0 | I164: RENVILLEMN | J164: TypeI | K164: MN | L164: Small | M164: =VLOOKUP(Table1[[#This Row],[Size]],lookups!$D$4:$E$6,2,FALSE) -> LT 15k | N164: Unused
A165: 337127 | B165: Institutional furniture manufacturing | C165: 1 | D165: 0 | E165: 0 | F165: 0 | G165: 0 | H165: 0 | I165: RENVILLEMN | J165: TypeI | K165: MN | L165: Small | M165: =VLOOKUP(Table1[[#This Row],[Size]],lookups!$D$4:$E$6,2,FALSE) -> LT 15k | N165: Unused
A166: 33712N | B166: Other household nonupholstered furniture | C166: 1 | D166: 0 | E166: 0 | F166: 0 | G166: 0 | H166: 0 | I166: RENVILLEMN | J166: TypeI | K166: MN | L166: Small | M166: =VLOOKUP(Table1[[#This Row],[Size]],lookups!$D$4:$E$6,2,FALSE) -> LT 15k | N166: Unused
A167: 337215 | B167: Showcase, partition, shelving, and locker manufacturing | C167: 1 | D167: 0 | E167: 0 | F167: 0 | G167: 0 | H167: 0 | I167: RENVILLEMN | J167: TypeI | K167: MN | L167: Small | M167: =VLOOKUP(Table1[[#This Row],[Size]],lookups!$D$4:$E$6,2,FALSE) -> LT 15k | N167: Unused
A168: 33721A | B168: Office furniture and custom architectural woodwork and millwork manufacturing | C168: 1 | D168: 0 | E168: 0 | F168: 0 | G168: 0 | H168: 0 | I168: RENVILLEMN | J168: TypeI | K168: MN | L168: Small | M168: =VLOOKUP(Table1[[#This Row],[Size]],lookups!$D$4:$E$6,2,FALSE) -> LT 15k | N168: Unused
A169: 337900 | B169: Other furniture related product manufacturing | C169: 1 | D169: 0 | E169: 0 | F169: 0 | G169: 0 | H169: 0 | I169: RENVILLEMN | J169: TypeI | K169: MN | L169: Small | M169: =VLOOKUP(Table1[[#This Row],[Size]],lookups!$D$4:$E$6,2,FALSE) -> LT 15k | N169: Unused
A170: 339112 | B170: Surgical and medical instrument manufacturing | C170: 1 | D170: 0 | E170: 0 | F170: 0 | G170: 0 | H170: 0 | I170: RENVILLEMN | J170: TypeI | K170: MN | L170: Small | M170: =VLOOKUP(Table1[[#This Row],[Size]],lookups!$D$4:$E$6,2,FALSE) -> LT 15k | N170: Unused
A171: 339113 | B171: Surgical appliance and supplies manufacturing | C171: 1.1171 | D171: 0.126 | E171: 1.8045 | F171: 0.6366 | G171: 1.2081 | H171: 1.211 | I171: RENVILLEMN | J171: TypeI | K171: MN | L171: Small | M171: =VLOOKUP(Table1[[#This Row],[Size]],lookups!$D$4:$E$6,2,FALSE) -> LT 15k | N171: Unused
A172: 339114 | B172: Dental equipment and supplies manufacturing | C172: 1 | D172: 0 | E172: 0 | F172: 0 | G172: 0 | H172: 0 | I172: RENVILLEMN | J172: TypeI | K172: MN | L172: Small | M172: =VLOOKUP(Table1[[#This Row],[Size]],lookups!$D$4:$E$6,2,FALSE) -> LT 15k | N172: Unused
A173: 339115 | B173: Ophthalmic goods manufacturing | C173: 1 | D173: 0 | E173: 0 | F173: 0 | G173: 0 | H173: 0 | I173: RENVILLEMN | J173: TypeI | K173: MN | L173: Small | M173: =VLOOKUP(Table1[[#This Row],[Size]],lookups!$D$4:$E$6,2,FALSE) -> LT 15k | N173: Unused
A174: 339116 | B174: Dental laboratories | C174: 1 | D174: 0 | E174: 0 | F174: 0 | G174: 0 | H174: 0 | I174: RENVILLEMN | J174: TypeI | K174: MN | L174: Small | M174: =VLOOKUP(Table1[[#This Row],[Size]],lookups!$D$4:$E$6,2,FALSE) -> LT 15k | N174: Unused
A175: 339910 | B175: Jewelry and silverware manufacturing | C175: 1 | D175: 0 | E175: 0 | F175: 0 | G175: 0 | H175: 0 | I175: RENVILLEMN | J175: TypeI | K175: MN | L175: Small | M175: =VLOOKUP(Table1[[#This Row],[Size]],lookups!$D$4:$E$6,2,FALSE) -> LT 15k | N175: Unused
A176: 339920 | B176: Sporting and athletic goods manufacturing | C176: 1 | D176: 0 | E176: 0 | F176: 0 | G176: 0 | H176: 0 | I176: RENVILLEMN | J176: TypeI | K176: MN | L176: Small | M176: =VLOOKUP(Table1[[#This Row],[Size]],lookups!$D$4:$E$6,2,FALSE) -> LT 15k | N176: Unused
A177: 339930 | B177: Doll, toy, and game manufacturing | C177: 1 | D177: 0 | E177: 0 | F177: 0 | G177: 0 | H177: 0 | I177: RENVILLEMN | J177: TypeI | K177: MN | L177: Small | M177: =VLOOKUP(Table1[[#This Row],[Size]],lookups!$D$4:$E$6,2,FALSE) -> LT 15k | N177: Unused
A178: 339940 | B178: Office supplies (except paper) manufacturing | C178: 1 | D178: 0 | E178: 0 | F178: 0 | G178: 0 | H178: 0 | I178: RENVILLEMN | J178: TypeI | K178: MN | L178: Small | M178: =VLOOKUP(Table1[[#This Row],[Size]],lookups!$D$4:$E$6,2,FALSE) -> LT 15k | N178: Unused
A179: 339950 | B179: Sign manufacturing | C179: 1.1083 | D179: 0.176 | E179: 3.3641 | F179: 0.4611 | G179: 1.1409 | H179: 1.0958 | I179: RENVILLEMN | J179: TypeI | K179: MN | L179: Small | M179: =VLOOKUP(Table1[[#This Row],[Size]],lookups!$D$4:$E$6,2,FALSE) -> LT 15k | N179: Unused
A180: 339990 | B180: All other miscellaneous manufacturing | C180: 1.1292 | D180: 0.1414 | E180: 2.6289 | F180: 0.5158 | G180: 1.2318 | H180: 1.1703 | I180: RENVILLEMN | J180: TypeI | K180: MN | L180: Small | M180: =VLOOKUP(Table1[[#This Row],[Size]],lookups!$D$4:$E$6,2,FALSE) -> LT 15k | N180: Unused
A181: 311111 | B181: Dog and cat food manufacturing | C181: 1 | D181: 0 | E181: 0 | F181: 0 | G181: 0 | H181: 0 | I181: RENVILLEMN | J181: TypeI | K181: MN | L181: Small | M181: =VLOOKUP(Table1[[#This Row],[Size]],lookups!$D$4:$E$6,2,FALSE) -> LT 15k | N181: Unused
A182: 311119 | B182: Other animal food manufacturing | C182: 1.502 | D182: 0.1982 | E182: 3.2948 | F182: 0.3159 | G182: 1.8385 | H182: 2.079 | I182: RENVILLEMN | J182: TypeI | K182: MN | L182: Small | M182: =VLOOKUP(Table1[[#This Row],[Size]],lookups!$D$4:$E$6,2,FALSE) -> LT 15k | N182: Unused
A183: 311210 | B183: Flour milling and malt manufacturing | C183: 1 | D183: 0 | E183: 0 | F183: 0 | G183: 0 | H183: 0 | I183: RENVILLEMN | J183: TypeI | K183: MN | L183: Small | M183: =VLOOKUP(Table1[[#This Row],[Size]],lookups!$D$4:$E$6,2,FALSE) -> LT 15k | N183: Unused
A184: 311221 | B184: Wet corn milling | C184: 1 | D184: 0 | E184: 0 | F184: 0 | G184: 0 | H184: 0 | I184: RENVILLEMN | J184: TypeI | K184: MN | L184: Small | M184: =VLOOKUP(Table1[[#This Row],[Size]],lookups!$D$4:$E$6,2,FALSE) -> LT 15k | N184: Unused
A185: 311225 | B185: Fats and oils refining and blending | C185: 1.4532 | D185: 0.1767 | E185: 2.7126 | F185: 0.2618 | G185: 1.6384 | H185: 1.6614 | I185: RENVILLEMN | J185: TypeI | K185: MN | L185: Small | M185: =VLOOKUP(Table1[[#This Row],[Size]],lookups!$D$4:$E$6,2,FALSE) -> LT 15k | N185: Unused
A186: 311224 | B186: Soybean and other oilseed processing | C186: 1 | D186: 0 | E186: 0 | F186: 0 | G186: 0 | H186: 0 | I186: RENVILLEMN | J186: TypeI | K186: MN | L186: Small | M186: =VLOOKUP(Table1[[#This Row],[Size]],lookups!$D$4:$E$6,2,FALSE) -> LT 15k | N186: Unused
A187: 311230 | B187: Breakfast cereal manufacturing | C187: 1 | D187: 0 | E187: 0 | F187: 0 | G187: 0 | H187: 0 | I187: RENVILLEMN | J187: TypeI | K187: MN | L187: Small | M187: =VLOOKUP(Table1[[#This Row],[Size]],lookups!$D$4:$E$6,2,FALSE) -> LT 15k | N187: Unused
A188: 311300 | B188: Sugar and confectionery product manufacturing | C188: 1.3818 | D188: 0.1699 | E188: 2.7587 | F188: 0.3861 | G188: 1.5757 | H188: 1.5343 | I188: RENVILLEMN | J188: TypeI | K188: MN | L188: Small | M188: =VLOOKUP(Table1[[#This Row],[Size]],lookups!$D$4:$E$6,2,FALSE) -> LT 15k | N188: Unused
A189: 311410 | B189: Frozen food manufacturing | C189: 1 | D189: 0 | E189: 0 | F189: 0 | G189: 0 | H189: 0 | I189: RENVILLEMN | J189: TypeI | K189: MN | L189: Small | M189: =VLOOKUP(Table1[[#This Row],[Size]],lookups!$D$4:$E$6,2,FALSE) -> LT 15k | N189: Unused
A190: 311420 | B190: Fruit and vegetable canning, pickling, and drying | C190: 1 | D190: 0 | E190: 0 | F190: 0 | G190: 0 | H190: 0 | I190: RENVILLEMN | J190: TypeI | K190: MN | L190: Small | M190: =VLOOKUP(Table1[[#This Row],[Size]],lookups!$D$4:$E$6,2,FALSE) -> LT 15k | N190: Unused
A191: 311513 | B191: Cheese manufacturing | C191: 1 | D191: 0 | E191: 0 | F191: 0 | G191: 0 | H191: 0 | I191: RENVILLEMN | J191: TypeI | K191: MN | L191: Small | M191: =VLOOKUP(Table1[[#This Row],[Size]],lookups!$D$4:$E$6,2,FALSE) -> LT 15k | N191: Unused
A192: 311514 | B192: Dry, condensed, and evaporated dairy product manufacturing | C192: 1 | D192: 0 | E192: 0 | F192: 0 | G192: 0 | H192: 0 | I192: RENVILLEMN | J192: TypeI | K192: MN | L192: Small | M192: =VLOOKUP(Table1[[#This Row],[Size]],lookups!$D$4:$E$6,2,FALSE) -> LT 15k | N192: Unused
A193: 31151A | B193: Fluid milk and butter manufacturing | C193: 1 | D193: 0 | E193: 0 | F193: 0 | G193: 0 | H193: 0 | I193: RENVILLEMN | J193: TypeI | K193: MN | L193: Small | M193: =VLOOKUP(Table1[[#This Row],[Size]],lookups!$D$4:$E$6,2,FALSE) -> LT 15k | N193: Unused
A194: 311520 | B194: Ice cream and frozen dessert manufacturing | C194: 1 | D194: 0 | E194: 0 | F194: 0 | G194: 0 | H194: 0 | I194: RENVILLEMN | J194: TypeI | K194: MN | L194: Small | M194: =VLOOKUP(Table1[[#This Row],[Size]],lookups!$D$4:$E$6,2,FALSE) -> LT 15k | N194: Unused
A195: 311615 | B195: Poultry processing | C195: 2.0089 | D195: 0.257 | E195: 4.4984 | F195: 0.4497 | G195: 2.3835 | H195: 2.1772 | I195: RENVILLEMN | J195: TypeI | K195: MN | L195: Small | M195: =VLOOKUP(Table1[[#This Row],[Size]],lookups!$D$4:$E$6,2,FALSE) -> LT 15k | N195: Unused
A196: 31161A | B196: Animal (except poultry) slaughtering, rendering, and processing | C196: 1 | D196: 0 | E196: 0 | F196: 0 | G196: 0 | H196: 0 | I196: RENVILLEMN | J196: TypeI | K196: MN | L196: Small | M196: =VLOOKUP(Table1[[#This Row],[Size]],lookups!$D$4:$E$6,2,FALSE) -> LT 15k | N196: Unused
A197: 311700 | B197: Seafood product preparation and packaging | C197: 1 | D197: 0 | E197: 0 | F197: 0 | G197: 0 | H197: 0 | I197: RENVILLEMN | J197: TypeI | K197: MN | L197: Small | M197: =VLOOKUP(Table1[[#This Row],[Size]],lookups!$D$4:$E$6,2,FALSE) -> LT 15k | N197: Unused
A198: 311810 | B198: Bread and bakery product manufacturing | C198: 1 | D198: 0 | E198: 0 | F198: 0 | G198: 0 | H198: 0 | I198: RENVILLEMN | J198: TypeI | K198: MN | L198: Small | M198: =VLOOKUP(Table1[[#This Row],[Size]],lookups!$D$4:$E$6,2,FALSE) -> LT 15k | N198: Unused
A199: 3118A0 | B199: Cookie, cracker, pasta, and tortilla manufacturing | C199: 1 | D199: 0 | E199: 0 | F199: 0 | G199: 0 | H199: 0 | I199: RENVILLEMN | J199: TypeI | K199: MN | L199: Small | M199: =VLOOKUP(Table1[[#This Row],[Size]],lookups!$D$4:$E$6,2,FALSE) -> LT 15k | N199: Unused
A200: 311910 | B200: Snack food manufacturing | C200: 1 | D200: 0 | E200: 0 | F200: 0 | G200: 0 | H200: 0 | I200: RENVILLEMN | J200: TypeI | K200: MN | L200: Small | M200: =VLOOKUP(Table1[[#This Row],[Size]],lookups!$D$4:$E$6,2,FALSE) -> LT 15k | N200: Unused
... 4300 more rows

Sheet lookups
V2: List of all Counties in the model | AB2: Below is filtered based on State | AG2: How taxes are levied | AO2: Farmland Taxes | AT2: Farmland Tax Adjustment | AX2: Life of Project | BA2: Conversion Tax | BH2: Indiana | BM2: Michigan
B3: States | D3: Size | G3: Install_categories | J3: Multiplier | L3: Soil | N3: Ag Output | S3: States | V3: Geography | W3: State | X3: County | Y3: Size | Z3: FieldProd | AB3: county_ftl_1 | AG3: Tax | AH3: Tax Basis | AI3: Production Tax Rate | AJ3: BookValue Tax Rate | AK3: Loal Capture | AL3: Sales Tax | AO3: Assessed | AP3: farmland | AQ3: real prop tax rate | AT3: Il_tax | AX3: Life | BA3: WI County | BB3: Conversion Rate | BC3: Average Effective Property Tax Rate | BH3: County | BI3: Tax District | BJ3: Solar Assessed/acre | BK3: milliage | BM3: County | BN3: IPP | BR3: WI | BS3: County | BT3: Median Home Value | BU3: Median Annual Property Tax Payment | BV3: Average Effective Property Tax Rate
B4: =_xlfn._xlws.SORT(_xlfn.UNIQUE(_xlfn._xlws.FILTER(Table1[State],Table1[State]<>""))) -> IA | D4: =_xlfn.UNIQUE(_xlfn._xlws.FILTER(Table1[Size],Table1[Size]<>"")) -> Small | E4: LT 15k | G4: Engineering, Procurement and Construction | H4: EPC | J4: TypeI | L4: Above Average | O4: Average | P4: Above Average | Q4: Below Average | S4: IA | T4: Iowa | V4: 0500000US17001 | W4: IL | X4: Adams County | Y4: Large | Z4: Average | AB4: =_xlfn._xlws.FILTER(X4:Z626,W4:W626=state) -> Adams County | AC4: Large | AD4: Average | AG4: IA | AL4: 0.0693 | AP4: 11413 | AT4: Above Average | AU4: 1.1 | AX4: 25 | BA4: Adams County | BB4: 194 | BC4: 0.0136 | BH4: Adams County | BI4: North District | BJ4: =IF(BI4="North District",13000,IF(BI4="South District",14201,6535)) -> 13000 | BK4: 1.82 | BM4: Alcona County | BN4: 15.7733 | BQ4: =BS4=BA4 -> TRUE | BR4: =LEFT(BS4,FIND(" County",BS4)) -> Adams | BS4: Adams County | BT4: 168400 | BU4: 2291 | BV4: 0.0136
B5: IL | D5: Medium | E5: LT 30k | G5: Contingency | H5: NON | J5: TypeII | L5: Average | N5: Corn Production | O5: 1028 | P5: =1.1*O5 -> 1130.8 | Q5: =0.9*O5 -> 925.2 | S5: IL | T5: Illinois | V5: 0500000US17003 | W5: IL | X5: Alexander County | Y5: Small | Z5: Below Average | AB5: Allen County | AC5: Large | AD5: Average | AG5: IL | AH5: BookValue | AK5: 100 | AL5: 0.0884 | AO5: =1/3 -> 0.3333333333 | AP5: 8900 | AT5: Average | AU5: 1 | AX5: 30 | BA5: Ashland County | BB5: 68 | BC5: 0.0158 | BH5: Allen County | BI5: North District | BJ5: =IF(BI5="North District",13000,IF(BI5="South District",14201,6535)) -> 13000 | BK5: 1.72 | BM5: Alger County | BN5: 19.9091 | BQ5: TRUE | BR5: =LEFT(BS5,FIND(" County",BS5)) -> Ashland | BS5: Ashland County | BT5: 143500 | BU5: 2268 | BV5: 0.0158
B6: IN | D6: Large | E6: LT 50k | G6: Transmission/Interconnection | H6: ELEC | L6: Below Average | N6: Soy Production | O6: 805 | P6: =1.1*O6 -> 885.5 | Q6: =0.9*O6 -> 724.5 | S6: IN | T6: Indiana | V6: 0500000US17005 | W6: IL | X6: Bond County | Y6: Medium | Z6: Average | AB6: Bartholomew County | AC6: Large | AD6: Average | AG6: IN | AL6: 0.07 | AP6: 5850 | AT6: Below Average | AU6: 0.9 | BA6: Barron County | BB6: 141 | BC6: 0.0149 | BH6: Bartholomew County | BI6: South District | BJ6: 6535 | BK6: 1.69 | BM6: Allegan County | BN6: =(35.2645+20.8331)/2 -> 28.0488 | BQ6: TRUE | BR6: Barron | BS6: Barron County | BT6: 182600 | BU6: 2728 | BV6: 0.0149
B7: MI | G7: State Taxes and Fees | H7: SAL | N7: Wheat Production | O7: 555 | P7: =1.1*O7 -> 610.5 | Q7: =0.9*O7 -> 499.5 | S7: MI | T7: Michigan | V7: 0500000US17007 | W7: IL | X7: Boone County | Y7: Large | Z7: Average | AB7: Benton County | AC7: Small | AD7: Above Average | AG7: MI | AL7: 0.06 | AP7: 5850 | BA7: Bayfield County | BB7: 60 | BC7: 0.0112 | BH7: Benton County | BI7: North District | BJ7: 13000 | BK7: 1.41 | BM7: Alpena County | BN7: =(15.2023+25.7023)/2 -> 20.4523 | BQ7: TRUE | BR7: Bayfield | BS7: Bayfield County | BT7: 214700 | BU7: 2412 | BV7: 0.0112
B8: MN | G8: Installation (non-residential construction) | H8: CONS | S8: MN | T8: Minneapolis | V8: 0500000US17009 | W8: IL | X8: Brown County | Y8: Small | Z8: Average | AB8: Blackford County | AC8: Small | AD8: Average | AG8: MN | AH8: Production | AI8: 1.2 | AK8: 100 | AL8: 0.0752 | AP8: 6200 | BA8: Brown County | BB8: 484 | BC8: 0.0154 | BH8: Blackford County | BI8: North District | BJ8: 13000 | BK8: 2.44 | BM8: Antrim County | BN8: =(16.1584+29.8169)/2 -> 22.98765 | BQ8: TRUE | BR8: Brown | BS8: Brown County | BT8: 226500 | BU8: 3499 | BV8: 0.0154
B9: OH | G9: Electrical components (less transmission) | H9: ELEC | S9: OH | T9: Ohio | V9: 0500000US17011 | W9: IL | X9: Bureau County | Y9: Large | Z9: Above Average | AB9: Boone County | AC9: Large | AD9: Average | AG9: OH | AH9: Capacity | AL9: 0.0724 | AP9: 7200 | BA9: Buffalo County | BB9: 221 | BC9: 0.0154 | BH9: Boone County | BI9: Central District | BJ9: 14201 | BK9: 1.66 | BM9: Arenac County | BN9: =(18.9456+36.5658)/2 -> 27.7557 | BQ9: TRUE | BR9: Buffalo | BS9: Buffalo County | BT9: 182900 | BU9: 2815 | BV9: 0.0154
B10: WI | G10: Structures | H10: INST | S10: WI | T10: Wisconsin | V10: 0500000US17013 | W10: IL | X10: Calhoun County | Y10: Small | Z10: Average | AB10: Brown County | AC10: Medium | AD10: Below Average | AG10: WI | AH10: Capacity | AI10: 4000 | AL10: 0.0543 | AP10: 555 | BA10: Burnett County | BB10: 92 | BC10: 0.0102 | BH10: Brown County | BI10: South District | BJ10: 6535 | BK10: 0.98 | BM10: Baraga County | BN10: =(18.3564+28.909)/2 -> 23.6327 | BQ10: TRUE | BR10: Burnett | BS10: Burnett County | BT10: 200800 | BU10: 2047 | BV10: 0.0102
G11: PV Modules | H11: PV | V11: 0500000US17015 | W11: IL | X11: Carroll County | Y11: Small | Z11: Above Average | AB11: Carroll County | AC11: Medium | AD11: Above Average | AG11: Production(rate per MWh), BookValue(Floor=30%), Capacity(Tax charge per MW) | BA11: Calumet County | BB11: 474 | BC11: 0.0158 | BH11: Carroll County | BI11: North District | BJ11: 13000 | BK11: 1.26 | BM11: Barry County | BN11: =(27.6341+16.4016)/2 -> 22.01785 | BQ11: TRUE | BR11: Calumet | BS11: Calumet County | BT11: 234000 | BU11: 3693 | BV11: 0.0158
V12: 0500000US17017 | W12: IL | X12: Cass County | Y12: Small | Z12: Average | AB12: Cass County | AC12: Large | AD12: Average | BA12: Chippewa County | BB12: 151 | BC12: 0.0126 | BH12: Cass County | BI12: North District | BJ12: 13000 | BK12: 2.67 | BM12: Bay County | BN12: =(26.0886+27.963)/2 -> 27.0258 | BQ12: TRUE | BR12: Chippewa | BS12: Chippewa County | BT12: 215300 | BU12: 2704 | BV12: 0.0126
V13: 0500000US17019 | W13: IL | X13: Champaign County | Y13: Large | Z13: Above Average | AB13: Clark County | AC13: Large | AD13: Below Average | BA13: Clark County | BB13: 207 | BC13: 0.0158 | BH13: Clark County | BI13: South District | BJ13: 6535 | BK13: 1.88 | BM13: Benzie County | BN13: =(16.6997+24.1275)/2 -> 20.4136 | BQ13: TRUE | BR13: Clark | BS13: Clark County | BT13: 153000 | BU13: 2419 | BV13: 0.0158
V14: 0500000US17021 | W14: IL | X14: Christian County | Y14: Large | Z14: Above Average | AB14: Clay County | AC14: Medium | AD14: Average | BA14: Columbia County | BB14: 418 | BC14: 0.0153 | BH14: Clay County | BI14: Central District | BJ14: 14201 | BK14: 1.61 | BM14: Berrien County | BN14: =(29.6351+14.3885)/2 -> 22.0118 | BQ14: TRUE | BR14: Columbia | BS14: Columbia County | BT14: 243600 | BU14: 3738 | BV14: 0.0153
V15: 0500000US17023 | W15: IL | X15: Clark County | Y15: Medium | Z15: Average | AB15: Clinton County | AC15: Large | AD15: Above Average | BA15: Crawford County | BB15: 233 | BC15: 0.0177 | BH15: Clinton County | BI15: Central District | BJ15: 14201 | BK15: 1.98 | BM15: Branch County | BN15: =(30.3601+20.9651)/2 -> 25.6626 | BQ15: TRUE | BR15: Crawford | BS15: Crawford County | BT15: 160300 | BU15: 2842 | BV15: 0.0177
V16: 0500000US17025 | W16: IL | X16: Clay County | Y16: Small | Z16: Below Average | AB16: Crawford County | AC16: Small | AD16: Below Average | BA16: Dane County | BB16: 579 | BC16: 0.0178 | BH16: Crawford County | BI16: South District | BJ16: 6535 | BK16: 2.66 | BM16: Calhoun County | BN16: =(22.8734+28.6543)/2 -> 25.76385 | BQ16: TRUE | BR16: Dane | BS16: Dane County | BT16: 342900 | BU16: 6103 | BV16: 0.0178
V17: 0500000US17027 | W17: IL | X17: Clinton County | Y17: Large | Z17: Average | AB17: Daviess County | AC17: Large | AD17: Average | BA17: Dodge County | BB17: 428 | BC17: 0.0167 | BH17: Daviess County | BI17: South District | BJ17: 6535 | BK17: 1.83 | BM17: Cass County | BN17: =(31.3339+15.168)/2 -> 23.25095 | BQ17: TRUE | BR17: Dodge | BS17: Dodge County | BT17: 201000 | BU17: 3351 | BV17: 0.0167
V18: 0500000US17029 | W18: IL | X18: Coles County | Y18: Large | Z18: Above Average | AB18: Dearborn County | AC18: Large | AD18: Below Average | BA18: Door County | BB18: 260 | BC18: 0.0112 | BH18: Dearborn County | BI18: South District | BJ18: 6535 | BK18: 2.07 | BM18: Charlevoix County | BN18: =(29.7656+18.4927)/2 -> 24.12915 | BQ18: TRUE | BR18: Door | BS18: Door County | BT18: 273300 | BU18: 3053 | BV18: 0.0112
V19: 0500000US17031 | W19: IL | X19: Cook County | Y19: Large | Z19: Below Average | AB19: Decatur County | AC19: Medium | AD19: Average | AG19: Real Property Tax Rate - per acre | AH19: Below Average | AI19: Average | AJ19: Above Average | BA19: Douglas County | BB19: 53 | BC19: 0.0146 | BH19: Decatur County | BI19: South District | BJ19: 6535 | BK19: 1.26 | BM19: Cheboygan County | BN19: =(14.892+28.7602)/2 -> 21.8261 | BQ19: TRUE | BR19: Douglas | BS19: Douglas County | BT19: 174900 | BU19: 2548 | BV19: 0.0146
V20: 0500000US17033 | W20: IL | X20: Crawford County | Y20: Medium | Z20: Average | AB20: DeKalb County | AC20: Large | AD20: Average | AG20: IA | BA20: Dunn County | BB20: 172 | BC20: 0.0152 | BH20: DeKalb County | BI20: North District | BJ20: 13000 | BK20: 1.75 | BM20: Chippewa County | BN20: =(24.2425+16.8919)/2 -> 20.5672 | BQ20: TRUE | BR20: Dunn | BS20: Dunn County | BT20: 212000 | BU20: 3231 | BV20: 0.0152
V21: 0500000US17035 | W21: IL | X21: Cumberland County | Y21: Small | Z21: Average | AB21: Delaware County | AC21: Large | AD21: Average | AG21: IL | AH21: =972.41*0.0769 -> 74.778329 | AI21: =1239.29*0.0769 -> 95.301401 | AJ21: =1551.17*0.0769 -> 119.284973 | BA21: Eau Claire County | BB21: 209 | BC21: 0.0149 | BH21: Delaware County | BI21: Central District | BJ21: 14201 | BK21: 2.63 | BM21: Clare County | BN21: =(21.1428+17.3242)/2 -> 19.2335 | BQ21: TRUE | BR21: Eau Claire | BS21: Eau Claire County | BT21: 226400 | BU21: 3374 | BV21: 0.0149
V22: 0500000US17037 | W22: IL | X22: DeKalb County | Y22: Large | Z22: Average | AB22: Dubois County | AC22: Large | AD22: Average | AG22: IN | AH22: =PV(0.065,20,-204)*0.0085 -> 19.10609157 | AI22: =PV(0.065,20,-260)*0.0085 -> 24.35090102 | AJ22: =PV(0.065,20,-313)*0.0085 -> 29.31473853 | BA22: Florence County | BB22: 75 | BC22: 0.0131 | BH22: Dubois County | BI22: South District | BJ22: 6535 | BK22: 1.51 | BM22: Clinton County | BN22: =(23.7229+26.8004)/2 -> 25.26165 | BQ22: TRUE | BR22: Florence | BS22: Florence County | BT22: 158400 | BU22: 2070 | BV22: 0.0131
V23: 0500000US17039 | W23: IL | X23: DeWitt County | Y23: Medium | Z23: Above Average | AB23: Elkhart County | AC23: Large | AD23: Average | AG23: MI | BA23: Fond Du Lac County | BB23: 351 | BC23: 0.0167 | BH23: Elkhart County | BI23: North District | BJ23: 13000 | BK23: 2.44 | BM23: Crawford County | BN23: =(18.8194+23.5278)/2 -> 21.1736 | BQ23: TRUE | BR23: Fond du Lac | BS23: Fond du Lac County | BT23: 195800 | BU23: 3276 | BV23: 0.0167
V24: 0500000US17041 | W24: IL | X24: Douglas County | Y24: Medium | Z24: Above Average | AB24: Fayette County | AC24: Medium | AD24: Average | AG24: MN | AH24: =3500*0.03 -> 105 | AI24: =5833*0.03 -> 174.99 | AJ24: =8167*0.03 -> 245.01 | BA24: Forest County | BB24: 72 | BC24: 0.0123 | BH24: Fayette County | BI24: Central District | BJ24: 14201 | BK24: 2.33 | BM24: Delta County | BN24: =(23.3649+18.461)/2 -> 20.91295 | BQ24: TRUE | BR24: Forest | BS24: Forest County | BT24: 160100 | BU24: 1968 | BV24: 0.0123
V25: 0500000US17043 | W25: IL | X25: DuPage County | Y25: Large | Z25: Below Average | AB25: Floyd County | AC25: Large | AD25: Average | AG25: OH | AH25: =607*0.35*(52.7/1000) -> 11.196115 | AI25: =2364*0.35*(52.7/1000) -> 43.60398 | AJ25: =3871*0.35*(52.7/1000) -> 71.400595 | BA25: Grant County | BB25: 315 | BC25: 0.0156 | BH25: Floyd County | BI25: South District | BJ25: 6535 | BK25: 1.64 | BM25: Dickinson County | BN25: =(17.6676+24.2457)/2 -> 20.95665 | BQ25: TRUE | BR25: Grant | BS25: Grant County | BT25: 173400 | BU25: 2698 | BV25: 0.0156
V26: 0500000US17045 | W26: IL | X26: Edgar County | Y26: Medium | Z26: Above Average | AB26: Fountain County | AC26: Medium | AD26: Average | AG26: WI | AH26: 185 | AI26: 248 | AJ26: 293 | BA26: Green County | BB26: 317 | BC26: 0.0173 | BH26: Fountain County | BI26: Central District | BJ26: 14201 | BK26: 1.53 | BM26: Eaton County | BN26: =(22.6811+29.8255)/2 -> 26.2533 | BQ26: TRUE | BR26: Green | BS26: Green County | BT26: 217000 | BU26: 3759 | BV26: 0.0173
V27: 0500000US17047 | W27: IL | X27: Edwards County | Y27: Small | Z27: Average | AB27: Franklin County | AC27: Medium | AD27: Average | BA27: Green Lake County | BB27: 407 | BC27: 0.0142 | BH27: Franklin County | BI27: Central District | BJ27: 14201 | BK27: 1.47 | BM27: Emmet County | BN27: =+(18.2393+24.7008)/2 -> 21.47005 | BQ27: TRUE | BR27: Green Lake | BS27: Green Lake County | BT27: 186100 | BU27: 2641 | BV27: 0.0142
V28: 0500000US17049 | W28: IL | X28: Effingham County | Y28: Large | Z28: Average | AB28: Fulton County | AC28: Medium | AD28: Average | BA28: Iowa County | BB28: 321 | BC28: 0.0163 | BH28: Fulton County | BI28: North District | BJ28: 13000 | BK28: 1.65 | BM28: Genesee County | BN28: =(24.594+38.9771)/2 -> 31.78555 | BQ28: TRUE | BR28: Iowa | BS28: Iowa County | BT28: 231300 | BU28: 3763 | BV28: 0.0163
V29: 0500000US17051 | W29: IL | X29: Fayette County | Y29: Medium | Z29: Average | AB29: Gibson County | AC29: Large | AD29: Average | AG29: Conversion Rates - per acre | BA29: Iron County | BB29: 51 | BC29: 0.0122 | BH29: Gibson County | BI29: South District | BJ29: 6535 | BK29: 2.16 | BM29: Gladwin County | BN29: =(21.0766+34.9839)/2 -> 28.03025 | BQ29: TRUE | BR29: Iron | BS29: Iron County | BT29: 144100 | BU29: 1761 | BV29: 0.0122
V30: 0500000US17053 | W30: IL | X30: Ford County | Y30: Small | Z30: Average | AB30: Grant County | AC30: Large | AD30: Average | AG30: WI | AH30: =_xlfn.XLOOKUP(Front!$E$5,lookups!$BA$4:$BA$75,lookups!$BB$4:$BB$75) ->  | BA30: Jackson County | BB30: 148 | BC30: 0.0155 | BH30: Grant County | BI30: North District | BJ30: 13000 | BK30: 2.81 | BM30: Gogebic County | BN30: =(21.3669+37.1151)/2 -> 29.241 | BQ30: TRUE | BR30: Jackson | BS30: Jackson County | BT30: 170000 | BU30: 2635 | BV30: 0.0155
V31: 0500000US17055 | W31: IL | X31: Franklin County | Y31: Large | Z31: Below Average | AB31: Greene County | AC31: Large | AD31: Average | BA31: Jefferson County | BB31: 399 | BC31: 0.0164 | BH31: Greene County | BI31: South District | BJ31: 6535 | BK31: 2.28 | BM31: Grand Traverse County | BN31: =(16.455+21.3323)/2 -> 18.89365 | BQ31: TRUE | BR31: Jefferson | BS31: Jefferson County | BT31: 238300 | BU31: 3914 | BV31: 0.0164
V32: 0500000US17057 | W32: IL | X32: Fulton County | Y32: Large | Z32: Average | AB32: Hamilton County | AC32: Large | AD32: Average | AG32: IN Ag Assessed Values | BA32: Juneau County | BB32: 179 | BC32: 0.016 | BH32: Hamilton County | BI32: Central District | BJ32: 14201 | BK32: 2.06 | BM32: Gratiot County | BN32: =(19.2892+23.0812)/2 -> 21.1852 | BQ32: TRUE | BR32: Juneau | BS32: Juneau County | BT32: 153700 | BU32: 2459 | BV32: 0.016
V33: 0500000US17059 | W33: IL | X33: Gallatin County | Y33: Small | Z33: Average | AB33: Hancock County | AC33: Large | AD33: Average | AG33: Diff. | AH33: 0.2173 | BA33: Kenosha County | BB33: 519 | BC33: 0.0176 | BH33: Hancock County | BI33: Central District | BJ33: 14201 | BK33: 2.09 | BM33: Hillsdale County | BN33: =(17.3639+23.0561)/2 -> 20.21 | BQ33: TRUE | BR33: Kenosha | BS33: Kenosha County | BT33: 234700 | BU33: 4132 | BV33: 0.0176
V34: 0500000US17061 | W34: IL | X34: Greene County | Y34: Small | Z34: Average | AB34: Harrison County | AC34: Large | AD34: Average | AG34: Above Average | AH34: =(1+$AH$33)*AH35 -> 2775.444 | BA34: Kewaunee County | BB34: 299 | BC34: 0.0154 | BH34: Harrison County | BI34: South District | BJ34: 6535 | BK34: 1.29 | BM34: Houghton County | BN34: =(22.2378+35.9601)/2 -> 29.09895 | BQ34: TRUE | BR34: Kewaunee | BS34: Kewaunee County | BT34: 191500 | BU34: 2940 | BV34: 0.0154
V35: 0500000US17063 | W35: IL | X35: Grundy County | Y35: Large | Z35: Average | AB35: Hendricks County | AC35: Large | AD35: Average | AG35: Average | AH35: 2280 | BA35: La Crosse County | BB35: 249 | BC35: 0.017 | BH35: Hendricks County | BI35: Central District | BJ35: 14201 | BK35: 2.21 | BM35: Huron County | BN35: =(19.1725+23.6927)/2 -> 21.4326 | BQ35: TRUE | BR35: La Crosse | BS35: La Crosse County | BT35: 226600 | BU35: 3855 | BV35: 0.017
V36: 0500000US17065 | W36: IL | X36: Hamilton County | Y36: Small | Z36: Below Average | AB36: Henry County | AC36: Large | AD36: Average | AG36: Below Average | AH36: =(1-$AH$33)*AH35 -> 1784.556 | BA36: Lafayette County | BB36: 410 | BC36: 0.0177 | BH36: Henry County | BI36: Central District | BJ36: 14201 | BK36: 2.59 | BM36: Ingham County | BN36: =(32.1259+44.9659)/2 -> 38.5459 | BQ36: TRUE | BR36: Lafayette | BS36: Lafayette County | BT36: 166700 | BU36: 2947 | BV36: 0.0177
V37: 0500000US17067 | W37: IL | X37: Hancock County | Y37: Medium | Z37: Average | AB37: Howard County | AC37: Large | AD37: Above Average | BA37: Langlade County | BB37: 148 | BC37: 0.0141 | BH37: Howard County | BI37: North District | BJ37: 13000 | BK37: 2.23 | BM37: Ionia County | BN37: =(16.4983+25.3189)/2 -> 20.9086 | BQ37: TRUE | BR37: Langlade | BS37: Langlade County | BT37: 138000 | BU37: 1941 | BV37: 0.0141
V38: 0500000US17069 | W38: IL | X38: Hardin County | Y38: Small | Z38: Below Average | AB38: Huntington County | AC38: Large | AD38: Average | BA38: Lincoln County | BB38: 129 | BC38: 0.0154 | BH38: Huntington County | BI38: North District | BJ38: 13000 | BK38: 1.7 | BM38: Iosco County | BN38: =(14.2905+18.8639)/2 -> 16.5772 | BQ38: TRUE | BR38: Lincoln | BS38: Lincoln County | BT38: 163700 | BU38: 2522 | BV38: 0.0154
V39: 0500000US17071 | W39: IL | X39: Henderson County | Y39: Small | Z39: Average | AB39: Jackson County | AC39: Large | AD39: Average | BA39: Manitowoc County | BB39: 392 | BC39: 0.0165 | BH39: Jackson County | BI39: South District | BJ39: 6535 | BK39: 1.97 | BM39: Iron County | BN39: =(35.0773+21.199)/2 -> 28.13815 | BQ39: TRUE | BR39: Manitowoc | BS39: Manitowoc County | BT39: 160400 | BU39: 2648 | BV39: 0.0165
V40: 0500000US17073 | W40: IL | X40: Henry County | Y40: Large | Z40: Average | AB40: Jasper County | AC40: Large | AD40: Average | BA40: Marathon County | BB40: 194 | BC40: 0.0159 | BH40: Jasper County | BI40: North District | BJ40: 13000 | BK40: 1.25 | BM40: Isabella County | BN40: =(25.1681+27.036)/2 -> 26.10205 | BQ40: TRUE | BR40: Marathon | BS40: Marathon County | BT40: 194500 | BU40: 3098 | BV40: 0.0159
V41: 0500000US17075 | W41: IL | X41: Iroquois County | Y41: Medium | Z41: Average | AB41: Jay County | AC41: Medium | AD41: Average | BA41: Marinette County | BB41: 171 | BC41: 0.0133 | BH41: Jay County | BI41: North District | BJ41: 13000 | BK41: 1.82 | BM41: Jackson County | BN41: =(26.7823+31.8011)/2 -> 29.2917 | BQ41: TRUE | BR41: Marinette | BS41: Marinette County | BT41: 142300 | BU41: 1895 | BV41: 0.0133
V42: 0500000US17077 | W42: IL | X42: Jackson County | Y42: Large | Z42: Below Average | AB42: Jefferson County | AC42: Large | AD42: Average | BA42: Marquette County | BB42: 209 | BC42: 0.0143 | BH42: Jefferson County | BI42: South District | BJ42: 6535 | BK42: 2.12 | BM42: Kalamazoo County | BN42: =(26.3451+37.0324)/2 -> 31.68875 | BQ42: TRUE | BR42: Marquette | BS42: Marquette County | BT42: 189500 | BU42: 2712 | BV42: 0.0143
V43: 0500000US17079 | W43: IL | X43: Jasper County | Y43: Small | Z43: Average | AB43: Jennings County | AC43: Medium | AD43: Average | BA43: Menominee County | BB43: 0 | BC43: 0.0377 | BH43: Jennings County | BI43: South District | BJ43: 6535 | BK43: 1.89 | BM43: Kalkaska County | BN43: =(18.2627+22.8644)/2 -> 20.56355 | BQ43: TRUE | BR43: Menominee | BS43: Menominee County | BT43: 104300 | BU43: 3930 | BV43: 0.0377
V44: 0500000US17081 | W44: IL | X44: Jefferson County | Y44: Large | Z44: Below Average | AB44: Johnson County | AC44: Large | AD44: Average | BA44: Milwaukee County | BB44: 739 | BC44: 0.0216 | BH44: Johnson County | BI44: Central District | BJ44: 14201 | BK44: 2.04 | BM44: Kent County | BN44: =(23.7087+30.7217)/2 -> 27.2152 | BQ44: TRUE | BR44: Milwaukee | BS44: Milwaukee County | BT44: 200000 | BU44: 4313 | BV44: 0.0216
V45: 0500000US17083 | W45: IL | X45: Jersey County | Y45: Medium | Z45: Average | AB45: Knox County | AC45: Large | AD45: Average | BA45: Monroe County | BB45: 177 | BC45: 0.0151 | BH45: Knox County | BI45: South District | BJ45: 6535 | BK45: 1.71 | BM45: Keweenaw County | BN45: =(21.0266+25.0987)/2 -> 23.06265 | BQ45: TRUE | BR45: Monroe | BS45: Monroe County | BT45: 184000 | BU45: 2780 | BV45: 0.0151
V46: 0500000US17085 | W46: IL | X46: Jo Daviess County | Y46: Medium | Z46: Average | AB46: Kosciusko County | AC46: Large | AD46: Average | BA46: Oconto County | BB46: 196 | BC46: 0.0132 | BH46: Kosciusko County | BI46: North District | BJ46: 13000 | BK46: 1.53 | BM46: Lake County | BN46: =(21.4179+27.074)/2 -> 24.24595 | BQ46: TRUE | BR46: Oconto | BS46: Oconto County | BT46: 195200 | BU46: 2579 | BV46: 0.0132
V47: 0500000US17087 | W47: IL | X47: Johnson County | Y47: Small | Z47: Below Average | AB47: LaGrange County | AC47: Large | AD47: Below Average | BA47: Oneida County | BB47: 96 | BC47: 0.0097 | BH47: LaGrange County | BI47: North District | BJ47: 13000 | BK47: 1.08 | BM47: Lapeer County | BN47: =(17.0944+23.092)/2 -> 20.0932 | BQ47: TRUE | BR47: Oneida | BS47: Oneida County | BT47: 214700 | BU47: 2093 | BV47: 0.0097
V48: 0500000US17089 | W48: IL | X48: Kane County | Y48: Large | Z48: Average | AB48: Lake County | AC48: Large | AD48: Average | BA48: Outagamie County | BB48: 389 | BC48: 0.0155 | BH48: Lake County | BI48: North District | BJ48: 13000 | BK48: 2.63 | BM48: Leelanau County | BN48: =(13.3947+15.0022)/2 -> 14.19845 | BQ48: TRUE | BR48: Outagamie | BS48: Outagamie County | BT48: 224100 | BU48: 3481 | BV48: 0.0155
V49: 0500000US17091 | W49: IL | X49: Kankakee County | Y49: Large | Z49: Average | AB49: LaPorte County | AC49: Large | AD49: Average | BA49: Ozaukee County | BB49: 441 | BC49: 0.0132 | BH49: LaPorte County | BI49: North District | BJ49: 13000 | BK49: 2.1 | BM49: Lenawee County | BN49: =(31.3221+21.9592)/2 -> 26.64065 | BQ49: TRUE | BR49: Ozaukee | BS49: Ozaukee County | BT49: 344900 | BU49: 4536 | BV49: 0.0132
V50: 0500000US17093 | W50: IL | X50: Kendall County | Y50: Large | Z50: Average | AB50: Lawrence County | AC50: Large | AD50: Average | BA50: Pepin County | BB50: 204 | BC50: 0.0158 | BH50: Lawrence County | BI50: South District | BJ50: 6535 | BK50: 1.78 | BM50: Livingston County | BN50: =(17.1494+27.8169)/2 -> 22.48315 | BQ50: TRUE | BR50: Pepin | BS50: Pepin County | BT50: 178500 | BU50: 2818 | BV50: 0.0158
V51: 0500000US17095 | W51: IL | X51: Knox County | Y51: Large | Z51: Above Average | AB51: Madison County | AC51: Large | AD51: Average | BA51: Pierce County | BB51: 238 | BC51: 0.0161 | BH51: Madison County | BI51: Central District | BJ51: 14201 | BK51: 2.82 | BM51: Luce County | BN51: 18.6163 | BQ51: TRUE | BR51: Pierce | BS51: Pierce County | BT51: 278700 | BU51: 4496 | BV51: 0.0161
V52: 0500000US17097 | W52: IL | X52: Lake County | Y52: Large | Z52: Below Average | AB52: Marion County | AC52: Large | AD52: Average | BA52: Polk County | BB52: 157 | BC52: 0.0131 | BH52: Marion County | BI52: Central District | BJ52: 14201 | BK52: 2.76 | BM52: Mackinac County | BN52: =(19.0613+21.8588)/2 -> 20.46005 | BQ52: TRUE | BR52: Polk | BS52: Polk County | BT52: 222800 | BU52: 2919 | BV52: 0.0131
V53: 0500000US17099 | W53: IL | X53: LaSalle County | Y53: Large | Z53: Average | AB53: Marshall County | AC53: Large | AD53: Average | BA53: Portage County | BB53: 201 | BC53: 0.0152 | BH53: Marshall County | BI53: North District | BJ53: 13000 | BK53: 1.59 | BM53: Macomb County | BN53: =(19.792+27.1666)/2 -> 23.4793 | BQ53: TRUE | BR53: Portage | BS53: Portage County | BT53: 214700 | BU53: 3268 | BV53: 0.0152
V54: 0500000US17101 | W54: IL | X54: Lawrence County | Y54: Medium | Z54: Average | AB54: Martin County | AC54: Small | AD54: Average | BA54: Price County | BB54: 79 | BC54: 0.0147 | BH54: Martin County | BI54: South District | BJ54: 6535 | BK54: 1.44 | BM54: Manistee County | BN54: =(20.4807+25.4997)/2 -> 22.9902 | BQ54: TRUE | BR54: Price | BS54: Price County | BT54: 136400 | BU54: 2011 | BV54: 0.0147
V55: 0500000US17103 | W55: IL | X55: Lee County | Y55: Large | Z55: Above Average | AB55: Miami County | AC55: Large | AD55: Average | BA55: Racine County | BB55: 503 | BC55: 0.0176 | BH55: Miami County | BI55: North District | BJ55: 13000 | BK55: 1.84 | BM55: Marquette County | BN55: =(17.9939+21.9034)/2 -> 19.94865 | BQ55: TRUE | BR55: Racine | BS55: Racine County | BT55: 226500 | BU55: 3984 | BV55: 0.0176
V56: 0500000US17105 | W56: IL | X56: Livingston County | Y56: Large | Z56: Average | AB56: Monroe County | AC56: Large | AD56: Below Average | BA56: Richland County | BB56: 235 | BC56: 0.0153 | BH56: Monroe County | BI56: South District | BJ56: 6535 | BK56: 1.55 | BM56: Mason County | BN56: =(19.4891+20.5476)/2 -> 20.01835 | BQ56: TRUE | BR56: Richland | BS56: Richland County | BT56: 161600 | BU56: 2465 | BV56: 0.0153
V57: 0500000US17107 | W57: IL | X57: Logan County | Y57: Medium | Z57: Above Average | AB57: Montgomery County | AC57: Large | AD57: Above Average | BA57: Rock County | BB57: 434 | BC57: 0.0181 | BH57: Montgomery County | BI57: Central District | BJ57: 14201 | BK57: 2.09 | BM57: Mecosta County | BN57: =(17.4085+24.0556)/2 -> 20.73205 | BQ57: TRUE | BR57: Rock | BS57: Rock County | BT57: 193000 | BU57: 3499 | BV57: 0.0181
V58: 0500000US17109 | W58: IL | X58: McDonough County | Y58: Large | Z58: Above Average | AB58: Morgan County | AC58: Large | AD58: Average | BA58: Rusk County | BB58: 75 | BC58: 0.0128 | BH58: Morgan County | BI58: Central District | BJ58: 14201 | BK58: 1.38 | BM58: Menominee County | BN58: =(15.8621+18.5414)/2 -> 17.20175 | BQ58: TRUE | BR58: Rusk | BS58: Rusk County | BT58: 144800 | BU58: 1853 | BV58: 0.0128
V59: 0500000US17111 | W59: IL | X59: McHenry County | Y59: Large | Z59: Average | AB59: Newton County | AC59: Small | AD59: Average | BA59: Sauk County | BB59: 292 | BC59: 0.0156 | BH59: Newton County | BI59: North District | BJ59: 13000 | BK59: 1.89 | BM59: Midland County | BN59: =(20.7632+24.0837)/2 -> 22.42345 | BQ59: TRUE | BR59: =LEFT(BS59,FIND(" County",BS59)) -> Sauk | BS59: Sauk County | BT59: 227500 | BU59: 3550 | BV59: 0.0156
V60: 0500000US17113 | W60: IL | X60: McLean County | Y60: Large | Z60: Above Average | AB60: Noble County | AC60: Large | AD60: Average | BA60: Sawyer County | BB60: 80 | BC60: 0.009 | BH60: Noble County | BI60: North District | BJ60: 13000 | BK60: 1.51 | BM60: Missaukee County | BN60: =(19.263+25.5182)/2 -> 22.3906 | BQ60: TRUE | BR60: =LEFT(BS60,FIND(" County",BS60)) -> Sawyer | BS60: Sawyer County | BT60: 210700 | BU60: 1896 | BV60: 0.009
V61: 0500000US17115 | W61: IL | X61: Macon County | Y61: Large | Z61: Above Average | AB61: Ohio County | AC61: Small | AD61: Average | BA61: Shawano County | BB61: 304 | BC61: 0.0151 | BH61: Ohio County | BI61: South District | BJ61: 6535 | BK61: 1.35 | BM61: Monroe County | BN61: =(18.0252+27.6716)/2 -> 22.8484 | BQ61: TRUE | BR61: =LEFT(BS61,FIND(" County",BS61)) -> Shawano | BS61: Shawano County | BT61: 166900 | BU61: 2528 | BV61: 0.0151
